Workbook

Sheet План ввода основ. ср-в (hidden)
A5: План ввода основных средств АО "Самарская сетевая компания" на период реализации инвестиционной программы 2017-2021 гг.
X9: Утверждаю
AC10: Генеральный директор АО "ССК"
AC11: Мухаметшин В. С.
Z12: __________________
V13: «___»_______________ 2016 года
X14: М.П.
A16: № | B16: Наименование объекта | C16: План вводимой мощности в 2017-2021 гг. на основные фонды
C17: 2017 | E17: План I кв. | G17: План II кв. | I17: План III кв. | K17: План IV кв. | M17: 2018 | O17: 2019 | Q17: 2020 | S17: 2021 | U17: 2017 | V17: План I кв. | W17: План II кв. | X17: План III кв. | Y17: План IV кв. | Z17: 2018 | AA17: 2019 | AB17: 2020 | AC17: 2021 | AH17: 3204.004508
C18: МВА | D18: Км | E18: МВА | F18: Км | G18: МВА | H18: Км | I18: МВА | J18: Км | K18: МВА | L18: Км | M18: МВА | N18: км | O18: МВА | P18: км | Q18: МВА | R18: км | S18: МВА | T18: км | U18: млн. руб. (без НДС)
A19: 1 | B19: 2 | C19: 3 | D19: 4 | E19: 5 | F19: 6 | G19: 7 | H19: 8 | I19: 9 | J19: 10 | K19: 11 | L19: 12 | M19: 13 | N19: 14 | O19: 15 | P19: 16 | Q19: 17 | R19: 18 | S19: 19 | T19: 20 | U19: 21 | V19: 22 | W19: 23 | X19: 24 | Y19: 25 | Z19: 26 | AA19: 27 | AB19: 28 | AC19: 29
B20: ВСЕГО | C20: =C21+C289 -> 47.4 | D20: 364.1743333 | E20: 0 | F20: 0 | G20: 0 | H20: 0 | I20: 0 | J20: 0 | K20: 47.4 | L20: 364.1743333 | M20: 93.28 | N20: 447.91 | O20: 188.369 | P20: 398.96 | Q20: 111.07 | R20: 371.545 | S20: 133.39 | T20: 383.29 | U20: 2268.346646 | V20: 0 | W20: 340.2519969 | X20: 793.921326 | Y20: 1134.173323 | Z20: 3173.505424 | AA20: 3286.191275 | AB20: 3428.940678 | AC20: 3594.008475
A21: 1 | B21: Техническое перевооружение и реконструкция | C21: =C22 -> 39.55 | D21: =D22 -> 327.8243333 | E21: 0 | F21: 0 | G21: 0 | H21: 0 | I21: 0 | J21: 0 | K21: 39.55 | L21: 327.8243333 | M21: 86.45 | N21: 404.21 | O21: 185.119 | P21: 367.46 | Q21: 109.79 | R21: 366.045 | S21: 131.14 | T21: 378.89 | U21: =SUM(U23:U275) -> 2044.81478 | V21: 0 | W21: 306.7222171 | X21: 715.6851731 | Y21: 1022.40739 | Z21: 3038.064407 | AA21: 3204.006213 | AB21: 3379.066102 | AC21: 3563.747458
A22: 1.1. | B22: Энергосбережение и повышение энергетической эффективности | C22: =SUM(C23:C279) -> 39.55 | D22: =SUM(D23:D279) -> 327.8243333 | E22: 0 | F22: 0 | G22: 0 | H22: 0 | I22: 0 | J22: 0 | K22: 39.55 | L22: 327.8243333 | M22: 86.45 | N22: 404.21 | O22: 185.119 | P22: 367.46 | Q22: 109.79 | R22: 366.045 | S22: 131.14 | T22: 378.89 | U22: =SUM(U23:U274) -> 1807.71478 | V22: =SUM(V23:V274) -> 0 | W22: 271.1572171 | X22: 632.7001731 | Y22: 903.8573902 | Z22: 2968.166102 | AA22: 3131.277976 | AB22: 3292.727119 | AC22: 3472.738983
A23: 1 | B23: Алексеевский район | C23: 0 | D23: 0 | K23: =C23 -> 0 | L23: =D23 -> 0 | M23: 0 | N23: 0 | O23: 0 | P23: 0 | Q23: 0 | R23: 0 | S23: 0 | T23: 0 | U23: 0 | W23: =U23*0.15 -> 0 | X23: =U23*0.35 -> 0 | Y23: =U23*0.5 -> 0 | Z23: 0 | AA23: 0 | AB23: 0 | AC23: 0
A24: 2 | B24: Реконструкция ВЛ-0,4кВ от КТП А 2109/160 кВА с заменой КТП | C24: 0.16 | D24: 2.81 | K24: =C24 -> 0.16 | L24: =D24 -> 2.81 | M24: 0 | N24: 0 | O24: 0 | P24: 0 | Q24: 0 | R24: 0 | S24: 0 | T24: 0 | U24: 8.722033898 | W24: =U24*0.15 -> 1.308305085 | X24: =U24*0.35 -> 3.052711864 | Y24: =U24*0.5 -> 4.361016949 | Z24: 0 | AA24: 0 | AB24: 0 | AC24: 0
A25: 3 | B25: Реконструкция ВЛ-0,4кВ от КТП А 216/250 кВА с заменой КТП | C25: 0.25 | D25: 4.52 | K25: 0.25 | L25: 4.52 | M25: 0 | N25: 0 | O25: 0 | P25: 0 | Q25: 0 | R25: 0 | S25: 0 | T25: 0 | U25: 13.35932203 | W25: 2.003898305 | X25: 4.675762712 | Y25: 6.679661017 | Z25: 0 | AA25: 0 | AB25: 0 | AC25: 0
A26: 4 | B26: Реконструкция ВЛ-0,4кВ от КТП А 207/250 кВА с заменой КТП | C26: 0 | D26: 0 | K26: 0 | L26: 0 | M26: 0.25 | N26: 1.92 | O26: 0 | P26: 0 | Q26: 0 | R26: 0 | S26: 0 | T26: 0 | U26: 0 | W26: 0 | X26: 0 | Y26: 0 | Z26: 5.572881356 | AA26: 0 | AB26: 0 | AC26: 0
A27: 5 | B27: Реконструкция ВЛ-0,4кВ от КТП А 203/250 кВА с заменой КТП | C27: 0 | D27: 0 | K27: 0 | L27: 0 | M27: 0.25 | N27: 4.67 | O27: 0 | P27: 0 | Q27: 0 | R27: 0 | S27: 0 | T27: 0 | U27: 0 | W27: 0 | X27: 0 | Y27: 0 | Z27: 12.09830508 | AA27: 0 | AB27: 0 | AC27: 0
A28: 6 | B28: Реконструкция ВЛ-0,4кВ от КТП А 2101/160 кВА с заменой КТП | C28: 0 | D28: 0 | K28: 0 | L28: 0 | M28: 0 | N28: 0 | O28: 0.16 | P28: 2.92 | Q28: 0 | R28: 0 | S28: 0 | T28: 0 | U28: 0 | W28: 0 | X28: 0 | Y28: 0 | Z28: 0 | AA28: 7.945762712 | AB28: 0 | AC28: 0
A29: 7 | B29: Реконструкция ВЛ-0,4кВ от КТП А 217/400 кВА с заменой КТП | C29: 0 | D29: 0 | K29: 0 | L29: 0 | M29: 0 | N29: 0 | O29: 0.4 | P29: 3.08 | Q29: 0 | R29: 0 | S29: 0 | T29: 0 | U29: 0 | W29: 0 | X29: 0 | Y29: 0 | Z29: 0 | AA29: 8.325423729 | AB29: 0 | AC29: 0
A30: 8 | B30: Реконструкция ВЛ-0,4кВ от КТП А 2003/400 кВА с заменой КТП | C30: 0 | D30: 0 | K30: 0 | L30: 0 | M30: 0 | N30: 0 | O30: 0 | P30: 0 | Q30: 0.4 | R30: 1.035 | S30: 0 | T30: 0 | U30: 0 | W30: 0 | X30: 0 | Y30: 0 | Z30: 0 | AA30: 0 | AB30: 3.472881356 | AC30: 0
A31: 9 | B31: Реконструкция ВЛ-0,4кВ от КТП А 2110/160 кВА с заменой КТП | C31: 0 | D31: 0 | K31: 0 | L31: 0 | M31: 0 | N31: 0 | O31: 0 | P31: 0 | Q31: 0 | R31: 0 | S31: 0.16 | T31: 1.6 | U31: 0 | W31: 0 | X31: 0 | Y31: 0 | Z31: 0 | AA31: 0 | AB31: 0 | AC31: 4.813559322
A32: 10 | B32: Больше-Черниговский район | C32: 0 | D32: 0 | K32: 0 | L32: 0 | M32: 0 | N32: 0 | O32: 0 | P32: 0 | Q32: 0 | R32: 0 | S32: 0 | T32: 0 | U32: 0 | W32: 0 | X32: 0 | Y32: 0 | Z32: 0 | AA32: 0 | AB32: 0 | AC32: 0
A33: 11 | B33: Реконструкция ВЛ-0,4кВ от КТП 1205/400 кВА с заменой КТП | C33: 0.4 | D33: 1.68 | K33: 0.4 | L33: 1.68 | M33: 0 | N33: 0 | O33: 0 | P33: 0 | Q33: 0 | R33: 0 | S33: 0 | T33: 0 | U33: 5.911864407 | W33: 0.886779661 | X33: 2.069152542 | Y33: 2.955932203 | Z33: 0 | AA33: 0 | AB33: 0 | AC33: 0
A34: 12 | B34: Реконструкция ВЛ-0,4кВ от КТП 1204/400 кВА с заменой КТП | C34: 0.4 | D34: 0.7 | K34: 0.4 | L34: 0.7 | M34: 0 | N34: 0 | O34: 0 | P34: 0 | Q34: 0 | R34: 0 | S34: 0 | T34: 0 | U34: 3.254237288 | W34: 0.4881355932 | X34: 1.138983051 | Y34: 1.627118644 | Z34: 0 | AA34: 0 | AB34: 0 | AC34: 0
A35: 13 | B35: Реконструкция ВЛ-0,4кВ от КТП 415/250 кВА с заменой КТП | C35: 0.25 | D35: 0.8 | K35: 0.25 | L35: 0.8 | M35: 0 | N35: 0 | O35: 0 | P35: 0 | Q35: 0 | R35: 0 | S35: 0 | T35: 0 | U35: 3.271186441 | W35: 0.4906779661 | X35: 1.144915254 | Y35: 1.63559322 | Z35: 0 | AA35: 0 | AB35: 0 | AC35: 0
A36: 14 | B36: Реконструкция ВЛ-0,4кВ от КТП 1206/160 кВА с заменой КТП | C36: 0.16 | D36: 2.2 | K36: 0.16 | L36: 2.2 | M36: 0 | N36: 0 | O36: 0 | P36: 0 | Q36: 0 | R36: 0 | S36: 0 | T36: 0 | U36: 7.06779661 | W36: 1.060169492 | X36: 2.473728814 | Y36: 3.533898305 | Z36: 0 | AA36: 0 | AB36: 0 | AC36: 0
A37: 15 | B37: Реконструкция ВЛ-0,4кВ от КТП 1202/250 кВА с заменой КТП | C37: 0.25 | D37: 1.05 | K37: 0.25 | L37: 1.05 | M37: 0 | N37: 0 | O37: 0 | P37: 0 | Q37: 0 | R37: 0 | S37: 0 | T37: 0 | U37: 3.949152542 | W37: 0.5923728814 | X37: 1.38220339 | Y37: 1.974576271 | Z37: 0 | AA37: 0 | AB37: 0 | AC37: 0
A38: 16 | B38: Реконструкция ВЛ-0,4кВ от КТП 709/250 кВА с заменой КТП | C38: 0 | D38: 0 | K38: 0 | L38: 0 | M38: 0.25 | N38: 0.42 | O38: 0 | P38: 0 | Q38: 0 | R38: 0 | S38: 0 | T38: 0 | U38: 0 | W38: 0 | X38: 0 | Y38: 0 | Z38: 2.013559322 | AA38: 0 | AB38: 0 | AC38: 0
A39: 17 | B39: Реконструкция ВЛ-0,4кВ от КТП 501/320 кВА с заменой КТП | C39: 0 | D39: 0 | K39: 0 | L39: 0 | M39: 0.32 | N39: 0.42 | O39: 0 | P39: 0 | Q39: 0 | R39: 0 | S39: 0 | T39: 0 | U39: 0 | W39: 0 | X39: 0 | Y39: 0 | Z39: 2.013559322 | AA39: 0 | AB39: 0 | AC39: 0
A40: 18 | B40: Реконструкция ВЛ-0,4кВ от КТП 809/100 кВА с заменой КТП | C40: 0 | D40: 0 | K40: 0 | L40: 0 | M40: 0 | N40: 0 | O40: 0.1 | P40: 1.36 | Q40: 0 | R40: 0 | S40: 0 | T40: 0 | U40: 0 | W40: 0 | X40: 0 | Y40: 0 | Z40: 0 | AA40: 4.244067797 | AB40: 0 | AC40: 0
A41: 19 | B41: Реконструкция ВЛ-0,4кВ от КТП 201/400 кВА с заменой КТП | C41: 0 | D41: 0 | K41: 0 | L41: 0 | M41: 0 | N41: 0 | O41: 0.4 | P41: 1.6 | Q41: 0 | R41: 0 | S41: 0 | T41: 0 | U41: 0 | W41: 0 | X41: 0 | Y41: 0 | Z41: 0 | AA41: 4.813559322 | AB41: 0 | AC41: 0
A42: 20 | B42: Реконструкция ВЛ-0,4кВ от КТП 109/400 кВА с заменой КТП | C42: 0 | D42: 0 | K42: 0 | L42: 0 | M42: 0 | N42: 0 | O42: 0.4 | P42: 1.22 | Q42: 0 | R42: 0 | S42: 0 | T42: 0 | U42: 0 | W42: 0 | X42: 0 | Y42: 0 | Z42: 0 | AA42: 3.911864407 | AB42: 0 | AC42: 0
A43: 21 | B43: Реконструкция ВЛ-0,4кВ от КТП 905/400 кВА с заменой КТП | C43: 0 | D43: 0 | K43: 0 | L43: 0 | M43: 0 | N43: 0 | O43: 0.4 | P43: 1.62 | Q43: 0 | R43: 0 | S43: 0 | T43: 0 | U43: 0 | W43: 0 | X43: 0 | Y43: 0 | Z43: 0 | AA43: 4.861016949 | AB43: 0 | AC43: 0
A44: 22 | B44: Реконструкция ВЛ-0,4кВ от КТП 114/400 кВА с заменой КТП | C44: 0 | D44: 0 | K44: 0 | L44: 0 | M44: 0 | N44: 0 | O44: 0 | P44: 0 | Q44: 0.4 | R44: 0.72 | S44: 0 | T44: 0 | U44: 0 | W44: 0 | X44: 0 | Y44: 0 | Z44: 0 | AA44: 0 | AB44: 2.725423729 | AC44: 0
A45: 23 | B45: Реконструкция ВЛ-0,4кВ от КТП 407/400 кВА с заменой КТП | C45: 0 | D45: 0 | K45: 0 | L45: 0 | M45: 0 | N45: 0 | O45: 0 | P45: 0 | Q45: 0.4 | R45: 0.52 | S45: 0 | T45: 0 | U45: 0 | W45: 0 | X45: 0 | Y45: 0 | Z45: 0 | AA45: 0 | AB45: 2.250847458 | AC45: 0
A46: 24 | B46: Реконструкция ВЛ-0,4кВ от КТП 122/400 кВА с заменой КТП | C46: 0 | D46: 0 | K46: 0 | L46: 0 | M46: 0 | N46: 0 | O46: 0 | P46: 0 | Q46: 0 | R46: 0 | S46: 0.4 | T46: 1.9 | U46: 0 | W46: 0 | X46: 0 | Y46: 0 | Z46: 0 | AA46: 0 | AB46: 0 | AC46: 2.250847458
A47: 25 | B47: Реконструкция ВЛ-0,4кВ от КТП 906/250 кВА с заменой КТП | C47: 0 | D47: 0 | K47: 0 | L47: 0 | M47: 0 | N47: 0 | O47: 0 | P47: 0 | Q47: 0 | R47: 0 | S47: 0.25 | T47: 3.85 | U47: 0 | W47: 0 | X47: 0 | Y47: 0 | Z47: 0 | AA47: 0 | AB47: 0 | AC47: 10.15254237
A48: 26 | B48: Волжский район | C48: 0 | D48: 0 | K48: 0 | L48: 0 | M48: 0 | N48: 0 | O48: 0 | P48: 0 | Q48: 0 | R48: 0 | S48: 0 | T48: 0 | U48: 0 | W48: 0 | X48: 0 | Y48: 0 | Z48: 0 | AA48: 0 | AB48: 0 | AC48: 0
A49: 27 | B49: Повышение надежности энергоснабжения п.г.т. Петра-Дубрава | C49: 0 | D49: 0 | K49: 0 | L49: 0 | M49: 12.8 | N49: 24 | O49: 12.8 | P49: 26.3 | Q49: 12.8 | R49: 28 | S49: 12.8 | T49: 30 | U49: 0 | W49: 0 | X49: 0 | Y49: 0 | Z49: 240 | AA49: 263 | AB49: 279.6610169 | AC49: 300
A50: 28 | B50: Реконструкция, инфраструктуры объектов электрохозяйства в г.о. Самара в целях обеспечения надежности ЭС объектов Южный город, Заречье в Волжском районе | C50: 0 | D50: 0 | K50: 0 | L50: 0 | M50: 0 | N50: 12 | O50: 63 | P50: 12 | Q50: 70.2 | R50: 12 | S50: 70.2 | T50: 30 | U50: 0 | W50: 0 | X50: 0 | Y50: 0 | Z50: 172 | AA50: 290 | AB50: 346.0169492 | AC50: 380
A51: 29 | B51: Повышение надежности энергоснабжения электросетевого района с. Лопатино | C51: 0 | D51: 13.4 | K51: 0 | L51: 13.4 | M51: 0 | N51: 0 | O51: 0 | P51: 0 | Q51: 0 | R51: 0 | S51: 0 | T51: 0 | U51: 41.22881356 | W51: 6.184322034 | X51: 14.43008475 | Y51: 20.61440678 | Z51: 0 | AA51: 0 | AB51: 0 | AC51: 0
A52: 30 | B52: Реконструкция ЗТП КУР 2010/2х100 кВА с заменой трансформаторов на 400 кВА | C52: 0.8 | D52: 0 | K52: 0.8 | L52: 0 | M52: 0 | N52: 0 | O52: 0 | P52: 0 | Q52: 0 | R52: 0 | S52: 0 | T52: 0 | U52: 4.661016949 | W52: 0.6991525424 | X52: 1.631355932 | Y52: 2.330508475 | Z52: 0 | AA52: 0 | AB52: 0 | AC52: 0
A53: 31 | B53: Реконструкция ВЛ-0,4кВ от ЗТП Кур 906/400 кВА с заменой в ЗТП РУ-0,4 кВ | C53: 0 | D53: 1.1 | K53: 0 | L53: 1.1 | M53: 0 | N53: 0 | O53: 0 | P53: 0 | Q53: 0 | R53: 0 | S53: 0 | T53: 0 | U53: 3.618644068 | W53: 0.5427966102 | X53: 1.266525424 | Y53: 1.809322034 | Z53: 0 | AA53: 0 | AB53: 0 | AC53: 0
A54: 32 | B54: Реконструкция ВЛ-0,4кВ от ЗТП Кур 901/250 кВА с заменой в ЗТП РУ-0,4 кВ | C54: 0 | D54: 1 | K54: 0 | L54: 1 | M54: 0 | N54: 0 | O54: 0 | P54: 0 | Q54: 0 | R54: 0 | S54: 0 | T54: 0 | U54: 3.347457627 | W54: 0.5021186441 | X54: 1.171610169 | Y54: 1.673728814 | Z54: 0 | AA54: 0 | AB54: 0 | AC54: 0
A55: 33 | B55: Реконструкция ВЛ-0,4 кВ от КТП Р 402/400 кВА с заменой КТП | C55: 0.4 | D55: 1 | K55: 0.4 | L55: 1 | M55: 0 | N55: 0 | O55: 0 | P55: 0 | Q55: 0 | R55: 0 | S55: 0 | T55: 0 | U55: 4.06779661 | W55: 0.6101694915 | X55: 1.423728814 | Y55: 2.033898305 | Z55: 0 | AA55: 0 | AB55: 0 | AC55: 0
A56: 34 | B56: Реконструкция ВЛ-0,4 кВ от КТП Р 605/250 кВА с заменой КТП | C56: 0.25 | D56: 2.65 | K56: 0.25 | L56: 2.65 | M56: 0 | N56: 0 | O56: 0 | P56: 0 | Q56: 0 | R56: 0 | S56: 0 | T56: 0 | U56: 8.288135593 | W56: 1.243220339 | X56: 2.900847458 | Y56: 4.144067797 | Z56: 0 | AA56: 0 | AB56: 0 | AC56: 0
A57: 35 | B57: Реконструкция ВЛ-0,4кВ от ЗТП Кур 906/400 кВА с заменой ЗТП на КТП | C57: 0 | D57: 0 | K57: 0 | L57: 0 | M57: 0.4 | N57: 0.85 | O57: 0 | P57: 0 | Q57: 0 | R57: 0 | S57: 0 | T57: 0 | U57: 0 | W57: 0 | X57: 0 | Y57: 0 | Z57: 3.033898305 | AA57: 0 | AB57: 0 | AC57: 0
A58: 36 | B58: Реконструкция ВЛ-0,4кВ от ЗТП Кур 901/250 кВА с заменой ЗТП на КТП | C58: 0 | D58: 0 | K58: 0 | L58: 0 | M58: 0.25 | N58: 1.4 | O58: 0 | P58: 0 | Q58: 0 | R58: 0 | S58: 0 | T58: 0 | U58: 0 | W58: 0 | X58: 0 | Y58: 0 | Z58: 4.338983051 | AA58: 0 | AB58: 0 | AC58: 0
A59: 37 | B59: Реконструкция ВЛ-0,4 кВ от КТП Р 402/400 кВА | C59: 0 | D59: 0 | K59: 0 | L59: 0 | M59: 0 | N59: 1 | O59: 0 | P59: 0 | Q59: 0 | R59: 0 | S59: 0 | T59: 0 | U59: 0 | W59: 0 | X59: 0 | Y59: 0 | Z59: 2.372881356 | AA59: 0 | AB59: 0 | AC59: 0
A60: 38 | B60: Реконструкция ВЛ-10 кВ Ф-8 отпайка к КТП Пм 802/100 кВА с заменой КТП | C60: 0 | D60: 0 | K60: 0 | L60: 0 | M60: 0.1 | N60: 3.6 | O60: 0 | P60: 0 | Q60: 0 | R60: 0 | S60: 0 | T60: 0 | U60: 0 | W60: 0 | X60: 0 | Y60: 0 | Z60: 9.322033898 | AA60: 0 | AB60: 0 | AC60: 0
A61: 39 | B61: Реконструкция ВЛ-0,4 кВ Ф-1 КТП Л 2502/320 кВА | C61: 0 | D61: 0 | K61: 0 | L61: 0 | M61: 0 | N61: 0.7 | O61: 0 | P61: 0 | Q61: 0 | R61: 0 | S61: 0 | T61: 0 | U61: 0 | W61: 0 | X61: 0 | Y61: 0 | Z61: 1.661016949 | AA61: 0 | AB61: 0 | AC61: 0
A62: 40 | B62: Реконструкция ВЛ-0,4 кВ от КТП 211/250 кВА с заменой КТП на 400 кВА. | C62: 0 | D62: 0 | K62: 0 | L62: 0 | M62: 0.4 | N62: 1.5 | O62: 0 | P62: 0 | Q62: 0 | R62: 0 | S62: 0 | T62: 0 | U62: 0 | W62: 0 | X62: 0 | Y62: 0 | Z62: 4.576271186 | AA62: 0 | AB62: 0 | AC62: 0
A63: 41 | B63: Реконструкция ВЛ-0,4 кВ от КТП 213 | C63: 0 | D63: 0 | K63: 0 | L63: 0 | M63: 0 | N63: 1.8 | O63: 0 | P63: 0 | Q63: 0 | R63: 0 | S63: 0 | T63: 0 | U63: 0 | W63: 0 | X63: 0 | Y63: 0 | Z63: 4.271186441 | AA63: 0 | AB63: 0 | AC63: 0
A64: 42 | B64: Реконструкция ВЛ-0,4 кВ от КТП Р 106/400 кВА с заменой КТП | C64: 0 | D64: 0 | K64: 0 | L64: 0 | M64: 0 | N64: 0 | O64: 0.4 | P64: 3.2 | Q64: 0 | R64: 0 | S64: 0 | T64: 0 | U64: 0 | W64: 0 | X64: 0 | Y64: 0 | Z64: 0 | AA64: 8.610169492 | AB64: 0 | AC64: 0
A65: 43 | B65: Реконструкция ВЛ-6 кВ Ф-30 ПС Овощная отпайка до КТП Ов 3008/250 кВА с заменой КТП на 400 кВА | C65: 0 | D65: 0 | K65: 0 | L65: 0 | M65: 0 | N65: 0 | O65: 0.4 | P65: 0.36 | Q65: 0 | R65: 0 | S65: 0 | T65: 0 | U65: 0 | W65: 0 | X65: 0 | Y65: 0 | Z65: 0 | AA65: 1.871186441 | AB65: 0 | AC65: 0
A66: 44 | B66: Реконструкция ВЛ-6 кВ Ф-1 отпайка до КТП Пм 102/250 кВА с заменой КТП | C66: 0 | D66: 0 | K66: 0 | L66: 0 | M66: 0 | N66: 0 | O66: 0.25 | P66: 0.06 | Q66: 0 | R66: 0 | S66: 0 | T66: 0 | U66: 0 | W66: 0 | X66: 0 | Y66: 0 | Z66: 0 | AA66: 1.159322034 | AB66: 0 | AC66: 0
A67: 45 | B67: Реконструкция ВЛ-0,4 кВ от КТП 215 | C67: 0 | D67: 0 | K67: 0 | L67: 0 | M67: 0 | N67: 0 | O67: 0 | P67: 1.6 | Q67: 0 | R67: 0 | S67: 0 | T67: 0 | U67: 0 | W67: 0 | X67: 0 | Y67: 0 | Z67: 0 | AA67: 3.796610169 | AB67: 0 | AC67: 0
A68: 46 | B68: Реконструкция ВЛ-0,4 кВ от КТП 218 | C68: 0 | D68: 0 | K68: 0 | L68: 0 | M68: 0 | N68: 0 | O68: 0 | P68: 0.8 | Q68: 0 | R68: 0 | S68: 0 | T68: 0 | U68: 0 | W68: 0 | X68: 0 | Y68: 0 | Z68: 0 | AA68: 1.898305085 | AB68: 0 | AC68: 0
A69: 47 | B69: Реконструкция ВЛ-0,4 кВ от КТП Р 304/400 кВА с заменой КТП | C69: 0 | D69: 0 | K69: 0 | L69: 0 | M69: 0 | N69: 0 | O69: 0 | P69: 0 | Q69: 0.4 | R69: 1.8 | S69: 0 | T69: 0 | U69: 0 | W69: 0 | X69: 0 | Y69: 0 | Z69: 0 | AA69: 0 | AB69: 5.288135593 | AC69: 0
A70: 48 | B70: Елховский район | C70: 0 | D70: 0 | K70: 0 | L70: 0 | M70: 0 | N70: 0 | O70: 0 | P70: 0 | Q70: 0 | R70: 0 | S70: 0 | T70: 0 | U70: 0 | W70: 0 | X70: 0 | Y70: 0 | Z70: 0 | AA70: 0 | AB70: 0 | AC70: 0
A71: 49 | B71: Реконструкция ВЛ-0,4кВ от КТП КМ 810/100 кВА с заменой КТП | C71: 0.1 | D71: 0.92 | K71: 0.1 | L71: 0.92 | M71: 0 | N71: 0 | O71: 0 | P71: 0 | Q71: 0 | R71: 0 | S71: 0 | T71: 0 | U71: 3.596949153 | W71: 0.5395423729 | X71: 1.258932203 | Y71: 1.798474576 | Z71: 0 | AA71: 0 | AB71: 0 | AC71: 0
A72: 50 | B72: Реконструкция ВЛ-0,4кВ от КТП Елх 405/400 кВА с заменой КТП | C72: 0.4 | D72: 0.6 | K72: 0.4 | L72: 0.6 | M72: 0 | N72: 0 | O72: 0 | P72: 0 | Q72: 0 | R72: 0 | S72: 0 | T72: 0 | U72: 2.983050847 | W72: 0.4474576271 | X72: 1.044067797 | Y72: 1.491525424 | Z72: 0 | AA72: 0 | AB72: 0 | AC72: 0
A73: 51 | B73: Реконструкция ВЛ-0,4кВ от КТП Елх 713/400 кВА с заменой КТП | C73: 0 | D73: 0 | K73: 0 | L73: 0 | M73: 0.4 | N73: 0.64 | O73: 0 | P73: 0 | Q73: 0 | R73: 0 | S73: 0 | T73: 0 | U73: 0 | W73: 0 | X73: 0 | Y73: 0 | Z73: 2.53559322 | AA73: 0 | AB73: 0 | AC73: 0
A74: 52 | B74: Реконструкция ВЛ-0,4кВ от КТП Елх 403/160 кВА с заменой КТП | C74: 0 | D74: 0 | K74: 0 | L74: 0 | M74: 0.16 | N74: 0.48 | O74: 0 | P74: 0 | Q74: 0 | R74: 0 | S74: 0 | T74: 0 | U74: 0 | W74: 0 | X74: 0 | Y74: 0 | Z74: 2.155932203 | AA74: 0 | AB74: 0 | AC74: 0
A75: 53 | B75: Кинель-Черкасский район | C75: 0 | D75: 0 | K75: 0 | L75: 0 | M75: 0 | N75: 0 | O75: 0 | P75: 0 | Q75: 0 | R75: 0 | S75: 0 | T75: 0 | U75: 0 | W75: 0 | X75: 0 | Y75: 0 | Z75: 0 | AA75: 0 | AB75: 0 | AC75: 0
A76: 54 | B76: Реконструкция ВЛ-0,4 кВ от КТП Ч 1704/250 кВА с заменой КТП на 400 кВА | C76: 0.4 | D76: 8.2 | K76: 0.4 | L76: 8.2 | M76: 0 | N76: 0 | O76: 0 | P76: 0 | Q76: 0 | R76: 0 | S76: 0 | T76: 0 | U76: 23.59322034 | W76: 3.538983051 | X76: 8.257627119 | Y76: 11.79661017 | Z76: 0 | AA76: 0 | AB76: 0 | AC76: 0
A77: 55 | B77: Реконструкция ВЛ-0,4 кВ от КТП Сад-Г 507/250 кВА с заменой КТП | C77: 0.25 | D77: 2 | K77: 0.25 | L77: 2 | M77: 0 | N77: 0 | O77: 0 | P77: 0 | Q77: 0 | R77: 0 | S77: 0 | T77: 0 | U77: 6.525423729 | W77: 0.9788135593 | X77: 2.283898305 | Y77: 3.262711864 | Z77: 0 | AA77: 0 | AB77: 0 | AC77: 0
A78: 56 | B78: Реконструкция ВЛ-0,4кВ от КТП Ку 1316/400кВА с заменой КТП | C78: 0.4 | D78: 1.6 | K78: 0.4 | L78: 1.6 | M78: 0 | N78: 0 | O78: 0 | P78: 0 | Q78: 0 | R78: 0 | S78: 0 | T78: 0 | U78: 5.694915254 | W78: 0.8542372881 | X78: 1.993220339 | Y78: 2.847457627 | Z78: 0 | AA78: 0 | AB78: 0 | AC78: 0
A79: 57 | B79: Реконструкция ВЛ-0,4 кВ от ЗТП Ч 405/400 кВА с заменой ЗТП на КТП 400кВА | C79: 0.4 | D79: 4.32 | K79: 0.4 | L79: 4.32 | M79: 0 | N79: 0 | O79: 0 | P79: 0 | Q79: 0 | R79: 0 | S79: 0 | T79: 0 | U79: 13.07118644 | W79: 1.960677966 | X79: 4.574915254 | Y79: 6.53559322 | Z79: 0 | AA79: 0 | AB79: 0 | AC79: 0
A80: 58 | B80: Реконструкция ВЛ-0,4 кВ от КТП Ку 1309/250 кВА | C80: 0 | D80: 6 | K80: 0 | L80: 6 | M80: 0 | N80: 0 | O80: 0 | P80: 0 | Q80: 0 | R80: 0 | S80: 0 | T80: 0 | U80: 16.27118644 | W80: 2.440677966 | X80: 5.694915254 | Y80: 8.13559322 | Z80: 0 | AA80: 0 | AB80: 0 | AC80: 0
A81: 59 | B81: Реконструкция ВЛ-0,4 кВ от ЗТП Ч 1703/400 кВА | C81: 0 | D81: 0 | K81: 0 | L81: 0 | M81: 0 | N81: 7.6 | O81: 0 | P81: 0 | Q81: 0 | R81: 0 | S81: 0 | T81: 0 | U81: 0 | W81: 0 | X81: 0 | Y81: 0 | Z81: 18.03389831 | AA81: 0 | AB81: 0 | AC81: 0
A82: 60 | B82: Реконструкция ВЛ-0,4 кВ от КТП Ч 417/250 кВА | C82: 0 | D82: 0 | K82: 0 | L82: 0 | M82: 0 | N82: 3.4 | O82: 0 | P82: 0 | Q82: 0 | R82: 0 | S82: 0 | T82: 0 | U82: 0 | W82: 0 | X82: 0 | Y82: 0 | Z82: 8.06779661 | AA82: 0 | AB82: 0 | AC82: 0
A83: 61 | B83: Реконструкция ВЛ-0,4 кВ от КТП Ку 1312/250 кВА | C83: 0 | D83: 0 | K83: 0 | L83: 0 | M83: 0 | N83: 2.5 | O83: 0 | P83: 0 | Q83: 0 | R83: 0 | S83: 0 | T83: 0 | U83: 0 | W83: 0 | X83: 0 | Y83: 0 | Z83: 5.93220339 | AA83: 0 | AB83: 0 | AC83: 0
A84: 62 | B84: Реконструкция ВЛ-0,4 кВ от КТП Кр 1906/400 кВА | C84: 0 | D84: 0 | K84: 0 | L84: 0 | M84: 0 | N84: 2.5 | O84: 0 | P84: 0 | Q84: 0 | R84: 0 | S84: 0 | T84: 0 | U84: 0 | W84: 0 | X84: 0 | Y84: 0 | Z84: 5.93220339 | AA84: 0 | AB84: 0 | AC84: 0
A85: 63 | B85: Реконструкция ВЛ-0,4 кВ от КТП Кр 1914/250 кВА | C85: 0 | D85: 0 | K85: 0 | L85: 0 | M85: 0 | N85: 1.6 | O85: 0 | P85: 0 | Q85: 0 | R85: 0 | S85: 0 | T85: 0 | U85: 0 | W85: 0 | X85: 0 | Y85: 0 | Z85: 3.796610169 | AA85: 0 | AB85: 0 | AC85: 0
A86: 64 | B86: Реконструкция ВЛ-0,4 кВ от КТП Кр 1909/400 кВА | C86: 0 | D86: 0 | K86: 0 | L86: 0 | M86: 0 | N86: 1.6 | O86: 0 | P86: 0 | Q86: 0 | R86: 0 | S86: 0 | T86: 0 | U86: 0 | W86: 0 | X86: 0 | Y86: 0 | Z86: 3.796610169 | AA86: 0 | AB86: 0 | AC86: 0
A87: 65 | B87: Реконструкция ВЛ-0,4 кВ от КТП Сид 305/250 кВА | C87: 0 | D87: 0 | K87: 0 | L87: 0 | M87: 0 | N87: 0 | O87: 0 | P87: 3.4 | Q87: 0 | R87: 0 | S87: 0 | T87: 0 | U87: 0 | W87: 0 | X87: 0 | Y87: 0 | Z87: 0 | AA87: 8.06779661 | AB87: 0 | AC87: 0
A88: 66 | B88: Реконструкция ВЛ-0,4 кВ от КТП Сид 316/160 кВА с заменой КТП | C88: 0 | D88: 0 | K88: =C88 -> 0 | L88: 0 | M88: 0 | N88: 0 | O88: 0.16 | P88: 1.5 | Q88: 0 | R88: 0 | S88: 0 | T88: 0 | U88: 0 | W88: =U88*0.15 -> 0 | X88: =U88*0.35 -> 0 | Y88: =U88*0.5 -> 0 | Z88: 0 | AA88: 4.576271186 | AB88: 0 | AC88: 0
A89: 67 | B89: Реконструкция ВЛ-0,4 кВ от ЗТП Ку 801/250 кВА | C89: 0 | D89: 0 | K89: 0 | L89: 0 | M89: 0 | N89: 0 | O89: 0 | P89: 2 | Q89: 0 | R89: 0 | S89: 0 | T89: 0 | U89: 0 | W89: 0 | X89: 0 | Y89: 0 | Z89: 0 | AA89: 4.745762712 | AB89: 0 | AC89: 0
A90: 68 | B90: Реконструкция ВЛ-0,4 кВ от ЗТП Ку 802/250 кВА с заменой трансформатора | C90: 0 | D90: 0 | K90: 0 | L90: 0 | M90: 0 | N90: 0 | O90: 0.25 | P90: 1 | Q90: 0 | R90: 0 | S90: 0 | T90: 0 | U90: 0 | W90: 0 | X90: 0 | Y90: 0 | Z90: 0 | AA90: 3.389830508 | AB90: 0 | AC90: 0
A91: 69 | B91: Реконструкция ВЛ-0,4 кВ от ЗТП Ку 803/250 кВА | C91: 0 | D91: 0 | K91: 0 | L91: 0 | M91: 0 | N91: 0 | O91: 0 | P91: 1.2 | Q91: 0 | R91: 0 | S91: 0 | T91: 0 | U91: 0 | W91: 0 | X91: 0 | Y91: 0 | Z91: 0 | AA91: 2.847457627 | AB91: 0 | AC91: 0
A92: 70 | B92: Реконструкция ВЛ-0,4 кВ от КТП Ку 703/250 кВА с заменой КТП | C92: 0 | D92: 0 | K92: 0 | L92: 0 | M92: 0 | N92: 0 | O92: 0.25 | P92: 1.2 | Q92: 0 | R92: 0 | S92: 0 | T92: 0 | U92: 0 | W92: 0 | X92: 0 | Y92: 0 | Z92: 0 | AA92: 3.86440678 | AB92: 0 | AC92: 0
A93: 71 | B93: Реконструкция ВЛ-0,4 кВ от КТП Ч 112/400 кВА с заменой КТП | C93: 0 | D93: 0 | K93: 0 | L93: 0 | M93: 0 | N93: 0 | O93: 0 | P93: 0 | Q93: 0.4 | R93: 3.6 | S93: 0 | T93: 0 | U93: 0 | W93: 0 | X93: 0 | Y93: 0 | Z93: 0 | AA93: 0 | AB93: 9.559322034 | AC93: 0
A94: 72 | B94: Реконструкция ВЛ-0,4 кВ от КТП Ч 1701/160 кВА | C94: 0 | D94: 0 | K94: 0 | L94: 0 | M94: 0 | N94: 0 | O94: 0 | P94: 0 | Q94: 0 | R94: 2 | S94: 0 | T94: 0 | U94: 0 | W94: 0 | X94: 0 | Y94: 0 | Z94: 0 | AA94: 0 | AB94: 4.745762712 | AC94: 0
A95: 73 | B95: Реконструкция ВЛ-0,4 кВ от КТП Ч 303/400 кВА | C95: 0 | D95: 0 | K95: 0 | L95: 0 | M95: 0 | N95: 0 | O95: 0 | P95: 0 | Q95: 0 | R95: 2.4 | S95: 0 | T95: 0 | U95: 0 | W95: 0 | X95: 0 | Y95: 0 | Z95: 0 | AA95: 0 | AB95: 5.694915254 | AC95: 0
A96: 74 | B96: Реконструкция ВЛ-0,4 кВ от ЗТП Ку 1601/160 кВА с заменой трансформатора на 250 кВА | C96: 0 | D96: 0 | K96: 0 | L96: 0 | M96: 0 | N96: 0 | O96: 0 | P96: 0 | Q96: 0 | R96: 0 | S96: 0.25 | T96: 1 | U96: 0 | W96: 0 | X96: 0 | Y96: 0 | Z96: 0 | AA96: 0 | AB96: 0 | AC96: 3.389830508
A97: 75 | B97: Реконструкция КЛ-0,4 кВ от ЗТП Ку 1602/2х250 кВА | C97: 0 | D97: 0 | K97: 0 | L97: 0 | M97: 0 | N97: 0 | O97: 0 | P97: 0 | Q97: 0 | R97: 0 | S97: 0 | T97: 0.6 | U97: 0 | W97: 0 | X97: 0 | Y97: 0 | Z97: 0 | AA97: 0 | AB97: 0 | AC97: 2.033898305
A98: 76 | B98: Реконструкция ВКЛ-0,4 кВ от ЗТП Ку 1603/630 кВА | C98: 0 | D98: 0 | K98: 0 | L98: 0 | M98: 0 | N98: 0 | O98: 0 | P98: 0 | Q98: 0 | R98: 0 | S98: 0 | T98: 2.6 | U98: 0 | W98: 0 | X98: 0 | Y98: 0 | Z98: 0 | AA98: 0 | AB98: 0 | AC98: 6.779661017
A99: 77 | B99: Кинельский район | C99: 0 | D99: 0 | K99: 0 | L99: 0 | M99: 0 | N99: 0 | O99: 0 | P99: 0 | Q99: 0 | R99: 0 | S99: 0 | T99: 0 | U99: 0 | W99: 0 | X99: 0 | Y99: 0 | Z99: 0 | AA99: 0 | AB99: 0 | AC99: 0
A100: 78 | B100: Реконструкция электроснабжения г.о.Кинель | C100: 0 | D100: 27.5 | K100: 0 | L100: 27.5 | M100: 0 | N100: 0 | O100: 0 | P100: 0 | Q100: 0 | R100: 0 | S100: 0 | T100: 0 | U100: 74.57627119 | W100: 11.18644068 | X100: 26.10169492 | Y100: 37.28813559 | Z100: 0 | AA100: 0 | AB100: 0 | AC100: 0
A101: 79 | B101: Реконструкция ВЛ-0,4кВ от ТП-6 | C101: 0 | D101: 1.87 | K101: 0 | L101: 1.87 | M101: 0 | N101: 0 | O101: 0 | P101: 0 | Q101: 0 | R101: 0 | S101: 0 | T101: 0 | U101: 5.071186441 | W101: 0.7606779661 | X101: 1.774915254 | Y101: 2.53559322 | Z101: 0 | AA101: 0 | AB101: 0 | AC101: 0
A102: 80 | B102: Реконструкция ВЛ-0,4 кВ от КТП Алк 54/250 кВА с заменой КТП на 400 кВА | C102: 0.4 | D102: 1.8 | K102: 0.4 | L102: 1.8 | M102: 0 | N102: 0 | O102: 0 | P102: 0 | Q102: 0 | R102: 0 | S102: 0 | T102: 0 | U102: 6.237288136 | W102: 0.9355932203 | X102: 2.183050847 | Y102: 3.118644068 | Z102: 0 | AA102: 0 | AB102: 0 | AC102: 0
A103: 81 | B103: Реконструкция ВЛ-0,4 кВ от КТП Алк 30/160 кВА с заменой КТП на 250 кВА | C103: 0.4 | D103: 1.45 | K103: 0.4 | L103: 1.45 | M103: 0 | N103: 0 | O103: 0 | P103: 0 | Q103: 0 | R103: 0 | S103: 0 | T103: 0 | U103: 5.033898305 | W103: 0.7550847458 | X103: 1.761864407 | Y103: 2.516949153 | Z103: 0 | AA103: 0 | AB103: 0 | AC103: 0
A104: 82 | B104: Реконструкция ВЛ-0,4кВ от КТП Шев 208/250 кВА | C104: 0 | D104: 2.22 | K104: 0 | L104: 2.22 | M104: 0 | N104: 0 | O104: 0 | P104: 0 | Q104: 0 | R104: 0 | S104: 0 | T104: 0 | U104: 6.020338983 | W104: 0.9030508475 | X104: 2.107118644 | Y104: 3.010169492 | Z104: 0 | AA104: 0 | AB104: 0 | AC104: 0
A105: 83 | B105: Реконструкция ВЛ-0,4кВ от МТП Кр 903/100 кВА с заменой КТП | C105: 0 | D105: 0 | K105: 0 | L105: 0 | M105: 0.1 | N105: 1.25 | O105: 0 | P105: 0 | Q105: 0 | R105: 0 | S105: 0 | T105: 0 | U105: 0 | W105: 0 | X105: 0 | Y105: 0 | Z105: 3.983050847 | AA105: 0 | AB105: 0 | AC105: 0
A106: 84 | B106: Реконструкция ВЛ-0,4кВ от МТП 704/250 кВА с заменой КТП | C106: 0 | D106: 0 | K106: 0 | L106: 0 | M106: 0.25 | N106: 1 | O106: 0 | P106: 0 | Q106: 0 | R106: 0 | S106: 0 | T106: 0 | U106: 0 | W106: 0 | X106: 0 | Y106: 0 | Z106: 3.389830508 | AA106: 0 | AB106: 0 | AC106: 0
A107: 85 | B107: Реконструкция ВЛ-0,4кВ от КТП 210/160 кВА | C107: 0 | D107: 0 | K107: 0 | L107: 0 | M107: 0 | N107: 1.45 | O107: 0 | P107: 0 | Q107: 0 | R107: 0 | S107: 0 | T107: 0 | U107: 0 | W107: 0 | X107: 0 | Y107: 0 | Z107: 3.440677966 | AA107: 0 | AB107: 0 | AC107: 0
A108: 86 | B108: Реконструкция ВЛ-0,4 кВ от КТП Алк 90/160 кВА с заменой КТП | C108: 0 | D108: 0 | K108: 0 | L108: 0 | M108: 0 | N108: 0 | O108: 0.16 | P108: 1 | Q108: 0 | R108: 0 | S108: 0 | T108: 0 | U108: 0 | W108: 0 | X108: 0 | Y108: 0 | Z108: 0 | AA108: 3.389830508 | AB108: 0 | AC108: 0
A109: 87 | B109: Реконструкция ВЛ-0,4 кВ от КТП Алк 91/160 кВА с заменой КТП | C109: 0 | D109: 0 | K109: 0 | L109: 0 | M109: 0 | N109: 0 | O109: 0.16 | P109: 0.65 | Q109: 0 | R109: 0 | S109: 0 | T109: 0 | U109: 0 | W109: 0 | X109: 0 | Y109: 0 | Z109: 0 | AA109: 2.559322034 | AB109: 0 | AC109: 0
A110: 88 | B110: Реконструкция ВЛ-0,4 кВ от ЗТП Ком 2007/400 кВА | C110: 0 | D110: 0 | K110: 0 | L110: 0 | M110: 0 | N110: 0 | O110: 0 | P110: 2 | Q110: 0 | R110: 0 | S110: 0 | T110: 0 | U110: 0 | W110: 0 | X110: 0 | Y110: 0 | Z110: 0 | AA110: 4.745762712 | AB110: 0 | AC110: 0
A111: 89 | B111: Реконструкция ВЛ-0,4 кВ от КТП Тур 717/160 кВА с заменой КТП | C111: 0 | D111: 0 | K111: 0 | L111: 0 | M111: 0 | N111: 0 | O111: 0 | P111: 0 | Q111: 0.16 | R111: 0.86 | S111: 0 | T111: 0 | U111: 0 | W111: 0 | X111: 0 | Y111: 0 | Z111: 0 | AA111: 0 | AB111: 3.057627119 | AC111: 0
A112: 90 | B112: Клявлинский район | C112: 0 | D112: 0 | K112: 0 | L112: 0 | M112: 0 | N112: 0 | O112: 0 | P112: 0 | Q112: 0 | R112: 0 | S112: 0 | T112: 0 | U112: 0 | W112: 0 | X112: 0 | Y112: 0 | Z112: 0 | AA112: 0 | AB112: 0 | AC112: 0
A113: 91 | B113: Реконструкция элекстроснабжения ст. Клявлино | C113: 0.9 | D113: 6.35 | K113: 0.9 | L113: 6.35 | M113: 0 | N113: 0 | O113: 0 | P113: 0 | Q113: 0 | R113: 0 | S113: 0 | T113: 0 | U113: 20.77966102 | W113: 3.116949153 | X113: 7.272881356 | Y113: 10.38983051 | Z113: 0 | AA113: 0 | AB113: 0 | AC113: 0
A114: 92 | B114: Реконструкция ВЛ-0,4кВ от КТП КЛВ 1207/250 кВА | C114: 0 | D114: 1.5 | K114: 0 | L114: 1.5 | M114: 0 | N114: 0 | O114: 0 | P114: 0 | Q114: 0 | R114: 0 | S114: 0 | T114: 0 | U114: 4.06779661 | W114: 0.6101694915 | X114: 1.423728814 | Y114: 2.033898305 | Z114: 0 | AA114: 0 | AB114: 0 | AC114: 0
A115: 93 | B115: Реконструкция ВЛ-0,4кВ от КТП 416/100 кВА с заменой КТП | C115: 0.1 | D115: 2.1 | K115: 0.1 | L115: 2.1 | M115: 0 | N115: 0 | O115: 0 | P115: 0 | Q115: 0 | R115: 0 | S115: 0 | T115: 0 | U115: 6.796610169 | W115: 1.019491525 | X115: 2.378813559 | Y115: 3.398305085 | Z115: 0 | AA115: 0 | AB115: 0 | AC115: 0
A116: 94 | B116: Реконструкция ВЛ-0,4кВ от КТП КЛВ 421/160 кВА с заменой КТП | C116: 0 | D116: 0 | K116: 0 | L116: 0 | M116: 0.16 | N116: 3.1 | O116: 0 | P116: 0 | Q116: 0 | R116: 0 | S116: 0 | T116: 0 | U116: 0 | W116: 0 | X116: 0 | Y116: 0 | Z116: 8.372881356 | AA116: 0 | AB116: 0 | AC116: 0
A117: 95 | B117: Реконструкция ВЛ-0,4кВ от КТП КЛВ 1404/160 кВА с заменой КТП | C117: 0 | D117: 0 | K117: 0 | L117: 0 | M117: 0.16 | N117: 3.1 | O117: 0 | P117: 0 | Q117: 0 | R117: 0 | S117: 0 | T117: 0 | U117: 0 | W117: 0 | X117: 0 | Y117: 0 | Z117: 8.372881356 | AA117: 0 | AB117: 0 | AC117: 0
A118: 96 | B118: Реконструкция ВЛ-0,4кВ от КТП КЛВ 1412/100 кВА | C118: 0 | D118: 0 | K118: 0 | L118: 0 | M118: 0 | N118: 1.78 | O118: 0 | P118: 0 | Q118: 0 | R118: 0 | S118: 0 | T118: 0 | U118: 0 | W118: 0 | X118: 0 | Y118: 0 | Z118: 4.223728814 | AA118: 0 | AB118: 0 | AC118: 0
A119: 97 | B119: Реконструкция ВЛ-0,4кВ от КТП КЛВ 1411/160 кВА | C119: 0 | D119: 0 | K119: 0 | L119: 0 | M119: 0 | N119: 2.1 | O119: 0 | P119: 0 | Q119: 0 | R119: 0 | S119: 0 | T119: 0 | U119: 0 | W119: 0 | X119: 0 | Y119: 0 | Z119: 4.983050847 | AA119: 0 | AB119: 0 | AC119: 0
A120: 98 | B120: Реконструкция ВЛ-0,4кВ от КТП ЕЛЗ 401/100 кВА | C120: 0 | D120: 0 | K120: 0 | L120: 0 | M120: 0 | N120: 0.5 | O120: 0 | P120: 0 | Q120: 0 | R120: 0 | S120: 0 | T120: 0 | U120: 0 | W120: 0 | X120: 0 | Y120: 0 | Z120: 1.186440678 | AA120: 0 | AB120: 0 | AC120: 0
A121: 99 | B121: Реконструкция ВЛ-0,4кВ от КТП КЛВ1407/250 кВА с заменой КТП | C121: 0 | D121: 0 | K121: 0 | L121: 0 | M121: 0 | N121: 0 | O121: 0.25 | P121: 1.07 | Q121: 0 | R121: 0 | S121: 0 | T121: 0 | U121: 0 | W121: 0 | X121: 0 | Y121: 0 | Z121: 0 | AA121: 3.555932203 | AB121: 0 | AC121: 0
A122: 100 | B122: Реконструкция ВЛ-0,4кВ от КТП КЛВ422/160 кВА с заменой КТП | C122: 0 | D122: 0 | K122: 0 | L122: 0 | M122: 0 | N122: 0 | O122: 0.16 | P122: 1.6 | Q122: 0 | R122: 0 | S122: 0 | T122: 0 | U122: 0 | W122: 0 | X122: 0 | Y122: 0 | Z122: 0 | AA122: 4.813559322 | AB122: 0 | AC122: 0
A123: 101 | B123: Реконструкция ВЛ-0,4кВ от КТП КЛВ1408/160 кВА с заменой КТП | C123: 0 | D123: 0 | K123: 0 | L123: 0 | M123: 0 | N123: 0 | O123: 0.16 | P123: 2.3 | Q123: 0 | R123: 0 | S123: 0 | T123: 0 | U123: 0 | W123: 0 | X123: 0 | Y123: 0 | Z123: 0 | AA123: 6.474576271 | AB123: 0 | AC123: 0
A124: 102 | B124: Реконструкция ВЛ-0,4кВ от КТП КЛВ1017/400 кВА с заменой КТП | C124: 0 | D124: 0 | K124: 0 | L124: 0 | M124: 0 | N124: 0 | O124: 0.4 | P124: 1.1 | Q124: 0 | R124: 0 | S124: 0 | T124: 0 | U124: 0 | W124: 0 | X124: 0 | Y124: 0 | Z124: 0 | AA124: 3.627118644 | AB124: 0 | AC124: 0
A125: 103 | B125: Реконструкция ВЛ-0,4кВ от КТП КЛВ1027/160 кВА с заменой КТП | C125: 0 | D125: 0 | K125: 0 | L125: 0 | M125: 0 | N125: 0 | O125: 0.16 | P125: 0.81 | Q125: 0 | R125: 0 | S125: 0 | T125: 0 | U125: 0 | W125: 0 | X125: 0 | Y125: 0 | Z125: 0 | AA125: 2.938983051 | AB125: 0 | AC125: 0
A126: 104 | B126: Реконструкция ВЛ-0,4кВ от КТП ЧКЛ 703/100 кВА с заменой КТП | C126: 0 | D126: 0 | K126: 0 | L126: 0 | M126: 0 | N126: 0 | O126: 0 | P126: 0 | Q126: 0.1 | R126: 4.8 | S126: 0 | T126: 0 | U126: 0 | W126: 0 | X126: 0 | Y126: 0 | Z126: 0 | AA126: 0 | AB126: 12.40677966 | AC126: 0
A127: 105 | B127: Реконструкция ВЛ-0,4кВ от КТП ЧКЛ 705/160 кВА с заменой КТП | C127: 0 | D127: 0 | K127: 0 | L127: 0 | M127: 0 | N127: 0 | O127: 0 | P127: 0 | Q127: 0.16 | R127: 0.65 | S127: 0 | T127: 0 | U127: 0 | W127: 0 | X127: 0 | Y127: 0 | Z127: 0 | AA127: 0 | AB127: 2.559322034 | AC127: 0
A128: 106 | B128: Реконструкция ВЛ-0,4кВ от КТП ЧКЛ 707/160 кВА с заменой КТП | C128: 0 | D128: 0 | K128: 0 | L128: 0 | M128: 0 | N128: 0 | O128: 0 | P128: 0 | Q128: 0 | R128: 0 | S128: 0.16 | T128: 0.98 | U128: 0 | W128: 0 | X128: 0 | Y128: 0 | Z128: 0 | AA128: 0 | AB128: 0 | AC128: 3.342372881
A129: 107 | B129: Реконструкция ВЛ-0,4кВ от КТП ЧКЛ 708/100 кВА с заменой КТП | C129: 0 | D129: 0 | K129: 0 | L129: 0 | M129: 0 | N129: 0 | O129: 0 | P129: 0 | Q129: 0 | R129: 0 | S129: 0.1 | T129: 3.03 | U129: 0 | W129: 0 | X129: 0 | Y129: 0 | Z129: 0 | AA129: 0 | AB129: 0 | AC129: 8.206779661
A130: 108 | B130: Реконструкция ВЛ-0,4кВ от КТП КЛВ 818/160 кВА с заменой КТП | C130: 0 | D130: 0 | K130: 0 | L130: 0 | M130: 0 | N130: 0 | O130: 0 | P130: 0 | Q130: 0 | R130: 0 | S130: 0.16 | T130: 1.52 | U130: 0 | W130: 0 | X130: 0 | Y130: 0 | Z130: 0 | AA130: 0 | AB130: 0 | AC130: 4.623728814
A131: 109 | B131: Кошкинский район | C131: 0 | D131: 0 | K131: 0 | L131: 0 | M131: 0 | N131: 0 | O131: 0 | P131: 0 | Q131: 0 | R131: 0 | S131: 0 | T131: 0 | U131: 0 | W131: 0 | X131: 0 | Y131: 0 | Z131: 0 | AA131: 0 | AB131: 0 | AC131: 0
A132: 110 | B132: Реконструкция ВЛ-10 кВ КШК-11 | C132: 0 | D132: 3.47 | K132: 0 | L132: 3.47 | M132: 0 | N132: 0 | O132: 0 | P132: 0 | Q132: 0 | R132: 0 | S132: 0 | T132: 0 | U132: 9.410169492 | W132: 1.411525424 | X132: 3.293559322 | Y132: 4.705084746 | Z132: 0 | AA132: 0 | AB132: 0 | AC132: 0
A133: 111 | B133: Реконструкция ВЛ-0,4 кВ от КТП КШК 709/250 кВА с заменой КТП | C133: 0.25 | D133: 1.9 | K133: 0.25 | L133: 1.9 | M133: 0 | N133: 0 | O133: 0 | P133: 0 | Q133: 0 | R133: 0 | S133: 0 | T133: 0 | U133: 6.305084746 | W133: 0.9457627119 | X133: 2.206779661 | Y133: 3.152542373 | Z133: 0 | AA133: 0 | AB133: 0 | AC133: 0
A134: 112 | B134: Реконструкция ВЛ-0,4 кВ от КТП КШК 1109/400 кВА с заменой КТП | C134: 0.4 | D134: 2.24 | K134: 0.4 | L134: 2.24 | M134: 0 | N134: 0 | O134: 0 | P134: 0 | Q134: 0 | R134: 0 | S134: 0 | T134: 0 | U134: 7.430508475 | W134: 1.114576271 | X134: 2.600677966 | Y134: 3.715254237 | Z134: 0 | AA134: 0 | AB134: 0 | AC134: 0
A135: 113 | B135: Реконструкция ВЛ-0,4 кВ от КТП КШК 511/100 кВА с заменой КТП на 160 кВА | C135: 0.16 | D135: 2.68 | K135: 0.16 | L135: 2.68 | M135: 0 | N135: 0 | O135: 0 | P135: 0 | Q135: 0 | R135: 0 | S135: 0 | T135: 0 | U135: 8.369491525 | W135: 1.255423729 | X135: 2.929322034 | Y135: 4.184745763 | Z135: 0 | AA135: 0 | AB135: 0 | AC135: 0
A136: 114 | B136: Реконструкция ВЛ-0,4 кВ от КТП КШК 1103/400 кВА с заменой КТП | C136: 0.4 | D136: 2.03 | K136: 0.4 | L136: 2.03 | M136: 0 | N136: 0 | O136: 0 | P136: 0 | Q136: 0 | R136: 0 | S136: 0 | T136: 0 | U136: 6.861016949 | W136: 1.029152542 | X136: 2.401355932 | Y136: 3.430508475 | Z136: 0 | AA136: 0 | AB136: 0 | AC136: 0
A137: 115 | B137: Реконструкция ВКЛ-0,4 кВ от ЗТП НАД 1102/2х400 кВА с заменой ЗТП на КТП 400 кВА | C137: 0.4 | D137: 1.85 | K137: 0.4 | L137: 1.85 | M137: 0 | N137: 0 | O137: 0 | P137: 0 | Q137: 0 | R137: 0 | S137: 0 | T137: 0 | U137: 6.703389831 | W137: 1.005508475 | X137: 2.346186441 | Y137: 3.351694915 | Z137: 0 | AA137: 0 | AB137: 0 | AC137: 0
A138: 116 | B138: Реконструкция ВЛ-0,4 кВ от ЗТП КШК102/320 кВА с заменой ЗТП на КТП 400 кВА | C138: 0.4 | D138: 0.7 | K138: 0.4 | L138: 0.7 | M138: 0 | N138: 0 | O138: 0 | P138: 0 | Q138: 0 | R138: 0 | S138: 0 | T138: 0 | U138: 3.254237288 | W138: 0.4881355932 | X138: 1.138983051 | Y138: 1.627118644 | Z138: 0 | AA138: 0 | AB138: 0 | AC138: 0
A139: 117 | B139: Реконструкция ВЛ-0,4 кВ от КТП САД 709/160 кВА с заменой КТП на 250 кВА | C139: 0.25 | D139: 1.3 | K139: 0.25 | L139: 1.3 | M139: 0 | N139: 0 | O139: 0 | P139: 0 | Q139: 0 | R139: 0 | S139: 0 | T139: 0 | U139: 4.627118644 | W139: 0.6940677966 | X139: 1.619491525 | Y139: 2.313559322 | Z139: 0 | AA139: 0 | AB139: 0 | AC139: 0
A140: 118 | B140: Реконструкция ВЛ-0,4 кВ от КТП КШК 109/160 с заменой ЗТП на КТП 160 кВА | C140: 0 | D140: 0 | K140: 0 | L140: 0 | M140: 0.16 | N140: 0.4 | O140: 0 | P140: 0 | Q140: 0 | R140: 0 | S140: 0 | T140: 0 | U140: 0 | W140: 0 | X140: 0 | Y140: 0 | Z140: 1.966101695 | AA140: 0 | AB140: 0 | AC140: 0
A141: 119 | B141: Реконструкция ВЛ-0,4 кВ от КТП КШК 1115/250 с заменой КТП | C141: 0 | D141: 0 | K141: 0 | L141: 0 | M141: 0.25 | N141: 1.2 | O141: 0 | P141: 0 | Q141: 0 | R141: 0 | S141: 0 | T141: 0 | U141: 0 | W141: 0 | X141: 0 | Y141: 0 | Z141: 3.86440678 | AA141: 0 | AB141: 0 | AC141: 0
A142: 120 | B142: Реконструкция ВЛ-0,4 кВ от КТП КШК 1113/250 кВА с заменой КТП | C142: 0 | D142: 0 | K142: 0 | L142: 0 | M142: 0.25 | N142: 1.1 | O142: 0 | P142: 0 | Q142: 0 | R142: 0 | S142: 0 | T142: 0 | U142: 0 | W142: 0 | X142: 0 | Y142: 0 | Z142: 3.627118644 | AA142: 0 | AB142: 0 | AC142: 0
A143: 121 | B143: Реконструкция ВЛ-0,4 кВ от КТП КШК 504/160 с заменой КТП на 250 кВА | C143: 0 | D143: 0 | K143: 0 | L143: 0 | M143: 0.25 | N143: 2.5 | O143: 0 | P143: 0 | Q143: 0 | R143: 0 | S143: 0 | T143: 0 | U143: 0 | W143: 0 | X143: 0 | Y143: 0 | Z143: 6.949152542 | AA143: 0 | AB143: 0 | AC143: 0
A144: 122 | B144: Реконструкция ВЛ-0,4 кВ от КТП КРМ 502/100 кВА с заменой КТП на 63 кВА | C144: 0 | D144: 0 | K144: 0 | L144: 0 | M144: 0 | N144: 0 | O144: 0.063 | P144: 0.2 | Q144: 0 | R144: 0 | S144: 0 | T144: 0 | U144: 0 | W144: 0 | X144: 0 | Y144: 0 | Z144: 0 | AA144: 1.491525424 | AB144: 0 | AC144: 0
A145: 123 | B145: Реконструкция ВЛ-0,4 кВ от КТП КШК 1204/63 кВА с переносом и заменой на КТП | C145: 0 | D145: 0 | K145: 0 | L145: 0 | M145: 0 | N145: 0 | O145: 0.063 | P145: 0.2 | Q145: 0 | R145: 0 | S145: 0 | T145: 0 | U145: 0 | W145: 0 | X145: 0 | Y145: 0 | Z145: 0 | AA145: 1.491525424 | AB145: 0 | AC145: 0
A146: 124 | B146: Реконструкция ВЛ-0,4 кВ от ЗТП САД 703/400 кВА с заменой КТП на 400 кВА | C146: 0 | D146: 0 | K146: 0 | L146: 0 | M146: 0 | N146: 0 | O146: 0.4 | P146: 0.1 | Q146: 0 | R146: 0 | S146: 0 | T146: 0 | U146: 0 | W146: 0 | X146: 0 | Y146: 0 | Z146: 0 | AA146: 1.254237288 | AB146: 0 | AC146: 0
A147: 125 | B147: Реконструкция ВЛ-0,4 кВ от КТП НБК 117/160 кВА с заменой КТП на 63 кВА | C147: 0 | D147: 0 | K147: 0 | L147: 0 | M147: 0 | N147: 0 | O147: 0.063 | P147: 0.5 | Q147: 0 | R147: 0 | S147: 0 | T147: 0 | U147: 0 | W147: 0 | X147: 0 | Y147: 0 | Z147: 0 | AA147: 2.203389831 | AB147: 0 | AC147: 0
A148: 126 | B148: Реконструкция ВЛ-0,4 кВ от ЗТП КШК 1301/400*2 с заменой ЗТП на КТП 400*2 кВА | C148: 0 | D148: 0 | K148: 0 | L148: 0 | M148: 0 | N148: 0 | O148: 0 | P148: 0 | Q148: 0.8 | R148: 0.75 | S148: 0 | T148: 0 | U148: 0 | W148: 0 | X148: 0 | Y148: 0 | Z148: 0 | AA148: 0 | AB148: 2.796610169 | AC148: 0
A149: 127 | B149: Реконструкция ВЛ-0,4 кВ от КТП КШК 506/250 кВА с заменой КТП | C149: 0 | D149: 0 | K149: 0 | L149: 0 | M149: 0 | N149: 0 | O149: 0 | P149: 0 | Q149: 0 | R149: 0 | S149: 0.25 | T149: 2.7 | U149: 0 | W149: 0 | X149: 0 | Y149: 0 | Z149: 0 | AA149: 0 | AB149: 0 | AC149: 7.423728814
A150: 128 | B150: Реконструкция ВЛ-0,4 кВ от КТП КШК 908/100 кВА с заменой КТП на 250 кВА | C150: 0 | D150: 0 | K150: 0 | L150: 0 | M150: 0 | N150: 0 | O150: 0 | P150: 0 | Q150: 0 | R150: 0 | S150: 0.25 | T150: 0.2 | U150: 0 | W150: 0 | X150: 0 | Y150: 0 | Z150: 0 | AA150: 0 | AB150: 0 | AC150: 1.491525424
A151: 129 | B151: Красноармейский район | C151: 0 | D151: 0 | K151: 0 | L151: 0 | M151: 0 | N151: 0 | O151: 0 | P151: 0 | Q151: 0 | R151: 0 | S151: 0 | T151: 0 | U151: 0 | W151: 0 | X151: 0 | Y151: 0 | Z151: 0 | AA151: 0 | AB151: 0 | AC151: 0
A152: 130 | B152: Реконструкция ВЛ-10 кВ Ф-1 ПС В.Гай | C152: 0 | D152: 1.2 | K152: =C152 -> 0 | L152: 1.2 | M152: 0 | N152: 0 | O152: 0 | P152: 0 | Q152: 0 | R152: 0 | S152: 0 | T152: 0 | U152: 3.254237288 | W152: =U152*0.15 -> 0.4881355932 | X152: =U152*0.35 -> 1.138983051 | Y152: =U152*0.5 -> 1.627118644 | Z152: 0 | AA152: 0 | AB152: 0 | AC152: 0
A153: 131 | B153: Реконструкция ВЛ-10 кВ Ф-1 ПС Колдыбань | C153: 0 | D153: 0 | K153: 0 | L153: 0 | M153: 0 | N153: 0.21 | O153: 0 | P153: 0 | Q153: 0 | R153: 0 | S153: 0 | T153: 0 | U153: 0 | W153: 0 | X153: 0 | Y153: 0 | Z153: 0.4983050847 | AA153: 0 | AB153: 0 | AC153: 0
A154: 132 | B154: Реконструкция ВЛ-10 кВ Ф-2 ПС В.Гай | C154: 0 | D154: 0 | K154: 0 | L154: 0 | M154: 0 | N154: 0.3 | O154: 0 | P154: 0 | Q154: 0 | R154: 0 | S154: 0 | T154: 0 | U154: 0 | W154: 0 | X154: 0 | Y154: 0 | Z154: 0.7118644068 | AA154: 0 | AB154: 0 | AC154: 0
A155: 133 | B155: Красноярский район | C155: 0 | D155: 0 | K155: 0 | L155: 0 | M155: 0 | N155: 0 | O155: 0 | P155: 0 | Q155: 0 | R155: 0 | S155: 0 | T155: 0 | U155: 0 | W155: 0 | X155: 0 | Y155: 0 | Z155: 0 | AA155: 0 | AB155: 0 | AC155: 0
A156: 134 | B156: Реконструкция ВЛ-6 кВ в п. Новосемейкино | C156: 0 | D156: 0.3 | K156: 0 | L156: 0.3 | M156: 0 | N156: 0 | O156: 0 | P156: 0 | Q156: 0 | R156: 0 | S156: 0 | T156: 0 | U156: 1.694915254 | W156: 0.2542372881 | X156: 0.593220339 | Y156: 0.8474576271 | Z156: 0 | AA156: 0 | AB156: 0 | AC156: 0
A157: 135 | B157: Реконструкция Ф Кур-21 | C157: 0 | D157: 2.5 | K157: 0 | L157: 2.5 | M157: 0 | N157: 0 | O157: 0 | P157: 0 | Q157: 0 | R157: 0 | S157: 0 | T157: 0 | U157: 15 | W157: 2.25 | X157: 5.25 | Y157: 7.5 | Z157: 0 | AA157: 0 | AB157: 0 | AC157: 0
A158: 136 | B158: Реконструкция ВЛ-0,4 кВ от КТП Кяр 614/250 кВА и Кяр 613/250 кВА с заменой КТП на 400 кВА | C158: 0.8 | D158: 7 | K158: 0.8 | L158: 7 | M158: 0 | N158: 0 | O158: 0 | P158: 0 | Q158: 0 | R158: 0 | S158: 0 | T158: 0 | U158: 21.69491525 | W158: 3.254237288 | X158: 7.593220339 | Y158: 10.84745763 | Z158: 0 | AA158: 0 | AB158: 0 | AC158: 0
A159: 137 | B159: Реконструкция ВЛ-0,4 кВ от КТП Кяр 613/250 кВА с заменой КТП на 400 кВА | C159: 0.4 | D159: 2.9 | K159: 0.4 | L159: 2.9 | M159: 0 | N159: 0 | O159: 0 | P159: 0 | Q159: 0 | R159: 0 | S159: 0 | T159: 0 | U159: 9.220338983 | W159: 1.383050847 | X159: 3.227118644 | Y159: 4.610169492 | Z159: 0 | AA159: 0 | AB159: 0 | AC159: 0
A160: 138 | B160: Реконструкция ВЛ-0,4 кВ от КТП Кяр 314/400 кВА с заменой КТП | C160: 0.4 | D160: 3 | K160: 0.4 | L160: 3 | M160: 0 | N160: 0 | O160: 0 | P160: 0 | Q160: 0 | R160: 0 | S160: 0 | T160: 0 | U160: 9.491525424 | W160: 1.423728814 | X160: 3.322033898 | Y160: 4.745762712 | Z160: 0 | AA160: 0 | AB160: 0 | AC160: 0
A161: 139 | B161: Реконструкция ВЛ-0,4 кВ от КТП НБ 702/250 кВА с заменой КТП на 400 кВА | C161: 0.4 | D161: 5 | K161: 0.4 | L161: 5 | M161: 0 | N161: 0 | O161: 0 | P161: 0 | Q161: 0 | R161: 0 | S161: 0 | T161: 0 | U161: 14.91525424 | W161: 2.237288136 | X161: 5.220338983 | Y161: 7.457627119 | Z161: 0 | AA161: 0 | AB161: 0 | AC161: 0
A162: 140 | B162: Реконструкция ВЛ-0,4 кВ от КТП РЦ 1101/250 кВА с заменой КТП на 400 кВА и установкой дополнительной КТП 250 кВА | C162: 0 | D162: 0 | K162: 0 | L162: 0 | M162: 0.65 | N162: 6 | O162: 0 | P162: 0 | Q162: 0 | R162: 0 | S162: 0 | T162: 0 | U162: 0 | W162: 0 | X162: 0 | Y162: 0 | Z162: 16.27118644 | AA162: 0 | AB162: 0 | AC162: 0
A163: 141 | B163: Реконструкция ВЛ-0,4 кВ от КТП НБ 1604/160 кВА с заменой КТП на 250 кВА | C163: 0 | D163: 0 | K163: 0 | L163: 0 | M163: 0.25 | N163: 2 | O163: 0 | P163: 0 | Q163: 0 | R163: 0 | S163: 0 | T163: 0 | U163: 0 | W163: 0 | X163: 0 | Y163: 0 | Z163: 5.762711864 | AA163: 0 | AB163: 0 | AC163: 0
A164: 142 | B164: Реконструкция ВЛ-0,4 кВ от КТП Кяр 407/160 кВА с заменой КТП на 250 кВА | C164: 0 | D164: 0 | K164: 0 | L164: 0 | M164: 0.25 | N164: 2 | O164: 0 | P164: 0 | Q164: 0 | R164: 0 | S164: 0 | T164: 0 | U164: 0 | W164: 0 | X164: 0 | Y164: 0 | Z164: 5.762711864 | AA164: 0 | AB164: 0 | AC164: 0
A165: 143 | B165: Реконструкция ВЛ-0,4 кВ от КТП РЦ 1113/320 кВА с заменой КТП на 400 кВА | C165: 0 | D165: 0 | K165: 0 | L165: 0 | M165: 0.4 | N165: 3 | O165: 0 | P165: 0 | Q165: 0 | R165: 0 | S165: 0 | T165: 0 | U165: 0 | W165: 0 | X165: 0 | Y165: 0 | Z165: 8.13559322 | AA165: 0 | AB165: 0 | AC165: 0
A166: 144 | B166: Реконструкция ВЛ-0,4 кВ от ЗТП ДСК 6034/2х320 кВА | C166: 0 | D166: 0 | K166: 0 | L166: 0 | M166: 0 | N166: 0 | O166: 0 | P166: 2 | Q166: 0 | R166: 0 | S166: 0 | T166: 0 | U166: 0 | W166: 0 | X166: 0 | Y166: 0 | Z166: 0 | AA166: 4.745762712 | AB166: 0 | AC166: 0
A167: 145 | B167: Реконструкция ВЛ-0,4 кВ от КТП НБ 701/100 кВА с заменой КТП на 160 кВА | C167: 0 | D167: 0 | K167: 0 | L167: 0 | M167: 0 | N167: 0 | O167: 0.16 | P167: 2 | Q167: 0 | R167: 0 | S167: 0 | T167: 0 | U167: 0 | W167: 0 | X167: 0 | Y167: 0 | Z167: 0 | AA167: 5.762711864 | AB167: 0 | AC167: 0
A168: 146 | B168: Реконструкция ВЛ-0,4 кВ от КТП РЦ 3101/2х400 кВА с заменой КТП на 630 кВА и установкой дополнительной КТП 250 кВА | C168: 0 | D168: 0 | K168: 0 | L168: 0 | M168: 0 | N168: 0 | O168: 0.88 | P168: 3 | Q168: 0 | R168: 0 | S168: 0 | T168: 0 | U168: 0 | W168: 0 | X168: 0 | Y168: 0 | Z168: 0 | AA168: 9.322033898 | AB168: 0 | AC168: 0
A169: 147 | B169: Реконструкция ВЛ-0,4 кВ от КТП НБ 714/250 кВА с заменой КТП | C169: 0 | D169: 0 | K169: 0 | L169: 0 | M169: 0 | N169: 0 | O169: 0 | P169: 0 | Q169: 0.25 | R169: 2 | S169: 0 | T169: 0 | U169: 0 | W169: 0 | X169: 0 | Y169: 0 | Z169: 0 | AA169: 0 | AB169: 5.762711864 | AC169: 0
A170: 148 | B170: Реконструкция ВЛ-0,4 кВ от КТП Рак 802/160 кВА с заменой КТП на 250 кВА | C170: 0 | D170: 0 | K170: 0 | L170: 0 | M170: 0 | N170: 0 | O170: 0 | P170: 0 | Q170: 0 | R170: 0 | S170: 0.25 | T170: 3 | U170: 0 | W170: 0 | X170: 0 | Y170: 0 | Z170: 0 | AA170: 0 | AB170: 0 | AC170: 8.13559322
A171: 149 | B171: Пестравский район | C171: 0 | D171: 0 | K171: 0 | L171: 0 | M171: 0 | N171: 0 | O171: 0 | P171: 0 | Q171: 0 | R171: 0 | S171: 0 | T171: 0 | U171: 0 | W171: 0 | X171: 0 | Y171: 0 | Z171: 0 | AA171: 0 | AB171: 0 | AC171: 0
A172: 150 | B172: Реконструкция ВЛ-10 кВ Ф-8 ПС Пестравка | C172: 0 | D172: 12.6 | K172: 0 | L172: 12.6 | M172: 0 | N172: 0 | O172: 0 | P172: 0 | Q172: 0 | R172: 0 | S172: 0 | T172: 0 | U172: 34.16949153 | W172: 5.125423729 | X172: 11.95932203 | Y172: 17.08474576 | Z172: 0 | AA172: 0 | AB172: 0 | AC172: 0
A173: 151 | B173: Реконструкция ВЛ-0,4 кВ от КТП 420/160 кВА с заменой КТП | C173: 0 | D173: 0 | K173: 0 | L173: 0 | M173: 0.16 | N173: 1.8 | O173: 0 | P173: 0 | Q173: 0 | R173: 0 | S173: 0 | T173: 0 | U173: 0 | W173: 0 | X173: 0 | Y173: 0 | Z173: 5.288135593 | AA173: 0 | AB173: 0 | AC173: 0
A174: 152 | B174: Реконструкция ВЛ-0,4 кВ от КТП 507/160 кВА с заменой КТП на 250 кВА | C174: 0 | D174: 0 | K174: 0 | L174: 0 | M174: 0.25 | N174: 2.9 | O174: 0 | P174: 0 | Q174: 0 | R174: 0 | S174: 0 | T174: 0 | U174: 0 | W174: 0 | X174: 0 | Y174: 0 | Z174: 7.898305085 | AA174: 0 | AB174: 0 | AC174: 0
A175: 153 | B175: Реконструкция ВЛ-0,4 кВ от КТП 509/160 кВА с заменой КТП на 250 кВА | C175: 0 | D175: 0 | K175: 0 | L175: 0 | M175: 0 | N175: 0 | O175: 0.25 | P175: 4.5 | Q175: 0 | R175: 0 | S175: 0 | T175: 0 | U175: 0 | W175: 0 | X175: 0 | Y175: 0 | Z175: 0 | AA175: 11.69491525 | AB175: 0 | AC175: 0
A176: 154 | B176: Реконструкция ВЛ-0,4 кВ от КТП Мт 102/250 кВА с заменой КТП | C176: 0 | D176: 0 | K176: 0 | L176: 0 | M176: 0 | N176: 0 | O176: 0.25 | P176: 0.8 | Q176: 0 | R176: 0 | S176: 0 | T176: 0 | U176: 0 | W176: 0 | X176: 0 | Y176: 0 | Z176: 0 | AA176: 2.915254237 | AB176: 0 | AC176: 0
A177: 155 | B177: Реконструкция ВЛ-0,4 кВ от КТП 508/250 кВА с заменой КТП на 400 кВА | C177: 0 | D177: 0 | K177: 0 | L177: 0 | M177: 0 | N177: 0 | O177: 0 | P177: 0 | Q177: 0.4 | R177: 3.2 | S177: 0 | T177: 0 | U177: 0 | W177: 0 | X177: 0 | Y177: 0 | Z177: 0 | AA177: 0 | AB177: 8.610169492 | AC177: 0
A178: 156 | B178: Реконструкция ВЛ-0,4 кВ от КТП Мр 512/160 кВА с заменой КТП на 400 кВА | C178: 0 | D178: 0 | K178: 0 | L178: 0 | M178: 0 | N178: 0 | O178: 0 | P178: 0 | Q178: 0 | R178: 0 | S178: 0.4 | T178: 0.8 | U178: 0 | W178: 0 | X178: 0 | Y178: 0 | Z178: 0 | AA178: 0 | AB178: 0 | AC178: 2.915254237
A179: 157 | B179: Приволжский район | C179: 0 | D179: 0 | K179: 0 | L179: 0 | M179: 0 | N179: 0 | O179: 0 | P179: 0 | Q179: 0 | R179: 0 | S179: 0 | T179: 0 | U179: 0 | W179: 0 | X179: 0 | Y179: 0 | Z179: 0 | AA179: 0 | AB179: 0 | AC179: 0
A180: 158 | B180: Реконструкция ВЛ-0,4 кВ от ЗТП Пр 222/160 кВА с заменой ЗТП на КТП 250 кВА | C180: 0.25 | D180: 1.65 | K180: 0.25 | L180: 1.65 | M180: 0 | N180: 0 | O180: 0 | P180: 0 | Q180: 0 | R180: 0 | S180: 0 | T180: 0 | U180: 5.576271186 | W180: 0.836440678 | X180: 1.951694915 | Y180: 2.788135593 | Z180: 0 | AA180: 0 | AB180: 0 | AC180: 0
A181: 159 | B181: Реконструкция ВЛ-0,4 кВ от КТП Пр 202/250 кВА с заменой КТП | C181: 0.25 | D181: 1.45 | K181: 0.25 | L181: 1.45 | M181: 0 | N181: 0 | O181: 0 | P181: 0 | Q181: 0 | R181: 0 | S181: 0 | T181: 0 | U181: 5.033898305 | W181: 0.7550847458 | X181: 1.761864407 | Y181: 2.516949153 | Z181: 0 | AA181: 0 | AB181: 0 | AC181: 0
A182: 160 | B182: Реконструкция ВЛ-0,4 кВ от КТП Пр 205/250 кВА с заменой КТП | C182: 0.25 | D182: 2.61 | K182: 0.25 | L182: 2.61 | M182: 0 | N182: 0 | O182: 0 | P182: 0 | Q182: 0 | R182: 0 | S182: 0 | T182: 0 | U182: 8.179661017 | W182: 1.226949153 | X182: 2.862881356 | Y182: 4.089830508 | Z182: 0 | AA182: 0 | AB182: 0 | AC182: 0
A183: 161 | B183: Реконструкция ВЛ-0,4 кВ от ЗТП Об 1208/160 кВА с заменой КТП | C183: 0 | D183: 0 | K183: 0 | L183: 0 | M183: 0.16 | N183: 1.43 | O183: 0 | P183: 0 | Q183: 0 | R183: 0 | S183: 0 | T183: 0 | U183: 0 | W183: 0 | X183: 0 | Y183: 0 | Z183: 4.410169492 | AA183: 0 | AB183: 0 | AC183: 0
A184: 162 | B184: Реконструкция ВЛ-0,4 кВ от КТП Ек 111/100 кВА с заменой КТП | C184: 0 | D184: 0 | K184: 0 | L184: 0 | M184: 0.1 | N184: 0.9 | O184: 0 | P184: 0 | Q184: 0 | R184: 0 | S184: 0 | T184: 0 | U184: 0 | W184: 0 | X184: 0 | Y184: 0 | Z184: 3.152542373 | AA184: 0 | AB184: 0 | AC184: 0
A185: 163 | B185: Реконструкция ВЛ-0,4 кВ от КТП Нсп 502/160 кВА с заменой КТП | C185: 0 | D185: 0 | K185: 0 | L185: 0 | M185: 0 | N185: 0 | O185: 0.16 | P185: 1.08 | Q185: 0 | R185: 0 | S185: 0 | T185: 0 | U185: 0 | W185: 0 | X185: 0 | Y185: 0 | Z185: 0 | AA185: 3.579661017 | AB185: 0 | AC185: 0
A186: 164 | B186: Реконструкция ВЛ-0,4 кВ от ЗТП Пр 222/160 кВА с заменой КТП | C186: 0 | D186: 0 | K186: 0 | L186: 0 | M186: 0 | N186: 0 | O186: 0.16 | P186: 1.64 | Q186: 0 | R186: 0 | S186: 0 | T186: 0 | U186: 0 | W186: 0 | X186: 0 | Y186: 0 | Z186: 0 | AA186: 4.908474576 | AB186: 0 | AC186: 0
A187: 165 | B187: Реконструкция ВЛ-0,4 кВ от КТП Об 1213-813/2х250 кВА с заменой КТП | C187: 0 | D187: 0 | K187: 0 | L187: 0 | M187: 0 | N187: 0 | O187: 0 | P187: 0 | Q187: 0.5 | R187: 1.2 | S187: 0 | T187: 0 | U187: 0 | W187: 0 | X187: 0 | Y187: 0 | Z187: 0 | AA187: 0 | AB187: 3.86440678 | AC187: 0
A188: 166 | B188: Реконструкция ВЛ-0,4 кВ от ЗТП Об 1211-811/250 кВА с заменой КТП | C188: 0 | D188: 0 | K188: 0 | L188: 0 | M188: 0 | N188: 0 | O188: 0 | P188: 0 | Q188: 0 | R188: 0 | S188: 0.25 | T188: 2.34 | U188: 0 | W188: 0 | X188: 0 | Y188: 0 | Z188: 0 | AA188: 0 | AB188: 0 | AC188: 6.569491525
A189: 167 | B189: г.Самара | C189: 0 | D189: 0 | K189: 0 | L189: 0 | M189: 0 | N189: 0 | O189: 0 | P189: 0 | Q189: 0 | R189: 0 | S189: 0 | T189: 0 | U189: 0 | W189: 0 | X189: 0 | Y189: 0 | Z189: 0 | AA189: 0 | AB189: 0 | AC189: 0
A190: 168 | B190: Электроснабжение инфраструктуры объектов электросетевого хозяйства в г.о. Самара (в районе радиоцентра №3), в т.ч. I, II, III, IV этап | C190: 9.26 | D190: 11.08 | K190: 9.26 | L190: 11.08 | M190: 0 | N190: 0 | O190: 0 | P190: 0 | Q190: 0 | R190: 0 | S190: 0 | T190: 0 | U190: 384.8423729 | W190: 57.72635593 | X190: 134.6948305 | Y190: 192.4211864 | Z190: 0 | AA190: 0 | AB190: 0 | AC190: 0
A191: 169 | B191: Реконструкция КЛ-10 кВ от ТП 6096 до КТПН 6036 с переводом ТП 6124 на 10 кВ" г.о. Самара ул. Ташкентская, Московское шоссе | C191: 0 | D191: 1.05 | K191: 0 | L191: 1.05 | M191: 0 | N191: 0 | O191: 0 | P191: 0 | Q191: 0 | R191: 0 | S191: 0 | T191: 0 | U191: 55.52881356 | W191: 8.329322034 | X191: 19.43508475 | Y191: 27.76440678 | Z191: 0 | AA191: 0 | AB191: 0 | AC191: 0
A192: 170 | B192: Электроснабжение объектов в районе улиц Ташкентская, Демократическая, Московское шоссе г.о. Самара | C192: 0 | D192: 16.14 | K192: 0 | L192: 16.14 | M192: 0 | N192: 0 | O192: 0 | P192: 0 | Q192: 0 | R192: 0 | S192: 0 | T192: 0 | U192: 86.69491525 | W192: 13.00423729 | X192: 30.34322034 | Y192: 43.34745763 | Z192: 0 | AA192: 0 | AB192: 0 | AC192: 0
A193: 171 | B193: Реконструкция ТП-1875 г.о. Самара | C193: 1.26 | D193: 0 | K193: 1.26 | L193: 0 | M193: 0 | N193: 0 | O193: 0 | P193: 0 | Q193: 0 | R193: 0 | S193: 0 | T193: 0 | U193: 7.586608076 | W193: 1.137991211 | X193: 2.655312827 | Y193: 3.793304038 | Z193: 0 | AA193: 0 | AB193: 0 | AC193: 0
A194: 172 | B194: Реконструкция ТП-2092 г.о. Самара | C194: 1.26 | D194: 0 | K194: 1.26 | L194: 0 | M194: 0 | N194: 0 | O194: 0 | P194: 0 | Q194: 0 | R194: 0 | S194: 0 | T194: 0 | U194: 3.017266314 | W194: 0.452589947 | X194: 1.05604321 | Y194: 1.508633157 | Z194: 0 | AA194: 0 | AB194: 0 | AC194: 0
A195: 173 | B195: Реконструкция РП-129 г.о. Самара | C195: 0 | D195: 0 | K195: 0 | L195: 0 | M195: 0 | N195: 0 | O195: 0 | P195: 0 | Q195: 0 | R195: 0 | S195: 0 | T195: 0 | U195: 30.46371886 | W195: 4.569557828 | X195: 10.6623016 | Y195: 15.23185943 | Z195: 0 | AA195: 0 | AB195: 0 | AC195: 0
A196: 174 | B196: Реконструкция ТП-4641 г.о. Самара | C196: 0 | D196: 0 | K196: 0 | L196: 0 | M196: 0 | N196: 0 | O196: 0 | P196: 0 | Q196: 0 | R196: 0 | S196: 0 | T196: 0 | U196: 1.303052407 | W196: 0.195457861 | X196: 0.4560683424 | Y196: 0.6515262034 | Z196: 0 | AA196: 0 | AB196: 0 | AC196: 0
A197: 175 | B197: Реконструкция ТП-2522 г.о. Самара | C197: 1.26 | D197: 0 | K197: 1.26 | L197: 0 | M197: 0 | N197: 0 | O197: 0 | P197: 0 | Q197: 0 | R197: 0 | S197: 0 | T197: 0 | U197: 11.37894937 | W197: 1.706842406 | X197: 3.982632281 | Y197: 5.689474686 | Z197: 0 | AA197: 0 | AB197: 0 | AC197: 0
A198: 176 | B198: Реконструкция КТП-3058 с заменой на ГКТП 400/10,5/0,4 кВ г.о. Самара | C198: 0.4 | D198: 0 | K198: 0.4 | L198: 0 | M198: 0 | N198: 0 | O198: 0 | P198: 0 | Q198: 0 | R198: 0 | S198: 0 | T198: 0 | U198: 5.561705763 | W198: 0.8342558644 | X198: 1.946597017 | Y198: 2.780852881 | Z198: 0 | AA198: 0 | AB198: 0 | AC198: 0
A199: 177 | B199: Реконструкция ТП-1440 г.о. Самара | C199: 2 | D199: 0 | K199: 2 | L199: 0 | M199: 0 | N199: 0 | O199: 0 | P199: 0 | Q199: 0 | R199: 0 | S199: 0 | T199: 0 | U199: 2.590241263 | W199: 0.3885361894 | X199: 0.9065844419 | Y199: 1.295120631 | Z199: 0 | AA199: 0 | AB199: 0 | AC199: 0
A200: 178 | B200: Энергоснабжение электросетевого комплекса по ул. Мориса Тореза г.о. Самара | C200: 0 | D200: 0.1 | K200: 0 | L200: 0.1 | M200: 0 | N200: 0 | O200: 0 | P200: 0 | Q200: 0 | R200: 0 | S200: 0 | T200: 0 | U200: 0.5084745763 | W200: 0.07627118644 | X200: 0.1779661017 | Y200: 0.2542372881 | Z200: 0 | AA200: 0 | AB200: 0 | AC200: 0
A201: 179 | B201: Энергоснабжение электросетевого комплекса по ул. Мяги г.о. Самара | C201: 0 | D201: 0.23 | K201: 0 | L201: 0.23 | M201: 0 | N201: 0 | O201: 0 | P201: 0 | Q201: 0 | R201: 0 | S201: 0 | T201: 0 | U201: 1.440677966 | W201: 0.2161016949 | X201: 0.5042372881 | Y201: 0.7203389831 | Z201: 0 | AA201: 0 | AB201: 0 | AC201: 0
A202: 180 | B202: Энергоснабжение электросетевого комплексса по ул. Партизанская г.о. Самара | C202: 0 | D202: 0.3 | K202: 0 | L202: 0.3 | M202: 0 | N202: 0 | O202: 0 | P202: 0 | Q202: 0 | R202: 0 | S202: 0 | T202: 0 | U202: 1.86440678 | W202: 0.2796610169 | X202: 0.6525423729 | Y202: 0.9322033898 | Z202: 0 | AA202: 0 | AB202: 0 | AC202: 0
A203: 181 | B203: Реконструкция электроснабжения г.о.Самара | C203: 0 | D203: 11.8 | K203: 0 | L203: 11.8 | M203: 0 | N203: 0 | O203: 0 | P203: 0 | Q203: 0 | R203: 0 | S203: 0 | T203: 0 | U203: 60 | W203: 9 | X203: 21 | Y203: 30 | Z203: 0 | AA203: 0 | AB203: 0 | AC203: 0
A204: 182 | B204: Реконструкция сетей в Ленинском р-не г.о. Самара | C204: 2 | D204: 2.5 | K204: 2 | L204: 2.5 | M204: 0 | N204: 0 | O204: 0 | P204: 0 | Q204: 0 | R204: 0 | S204: 0 | T204: 0 | U204: 70 | W204: 10.5 | X204: 24.5 | Y204: 35 | Z204: 0 | AA204: 0 | AB204: 0 | AC204: 0
A205: 183 | B205: ПИР Котельная в Куйбышевском р-не г.о. Самара | C205: 0 | D205: 0 | K205: 0 | L205: 0 | M205: 0 | N205: 0 | O205: 0 | P205: 0 | Q205: 0 | R205: 0 | S205: 0 | T205: 0 | U205: 10 | W205: 1.5 | X205: 3.5 | Y205: 5 | Z205: 0 | AA205: 0 | AB205: 0 | AC205: 0
A206: 184 | B206: ПИР ПС "Кряж" | C206: 0 | D206: 0 | K206: 0 | L206: 0 | M206: 0 | N206: 0 | O206: 0 | P206: 0 | Q206: 0 | R206: 0 | S206: 0 | T206: 0 | U206: 105 | W206: 15.75 | X206: 36.75 | Y206: 52.5 | Z206: 0 | AA206: 0 | AB206: 0 | AC206: 0
A207: 185 | B207: Повышение надежности энергоснабжения г. Самара | C207: 0 | D207: 0 | K207: 0 | L207: 0 | M207: 0 | N207: 69 | O207: 0 | P207: 57.5 | Q207: 0 | R207: 61 | S207: 0 | T207: 67 | U207: 0 | W207: 0 | X207: 0 | Y207: 0 | Z207: 635 | AA207: 540 | AB207: 560 | AC207: 628.9830508
A208: 186 | B208: Реконструкция существующей инфраструктуры объектов электрохозяйства в г.о. Самара, в целях обеспечения надежности ЭС спортивного комплексак ЧМ-2018 | C208: 0 | D208: 0 | K208: 0 | L208: 0 | M208: 0 | N208: 15 | O208: 33.6 | P208: 28 | Q208: 13.6 | R208: 54 | S208: 23.8 | T208: 34 | U208: 0 | W208: 0 | X208: 0 | Y208: 0 | Z208: 139 | AA208: 320 | AB208: 485 | AC208: 350
... 120 more rows

Sheet приложение 1.1
AW1: Приложение № 1.1
AW2: к приказу Минэнерго России
AW3: от «24» марта 2010 г. № 114
A5: Перечень инвестиционных проектов АО "Самарская сетевая компания" на период реализации инвестиционной программы и план их финансирования
A6: 2017 - 2021 г.г.
AT7: Утверждаю
AW8: Генеральный директор АО "ССК"
AW9: Мухаметшин В. С.
AS10: _____________
AR11: «___»______________ 2016 года
AR12: М.П.
A15: № | B15: Наименование объекта | C15: Стадия реализации проекта | D15: Проектная мощность/ протяженность сетей | I15: год начала сроительства | J15: год окончания строительства | K15: Полная стоимость строительства ** | L15: Остаточная стоимость строительства ** | M15: План финансирования текущего года | N15: Ввод мощностей | AR15: Объем финансирования
N16: План 2017 года | S16: План 2018 года | X16: План 2019 года | AC16: План 2020 года | AH16: План 2021 года | AM16: Итого | AR16: План 2017 года | AS16: План 2018 года | AT16: План 2019 года | AU16: План 2020 года | AV16: План 2021 года | AW16: Итого без НДС
C17: С/П* | D17: МВт/км/МВА | K17: млн.рублей | L17: млн.рублей | M17: млн.рублей | N17: МВт/км/МВА | S17: МВт/км/МВА | X17: МВт/км/МВА | AC17: МВт/км/МВА | AH17: МВт/км/МВА | AM17: МВт/км/МВА | AR17: млн.рублей | AS17: млн.рублей | AT17: млн.рублей | AU17: млн.рублей | AV17: млн.рублей | AW17: млн.рублей
A18: 1 | B18: 2 | C18: 3 | D18: 4 | I18: 5 | J18: 6 | K18: 7 | L18: 8 | M18: 9 | N18: 10 | S18: 11 | X18: 12 | AC18: 13 | AH18: 14 | AM18: 15 | AR18: 16 | AS18: 17 | AT18: 18 | AU18: 19 | AV18: 20 | AW18: 21
B19: ВСЕГО | D19: 13.68 | F19: 1965.879333 | G19: / | H19: 573.509 | K19: 18586.17115 | N19: 4.57 | O19: / | P19: 364.1743333 | Q19: / | R19: 47.4 | S19: 4.6 | T19: / | U19: 447.91 | V19: / | W19: 93.28 | X19: 2.03 | Y19: / | Z19: 398.96 | AA19: / | AB19: 188.369 | AC19: 0.95 | AD19: / | AE19: 371.545 | AF19: / | AG19: 111.07 | AH19: 1.53 | AI19: / | AJ19: 383.29 | AK19: / | AL19: 133.39 | AM19: 13.68 | AN19: / | AO19: 1965.879333 | AP19: / | AQ19: 573.509 | AR19: 2268.346646 | AS19: 3173.505424 | AT19: 3286.191275 | AU19: 3428.940678 | AV19: 3594.008475 | AW19: 15750.9925
A20: 1 | B20: Техническое перевооружение и реконструкция | F20: 1844.429333 | G20: / | H20: 552.049 | K20: 17971.04477 | P20: 327.8243333 | Q20: / | R20: 39.55 | S20: 0 | T20: / | U20: 404.21 | V20: / | W20: 86.45 | X20: 0 | Y20: 0 | Z20: 367.46 | AA20: / | AB20: 185.119 | AC20: 0 | AD20: 0 | AE20: 366.045 | AF20: / | AG20: 109.79 | AH20: 0 | AI20: 0 | AJ20: 378.89 | AK20: / | AL20: 131.14 | AM20: 0 | AN20: 0 | AO20: 1844.429333 | AP20: / | AQ20: 552.049 | AR20: 2044.81478 | AS20: 3038.064407 | AT20: 3204.006213 | AU20: 3379.066102 | AV20: 3563.747458 | AW20: 15229.69896
A21: 1.1. | B21: Энергосбережение и повышение энергетической эффективности | F21: 1844.429333 | G21: / | H21: 552.049 | K21: 17313.69745 | P21: 327.8243333 | Q21: / | R21: 39.55 | S21: 0 | T21: / | U21: 404.21 | V21: / | W21: 86.45 | X21: 0 | Y21: 0 | Z21: 367.46 | AA21: / | AB21: 185.119 | AC21: 0 | AD21: 0 | AE21: 366.045 | AF21: / | AG21: 109.79 | AH21: 0 | AI21: 0 | AJ21: 378.89 | AK21: / | AL21: 131.14 | AM21: 0 | AN21: 0 | AO21: 1844.429333 | AP21: / | AQ21: 552.049 | AR21: 1807.71478 | AS21: 2968.166102 | AT21: 3131.277976 | AU21: 3292.727119 | AV21: 3472.738983 | AW21: 14672.62496
A22: 1 | B22: Алексеевский район | F22: 0 | H22: 0 | I22: 0 | J22: 0 | K22: 0 | P22: 0 | R22: 0 | U22: 0 | W22: 0 | Z22: 0 | AB22: 0 | AE22: 0 | AG22: 0 | AJ22: 0 | AL22: 0 | AO22: 0 | AP22: / | AQ22: 0 | AR22: 0 | AS22: 0 | AT22: 0 | AU22: 0 | AV22: 0 | AW22: 0 | BA22: 0 | BB22: 0 | BC22: 0 | BD22: 0 | BE22: =IF(ISNA(AZ22),IF(ISNA(BA22),IF(ISNA(BB22),IF(ISNA(BC22),IF(ISNA(BD22),"",BD22),BC22),BB22),BA22),AZ22) -> 0
A23: 2 | B23: Реконструкция ВЛ-0,4кВ от КТП А 2109/160 кВА с заменой КТП | F23: 2.81 | H23: 0.16 | I23: 2017 | J23: 2017 | K23: 10.292 | P23: 2.81 | R23: 0.16 | U23: 0 | W23: 0 | Z23: 0 | AB23: 0 | AE23: 0 | AG23: 0 | AJ23: 0 | AL23: 0 | AO23: 2.81 | AP23: / | AQ23: 0.16 | AR23: 8.722033898 | AT23: 0 | AU23: 0 | AV23: 0 | AW23: 8.722033898
A24: 3 | B24: Реконструкция ВЛ-0,4кВ от КТП А 216/250 кВА с заменой КТП | F24: 4.52 | G24: / | H24: 0.25 | I24: 2017 | J24: 2017 | K24: 15.764 | P24: 4.52 | Q24: / | R24: 0.25 | U24: 0 | W24: 0 | Z24: 0 | AB24: 0 | AE24: 0 | AG24: 0 | AJ24: 0 | AL24: 0 | AO24: 4.52 | AP24: / | AQ24: 0.25 | AR24: 13.35932203 | AT24: 0 | AU24: 0 | AV24: 0 | AW24: 13.35932203
A25: 4 | B25: Реконструкция ВЛ-0,4кВ от КТП А 207/250 кВА с заменой КТП | F25: 1.92 | G25: / | H25: 0.25 | I25: 2018 | J25: 2018 | K25: 6.576 | P25: 0 | R25: 0 | U25: 1.92 | V25: / | W25: 0.25 | Z25: 0 | AB25: 0 | AE25: 0 | AG25: 0 | AJ25: 0 | AL25: 0 | AO25: 1.92 | AP25: / | AQ25: 0.25 | AR25: 0 | AS25: 5.572881356 | AT25: 0 | AU25: 0 | AV25: 0 | AW25: 5.572881356
A26: 5 | B26: Реконструкция ВЛ-0,4кВ от КТП А 203/250 кВА с заменой КТП | F26: 4.67 | G26: / | H26: 0.25 | I26: 2018 | J26: 2018 | K26: 14.276 | P26: 0 | R26: 0 | U26: 4.67 | V26: / | W26: 0.25 | Z26: 0 | AB26: 0 | AE26: 0 | AG26: 0 | AJ26: 0 | AL26: 0 | AO26: 4.67 | AP26: / | AQ26: 0.25 | AR26: 0 | AS26: 12.09830508 | AT26: 0 | AU26: 0 | AV26: 0 | AW26: 12.09830508
A27: 6 | B27: Реконструкция ВЛ-0,4кВ от КТП А 2101/160 кВА с заменой КТП | F27: 2.92 | G27: / | H27: 0.16 | I27: 2019 | J27: 2019 | K27: 9.376 | P27: 0 | R27: 0 | U27: 0 | W27: 0 | Z27: 2.92 | AA27: / | AB27: 0.16 | AE27: 0 | AG27: 0 | AJ27: 0 | AL27: 0 | AO27: 2.92 | AP27: / | AQ27: 0.16 | AR27: 0 | AS27: 0 | AT27: 7.945762712 | AU27: 0 | AV27: 0 | AW27: 7.945762712
A28: 7 | B28: Реконструкция ВЛ-0,4кВ от КТП А 217/400 кВА с заменой КТП | F28: 3.08 | G28: / | H28: 0.4 | I28: 2019 | J28: 2019 | K28: 9.824 | P28: 0 | R28: 0 | U28: 0 | W28: 0 | Z28: 3.08 | AA28: / | AB28: 0.4 | AE28: 0 | AG28: 0 | AJ28: 0 | AL28: 0 | AO28: 3.08 | AP28: / | AQ28: 0.4 | AR28: 0 | AS28: 0 | AT28: 8.325423729 | AU28: 0 | AV28: 0 | AW28: 8.325423729
A29: 8 | B29: Реконструкция ВЛ-0,4кВ от КТП А 2003/400 кВА с заменой КТП | F29: 1.035 | G29: / | H29: 0.4 | I29: 2020 | J29: 2020 | K29: 4.098 | P29: 0 | R29: 0 | U29: 0 | W29: 0 | Z29: 0 | AB29: 0 | AE29: 1.035 | AF29: / | AG29: 0.4 | AJ29: 0 | AL29: 0 | AO29: 1.035 | AP29: / | AQ29: 0.4 | AR29: 0 | AS29: 0 | AT29: 0 | AU29: 3.472881356 | AV29: 0 | AW29: 3.472881356
A30: 9 | B30: Реконструкция ВЛ-0,4кВ от КТП А 2110/160 кВА с заменой КТП | F30: 1.6 | G30: / | H30: 0.16 | I30: 2021 | J30: 2021 | K30: 5.68 | P30: 0 | R30: 0 | U30: 0 | W30: 0 | Z30: 0 | AB30: 0 | AE30: 0 | AG30: 0 | AJ30: 1.6 | AK30: / | AL30: 0.16 | AO30: 1.6 | AP30: / | AQ30: 0.16 | AR30: 0 | AS30: 0 | AT30: 0 | AU30: 0 | AV30: 4.813559322 | AW30: 4.813559322
A31: 10 | B31: Больше-Черниговский район | F31: 0 | H31: 0 | I31: 0 | J31: 0 | K31: 0 | P31: 0 | R31: 0 | U31: 0 | W31: 0 | Z31: 0 | AB31: 0 | AE31: 0 | AG31: 0 | AJ31: 0 | AL31: 0 | AO31: 0 | AP31: / | AQ31: 0 | AR31: 0 | AS31: 0 | AT31: 0 | AU31: 0 | AV31: 0 | AW31: 0
A32: 11 | B32: Реконструкция ВЛ-0,4кВ от КТП 1205/400 кВА с заменой КТП | F32: 1.68 | G32: / | H32: 0.4 | I32: 2017 | J32: 2017 | K32: 6.976 | P32: 1.68 | Q32: / | R32: 0.4 | U32: 0 | W32: 0 | Z32: 0 | AB32: 0 | AE32: 0 | AG32: 0 | AJ32: 0 | AL32: 0 | AO32: 1.68 | AP32: / | AQ32: 0.4 | AR32: 5.911864407 | AS32: 0 | AT32: 0 | AU32: 0 | AV32: 0 | AW32: 5.911864407
A33: 12 | B33: Реконструкция ВЛ-0,4кВ от КТП 1204/400 кВА с заменой КТП | F33: 0.7 | H33: 0.4 | I33: 2017 | J33: 2017 | K33: 3.84 | P33: 0.7 | R33: 0.4 | AO33: 0.7 | AQ33: 0.4 | AR33: 3.254237288 | AW33: 3.254237288
A34: 13 | B34: Реконструкция ВЛ-0,4кВ от КТП 415/250 кВА с заменой КТП | F34: 0.8 | H34: 0.25 | I34: 2017 | J34: 2017 | K34: 3.86 | P34: 0.8 | R34: 0.25 | AO34: 0.8 | AQ34: 0.25 | AR34: 3.271186441 | AW34: 3.271186441
A35: 14 | B35: Реконструкция ВЛ-0,4кВ от КТП 1206/160 кВА с заменой КТП | F35: 2.2 | G35: / | H35: 0.16 | I35: 2017 | J35: 2017 | K35: 8.34 | P35: 2.2 | Q35: / | R35: 0.16 | U35: 0 | W35: 0 | Z35: 0 | AB35: 0 | AE35: 0 | AG35: 0 | AJ35: 0 | AL35: 0 | AO35: 2.2 | AP35: / | AQ35: 0.16 | AR35: 7.06779661 | AS35: 0 | AT35: 0 | AU35: 0 | AV35: 0 | AW35: 7.06779661
A36: 15 | B36: Реконструкция ВЛ-0,4кВ от КТП 1202/250 кВА с заменой КТП | F36: 1.05 | G36: / | H36: 0.25 | I36: 2017 | J36: 2017 | K36: 4.66 | P36: 1.05 | Q36: / | R36: 0.25 | U36: 0 | W36: 0 | Z36: 0 | AB36: 0 | AE36: 0 | AG36: 0 | AJ36: 0 | AL36: 0 | AO36: 1.05 | AP36: / | AQ36: 0.25 | AR36: 3.949152542 | AS36: 0 | AT36: 0 | AU36: 0 | AV36: 0 | AW36: 3.949152542
A37: 16 | B37: Реконструкция ВЛ-0,4кВ от КТП 709/250 кВА с заменой КТП | F37: 0.42 | G37: / | H37: 0.25 | I37: 2018 | J37: 2018 | K37: 2.376 | P37: 0 | R37: 0 | U37: 0.42 | V37: / | W37: 0.25 | Z37: 0 | AB37: 0 | AE37: 0 | AG37: 0 | AJ37: 0 | AL37: 0 | AO37: 0.42 | AP37: / | AQ37: 0.25 | AR37: 0 | AS37: 2.013559322 | AT37: 0 | AU37: 0 | AV37: 0 | AW37: 2.013559322
A38: 17 | B38: Реконструкция ВЛ-0,4кВ от КТП 501/320 кВА с заменой КТП | F38: 0.42 | G38: / | H38: 0.32 | I38: 2018 | J38: 2018 | K38: 2.376 | P38: 0 | R38: 0 | U38: 0.42 | V38: / | W38: 0.32 | Z38: 0 | AB38: 0 | AE38: 0 | AG38: 0 | AJ38: 0 | AL38: 0 | AO38: 0.42 | AP38: / | AQ38: 0.32 | AR38: 0 | AS38: 2.013559322 | AT38: 0 | AU38: 0 | AV38: 0 | AW38: 2.013559322
A39: 18 | B39: Реконструкция ВЛ-0,4кВ от КТП 809/100 кВА с заменой КТП | F39: 1.36 | G39: / | H39: 0.1 | I39: 2019 | J39: 2019 | K39: 5.008 | P39: 0 | R39: 0 | U39: 0 | W39: 0 | Z39: 1.36 | AA39: / | AB39: 0.1 | AE39: 0 | AG39: 0 | AJ39: 0 | AL39: 0 | AO39: 1.36 | AP39: / | AQ39: 0.1 | AR39: 0 | AS39: 0 | AT39: 4.244067797 | AU39: 0 | AV39: 0 | AW39: 4.244067797
A40: 19 | B40: Реконструкция ВЛ-0,4кВ от КТП 201/400 кВА с заменой КТП | F40: 1.6 | G40: / | H40: 0.4 | I40: 2019 | J40: 2019 | K40: 5.68 | P40: 0 | R40: 0 | U40: 0 | W40: 0 | Z40: 1.6 | AA40: / | AB40: 0.4 | AE40: 0 | AG40: 0 | AJ40: 0 | AL40: 0 | AO40: 1.6 | AP40: / | AQ40: 0.4 | AR40: 0 | AS40: 0 | AT40: 4.813559322 | AU40: 0 | AV40: 0 | AW40: 4.813559322
A41: 20 | B41: Реконструкция ВЛ-0,4кВ от КТП 109/400 кВА с заменой КТП | F41: 1.22 | G41: / | H41: 0.4 | I41: 2019 | J41: 2019 | K41: 4.616 | P41: 0 | R41: 0 | U41: 0 | W41: 0 | Z41: 1.22 | AA41: / | AB41: 0.4 | AE41: 0 | AG41: 0 | AJ41: 0 | AL41: 0 | AO41: 1.22 | AP41: / | AQ41: 0.4 | AR41: 0 | AS41: 0 | AT41: 3.911864407 | AU41: 0 | AV41: 0 | AW41: 3.911864407
A42: 21 | B42: Реконструкция ВЛ-0,4кВ от КТП 905/400 кВА с заменой КТП | F42: 1.62 | G42: / | H42: 0.4 | I42: 2019 | J42: 2019 | K42: 5.736 | P42: 0 | R42: 0 | U42: 0 | W42: 0 | Z42: 1.62 | AA42: / | AB42: 0.4 | AE42: 0 | AG42: 0 | AJ42: 0 | AL42: 0 | AO42: 1.62 | AP42: / | AQ42: 0.4 | AR42: 0 | AS42: 0 | AT42: 4.861016949 | AU42: 0 | AV42: 0 | AW42: 4.861016949
A43: 22 | B43: Реконструкция ВЛ-0,4кВ от КТП 114/400 кВА с заменой КТП | F43: 0.72 | G43: / | H43: 0.4 | I43: 2020 | J43: 2020 | K43: 3.216 | P43: 0 | R43: 0 | U43: 0 | W43: 0 | Z43: 0 | AB43: 0 | AE43: 0.72 | AF43: / | AG43: 0.4 | AJ43: 0 | AL43: 0 | AO43: 0.72 | AP43: / | AQ43: 0.4 | AR43: 0 | AS43: 0 | AT43: 0 | AU43: 2.725423729 | AV43: 0 | AW43: 2.725423729
A44: 23 | B44: Реконструкция ВЛ-0,4кВ от КТП 407/400 кВА с заменой КТП | F44: 0.52 | G44: / | H44: 0.4 | I44: 2020 | J44: 2020 | K44: 2.656 | P44: 0 | R44: 0 | U44: 0 | W44: 0 | Z44: 0 | AB44: 0 | AE44: 0.52 | AF44: / | AG44: 0.4 | AJ44: 0 | AL44: 0 | AO44: 0.52 | AP44: / | AQ44: 0.4 | AR44: 0 | AS44: 0 | AT44: 0 | AU44: 2.250847458 | AV44: 0 | AW44: 2.250847458
A45: 24 | B45: Реконструкция ВЛ-0,4кВ от КТП 122/400 кВА с заменой КТП | F45: 1.9 | G45: / | H45: 0.4 | I45: 2021 | J45: 2021 | K45: 2.656 | P45: 0 | R45: 0 | U45: 0 | W45: 0 | Z45: 0 | AB45: 0 | AE45: 0 | AG45: 0 | AJ45: 1.9 | AK45: / | AL45: 0.4 | AO45: 1.9 | AP45: / | AQ45: 0.4 | AR45: 0 | AS45: 0 | AT45: 0 | AU45: 0 | AV45: 2.250847458 | AW45: 2.250847458
A46: 25 | B46: Реконструкция ВЛ-0,4кВ от КТП 906/250 кВА с заменой КТП | F46: 3.85 | G46: / | H46: 0.25 | I46: 2021 | J46: 2021 | K46: 11.98 | P46: 0 | R46: 0 | U46: 0 | W46: 0 | Z46: 0 | AB46: 0 | AE46: 0 | AG46: 0 | AJ46: 3.85 | AK46: / | AL46: 0.25 | AO46: 3.85 | AP46: / | AQ46: 0.25 | AR46: 0 | AS46: 0 | AT46: 0 | AU46: 0 | AV46: 10.15254237 | AW46: 10.15254237
A47: 26 | B47: Волжский район | F47: 0 | H47: 0 | I47: 0 | J47: 0 | K47: 0 | P47: 0 | R47: 0 | U47: 0 | W47: 0 | Z47: 0 | AB47: 0 | AE47: 0 | AG47: 0 | AJ47: 0 | AL47: 0 | AO47: 0 | AQ47: 0 | AR47: 0 | AS47: 0 | AT47: 0 | AU47: 0 | AV47: 0 | AW47: 0
A48: 27 | B48: Повышение надежности энергоснабжения п.г.т. Петра-Дубрава | F48: 108.3 | G48: / | H48: 51.2 | I48: 2018 | J48: 2018 | K48: 1277.54 | P48: 0 | R48: 0 | U48: 24 | V48: / | W48: 12.8 | Z48: 26.3 | AA48: / | AB48: 12.8 | AE48: 28 | AF48: / | AG48: 12.8 | AJ48: 30 | AK48: / | AL48: 12.8 | AO48: 108.3 | AP48: / | AQ48: 51.2 | AR48: 0 | AS48: 240 | AT48: 263 | AU48: 279.6610169 | AV48: 300 | AW48: 1082.661017
A49: 28 | B49: Реконструкция, инфраструктуры объектов электрохозяйства в г.о. Самара в целях обеспечения надежности ЭС объектов Южный город, Заречье в Волжском районе | F49: 66 | G49: / | H49: 203.4 | I49: 2018 | J49: 2018 | K49: 1401.86 | P49: 0 | R49: 0 | U49: 12 | V49: / | W49: 0 | Z49: 12 | AA49: / | AB49: 63 | AE49: 12 | AF49: / | AG49: 70.2 | AJ49: 30 | AK49: / | AL49: 70.2 | AO49: 66 | AP49: / | AQ49: 203.4 | AR49: 0 | AS49: 172 | AT49: 290 | AU49: 346.0169492 | AV49: 380 | AW49: 1188.016949
A50: 29 | B50: Повышение надежности энергоснабжения электросетевого района с. Лопатино | F50: 13.4 | G50: / | H50: 0 | I50: 2017 | J50: 2017 | K50: 48.65 | P50: 13.4 | Q50: / | R50: 0 | U50: 0 | W50: 0 | Z50: 0 | AB50: 0 | AE50: 0 | AG50: 0 | AJ50: 0 | AL50: 0 | AO50: 13.4 | AP50: / | AQ50: 0 | AR50: 41.22881356 | AS50: 0 | AT50: 0 | AU50: 0 | AV50: 0 | AW50: 41.22881356
A51: 30 | B51: Реконструкция ЗТП КУР 2010/2х100 кВА с заменой трансформаторов на 400 кВА | F51: 0 | G51: / | H51: 0.8 | I51: 2017 | J51: 2017 | K51: 5.5 | P51: 0 | Q51: / | R51: 0.8 | U51: 0 | W51: 0 | Z51: 0 | AB51: 0 | AE51: 0 | AG51: 0 | AJ51: 0 | AL51: 0 | AO51: 0 | AP51: / | AQ51: 0.8 | AR51: 4.661016949 | AS51: 0 | AT51: 0 | AU51: 0 | AV51: 0 | AW51: 4.661016949
A52: 31 | B52: Реконструкция ВЛ-0,4кВ от ЗТП Кур 906/400 кВА с заменой в ЗТП РУ-0,4 кВ | F52: 1.1 | H52: 0 | I52: 2017 | J52: 2017 | K52: 4.27 | P52: 1.1 | R52: 0 | AO52: 1.1 | AQ52: 0 | AR52: 3.618644068 | AW52: 3.618644068
A53: 32 | B53: Реконструкция ВЛ-0,4кВ от ЗТП Кур 901/250 кВА с заменой в ЗТП РУ-0,4 кВ | F53: 1 | H53: 0 | I53: 2017 | J53: 2017 | K53: 3.95 | P53: 1 | R53: 0 | AO53: 1 | AQ53: 0 | AR53: 3.347457627 | AW53: 3.347457627
A54: 33 | B54: Реконструкция ВЛ-0,4 кВ от КТП Р 402/400 кВА с заменой КТП | F54: 1 | G54: / | H54: 0.4 | I54: 2017 | J54: 2017 | K54: 4.8 | P54: 1 | Q54: / | R54: 0.4 | U54: 0 | W54: 0 | Z54: 0 | AB54: 0 | AE54: 0 | AG54: 0 | AJ54: 0 | AL54: 0 | AO54: 1 | AP54: / | AQ54: 0.4 | AR54: 4.06779661 | AS54: 0 | AT54: 0 | AU54: 0 | AV54: 0 | AW54: 4.06779661
A55: 34 | B55: Реконструкция ВЛ-0,4 кВ от КТП Р 605/250 кВА с заменой КТП | F55: 2.65 | G55: / | H55: 0.25 | I55: 2017 | J55: 2017 | K55: 9.78 | P55: 2.65 | Q55: / | R55: 0.25 | U55: 0 | W55: 0 | Z55: 0 | AB55: 0 | AE55: 0 | AG55: 0 | AJ55: 0 | AL55: 0 | AO55: 2.65 | AP55: / | AQ55: 0.25 | AR55: 8.288135593 | AS55: 0 | AT55: 0 | AU55: 0 | AV55: 0 | AW55: 8.288135593
A56: 35 | B56: Реконструкция ВЛ-0,4кВ от ЗТП Кур 906/400 кВА с заменой ЗТП на КТП | F56: 0.85 | G56: / | H56: 0.4 | I56: 2018 | J56: 2018 | K56: 3.58 | P56: 0 | R56: 0 | U56: 0.85 | V56: / | W56: 0.4 | Z56: 0 | AB56: 0 | AE56: 0 | AG56: 0 | AJ56: 0 | AL56: 0 | AO56: 0.85 | AP56: / | AQ56: 0.4 | AR56: 0 | AS56: 3.033898305 | AT56: 0 | AU56: 0 | AV56: 0 | AW56: 3.033898305
A57: 36 | B57: Реконструкция ВЛ-0,4кВ от ЗТП Кур 901/250 кВА с заменой ЗТП на КТП | F57: 1.4 | G57: / | H57: 0.25 | I57: 2018 | J57: 2018 | K57: 5.12 | P57: 0 | R57: 0 | U57: 1.4 | V57: / | W57: 0.25 | Z57: 0 | AB57: 0 | AE57: 0 | AG57: 0 | AJ57: 0 | AL57: 0 | AO57: 1.4 | AP57: / | AQ57: 0.25 | AR57: 0 | AS57: 4.338983051 | AT57: 0 | AU57: 0 | AV57: 0 | AW57: 4.338983051
A58: 37 | B58: Реконструкция ВЛ-0,4 кВ от КТП Р 402/400 кВА | F58: 1 | G58: / | H58: 0 | I58: 2018 | J58: 2018 | K58: 2.8 | P58: 0 | R58: 0 | U58: 1 | V58: / | W58: 0 | Z58: 0 | AB58: 0 | AE58: 0 | AG58: 0 | AJ58: 0 | AL58: 0 | AO58: 1 | AP58: / | AQ58: 0 | AR58: 0 | AS58: 2.372881356 | AT58: 0 | AU58: 0 | AV58: 0 | AW58: 2.372881356
A59: 38 | B59: Реконструкция ВЛ-10 кВ Ф-8 отпайка к КТП Пм 802/100 кВА с заменой КТП | F59: 3.6 | G59: / | H59: 0.1 | I59: 2018 | J59: 2018 | K59: 11 | P59: 0 | R59: 0 | U59: 3.6 | V59: / | W59: 0.1 | Z59: 0 | AB59: 0 | AE59: 0 | AG59: 0 | AJ59: 0 | AL59: 0 | AO59: 3.6 | AP59: / | AQ59: 0.1 | AR59: 0 | AS59: 9.322033898 | AT59: 0 | AU59: 0 | AV59: 0 | AW59: 9.322033898
A60: 39 | B60: Реконструкция ВЛ-0,4 кВ Ф-1 КТП Л 2502/320 кВА | F60: 0.7 | G60: / | H60: 0 | I60: 2018 | J60: 2018 | K60: 1.96 | P60: 0 | R60: 0 | U60: 0.7 | V60: / | W60: 0 | Z60: 0 | AB60: 0 | AE60: 0 | AG60: 0 | AJ60: 0 | AL60: 0 | AO60: 0.7 | AP60: / | AQ60: 0 | AR60: 0 | AS60: 1.661016949 | AT60: 0 | AU60: 0 | AV60: 0 | AW60: 1.661016949
A61: 40 | B61: Реконструкция ВЛ-0,4 кВ от КТП 211/250 кВА с заменой КТП на 400 кВА. | F61: 1.5 | G61: / | H61: 0.4 | I61: 2018 | J61: 2018 | K61: 5.4 | P61: 0 | R61: 0 | U61: 1.5 | V61: / | W61: 0.4 | Z61: 0 | AB61: 0 | AE61: 0 | AG61: 0 | AJ61: 0 | AL61: 0 | AO61: 1.5 | AP61: / | AQ61: 0.4 | AR61: 0 | AS61: 4.576271186 | AT61: 0 | AU61: 0 | AV61: 0 | AW61: 4.576271186
A62: 41 | B62: Реконструкция ВЛ-0,4 кВ от КТП 213 | F62: 1.8 | G62: / | H62: 0 | I62: 2018 | J62: 2018 | K62: 5.04 | P62: 0 | R62: 0 | U62: 1.8 | V62: / | W62: 0 | Z62: 0 | AB62: 0 | AE62: 0 | AG62: 0 | AJ62: 0 | AL62: 0 | AO62: 1.8 | AP62: / | AQ62: 0 | AR62: 0 | AS62: 4.271186441 | AT62: 0 | AU62: 0 | AV62: 0 | AW62: 4.271186441
A63: 42 | B63: Реконструкция ВЛ-0,4 кВ от КТП Р 106/400 кВА с заменой КТП | F63: 3.2 | G63: / | H63: 0.4 | I63: 2019 | J63: 2019 | K63: 10.16 | P63: 0 | R63: 0 | U63: 0 | W63: 0 | Z63: 3.2 | AA63: / | AB63: 0.4 | AE63: 0 | AG63: 0 | AJ63: 0 | AL63: 0 | AO63: 3.2 | AP63: / | AQ63: 0.4 | AR63: 0 | AS63: 0 | AT63: 8.610169492 | AU63: 0 | AV63: 0 | AW63: 8.610169492
A64: 43 | B64: Реконструкция ВЛ-6 кВ Ф-30 ПС Овощная отпайка до КТП Ов 3008/250 кВА с заменой КТП на 400 кВА | F64: 0.36 | G64: / | H64: 0.4 | I64: 2019 | J64: 2019 | K64: 2.208 | P64: 0 | R64: 0 | U64: 0 | W64: 0 | Z64: 0.36 | AA64: / | AB64: 0.4 | AE64: 0 | AG64: 0 | AJ64: 0 | AL64: 0 | AO64: 0.36 | AP64: / | AQ64: 0.4 | AR64: 0 | AS64: 0 | AT64: 1.871186441 | AU64: 0 | AV64: 0 | AW64: 1.871186441
A65: 44 | B65: Реконструкция ВЛ-6 кВ Ф-1 отпайка до КТП Пм 102/250 кВА с заменой КТП | F65: 0.06 | G65: / | H65: 0.25 | I65: 2019 | J65: 2019 | K65: 1.368 | P65: 0 | R65: 0 | U65: 0 | W65: 0 | Z65: 0.06 | AA65: / | AB65: 0.25 | AE65: 0 | AG65: 0 | AJ65: 0 | AL65: 0 | AO65: 0.06 | AP65: / | AQ65: 0.25 | AR65: 0 | AS65: 0 | AT65: 1.159322034 | AU65: 0 | AV65: 0 | AW65: 1.159322034
A66: 45 | B66: Реконструкция ВЛ-0,4 кВ от КТП 215 | F66: 1.6 | G66: / | H66: 0 | I66: 2019 | J66: 2019 | K66: 4.48 | P66: 0 | R66: 0 | U66: 0 | W66: 0 | Z66: 1.6 | AA66: / | AB66: 0 | AE66: 0 | AG66: 0 | AJ66: 0 | AL66: 0 | AO66: 1.6 | AP66: / | AQ66: 0 | AR66: 0 | AS66: 0 | AT66: 3.796610169 | AU66: 0 | AV66: 0 | AW66: 3.796610169
A67: 46 | B67: Реконструкция ВЛ-0,4 кВ от КТП 218 | F67: 0.8 | G67: / | H67: 0 | I67: 2019 | J67: 2019 | K67: 2.24 | P67: 0 | R67: 0 | U67: 0 | W67: 0 | Z67: 0.8 | AA67: / | AB67: 0 | AE67: 0 | AG67: 0 | AJ67: 0 | AL67: 0 | AO67: 0.8 | AP67: / | AQ67: 0 | AR67: 0 | AS67: 0 | AT67: 1.898305085 | AU67: 0 | AV67: 0 | AW67: 1.898305085
A68: 47 | B68: Реконструкция ВЛ-0,4 кВ от КТП Р 304/400 кВА с заменой КТП | F68: 1.8 | G68: / | H68: 0.4 | I68: 2020 | J68: 2020 | K68: 6.24 | P68: 0 | R68: 0 | U68: 0 | W68: 0 | Z68: 0 | AB68: 0 | AE68: 1.8 | AF68: / | AG68: 0.4 | AJ68: 0 | AL68: 0 | AO68: 1.8 | AP68: / | AQ68: 0.4 | AR68: 0 | AS68: 0 | AT68: 0 | AU68: 5.288135593 | AV68: 0 | AW68: 5.288135593
A69: 48 | B69: Елховский район | F69: 0 | G69: / | H69: 0 | I69: 0 | J69: 0 | K69: 0 | P69: 0 | R69: 0 | U69: 0 | W69: 0 | Z69: 0 | AB69: 0 | AE69: 0 | AG69: 0 | AJ69: 0 | AL69: 0 | AO69: 0 | AQ69: 0 | AR69: 0 | AS69: 0 | AT69: 0 | AU69: 0 | AV69: 0 | AW69: 0
A70: 49 | B70: Реконструкция ВЛ-0,4кВ от КТП КМ 810/100 кВА с заменой КТП | F70: 0.92 | G70: / | H70: 0.1 | I70: 2017 | J70: 2017 | K70: 4.2444 | P70: 0.92 | Q70: / | R70: 0.1 | U70: 0 | W70: 0 | Z70: 0 | AB70: 0 | AE70: 0 | AG70: 0 | AJ70: 0 | AL70: 0 | AO70: 0.92 | AP70: / | AQ70: 0.1 | AR70: 3.596949153 | AS70: 0 | AT70: 0 | AU70: 0 | AV70: 0 | AW70: 3.596949153
A71: 50 | B71: Реконструкция ВЛ-0,4кВ от КТП Елх 405/400 кВА с заменой КТП | F71: 0.6 | G71: / | H71: 0.4 | I71: 2017 | J71: 2017 | K71: 3.52 | P71: 0.6 | Q71: / | R71: 0.4 | U71: 0 | W71: 0 | Z71: 0 | AB71: 0 | AE71: 0 | AG71: 0 | AJ71: 0 | AL71: 0 | AO71: 0.6 | AP71: / | AQ71: 0.4 | AR71: 2.983050847 | AS71: 0 | AT71: 0 | AU71: 0 | AV71: 0 | AW71: 2.983050847
A72: 51 | B72: Реконструкция ВЛ-0,4кВ от КТП Елх 713/400 кВА с заменой КТП | F72: 0.64 | G72: / | H72: 0.4 | I72: 2018 | J72: 2018 | K72: 2.992 | P72: 0 | R72: 0 | U72: 0.64 | V72: / | W72: 0.4 | Z72: 0 | AB72: 0 | AE72: 0 | AG72: 0 | AJ72: 0 | AL72: 0 | AO72: 0.64 | AP72: / | AQ72: 0.4 | AR72: 0 | AS72: 2.53559322 | AT72: 0 | AU72: 0 | AV72: 0 | AW72: 2.53559322
A73: 52 | B73: Реконструкция ВЛ-0,4кВ от КТП Елх 403/160 кВА с заменой КТП | F73: 0.48 | G73: / | H73: 0.16 | I73: 2018 | J73: 2018 | K73: 2.544 | P73: 0 | R73: 0 | U73: 0.48 | V73: / | W73: 0.16 | Z73: 0 | AB73: 0 | AE73: 0 | AG73: 0 | AJ73: 0 | AL73: 0 | AO73: 0.48 | AP73: / | AQ73: 0.16 | AR73: 0 | AS73: 2.155932203 | AT73: 0 | AU73: 0 | AV73: 0 | AW73: 2.155932203
A74: 53 | B74: Кинель-Черкасский район | F74: 0 | H74: 0 | I74: 0 | J74: 0 | K74: 0 | P74: 0 | R74: 0 | U74: 0 | W74: 0 | Z74: 0 | AB74: 0 | AE74: 0 | AG74: 0 | AJ74: 0 | AL74: 0 | AO74: 0 | AP74: / | AQ74: 0 | AR74: 0 | AS74: 0 | AT74: 0 | AU74: 0 | AV74: 0 | AW74: 0
A75: 54 | B75: Реконструкция ВЛ-0,4 кВ от КТП Ч 1704/250 кВА с заменой КТП на 400 кВА | F75: 8.2 | G75: / | H75: 0.4 | I75: 2017 | J75: 2017 | K75: 27.84 | P75: 8.2 | Q75: / | R75: 0.4 | U75: 0 | W75: 0 | Z75: 0 | AB75: 0 | AE75: 0 | AG75: 0 | AJ75: 0 | AL75: 0 | AO75: 8.2 | AP75: / | AQ75: 0.4 | AR75: 23.59322034 | AS75: 0 | AT75: 0 | AU75: 0 | AV75: 0 | AW75: 23.59322034
A76: 55 | B76: Реконструкция ВЛ-0,4 кВ от КТП Сад-Г 507/250 кВА с заменой КТП | F76: 2 | H76: 0.25 | I76: 2017 | J76: 2017 | K76: 7.7 | P76: 2 | R76: 0.25 | AO76: 2 | AQ76: 0.25 | AR76: 6.525423729 | AW76: 6.525423729
A77: 56 | B77: Реконструкция ВЛ-0,4кВ от КТП Ку 1316/400кВА с заменой КТП | F77: 1.6 | H77: 0.4 | I77: 2017 | J77: 2017 | K77: 6.72 | P77: 1.6 | R77: 0.4 | AO77: 1.6 | AQ77: 0.4 | AR77: 5.694915254 | AW77: 5.694915254
A78: 57 | B78: Реконструкция ВЛ-0,4 кВ от ЗТП Ч 405/400 кВА с заменой ЗТП на КТП 400кВА | F78: 4.32 | G78: / | H78: 0.4 | I78: 2017 | J78: 2017 | K78: 15.424 | P78: 4.32 | Q78: / | R78: 0.4 | U78: 0 | W78: 0 | Z78: 0 | AB78: 0 | AE78: 0 | AG78: 0 | AJ78: 0 | AL78: 0 | AO78: 4.32 | AP78: / | AQ78: 0.4 | AR78: 13.07118644 | AS78: 0 | AT78: 0 | AU78: 0 | AV78: 0 | AW78: 13.07118644
A79: 58 | B79: Реконструкция ВЛ-0,4 кВ от КТП Ку 1309/250 кВА | F79: 6 | G79: / | H79: 0 | I79: 2017 | J79: 2017 | K79: 19.2 | P79: 6 | Q79: / | R79: 0 | U79: 0 | W79: 0 | Z79: 0 | AB79: 0 | AE79: 0 | AG79: 0 | AJ79: 0 | AL79: 0 | AO79: 6 | AP79: / | AQ79: 0 | AR79: 16.27118644 | AS79: 0 | AT79: 0 | AU79: 0 | AV79: 0 | AW79: 16.27118644
A80: 59 | B80: Реконструкция ВЛ-0,4 кВ от ЗТП Ч 1703/400 кВА | F80: 7.6 | G80: / | H80: 0 | I80: 2018 | J80: 2018 | K80: 21.28 | P80: 0 | R80: 0 | U80: 7.6 | V80: / | W80: 0 | Z80: 0 | AB80: 0 | AE80: 0 | AG80: 0 | AJ80: 0 | AL80: 0 | AO80: 7.6 | AP80: / | AQ80: 0 | AR80: 0 | AS80: 18.03389831 | AT80: 0 | AU80: 0 | AV80: 0 | AW80: 18.03389831
A81: 60 | B81: Реконструкция ВЛ-0,4 кВ от КТП Ч 417/250 кВА | F81: 3.4 | G81: / | H81: 0 | I81: 2018 | J81: 2018 | K81: 9.52 | P81: 0 | R81: 0 | U81: 3.4 | V81: / | W81: 0 | Z81: 0 | AB81: 0 | AE81: 0 | AG81: 0 | AJ81: 0 | AL81: 0 | AO81: 3.4 | AP81: / | AQ81: 0 | AR81: 0 | AS81: 8.06779661 | AT81: 0 | AU81: 0 | AV81: 0 | AW81: 8.06779661
A82: 61 | B82: Реконструкция ВЛ-0,4 кВ от КТП Ку 1312/250 кВА | F82: 2.5 | G82: / | H82: 0 | I82: 2018 | J82: 2018 | K82: 7 | P82: 0 | R82: 0 | U82: 2.5 | V82: / | W82: 0 | Z82: 0 | AB82: 0 | AE82: 0 | AG82: 0 | AJ82: 0 | AL82: 0 | AO82: 2.5 | AP82: / | AQ82: 0 | AR82: 0 | AS82: 5.93220339 | AT82: 0 | AU82: 0 | AV82: 0 | AW82: 5.93220339
A83: 62 | B83: Реконструкция ВЛ-0,4 кВ от КТП Кр 1906/400 кВА | F83: 2.5 | G83: / | H83: 0 | I83: 2018 | J83: 2018 | K83: 7 | P83: 0 | R83: 0 | U83: 2.5 | V83: / | W83: 0 | Z83: 0 | AB83: 0 | AE83: 0 | AG83: 0 | AJ83: 0 | AL83: 0 | AO83: 2.5 | AP83: / | AQ83: 0 | AR83: 0 | AS83: 5.93220339 | AT83: 0 | AU83: 0 | AV83: 0 | AW83: 5.93220339
A84: 63 | B84: Реконструкция ВЛ-0,4 кВ от КТП Кр 1914/250 кВА | F84: 1.6 | G84: / | H84: 0 | I84: 2018 | J84: 2018 | K84: 4.48 | P84: 0 | R84: 0 | U84: 1.6 | V84: / | W84: 0 | Z84: 0 | AB84: 0 | AE84: 0 | AG84: 0 | AJ84: 0 | AL84: 0 | AO84: 1.6 | AP84: / | AQ84: 0 | AR84: 0 | AS84: 3.796610169 | AT84: 0 | AU84: 0 | AV84: 0 | AW84: 3.796610169
A85: 64 | B85: Реконструкция ВЛ-0,4 кВ от КТП Кр 1909/400 кВА | F85: 1.6 | G85: / | H85: 0 | I85: 2018 | J85: 2018 | K85: 4.48 | P85: 0 | R85: 0 | U85: 1.6 | V85: / | W85: 0 | Z85: 0 | AB85: 0 | AE85: 0 | AG85: 0 | AJ85: 0 | AL85: 0 | AO85: 1.6 | AP85: / | AQ85: 0 | AR85: 0 | AS85: 3.796610169 | AT85: 0 | AU85: 0 | AV85: 0 | AW85: 3.796610169
A86: 65 | B86: Реконструкция ВЛ-0,4 кВ от КТП Сид 305/250 кВА | F86: 3.4 | G86: / | H86: 0 | I86: 2019 | J86: 2019 | K86: 9.52 | P86: 0 | R86: 0 | U86: 0 | W86: 0 | Z86: 3.4 | AA86: / | AB86: 0 | AE86: 0 | AG86: 0 | AJ86: 0 | AL86: 0 | AO86: 3.4 | AP86: / | AQ86: 0 | AR86: 0 | AS86: 0 | AT86: 8.06779661 | AU86: 0 | AV86: 0 | AW86: 8.06779661
A87: 66 | B87: Реконструкция ВЛ-0,4 кВ от КТП Сид 316/160 кВА с заменой КТП | F87: 1.5 | G87: / | H87: 0.16 | I87: 2019 | J87: 2019 | K87: 5.4 | P87: 0 | R87: 0 | U87: 0 | W87: 0 | Z87: 1.5 | AA87: / | AB87: 0.16 | AE87: 0 | AG87: 0 | AJ87: 0 | AL87: 0 | AO87: 1.5 | AP87: / | AQ87: 0.16 | AR87: 0 | AS87: 0 | AT87: 4.576271186 | AU87: 0 | AV87: 0 | AW87: 4.576271186
A88: 67 | B88: Реконструкция ВЛ-0,4 кВ от ЗТП Ку 801/250 кВА | F88: 2 | G88: / | H88: 0 | I88: 2019 | J88: 2019 | K88: 5.6 | P88: 0 | R88: 0 | U88: 0 | W88: 0 | Z88: 2 | AA88: / | AB88: 0 | AE88: 0 | AG88: 0 | AJ88: 0 | AL88: 0 | AO88: 2 | AP88: / | AQ88: 0 | AR88: 0 | AS88: 0 | AT88: 4.745762712 | AU88: 0 | AV88: 0 | AW88: 4.745762712
A89: 68 | B89: Реконструкция ВЛ-0,4 кВ от ЗТП Ку 802/250 кВА с заменой трансформатора | F89: 1 | G89: / | H89: 0.25 | I89: 2019 | J89: 2019 | K89: 4 | P89: 0 | R89: 0 | U89: 0 | W89: 0 | Z89: 1 | AA89: / | AB89: 0.25 | AE89: 0 | AG89: 0 | AJ89: 0 | AL89: 0 | AO89: 1 | AP89: / | AQ89: 0.25 | AR89: 0 | AS89: 0 | AT89: 3.389830508 | AU89: 0 | AV89: 0 | AW89: 3.389830508
A90: 69 | B90: Реконструкция ВЛ-0,4 кВ от ЗТП Ку 803/250 кВА | F90: 1.2 | G90: / | H90: 0 | I90: 2019 | J90: 2019 | K90: 3.36 | P90: 0 | R90: 0 | U90: 0 | W90: 0 | Z90: 1.2 | AA90: / | AB90: 0 | AE90: 0 | AG90: 0 | AJ90: 0 | AL90: 0 | AO90: 1.2 | AP90: / | AQ90: 0 | AR90: 0 | AS90: 0 | AT90: 2.847457627 | AU90: 0 | AV90: 0 | AW90: 2.847457627
A91: 70 | B91: Реконструкция ВЛ-0,4 кВ от КТП Ку 703/250 кВА с заменой КТП | F91: 1.2 | G91: / | H91: 0.25 | I91: 2019 | J91: 2019 | K91: 4.56 | P91: 0 | R91: 0 | U91: 0 | W91: 0 | Z91: 1.2 | AA91: / | AB91: 0.25 | AE91: 0 | AG91: 0 | AJ91: 0 | AL91: 0 | AO91: 1.2 | AP91: / | AQ91: 0.25 | AR91: 0 | AS91: 0 | AT91: 3.86440678 | AU91: 0 | AV91: 0 | AW91: 3.86440678
A92: 71 | B92: Реконструкция ВЛ-0,4 кВ от КТП Ч 112/400 кВА с заменой КТП | F92: 3.6 | G92: / | H92: 0.4 | I92: 2020 | J92: 2020 | K92: 11.28 | P92: 0 | R92: 0 | U92: 0 | W92: 0 | Z92: 0 | AB92: 0 | AE92: 3.6 | AF92: / | AG92: 0.4 | AJ92: 0 | AL92: 0 | AO92: 3.6 | AP92: / | AQ92: 0.4 | AR92: 0 | AS92: 0 | AT92: 0 | AU92: 9.559322034 | AV92: 0 | AW92: 9.559322034
A93: 72 | B93: Реконструкция ВЛ-0,4 кВ от КТП Ч 1701/160 кВА | F93: 2 | G93: / | H93: 0 | I93: 2020 | J93: 2020 | K93: 5.6 | P93: 0 | R93: 0 | U93: 0 | W93: 0 | Z93: 0 | AB93: 0 | AE93: 2 | AF93: / | AG93: 0 | AJ93: 0 | AL93: 0 | AO93: 2 | AP93: / | AQ93: 0 | AR93: 0 | AS93: 0 | AT93: 0 | AU93: 4.745762712 | AV93: 0 | AW93: 4.745762712
A94: 73 | B94: Реконструкция ВЛ-0,4 кВ от КТП Ч 303/400 кВА | F94: 2.4 | G94: / | H94: 0 | I94: 2020 | J94: 2020 | K94: 6.72 | P94: 0 | R94: 0 | U94: 0 | W94: 0 | Z94: 0 | AB94: 0 | AE94: 2.4 | AF94: / | AG94: 0 | AJ94: 0 | AL94: 0 | AO94: 2.4 | AP94: / | AQ94: 0 | AR94: 0 | AS94: 0 | AT94: 0 | AU94: 5.694915254 | AV94: 0 | AW94: 5.694915254
A95: 74 | B95: Реконструкция ВЛ-0,4 кВ от ЗТП Ку 1601/160 кВА с заменой трансформатора на 250 кВА | F95: 1 | G95: / | H95: 0.25 | I95: 2021 | J95: 2021 | K95: 4 | P95: 0 | R95: 0 | U95: 0 | W95: 0 | Z95: 0 | AB95: 0 | AE95: 0 | AG95: 0 | AJ95: 1 | AK95: / | AL95: 0.25 | AO95: 1 | AP95: / | AQ95: 0.25 | AR95: 0 | AS95: 0 | AT95: 0 | AU95: 0 | AV95: 3.389830508 | AW95: 3.389830508
A96: 75 | B96: Реконструкция КЛ-0,4 кВ от ЗТП Ку 1602/2х250 кВА | F96: 0.6 | G96: / | H96: 0 | I96: 2021 | J96: 2021 | K96: 2.4 | P96: 0 | R96: 0 | U96: 0 | W96: 0 | Z96: 0 | AB96: 0 | AE96: 0 | AG96: 0 | AJ96: 0.6 | AK96: / | AL96: 0 | AO96: 0.6 | AP96: / | AQ96: 0 | AR96: 0 | AS96: 0 | AT96: 0 | AU96: 0 | AV96: 2.033898305 | AW96: 2.033898305
A97: 76 | B97: Реконструкция ВКЛ-0,4 кВ от ЗТП Ку 1603/630 кВА | F97: 2.6 | G97: / | H97: 0 | I97: 2021 | J97: 2021 | K97: 8 | P97: 0 | R97: 0 | U97: 0 | W97: 0 | Z97: 0 | AB97: 0 | AE97: 0 | AG97: 0 | AJ97: 2.6 | AK97: / | AL97: 0 | AO97: 2.6 | AP97: / | AQ97: 0 | AR97: 0 | AS97: 0 | AT97: 0 | AU97: 0 | AV97: 6.779661017 | AW97: 6.779661017
A98: 77 | B98: Кинельский район | F98: 0 | G98: / | H98: 0 | I98: 0 | J98: 0 | K98: 0 | P98: 0 | R98: 0 | U98: 0 | W98: 0 | Z98: 0 | AB98: 0 | AE98: 0 | AG98: 0 | AJ98: 0 | AL98: 0 | AO98: 0 | AP98: / | AQ98: 0 | AR98: 0 | AS98: 0 | AT98: 0 | AU98: 0 | AV98: 0 | AW98: 0
A99: 78 | B99: Реконструкция электроснабжения г.о.Кинель | F99: 27.5 | H99: 0 | I99: 0 | J99: 0 | K99: 88 | P99: 27.5 | R99: 0 | AO99: 27.5 | AQ99: 0 | AR99: 74.57627119 | AW99: 74.57627119
A100: 79 | B100: Реконструкция ВЛ-0,4кВ от ТП-6 | F100: 1.87 | G100: / | H100: 0 | I100: 2017 | J100: 2017 | K100: 5.984 | P100: 1.87 | Q100: / | R100: 0 | U100: 0 | W100: 0 | Z100: 0 | AB100: 0 | AE100: 0 | AG100: 0 | AJ100: 0 | AL100: 0 | AO100: 1.87 | AP100: / | AQ100: 0 | AR100: 5.071186441 | AS100: 0 | AT100: 0 | AU100: 0 | AV100: 0 | AW100: 5.071186441
A101: 80 | B101: Реконструкция ВЛ-0,4 кВ от КТП Алк 54/250 кВА с заменой КТП на 400 кВА | F101: 1.8 | G101: / | H101: 0.4 | I101: 2017 | J101: 2017 | K101: 7.36 | P101: 1.8 | Q101: / | R101: 0.4 | U101: 0 | W101: 0 | Z101: 0 | AB101: 0 | AE101: 0 | AG101: 0 | AJ101: 0 | AL101: 0 | AO101: 1.8 | AP101: / | AQ101: 0.4 | AR101: 6.237288136 | AS101: 0 | AT101: 0 | AU101: 0 | AV101: 0 | AW101: 6.237288136
A102: 81 | B102: Реконструкция ВЛ-0,4 кВ от КТП Алк 30/160 кВА с заменой КТП на 250 кВА | F102: 1.45 | G102: / | H102: 0.4 | I102: 2017 | J102: 2017 | K102: 5.94 | P102: 1.45 | Q102: / | R102: 0.4 | U102: 0 | W102: 0 | Z102: 0 | AB102: 0 | AE102: 0 | AG102: 0 | AJ102: 0 | AL102: 0 | AO102: 1.45 | AP102: / | AQ102: 0.4 | AR102: 5.033898305 | AS102: 0 | AT102: 0 | AU102: 0 | AV102: 0 | AW102: 5.033898305
A103: 82 | B103: Реконструкция ВЛ-0,4кВ от КТП Шев 208/250 кВА | F103: 2.22 | G103: / | H103: 0 | I103: 2017 | J103: 2017 | K103: 7.104 | P103: 2.22 | Q103: / | R103: 0 | U103: 0 | W103: 0 | Z103: 0 | AB103: 0 | AE103: 0 | AG103: 0 | AJ103: 0 | AL103: 0 | AO103: 2.22 | AP103: / | AQ103: 0 | AR103: 6.020338983 | AS103: 0 | AT103: 0 | AU103: 0 | AV103: 0 | AW103: 6.020338983
A104: 83 | B104: Реконструкция ВЛ-0,4кВ от МТП Кр 903/100 кВА с заменой КТП | F104: 1.25 | G104: / | H104: 0.1 | I104: 2018 | J104: 2018 | K104: 4.7 | P104: 0 | R104: 0 | U104: 1.25 | V104: / | W104: 0.1 | Z104: 0 | AB104: 0 | AE104: 0 | AG104: 0 | AJ104: 0 | AL104: 0 | AO104: 1.25 | AP104: / | AQ104: 0.1 | AR104: 0 | AS104: 3.983050847 | AT104: 0 | AU104: 0 | AV104: 0 | AW104: 3.983050847
A105: 84 | B105: Реконструкция ВЛ-0,4кВ от МТП 704/250 кВА с заменой КТП | F105: 1 | G105: / | H105: 0.25 | I105: 2018 | J105: 2018 | K105: 4 | P105: 0 | R105: 0 | U105: 1 | V105: / | W105: 0.25 | Z105: 0 | AB105: 0 | AE105: 0 | AG105: 0 | AJ105: 0 | AL105: 0 | AO105: 1 | AP105: / | AQ105: 0.25 | AR105: 0 | AS105: 3.389830508 | AT105: 0 | AU105: 0 | AV105: 0 | AW105: 3.389830508
A106: 85 | B106: Реконструкция ВЛ-0,4кВ от КТП 210/160 кВА | F106: 1.45 | G106: / | H106: 0 | I106: 2018 | J106: 2018 | K106: 4.06 | P106: 0 | R106: 0 | U106: 1.45 | V106: / | W106: 0 | Z106: 0 | AB106: 0 | AE106: 0 | AG106: 0 | AJ106: 0 | AL106: 0 | AO106: 1.45 | AP106: / | AQ106: 0 | AR106: 0 | AS106: 3.440677966 | AT106: 0 | AU106: 0 | AV106: 0 | AW106: 3.440677966
A107: 86 | B107: Реконструкция ВЛ-0,4 кВ от КТП Алк 90/160 кВА с заменой КТП | F107: 1 | G107: / | H107: 0.16 | I107: 2019 | J107: 2019 | K107: 4 | P107: 0 | R107: 0 | U107: 0 | W107: 0 | Z107: 1 | AA107: / | AB107: 0.16 | AE107: 0 | AG107: 0 | AJ107: 0 | AL107: 0 | AO107: 1 | AP107: / | AQ107: 0.16 | AR107: 0 | AS107: 0 | AT107: 3.389830508 | AU107: 0 | AV107: 0 | AW107: 3.389830508
A108: 87 | B108: Реконструкция ВЛ-0,4 кВ от КТП Алк 91/160 кВА с заменой КТП | F108: 0.65 | G108: / | H108: 0.16 | I108: 2019 | J108: 2019 | K108: 3.02 | P108: 0 | R108: 0 | U108: 0 | W108: 0 | Z108: 0.65 | AA108: / | AB108: 0.16 | AE108: 0 | AG108: 0 | AJ108: 0 | AL108: 0 | AO108: 0.65 | AP108: / | AQ108: 0.16 | AR108: 0 | AS108: 0 | AT108: 2.559322034 | AU108: 0 | AV108: 0 | AW108: 2.559322034
A109: 88 | B109: Реконструкция ВЛ-0,4 кВ от ЗТП Ком 2007/400 кВА | F109: 2 | G109: / | H109: 0 | I109: 2019 | J109: 2019 | K109: 5.6 | P109: 0 | R109: 0 | U109: 0 | W109: 0 | Z109: 2 | AA109: / | AB109: 0 | AE109: 0 | AG109: 0 | AJ109: 0 | AL109: 0 | AO109: 2 | AP109: / | AQ109: 0 | AR109: 0 | AS109: 0 | AT109: 4.745762712 | AU109: 0 | AV109: 0 | AW109: 4.745762712
A110: 89 | B110: Реконструкция ВЛ-0,4 кВ от КТП Тур 717/160 кВА с заменой КТП | F110: 0.86 | G110: / | H110: 0.16 | I110: 2020 | J110: 2020 | K110: 3.608 | P110: 0 | R110: 0 | U110: 0 | W110: 0 | Z110: 0 | AB110: 0 | AE110: 0.86 | AF110: / | AG110: 0.16 | AJ110: 0 | AL110: 0 | AO110: 0.86 | AP110: / | AQ110: 0.16 | AR110: 0 | AS110: 0 | AT110: 0 | AU110: 3.057627119 | AV110: 0 | AW110: 3.057627119
A111: 90 | B111: Клявлинский район | F111: 0 | H111: 0 | I111: 0 | J111: 0 | K111: 0 | P111: 0 | R111: 0 | U111: 0 | W111: 0 | Z111: 0 | AB111: 0 | AE111: 0 | AG111: 0 | AJ111: 0 | AL111: 0 | AO111: 0 | AQ111: 0 | AR111: 0 | AS111: 0 | AT111: 0 | AU111: 0 | AV111: 0 | AW111: 0
A112: 91 | B112: Реконструкция элекстроснабжения ст. Клявлино | F112: 6.35 | H112: 0.9 | I112: 2017 | J112: 2017 | K112: 24.52 | P112: 6.35 | R112: 0.9 | U112: 0 | W112: 0 | Z112: 0 | AB112: 0 | AE112: 0 | AG112: 0 | AJ112: 0 | AL112: 0 | AO112: 6.35 | AP112: / | AQ112: 0.9 | AR112: 20.77966102 | AS112: 0 | AT112: 0 | AU112: 0 | AV112: 0 | AW112: 20.77966102
A113: 92 | B113: Реконструкция ВЛ-0,4кВ от КТП КЛВ 1207/250 кВА | F113: 1.5 | H113: 0 | I113: 2017 | J113: 2017 | K113: 4.8 | P113: 1.5 | R113: 0 | AO113: 1.5 | AQ113: 0 | AR113: 4.06779661 | AW113: 4.06779661
A114: 93 | B114: Реконструкция ВЛ-0,4кВ от КТП 416/100 кВА с заменой КТП | F114: 2.1 | H114: 0.1 | I114: 2017 | J114: 2017 | K114: 8.02 | P114: 2.1 | R114: 0.1 | AO114: 2.1 | AQ114: 0.1 | AR114: 6.796610169 | AW114: 6.796610169
A115: 94 | B115: Реконструкция ВЛ-0,4кВ от КТП КЛВ 421/160 кВА с заменой КТП | F115: 3.1 | G115: / | H115: 0.16 | I115: 2018 | J115: 2018 | K115: 9.88 | P115: 0 | R115: 0 | U115: 3.1 | V115: / | W115: 0.16 | Z115: 0 | AB115: 0 | AE115: 0 | AG115: 0 | AJ115: 0 | AL115: 0 | AO115: 3.1 | AP115: / | AQ115: 0.16 | AR115: 0 | AS115: 8.372881356 | AT115: 0 | AU115: 0 | AV115: 0 | AW115: 8.372881356
A116: 95 | B116: Реконструкция ВЛ-0,4кВ от КТП КЛВ 1404/160 кВА с заменой КТП | F116: 3.1 | G116: / | H116: 0.16 | I116: 2018 | J116: 2018 | K116: 9.88 | P116: 0 | R116: 0 | U116: 3.1 | V116: / | W116: 0.16 | Z116: 0 | AB116: 0 | AE116: 0 | AG116: 0 | AJ116: 0 | AL116: 0 | AO116: 3.1 | AP116: / | AQ116: 0.16 | AR116: 0 | AS116: 8.372881356 | AT116: 0 | AU116: 0 | AV116: 0 | AW116: 8.372881356
A117: 96 | B117: Реконструкция ВЛ-0,4кВ от КТП КЛВ 1412/100 кВА | F117: 1.78 | G117: / | H117: 0 | I117: 2018 | J117: 2018 | K117: 4.984 | P117: 0 | R117: 0 | U117: 1.78 | V117: / | W117: 0 | Z117: 0 | AB117: 0 | AE117: 0 | AG117: 0 | AJ117: 0 | AL117: 0 | AO117: 1.78 | AP117: / | AQ117: 0 | AR117: 0 | AS117: 4.223728814 | AT117: 0 | AU117: 0 | AV117: 0 | AW117: 4.223728814
A118: 97 | B118: Реконструкция ВЛ-0,4кВ от КТП КЛВ 1411/160 кВА | F118: 2.1 | G118: / | H118: 0 | I118: 2018 | J118: 2018 | K118: 5.88 | P118: 0 | R118: 0 | U118: 2.1 | V118: / | W118: 0 | Z118: 0 | AB118: 0 | AE118: 0 | AG118: 0 | AJ118: 0 | AL118: 0 | AO118: 2.1 | AP118: / | AQ118: 0 | AR118: 0 | AS118: 4.983050847 | AT118: 0 | AU118: 0 | AV118: 0 | AW118: 4.983050847
A119: 98 | B119: Реконструкция ВЛ-0,4кВ от КТП ЕЛЗ 401/100 кВА | F119: 0.5 | G119: / | H119: 0 | I119: 2018 | J119: 2018 | K119: 1.4 | P119: 0 | R119: 0 | U119: 0.5 | V119: / | W119: 0 | Z119: 0 | AB119: 0 | AE119: 0 | AG119: 0 | AJ119: 0 | AL119: 0 | AO119: 0.5 | AP119: / | AQ119: 0 | AR119: 0 | AS119: 1.186440678 | AT119: 0 | AU119: 0 | AV119: 0 | AW119: 1.186440678
A120: 99 | B120: Реконструкция ВЛ-0,4кВ от КТП КЛВ1407/250 кВА с заменой КТП | F120: 1.07 | G120: / | H120: 0.25 | I120: 2019 | J120: 2019 | K120: 4.196 | P120: 0 | R120: 0 | U120: 0 | W120: 0 | Z120: 1.07 | AA120: / | AB120: 0.25 | AE120: 0 | AG120: 0 | AJ120: 0 | AL120: 0 | AO120: 1.07 | AP120: / | AQ120: 0.25 | AR120: 0 | AS120: 0 | AT120: 3.555932203 | AU120: 0 | AV120: 0 | AW120: 3.555932203
A121: 100 | B121: Реконструкция ВЛ-0,4кВ от КТП КЛВ422/160 кВА с заменой КТП | F121: 1.6 | G121: / | H121: 0.16 | I121: 2019 | J121: 2019 | K121: 5.68 | P121: 0 | R121: 0 | U121: 0 | W121: 0 | Z121: 1.6 | AA121: / | AB121: 0.16 | AE121: 0 | AG121: 0 | AJ121: 0 | AL121: 0 | AO121: 1.6 | AP121: / | AQ121: 0.16 | AR121: 0 | AS121: 0 | AT121: 4.813559322 | AU121: 0 | AV121: 0 | AW121: 4.813559322
A122: 101 | B122: Реконструкция ВЛ-0,4кВ от КТП КЛВ1408/160 кВА с заменой КТП | F122: 2.3 | G122: / | H122: 0.16 | I122: 2019 | J122: 2019 | K122: 7.64 | P122: 0 | R122: 0 | U122: 0 | W122: 0 | Z122: 2.3 | AA122: / | AB122: 0.16 | AE122: 0 | AG122: 0 | AJ122: 0 | AL122: 0 | AO122: 2.3 | AP122: / | AQ122: 0.16 | AR122: 0 | AS122: 0 | AT122: 6.474576271 | AU122: 0 | AV122: 0 | AW122: 6.474576271
A123: 102 | B123: Реконструкция ВЛ-0,4кВ от КТП КЛВ1017/400 кВА с заменой КТП | F123: 1.1 | G123: / | H123: 0.4 | I123: 2019 | J123: 2019 | K123: 4.28 | P123: 0 | R123: 0 | U123: 0 | W123: 0 | Z123: 1.1 | AA123: / | AB123: 0.4 | AE123: 0 | AG123: 0 | AJ123: 0 | AL123: 0 | AO123: 1.1 | AP123: / | AQ123: 0.4 | AR123: 0 | AS123: 0 | AT123: 3.627118644 | AU123: 0 | AV123: 0 | AW123: 3.627118644
A124: 103 | B124: Реконструкция ВЛ-0,4кВ от КТП КЛВ1027/160 кВА с заменой КТП | F124: 0.81 | G124: / | H124: 0.16 | I124: 2019 | J124: 2019 | K124: 3.468 | P124: 0 | R124: 0 | U124: 0 | W124: 0 | Z124: 0.81 | AA124: / | AB124: 0.16 | AE124: 0 | AG124: 0 | AJ124: 0 | AL124: 0 | AO124: 0.81 | AP124: / | AQ124: 0.16 | AR124: 0 | AS124: 0 | AT124: 2.938983051 | AU124: 0 | AV124: 0 | AW124: 2.938983051
A125: 104 | B125: Реконструкция ВЛ-0,4кВ от КТП ЧКЛ 703/100 кВА с заменой КТП | F125: 4.8 | G125: / | H125: 0.1 | I125: 2020 | J125: 2020 | K125: 14.64 | P125: 0 | R125: 0 | U125: 0 | W125: 0 | Z125: 0 | AB125: 0 | AE125: 4.8 | AF125: / | AG125: 0.1 | AJ125: 0 | AL125: 0 | AO125: 4.8 | AP125: / | AQ125: 0.1 | AR125: 0 | AS125: 0 | AT125: 0 | AU125: 12.40677966 | AV125: 0 | AW125: 12.40677966
A126: 105 | B126: Реконструкция ВЛ-0,4кВ от КТП ЧКЛ 705/160 кВА с заменой КТП | F126: 0.65 | G126: / | H126: 0.16 | I126: 2020 | J126: 2020 | K126: 3.02 | P126: 0 | R126: 0 | U126: 0 | W126: 0 | Z126: 0 | AB126: 0 | AE126: 0.65 | AF126: / | AG126: 0.16 | AJ126: 0 | AL126: 0 | AO126: 0.65 | AP126: / | AQ126: 0.16 | AR126: 0 | AS126: 0 | AT126: 0 | AU126: 2.559322034 | AV126: 0 | AW126: 2.559322034
A127: 106 | B127: Реконструкция ВЛ-0,4кВ от КТП ЧКЛ 707/160 кВА с заменой КТП | F127: 0.98 | G127: / | H127: 0.16 | I127: 2021 | J127: 2021 | K127: 3.944 | P127: 0 | R127: 0 | U127: 0 | W127: 0 | Z127: 0 | AB127: 0 | AE127: 0 | AG127: 0 | AJ127: 0.98 | AK127: / | AL127: 0.16 | AO127: 0.98 | AP127: / | AQ127: 0.16 | AR127: 0 | AS127: 0 | AT127: 0 | AU127: 0 | AV127: 3.342372881 | AW127: 3.342372881
A128: 107 | B128: Реконструкция ВЛ-0,4кВ от КТП ЧКЛ 708/100 кВА с заменой КТП | F128: 3.03 | G128: / | H128: 0.1 | I128: 2021 | J128: 2021 | K128: 9.684 | P128: 0 | R128: 0 | U128: 0 | W128: 0 | Z128: 0 | AB128: 0 | AE128: 0 | AG128: 0 | AJ128: 3.03 | AK128: / | AL128: 0.1 | AO128: 3.03 | AP128: / | AQ128: 0.1 | AR128: 0 | AS128: 0 | AT128: 0 | AU128: 0 | AV128: 8.206779661 | AW128: 8.206779661
A129: 108 | B129: Реконструкция ВЛ-0,4кВ от КТП КЛВ 818/160 кВА с заменой КТП | F129: 1.52 | G129: / | H129: 0.16 | I129: 2021 | J129: 2021 | K129: 5.456 | P129: 0 | R129: 0 | U129: 0 | W129: 0 | Z129: 0 | AB129: 0 | AE129: 0 | AG129: 0 | AJ129: 1.52 | AK129: / | AL129: 0.16 | AO129: 1.52 | AP129: / | AQ129: 0.16 | AR129: 0 | AS129: 0 | AT129: 0 | AU129: 0 | AV129: 4.623728814 | AW129: 4.623728814
A130: 109 | B130: Кошкинский район | F130: 0 | H130: 0 | I130: 0 | J130: 0 | K130: 0 | P130: 0 | R130: 0 | U130: 0 | W130: 0 | Z130: 0 | AB130: 0 | AE130: 0 | AG130: 0 | AJ130: 0 | AL130: 0 | AO130: 0 | AQ130: 0 | AR130: 0 | AS130: 0 | AT130: 0 | AU130: 0 | AV130: 0 | AW130: 0
A131: 110 | B131: Реконструкция ВЛ-10 кВ КШК-11 | F131: 3.47 | G131: / | H131: 0 | I131: 2017 | J131: 2017 | K131: 11.104 | P131: 3.47 | Q131: / | R131: 0 | U131: 0 | W131: 0 | Z131: 0 | AB131: 0 | AE131: 0 | AG131: 0 | AJ131: 0 | AL131: 0 | AO131: 3.47 | AP131: / | AQ131: 0 | AR131: 9.410169492 | AS131: 0 | AT131: 0 | AU131: 0 | AV131: 0 | AW131: 9.410169492
A132: 111 | B132: Реконструкция ВЛ-0,4 кВ от КТП КШК 709/250 кВА с заменой КТП | F132: 1.9 | G132: / | H132: 0.25 | I132: 2017 | J132: 2017 | K132: 7.44 | P132: 1.9 | R132: 0.25 | U132: 0 | W132: 0 | Z132: 0 | AB132: 0 | AE132: 0 | AG132: 0 | AJ132: 0 | AL132: 0 | AO132: 1.9 | AP132: / | AQ132: 0.25 | AR132: 6.305084746 | AS132: 0 | AT132: 0 | AU132: 0 | AV132: 0 | AW132: 6.305084746
A133: 112 | B133: Реконструкция ВЛ-0,4 кВ от КТП КШК 1109/400 кВА с заменой КТП | F133: 2.24 | H133: 0.4 | I133: 2017 | J133: 2017 | K133: 8.768 | P133: 2.24 | R133: 0.4 | AO133: 2.24 | AQ133: 0.4 | AR133: 7.430508475 | AW133: 7.430508475
A134: 113 | B134: Реконструкция ВЛ-0,4 кВ от КТП КШК 511/100 кВА с заменой КТП на 160 кВА | F134: 2.68 | H134: 0.16 | I134: 2017 | J134: 2017 | K134: 9.876 | P134: 2.68 | R134: 0.16 | AO134: 2.68 | AQ134: 0.16 | AR134: 8.369491525 | AW134: 8.369491525
A135: 114 | B135: Реконструкция ВЛ-0,4 кВ от КТП КШК 1103/400 кВА с заменой КТП | F135: 2.03 | G135: / | H135: 0.4 | I135: 2017 | J135: 2017 | K135: 8.096 | P135: 2.03 | Q135: / | R135: 0.4 | U135: 0 | W135: 0 | Z135: 0 | AB135: 0 | AE135: 0 | AG135: 0 | AJ135: 0 | AL135: 0 | AO135: 2.03 | AP135: / | AQ135: 0.4 | AR135: 6.861016949 | AS135: 0 | AT135: 0 | AU135: 0 | AV135: 0 | AW135: 6.861016949
A136: 115 | B136: Реконструкция ВКЛ-0,4 кВ от ЗТП НАД 1102/2х400 кВА с заменой ЗТП на КТП 400 кВА | F136: 1.85 | G136: / | H136: 0.4 | I136: 2017 | J136: 2017 | K136: 7.91 | P136: 1.85 | Q136: / | R136: 0.4 | U136: 0 | W136: 0 | Z136: 0 | AB136: 0 | AE136: 0 | AG136: 0 | AJ136: 0 | AL136: 0 | AO136: 1.85 | AP136: / | AQ136: 0.4 | AR136: 6.703389831 | AS136: 0 | AT136: 0 | AU136: 0 | AV136: 0 | AW136: 6.703389831
A137: 116 | B137: Реконструкция ВЛ-0,4 кВ от ЗТП КШК102/320 кВА с заменой ЗТП на КТП 400 кВА | F137: 0.7 | G137: / | H137: 0.4 | I137: 2017 | J137: 2017 | K137: 3.84 | P137: 0.7 | Q137: / | R137: 0.4 | U137: 0 | W137: 0 | Z137: 0 | AB137: 0 | AE137: 0 | AG137: 0 | AJ137: 0 | AL137: 0 | AO137: 0.7 | AP137: / | AQ137: 0.4 | AR137: 3.254237288 | AS137: 0 | AT137: 0 | AU137: 0 | AV137: 0 | AW137: 3.254237288
A138: 117 | B138: Реконструкция ВЛ-0,4 кВ от КТП САД 709/160 кВА с заменой КТП на 250 кВА | F138: 1.3 | G138: / | H138: 0.25 | I138: 2017 | J138: 2017 | K138: 5.46 | P138: 1.3 | Q138: / | R138: 0.25 | U138: 0 | W138: 0 | Z138: 0 | AB138: 0 | AE138: 0 | AG138: 0 | AJ138: 0 | AL138: 0 | AO138: 1.3 | AP138: / | AQ138: 0.25 | AR138: 4.627118644 | AS138: 0 | AT138: 0 | AU138: 0 | AV138: 0 | AW138: 4.627118644
A139: 118 | B139: Реконструкция ВЛ-0,4 кВ от КТП КШК 109/160 с заменой ЗТП на КТП 160 кВА | F139: 0.4 | G139: / | H139: 0.16 | I139: 2018 | J139: 2018 | K139: 2.32 | P139: 0 | R139: 0 | U139: 0.4 | V139: / | W139: 0.16 | Z139: 0 | AB139: 0 | AE139: 0 | AG139: 0 | AJ139: 0 | AL139: 0 | AO139: 0.4 | AP139: / | AQ139: 0.16 | AR139: 0 | AS139: 1.966101695 | AT139: 0 | AU139: 0 | AV139: 0 | AW139: 1.966101695
A140: 119 | B140: Реконструкция ВЛ-0,4 кВ от КТП КШК 1115/250 с заменой КТП | F140: 1.2 | G140: / | H140: 0.25 | I140: 2018 | J140: 2018 | K140: 4.56 | P140: 0 | R140: 0 | U140: 1.2 | V140: / | W140: 0.25 | Z140: 0 | AB140: 0 | AE140: 0 | AG140: 0 | AJ140: 0 | AL140: 0 | AO140: 1.2 | AP140: / | AQ140: 0.25 | AR140: 0 | AS140: 3.86440678 | AT140: 0 | AU140: 0 | AV140: 0 | AW140: 3.86440678
A141: 120 | B141: Реконструкция ВЛ-0,4 кВ от КТП КШК 1113/250 кВА с заменой КТП | F141: 1.1 | G141: / | H141: 0.25 | I141: 2018 | J141: 2018 | K141: 4.28 | P141: 0 | R141: 0 | U141: 1.1 | V141: / | W141: 0.25 | Z141: 0 | AB141: 0 | AE141: 0 | AG141: 0 | AJ141: 0 | AL141: 0 | AO141: 1.1 | AP141: / | AQ141: 0.25 | AR141: 0 | AS141: 3.627118644 | AT141: 0 | AU141: 0 | AV141: 0 | AW141: 3.627118644
A142: 121 | B142: Реконструкция ВЛ-0,4 кВ от КТП КШК 504/160 с заменой КТП на 250 кВА | F142: 2.5 | G142: / | H142: 0.25 | I142: 2018 | J142: 2018 | K142: 8.2 | P142: 0 | R142: 0 | U142: 2.5 | V142: / | W142: 0.25 | Z142: 0 | AB142: 0 | AE142: 0 | AG142: 0 | AJ142: 0 | AL142: 0 | AO142: 2.5 | AP142: / | AQ142: 0.25 | AR142: 0 | AS142: 6.949152542 | AT142: 0 | AU142: 0 | AV142: 0 | AW142: 6.949152542
A143: 122 | B143: Реконструкция ВЛ-0,4 кВ от КТП КРМ 502/100 кВА с заменой КТП на 63 кВА | F143: 0.2 | G143: / | H143: 0.063 | I143: 2019 | J143: 2019 | K143: 1.76 | P143: 0 | R143: 0 | U143: 0 | W143: 0 | Z143: 0.2 | AA143: / | AB143: 0.063 | AE143: 0 | AG143: 0 | AJ143: 0 | AL143: 0 | AO143: 0.2 | AP143: / | AQ143: 0.063 | AR143: 0 | AS143: 0 | AT143: 1.491525424 | AU143: 0 | AV143: 0 | AW143: 1.491525424
A144: 123 | B144: Реконструкция ВЛ-0,4 кВ от КТП КШК 1204/63 кВА с переносом и заменой на КТП | F144: 0.2 | G144: / | H144: 0.063 | I144: 2019 | J144: 2019 | K144: 1.76 | P144: 0 | R144: 0 | U144: 0 | W144: 0 | Z144: 0.2 | AA144: / | AB144: 0.063 | AE144: 0 | AG144: 0 | AJ144: 0 | AL144: 0 | AO144: 0.2 | AP144: / | AQ144: 0.063 | AR144: 0 | AS144: 0 | AT144: 1.491525424 | AU144: 0 | AV144: 0 | AW144: 1.491525424
A145: 124 | B145: Реконструкция ВЛ-0,4 кВ от ЗТП САД 703/400 кВА с заменой КТП на 400 кВА | F145: 0.1 | G145: / | H145: 0.4 | I145: 2019 | J145: 2019 | K145: 1.48 | P145: 0 | R145: 0 | U145: 0 | W145: 0 | Z145: 0.1 | AA145: / | AB145: 0.4 | AE145: 0 | AG145: 0 | AJ145: 0 | AL145: 0 | AO145: 0.1 | AP145: / | AQ145: 0.4 | AR145: 0 | AS145: 0 | AT145: 1.254237288 | AU145: 0 | AV145: 0 | AW145: 1.254237288
A146: 125 | B146: Реконструкция ВЛ-0,4 кВ от КТП НБК 117/160 кВА с заменой КТП на 63 кВА | F146: 0.5 | G146: / | H146: 0.063 | I146: 2019 | J146: 2019 | K146: 2.6 | P146: 0 | R146: 0 | U146: 0 | W146: 0 | Z146: 0.5 | AA146: / | AB146: 0.063 | AE146: 0 | AG146: 0 | AJ146: 0 | AL146: 0 | AO146: 0.5 | AP146: / | AQ146: 0.063 | AR146: 0 | AS146: 0 | AT146: 2.203389831 | AU146: 0 | AV146: 0 | AW146: 2.203389831
A147: 126 | B147: Реконструкция ВЛ-0,4 кВ от ЗТП КШК 1301/400*2 с заменой ЗТП на КТП 400*2 кВА | F147: 0.75 | G147: / | H147: 0.8 | I147: 2020 | J147: 2020 | K147: 3.3 | P147: 0 | R147: 0 | U147: 0 | W147: 0 | Z147: 0 | AB147: 0 | AE147: 0.75 | AF147: / | AG147: 0.8 | AJ147: 0 | AL147: 0 | AO147: 0.75 | AP147: / | AQ147: 0.8 | AR147: 0 | AS147: 0 | AT147: 0 | AU147: 2.796610169 | AV147: 0 | AW147: 2.796610169
A148: 127 | B148: Реконструкция ВЛ-0,4 кВ от КТП КШК 506/250 кВА с заменой КТП | F148: 2.7 | G148: / | H148: 0.25 | I148: 2021 | J148: 2021 | K148: 8.76 | P148: 0 | R148: 0 | U148: 0 | W148: 0 | Z148: 0 | AB148: 0 | AE148: 0 | AG148: 0 | AJ148: 2.7 | AK148: / | AL148: 0.25 | AO148: 2.7 | AP148: / | AQ148: 0.25 | AR148: 0 | AS148: 0 | AT148: 0 | AU148: 0 | AV148: 7.423728814 | AW148: 7.423728814
A149: 128 | B149: Реконструкция ВЛ-0,4 кВ от КТП КШК 908/100 кВА с заменой КТП на 250 кВА | F149: 0.2 | G149: / | H149: 0.25 | I149: 2021 | J149: 2021 | K149: 1.76 | P149: 0 | R149: 0 | U149: 0 | W149: 0 | Z149: 0 | AB149: 0 | AE149: 0 | AG149: 0 | AJ149: 0.2 | AK149: / | AL149: 0.25 | AO149: 0.2 | AP149: / | AQ149: 0.25 | AR149: 0 | AS149: 0 | AT149: 0 | AU149: 0 | AV149: 1.491525424 | AW149: 1.491525424
A150: 129 | B150: Красноармейский район | F150: 0 | H150: 0 | I150: 0 | J150: 0 | K150: 0 | P150: 0 | R150: 0 | U150: 0 | W150: 0 | Z150: 0 | AB150: 0 | AE150: 0 | AG150: 0 | AJ150: 0 | AL150: 0 | AO150: 0 | AQ150: 0 | AR150: 0 | AS150: 0 | AT150: 0 | AU150: 0 | AV150: 0 | AW150: 0
A151: 130 | B151: Реконструкция ВЛ-10 кВ Ф-1 ПС В.Гай | F151: 1.2 | G151: / | H151: 0 | I151: 2017 | J151: 2017 | K151: 3.84 | P151: 1.2 | Q151: / | R151: 0 | U151: 0 | W151: 0 | Z151: 0 | AB151: 0 | AE151: 0 | AG151: 0 | AJ151: 0 | AL151: 0 | AO151: 1.2 | AP151: / | AQ151: 0 | AR151: 3.254237288 | AS151: 0 | AT151: 0 | AU151: 0 | AV151: 0 | AW151: 3.254237288
A152: 131 | B152: Реконструкция ВЛ-10 кВ Ф-1 ПС Колдыбань | F152: 0.21 | G152: / | H152: 0 | I152: 2018 | J152: 2018 | K152: 0.588 | P152: 0 | R152: 0 | U152: 0.21 | V152: / | W152: 0 | Z152: 0 | AB152: 0 | AE152: 0 | AG152: 0 | AJ152: 0 | AL152: 0 | AO152: 0.21 | AP152: / | AQ152: 0 | AR152: 0 | AS152: 0.4983050847 | AT152: 0 | AU152: 0 | AV152: 0 | AW152: 0.4983050847
A153: 132 | B153: Реконструкция ВЛ-10 кВ Ф-2 ПС В.Гай | F153: 0.3 | G153: / | H153: 0 | I153: 2018 | J153: 2018 | K153: 0.84 | P153: 0 | R153: 0 | U153: 0.3 | V153: / | W153: 0 | Z153: 0 | AB153: 0 | AE153: 0 | AG153: 0 | AJ153: 0 | AL153: 0 | AO153: 0.3 | AP153: / | AQ153: 0 | AR153: 0 | AS153: 0.7118644068 | AT153: 0 | AU153: 0 | AV153: 0 | AW153: 0.7118644068
A154: 133 | B154: Красноярский район | F154: 0 | G154: / | H154: 0 | I154: 0 | J154: 0 | K154: 0 | P154: 0 | R154: 0 | U154: 0 | W154: 0 | Z154: 0 | AB154: 0 | AE154: 0 | AG154: 0 | AJ154: 0 | AL154: 0 | AO154: 0 | AP154: / | AQ154: 0 | AR154: 0 | AS154: 0 | AT154: 0 | AU154: 0 | AV154: 0 | AW154: 0
A155: 134 | B155: Реконструкция ВЛ-6 кВ в п. Новосемейкино | F155: 0.3 | H155: 0 | I155: 2017 | J155: 2017 | K155: 2 | P155: 0.3 | R155: 0 | U155: 0 | W155: 0 | Z155: 0 | AB155: 0 | AE155: 0 | AG155: 0 | AJ155: 0 | AL155: 0 | AO155: 0.3 | AP155: / | AQ155: 0 | AR155: 1.694915254 | AS155: 0 | AT155: 0 | AU155: 0 | AV155: 0 | AW155: 1.694915254
A156: 135 | B156: Реконструкция Ф Кур-21 | F156: 2.5 | H156: 0 | I156: 2017 | J156: 2017 | K156: 17.7 | P156: 2.5 | R156: 0 | U156: 0 | W156: 0 | Z156: 0 | AB156: 0 | AE156: 0 | AG156: 0 | AJ156: 0 | AL156: 0 | AO156: 2.5 | AP156: / | AQ156: 0 | AR156: 15 | AS156: 0 | AT156: 0 | AU156: 0 | AV156: 0 | AW156: 15
A157: 136 | B157: Реконструкция ВЛ-0,4 кВ от КТП Кяр 614/250 кВА и Кяр 613/250 кВА с заменой КТП на 400 кВА | F157: 7 | G157: / | H157: 0.8 | I157: 2017 | J157: 2017 | K157: 25.6 | P157: 7 | Q157: / | R157: 0.8 | U157: 0 | W157: 0 | Z157: 0 | AE157: 0 | AG157: 0 | AJ157: 0 | AL157: 0 | AO157: 7 | AP157: / | AQ157: 0.8 | AR157: 21.69491525 | AS157: 0 | AT157: 0 | AU157: 0 | AV157: 0 | AW157: 21.69491525
A158: 137 | B158: Реконструкция ВЛ-0,4 кВ от КТП Кяр 613/250 кВА с заменой КТП на 400 кВА | F158: 2.9 | H158: 0.4 | I158: 2017 | J158: 2017 | K158: 10.88 | P158: 2.9 | R158: 0.4 | AO158: 2.9 | AQ158: 0.4 | AR158: 9.220338983 | AW158: 9.220338983
A159: 138 | B159: Реконструкция ВЛ-0,4 кВ от КТП Кяр 314/400 кВА с заменой КТП | F159: 3 | G159: / | H159: 0.4 | I159: 2017 | J159: 2017 | K159: 11.2 | P159: 3 | Q159: / | R159: 0.4 | U159: 0 | W159: 0 | Z159: 0 | AB159: 0 | AE159: 0 | AG159: 0 | AJ159: 0 | AL159: 0 | AO159: 3 | AP159: / | AQ159: 0.4 | AR159: 9.491525424 | AS159: 0 | AT159: 0 | AU159: 0 | AV159: 0 | AW159: 9.491525424
A160: 139 | B160: Реконструкция ВЛ-0,4 кВ от КТП НБ 702/250 кВА с заменой КТП на 400 кВА | F160: 5 | G160: / | H160: 0.4 | I160: 2017 | J160: 2017 | K160: 17.6 | P160: 5 | Q160: / | R160: 0.4 | U160: 0 | W160: 0 | Z160: 0 | AB160: 0 | AE160: 0 | AG160: 0 | AJ160: 0 | AL160: 0 | AO160: 5 | AP160: / | AQ160: 0.4 | AR160: 14.91525424 | AS160: 0 | AT160: 0 | AU160: 0 | AV160: 0 | AW160: 14.91525424
A161: 140 | B161: Реконструкция ВЛ-0,4 кВ от КТП РЦ 1101/250 кВА с заменой КТП на 400 кВА и установкой дополнительной КТП 250 кВА | F161: 6 | G161: / | H161: 0.65 | I161: 2018 | J161: 2018 | K161: 19.2 | P161: 0 | R161: 0 | U161: 6 | V161: / | W161: 0.65 | Z161: 0 | AB161: 0 | AE161: 0 | AG161: 0 | AJ161: 0 | AL161: 0 | AO161: 6 | AP161: / | AQ161: 0.65 | AR161: 0 | AS161: 16.27118644 | AT161: 0 | AU161: 0 | AV161: 0 | AW161: 16.27118644
A162: 141 | B162: Реконструкция ВЛ-0,4 кВ от КТП НБ 1604/160 кВА с заменой КТП на 250 кВА | F162: 2 | G162: / | H162: 0.25 | I162: 2018 | J162: 2018 | K162: 6.8 | P162: 0 | R162: 0 | U162: 2 | V162: / | W162: 0.25 | Z162: 0 | AB162: 0 | AE162: 0 | AG162: 0 | AJ162: 0 | AL162: 0 | AO162: 2 | AP162: / | AQ162: 0.25 | AR162: 0 | AS162: 5.762711864 | AT162: 0 | AU162: 0 | AV162: 0 | AW162: 5.762711864
A163: 142 | B163: Реконструкция ВЛ-0,4 кВ от КТП Кяр 407/160 кВА с заменой КТП на 250 кВА | F163: 2 | G163: / | H163: 0.25 | I163: 2018 | J163: 2018 | K163: 6.8 | P163: 0 | R163: 0 | U163: 2 | V163: / | W163: 0.25 | Z163: 0 | AB163: 0 | AE163: 0 | AG163: 0 | AJ163: 0 | AL163: 0 | AO163: 2 | AP163: / | AQ163: 0.25 | AR163: 0 | AS163: 5.762711864 | AT163: 0 | AU163: 0 | AV163: 0 | AW163: 5.762711864
A164: 143 | B164: Реконструкция ВЛ-0,4 кВ от КТП РЦ 1113/320 кВА с заменой КТП на 400 кВА | F164: 3 | G164: / | H164: 0.4 | I164: 2018 | J164: 2018 | K164: 9.6 | P164: 0 | R164: 0 | U164: 3 | V164: / | W164: 0.4 | Z164: 0 | AB164: 0 | AE164: 0 | AG164: 0 | AJ164: 0 | AL164: 0 | AO164: 3 | AP164: / | AQ164: 0.4 | AR164: 0 | AS164: 8.13559322 | AT164: 0 | AU164: 0 | AV164: 0 | AW164: 8.13559322
A165: 144 | B165: Реконструкция ВЛ-0,4 кВ от ЗТП ДСК 6034/2х320 кВА | F165: 2 | G165: / | H165: 0 | I165: 2019 | J165: 2019 | K165: 5.6 | P165: 0 | R165: 0 | U165: 0 | W165: 0 | Z165: 2 | AA165: / | AB165: 0 | AE165: 0 | AG165: 0 | AJ165: 0 | AL165: 0 | AO165: 2 | AP165: / | AQ165: 0 | AR165: 0 | AS165: 0 | AT165: 4.745762712 | AU165: 0 | AV165: 0 | AW165: 4.745762712
A166: 145 | B166: Реконструкция ВЛ-0,4 кВ от КТП НБ 701/100 кВА с заменой КТП на 160 кВА | F166: 2 | G166: / | H166: 0.16 | I166: 2019 | J166: 2019 | K166: 6.8 | P166: 0 | R166: 0 | U166: 0 | W166: 0 | Z166: 2 | AA166: / | AB166: 0.16 | AE166: 0 | AG166: 0 | AJ166: 0 | AL166: 0 | AO166: 2 | AP166: / | AQ166: 0.16 | AR166: 0 | AS166: 0 | AT166: 5.762711864 | AU166: 0 | AV166: 0 | AW166: 5.762711864
A167: 146 | B167: Реконструкция ВЛ-0,4 кВ от КТП РЦ 3101/2х400 кВА с заменой КТП на 630 кВА и установкой дополнительной КТП 250 кВА | F167: 3 | G167: / | H167: 0.88 | I167: 2019 | J167: 2019 | K167: 11 | P167: 0 | R167: 0 | U167: 0 | W167: 0 | Z167: 3 | AA167: / | AB167: 0.88 | AE167: 0 | AG167: 0 | AJ167: 0 | AL167: 0 | AO167: 3 | AP167: / | AQ167: 0.88 | AR167: 0 | AS167: 0 | AT167: 9.322033898 | AU167: 0 | AV167: 0 | AW167: 9.322033898
A168: 147 | B168: Реконструкция ВЛ-0,4 кВ от КТП НБ 714/250 кВА с заменой КТП | F168: 2 | G168: / | H168: 0.25 | I168: 2020 | J168: 2020 | K168: 6.8 | P168: 0 | R168: 0 | U168: 0 | W168: 0 | Z168: 0 | AB168: 0 | AE168: 2 | AF168: / | AG168: 0.25 | AJ168: 0 | AL168: 0 | AO168: 2 | AP168: / | AQ168: 0.25 | AR168: 0 | AS168: 0 | AT168: 0 | AU168: 5.762711864 | AV168: 0 | AW168: 5.762711864
A169: 148 | B169: Реконструкция ВЛ-0,4 кВ от КТП Рак 802/160 кВА с заменой КТП на 250 кВА | F169: 3 | G169: / | H169: 0.25 | I169: 2021 | J169: 2021 | K169: 9.6 | P169: 0 | R169: 0 | U169: 0 | W169: 0 | Z169: 0 | AB169: 0 | AE169: 0 | AG169: 0 | AJ169: 3 | AK169: / | AL169: 0.25 | AO169: 3 | AP169: / | AQ169: 0.25 | AR169: 0 | AS169: 0 | AT169: 0 | AU169: 0 | AV169: 8.13559322 | AW169: 8.13559322
A170: 149 | B170: Пестравский район | F170: 0 | H170: 0 | I170: 0 | J170: 0 | K170: 0 | P170: 0 | R170: 0 | U170: 0 | W170: 0 | Z170: 0 | AB170: 0 | AE170: 0 | AG170: 0 | AJ170: 0 | AL170: 0 | AO170: 0 | AQ170: 0 | AR170: 0 | AS170: 0 | AT170: 0 | AU170: 0 | AV170: 0 | AW170: 0
A171: 150 | B171: Реконструкция ВЛ-10 кВ Ф-8 ПС Пестравка | F171: 12.6 | G171: / | H171: 0 | I171: 2017 | J171: 2017 | K171: 40.32 | P171: 12.6 | Q171: / | R171: 0 | U171: 0 | W171: 0 | Z171: 0 | AB171: 0 | AE171: 0 | AG171: 0 | AJ171: 0 | AL171: 0 | AO171: 12.6 | AP171: / | AQ171: 0 | AR171: 34.16949153 | AS171: 0 | AT171: 0 | AU171: 0 | AV171: 0 | AW171: 34.16949153
A172: 151 | B172: Реконструкция ВЛ-0,4 кВ от КТП 420/160 кВА с заменой КТП | F172: 1.8 | G172: / | H172: 0.16 | I172: 2018 | J172: 2018 | K172: 6.24 | P172: 0 | R172: 0 | U172: 1.8 | V172: / | W172: 0.16 | Z172: 0 | AB172: 0 | AE172: 0 | AG172: 0 | AJ172: 0 | AL172: 0 | AO172: 1.8 | AP172: / | AQ172: 0.16 | AR172: 0 | AS172: 5.288135593 | AT172: 0 | AU172: 0 | AV172: 0 | AW172: 5.288135593
A173: 152 | B173: Реконструкция ВЛ-0,4 кВ от КТП 507/160 кВА с заменой КТП на 250 кВА | F173: 2.9 | G173: / | H173: 0.25 | I173: 2018 | J173: 2018 | K173: 9.32 | P173: 0 | R173: 0 | U173: 2.9 | V173: / | W173: 0.25 | Z173: 0 | AB173: 0 | AE173: 0 | AG173: 0 | AJ173: 0 | AL173: 0 | AO173: 2.9 | AP173: / | AQ173: 0.25 | AR173: 0 | AS173: 7.898305085 | AT173: 0 | AU173: 0 | AV173: 0 | AW173: 7.898305085
A174: 153 | B174: Реконструкция ВЛ-0,4 кВ от КТП 509/160 кВА с заменой КТП на 250 кВА | F174: 4.5 | G174: / | H174: 0.25 | I174: 2019 | J174: 2019 | K174: 13.8 | P174: 0 | R174: 0 | U174: 0 | W174: 0 | Z174: 4.5 | AA174: / | AB174: 0.25 | AE174: 0 | AG174: 0 | AJ174: 0 | AL174: 0 | AO174: 4.5 | AP174: / | AQ174: 0.25 | AR174: 0 | AS174: 0 | AT174: 11.69491525 | AU174: 0 | AV174: 0 | AW174: 11.69491525
A175: 154 | B175: Реконструкция ВЛ-0,4 кВ от КТП Мт 102/250 кВА с заменой КТП | F175: 0.8 | G175: / | H175: 0.25 | I175: 2019 | J175: 2019 | K175: 3.44 | P175: 0 | R175: 0 | U175: 0 | W175: 0 | Z175: 0.8 | AA175: / | AB175: 0.25 | AE175: 0 | AG175: 0 | AJ175: 0 | AL175: 0 | AO175: 0.8 | AP175: / | AQ175: 0.25 | AR175: 0 | AS175: 0 | AT175: 2.915254237 | AU175: 0 | AV175: 0 | AW175: 2.915254237
A176: 155 | B176: Реконструкция ВЛ-0,4 кВ от КТП 508/250 кВА с заменой КТП на 400 кВА | F176: 3.2 | G176: / | H176: 0.4 | I176: 2020 | J176: 2020 | K176: 10.16 | P176: 0 | R176: 0 | U176: 0 | W176: 0 | Z176: 0 | AB176: 0 | AE176: 3.2 | AF176: / | AG176: 0.4 | AJ176: 0 | AL176: 0 | AO176: 3.2 | AP176: / | AQ176: 0.4 | AR176: 0 | AS176: 0 | AT176: 0 | AU176: 8.610169492 | AV176: 0 | AW176: 8.610169492
A177: 156 | B177: Реконструкция ВЛ-0,4 кВ от КТП Мр 512/160 кВА с заменой КТП на 400 кВА | F177: 0.8 | G177: / | H177: 0.4 | I177: 2021 | J177: 2021 | K177: 3.44 | P177: 0 | R177: 0 | U177: 0 | W177: 0 | Z177: 0 | AB177: 0 | AE177: 0 | AG177: 0 | AJ177: 0.8 | AL177: 0.4 | AO177: 0.8 | AQ177: 0.4 | AR177: 0 | AS177: 0 | AT177: 0 | AU177: 0 | AV177: 2.915254237 | AW177: 2.915254237
A178: 157 | B178: Приволжский район | F178: 0 | H178: 0 | I178: 0 | J178: 0 | K178: 0 | P178: 0 | R178: 0 | U178: 0 | W178: 0 | Z178: 0 | AB178: 0 | AE178: 0 | AG178: 0 | AJ178: 0 | AL178: 0 | AO178: 0 | AQ178: 0 | AR178: 0 | AS178: 0 | AT178: 0 | AU178: 0 | AV178: 0 | AW178: 0
A179: 158 | B179: Реконструкция ВЛ-0,4 кВ от ЗТП Пр 222/160 кВА с заменой ЗТП на КТП 250 кВА | F179: 1.65 | G179: / | H179: 0.25 | I179: 2017 | J179: 2017 | K179: 6.58 | P179: 1.65 | Q179: / | R179: 0.25 | U179: 0 | W179: 0 | Z179: 0 | AB179: 0 | AE179: 0 | AG179: 0 | AJ179: 0 | AL179: 0 | AO179: 1.65 | AP179: / | AQ179: 0.25 | AR179: 5.576271186 | AS179: 0 | AT179: 0 | AU179: 0 | AV179: 0 | AW179: 5.576271186
A180: 159 | B180: Реконструкция ВЛ-0,4 кВ от КТП Пр 202/250 кВА с заменой КТП | F180: 1.45 | H180: 0.25 | I180: 2017 | J180: 2017 | K180: 5.94 | P180: 1.45 | R180: 0.25 | AO180: 1.45 | AQ180: 0.25 | AR180: 5.033898305 | AW180: 5.033898305
A181: 160 | B181: Реконструкция ВЛ-0,4 кВ от КТП Пр 205/250 кВА с заменой КТП | F181: 2.61 | G181: / | H181: 0.25 | I181: 2017 | J181: 2017 | K181: 9.652 | P181: 2.61 | Q181: / | R181: 0.25 | U181: 0 | W181: 0 | Z181: 0 | AB181: 0 | AE181: 0 | AG181: 0 | AJ181: 0 | AL181: 0 | AO181: 2.61 | AP181: / | AQ181: 0.25 | AR181: 8.179661017 | AS181: 0 | AT181: 0 | AU181: 0 | AV181: 0 | AW181: 8.179661017
A182: 161 | B182: Реконструкция ВЛ-0,4 кВ от ЗТП Об 1208/160 кВА с заменой КТП | F182: 1.43 | G182: / | H182: 0.16 | I182: 2018 | J182: 2018 | K182: 5.204 | P182: 0 | R182: 0 | U182: 1.43 | V182: / | W182: 0.16 | Z182: 0 | AB182: 0 | AE182: 0 | AG182: 0 | AJ182: 0 | AL182: 0 | AO182: 1.43 | AP182: / | AQ182: 0.16 | AR182: 0 | AS182: 4.410169492 | AT182: 0 | AU182: 0 | AV182: 0 | AW182: 4.410169492
A183: 162 | B183: Реконструкция ВЛ-0,4 кВ от КТП Ек 111/100 кВА с заменой КТП | F183: 0.9 | G183: / | H183: 0.1 | I183: 2018 | J183: 2018 | K183: 3.72 | P183: 0 | R183: 0 | U183: 0.9 | V183: / | W183: 0.1 | Z183: 0 | AB183: 0 | AE183: 0 | AG183: 0 | AJ183: 0 | AL183: 0 | AO183: 0.9 | AP183: / | AQ183: 0.1 | AR183: 0 | AS183: 3.152542373 | AT183: 0 | AU183: 0 | AV183: 0 | AW183: 3.152542373
A184: 163 | B184: Реконструкция ВЛ-0,4 кВ от КТП Нсп 502/160 кВА с заменой КТП | F184: 1.08 | G184: / | H184: 0.16 | I184: 2019 | J184: 2019 | K184: 4.224 | P184: 0 | R184: 0 | U184: 0 | W184: 0 | Z184: 1.08 | AA184: / | AB184: 0.16 | AE184: 0 | AG184: 0 | AJ184: 0 | AL184: 0 | AO184: 1.08 | AP184: / | AQ184: 0.16 | AR184: 0 | AS184: 0 | AT184: 3.579661017 | AU184: 0 | AV184: 0 | AW184: 3.579661017
A185: 164 | B185: Реконструкция ВЛ-0,4 кВ от ЗТП Пр 222/160 кВА с заменой КТП | F185: 1.64 | G185: / | H185: 0.16 | I185: 2019 | J185: 2019 | K185: 5.792 | P185: 0 | R185: 0 | U185: 0 | W185: 0 | Z185: 1.64 | AA185: / | AB185: 0.16 | AE185: 0 | AG185: 0 | AJ185: 0 | AL185: 0 | AO185: 1.64 | AP185: / | AQ185: 0.16 | AR185: 0 | AS185: 0 | AT185: 4.908474576 | AU185: 0 | AV185: 0 | AW185: 4.908474576
A186: 165 | B186: Реконструкция ВЛ-0,4 кВ от КТП Об 1213-813/2х250 кВА с заменой КТП | F186: 1.2 | G186: / | H186: 0.5 | I186: 2020 | J186: 2020 | K186: 4.56 | P186: 0 | R186: 0 | U186: 0 | W186: 0 | Z186: 0 | AB186: 0 | AE186: 1.2 | AF186: / | AG186: 0.5 | AJ186: 0 | AL186: 0 | AO186: 1.2 | AP186: / | AQ186: 0.5 | AR186: 0 | AS186: 0 | AT186: 0 | AU186: 3.86440678 | AV186: 0 | AW186: 3.86440678
A187: 166 | B187: Реконструкция ВЛ-0,4 кВ от ЗТП Об 1211-811/250 кВА с заменой КТП | F187: 2.34 | G187: / | H187: 0.25 | I187: 2021 | J187: 2021 | K187: 7.752 | P187: 0 | R187: 0 | U187: 0 | W187: 0 | Z187: 0 | AB187: 0 | AE187: 0 | AG187: 0 | AJ187: 2.34 | AK187: / | AL187: 0.25 | AO187: 2.34 | AP187: / | AQ187: 0.25 | AR187: 0 | AS187: 0 | AT187: 0 | AU187: 0 | AV187: 6.569491525 | AW187: 6.569491525
A188: 167 | B188: г.Самара | F188: 0 | H188: 0 | I188: 0 | J188: 0 | K188: 0 | P188: 0 | R188: 0 | U188: 0 | W188: 0 | Z188: 0 | AB188: 0 | AE188: 0 | AG188: 0 | AJ188: 0 | AL188: 0 | AO188: 0 | AP188: / | AQ188: 0 | AR188: 0 | AS188: 0 | AT188: 0 | AU188: 0 | AV188: 0 | AW188: 0
A189: 168 | B189: Электроснабжение инфраструктуры объектов электросетевого хозяйства в г.о. Самара (в районе радиоцентра №3), в т.ч. I, II, III, IV этап | F189: 11.08 | H189: 9.26 | I189: 2017 | J189: 2017 | K189: 454.114 | P189: 11.08 | R189: 9.26 | AO189: 11.08 | AQ189: 9.26 | AR189: 384.8423729 | AW189: 384.8423729
A190: 169 | B190: Реконструкция КЛ-10 кВ от ТП 6096 до КТПН 6036 с переводом ТП 6124 на 10 кВ" г.о. Самара ул. Ташкентская, Московское шоссе | F190: 1.05 | H190: 0 | I190: 2017 | J190: 2017 | K190: 65.524 | P190: 1.05 | R190: 0 | AO190: 1.05 | AQ190: 0 | AR190: 55.52881356 | AW190: 55.52881356
A191: 170 | B191: Электроснабжение объектов в районе улиц Ташкентская, Демократическая, Московское шоссе г.о. Самара | F191: 16.14 | H191: 0 | I191: 2017 | J191: 2017 | K191: 102.3 | P191: 16.14 | R191: 0 | AO191: 16.14 | AQ191: 0 | AR191: 86.69491525 | AW191: 86.69491525
A192: 171 | B192: Реконструкция ТП-1875 г.о. Самара | F192: 0 | H192: 1.26 | I192: 2017 | J192: 2017 | K192: 8.95219753 | P192: 0 | R192: 1.26 | AO192: 0 | AQ192: 1.26 | AR192: 7.586608076 | AW192: 7.586608076
A193: 172 | B193: Реконструкция ТП-2092 г.о. Самара | F193: 0 | H193: 1.26 | I193: 2017 | J193: 2017 | K193: 3.56037425 | P193: 0 | R193: 1.26 | AO193: 0 | AQ193: 1.26 | AR193: 3.017266314 | AW193: 3.017266314
A194: 173 | B194: Реконструкция РП-129 г.о. Самара | F194: 0 | H194: 0 | I194: 2017 | J194: 2017 | K194: 35.94718825 | P194: 0 | R194: 0 | AO194: 0 | AQ194: 0 | AR194: 30.46371886 | AW194: 30.46371886
A195: 174 | B195: Реконструкция ТП-4641 г.о. Самара | F195: 0 | H195: 0 | I195: 2017 | J195: 2017 | K195: 1.53760184 | P195: 0 | R195: 0 | AO195: 0 | AQ195: 0 | AR195: 1.303052407 | AW195: 1.303052407
A196: 175 | B196: Реконструкция ТП-2522 г.о. Самара | F196: 0 | H196: 1.26 | I196: 2017 | J196: 2017 | K196: 13.42716026 | P196: 0 | R196: 1.26 | AO196: 0 | AQ196: 1.26 | AR196: 11.37894937 | AW196: 11.37894937
A197: 176 | B197: Реконструкция КТП-3058 с заменой на ГКТП 400/10,5/0,4 кВ г.о. Самара | F197: 0 | H197: 0.4 | I197: 2017 | J197: 2017 | K197: 6.5628128 | P197: 0 | R197: 0.4 | AO197: 0 | AQ197: 0.4 | AR197: 5.561705763 | AW197: 5.561705763
A198: 177 | B198: Реконструкция ТП-1440 г.о. Самара | F198: 0 | H198: 2 | I198: 2017 | J198: 2017 | K198: 3.05648469 | P198: 0 | R198: 2 | AO198: 0 | AQ198: 2 | AR198: 2.590241263 | AW198: 2.590241263
A199: 178 | B199: Энергоснабжение электросетевого комплекса по ул. Мориса Тореза г.о. Самара | F199: 0.1 | H199: 0 | I199: 2017 | J199: 2017 | K199: 0.6 | P199: 0.1 | R199: 0 | AO199: 0.1 | AQ199: 0 | AR199: 0.5084745763 | AW199: 0.5084745763
A200: 179 | B200: Энергоснабжение электросетевого комплекса по ул. Мяги г.о. Самара | F200: 0.23 | H200: 0 | I200: 2017 | J200: 2017 | K200: 1.7 | P200: 0.23 | R200: 0 | AO200: 0.23 | AQ200: 0 | AR200: 1.440677966 | AW200: 1.440677966
A201: 180 | B201: Энергоснабжение электросетевого комплексса по ул. Партизанская г.о. Самара | F201: 0.3 | H201: 0 | I201: 2017 | J201: 2017 | K201: 2.2 | P201: 0.3 | R201: 0 | AO201: 0.3 | AQ201: 0 | AR201: 1.86440678 | AW201: 1.86440678
A202: 181 | B202: Реконструкция электроснабжения г.о.Самара | F202: 11.8 | H202: 0 | I202: 2017 | J202: 2017 | K202: 70.8 | P202: 11.8 | R202: 0 | AO202: 11.8 | AQ202: 0 | AR202: 60 | AW202: 60
A203: 182 | B203: Реконструкция сетей в Ленинском р-не г.о. Самара | F203: 2.5 | H203: 2 | I203: 2017 | J203: 2017 | K203: 82.6 | P203: 2.5 | R203: 2 | AO203: 2.5 | AQ203: 2 | AR203: 70 | AW203: 70
... 124 more rows

Sheet приложение 1.3 (hidden)
BJ2: Приложение № 1.3
BI3: к приказу Минэнерго России
BI4: от «24» марта 2010 г. № 114
BH7: Утверждаю
BG8: Генеральный директор АО " ССК"
BF9: Мухаметшин В.С.
BG11: «___»______________ 2016 года
BG12: М.П.
A13: Прогноз ввода/вывода объектов АО "Самарская сетевая компания" на 2017 - 2021 г.г.
A15: № | B15: Наименование объекта | C15: Ввод мощностей* | I15: Вывод мощностей | AA15: Первоначальная стоимость вводимых основных средств (Без НДС)** | AB15: Ввод основных средств
AB16: План 2017 года | AQ16: План 2018 года | AT16: План 2019 года | AW16: План 2020 года | AZ16: План 2021 года | BC16: Итого | BF16: План 2017 года | BK16: План 2018 года | BL16: План 2019 года | BM16: План 2020 года | BN16: План 2021 года | BO16: Итого без НДС
C17: МВт/км/МВА | I17: км/МВА | AB17: I кв. | AE17: II кв. | AH17: III кв. | AK17: IV кв. | AN17: итого | BF17: I кв. | BG17: II кв. | BH17: III кв. | BI17: IV кв. | BJ17: итого
C18: 2017 | D18: 2018 | E18: 2019 | F18: 2020 | G18: 2021 | H18: итого | I18: 2017 | L18: 2018 | O18: 2019 | R18: 2020 | U18: 2021 | X18: итого | AA18: млн. руб. | AB18: км/МВА | BF18: млн. руб.
A19: 1 | B19: 2 | C19: 3 | D19: 4 | E19: 5 | F19: 6 | G19: 7 | H19: 8 | I19: 9 | L19: 10 | O19: 11 | R19: 12 | U19: 13 | X19: 14 | AA19: 15 | AB19: 16 | AE19: 17 | AH19: 18 | AK19: 19 | AN19: 20 | AQ19: 21 | AT19: 22 | AW19: 23 | AZ19: 24 | BC19: 25 | BF19: 26 | BG19: 27 | BH19: 28 | BI19: 29 | BJ19: 30 | BK19: 31 | BL19: 32 | BM19: 33 | BN19: 34 | BO19: 35
B20: ВСЕГО | I20: =I21+I290 -> 327.8243333 | J20: / | K20: =K21+K290 -> 27.69 | L20: =L21+L290 -> 124.02 | M20: / | N20: =N21+N290 -> 47.25 | O20: =O21+O290 -> 95.57 | P20: / | Q20: =Q21+Q290 -> 48.073 | R20: =R21+R290 -> 93.935 | S20: / | T20: =T21+T290 -> 4.79 | U20: =U21+U290 -> 31.92 | V20: / | W20: =W21+W290 -> 2.63 | X20: =X21+X290 -> 673.2693333 | Y20: / | Z20: =Z21+Z290 -> 130.433 | AA20: =BO20 -> 15750.9925 | AK20: =AK21+AK290 -> 364.1743333 | AL20: / | AM20: =AM21+AM290 -> 47.4 | AN20: =AN21+AN290 -> 364.1743333 | AO20: / | AP20: =AP21+AP290 -> 47.4 | AQ20: =AQ21+AQ290 -> 447.91 | AR20: / | AS20: =AS21+AS290 -> 93.28 | AT20: =AT21+AT290 -> 398.96 | AU20: / | AV20: =AV21+AV290 -> 188.369 | AW20: =AW21+AW290 -> 371.545 | AX20: / | AY20: =AY21+AY290 -> 111.07 | AZ20: =AZ21+AZ290 -> 383.29 | BA20: / | BB20: =BB21+BB290 -> 133.39 | BC20: =BC21+BC290 -> 1965.879333 | BD20: / | BE20: =BE21+BE290 -> 573.509 | BF20: 0 | BG20: 340.2519969 | BH20: 793.921326 | BI20: 1134.173323 | BJ20: 2268.346646 | BK20: 3173.505424 | BL20: 3286.191275 | BM20: 3428.940678 | BN20: 3594.008475 | BO20: 15750.9925
A21: 1 | B21: Техническое перевооружение и реконструкция | I21: =I22 -> 327.8243333 | J21: / | K21: =K22 -> 27.69 | L21: 124.02 | M21: / | N21: 47.25 | O21: 95.57 | P21: / | Q21: 48.073 | R21: 93.935 | S21: / | T21: 4.79 | U21: 31.92 | V21: / | W21: 2.63 | X21: 673.2693333 | Y21: / | Z21: 130.433 | AA21: =SUM(AA23:AA275) -> 15229.69896 | AB21: 0 | AC21: 0 | AD21: 0 | AE21: 0 | AF21: 0 | AG21: 0 | AH21: 0 | AI21: 0 | AJ21: 0 | AK21: 327.8243333 | AL21: / | AM21: 39.55 | AN21: 327.8243333 | AO21: / | AP21: 39.55 | AQ21: 404.21 | AR21: / | AS21: 86.45 | AT21: 367.46 | AU21: / | AV21: 185.119 | AW21: 366.045 | AX21: / | AY21: 109.79 | AZ21: 378.89 | BA21: / | BB21: 131.14 | BC21: 1844.429333 | BD21: / | BE21: 552.049 | BF21: 0 | BG21: =SUM(BG23:BG275) -> 306.7222171 | BH21: 715.6851731 | BI21: 1022.40739 | BJ21: 2044.81478 | BK21: 3038.064407 | BL21: 3204.006213 | BM21: 3379.066102 | BN21: 3563.747458 | BO21: 15229.69896
A22: 1.1. | B22: Энергосбережение и повышение энергетической эффективности | I22: =SUM(I24:I275) -> 327.8243333 | J22: / | K22: =SUM(K24:K275) -> 27.69 | L22: =SUM(L24:L275) -> 124.02 | M22: / | N22: =SUM(N25:N275) -> 47.25 | O22: =SUM(O24:O275) -> 95.57 | P22: / | Q22: =SUM(Q24:Q275) -> 48.073 | R22: =SUM(R24:R275) -> 93.935 | S22: / | T22: =SUM(T24:T275) -> 4.79 | U22: =SUM(U24:U275) -> 31.92 | V22: / | W22: =SUM(W24:W275) -> 2.63 | X22: =SUM(X24:X275) -> 673.2693333 | Y22: / | Z22: =SUM(Z24:Z275) -> 130.433 | AA22: =SUM(AA24:AA274) -> 14672.62496 | AB22: 0 | AC22: 0 | AD22: 0 | AE22: 0 | AF22: 0 | AG22: 0 | AH22: 0 | AI22: 0 | AJ22: 0 | AK22: 327.8243333 | AL22: / | AM22: =SUM(AM24:AM274) -> 39.55 | AN22: =SUM(AN24:AN274) -> 327.8243333 | AO22: / | AP22: =SUM(AP24:AP274) -> 39.55 | AQ22: =SUM(AQ24:AQ274) -> 404.21 | AR22: / | AS22: =SUM(AS24:AS274) -> 86.45 | AT22: =SUM(AT24:AT274) -> 367.46 | AU22: / | AV22: =SUM(AV24:AV274) -> 185.119 | AW22: =SUM(AW24:AW274) -> 366.045 | AX22: / | AY22: =SUM(AY24:AY274) -> 109.79 | AZ22: =SUM(AZ24:AZ274) -> 378.89 | BA22: / | BB22: =SUM(BB24:BB274) -> 131.14 | BC22: =SUM(BC24:BC274) -> 1844.429333 | BD22: / | BE22: =SUM(BE24:BE274) -> 552.049 | BF22: 0 | BG22: 271.1572171 | BH22: 632.7001731 | BI22: 903.8573902 | BJ22: 1807.71478 | BK22: 2968.166102 | BL22: 3131.277976 | BM22: 3292.727119 | BN22: 3472.738983 | BO22: 14672.62496
A23: 1 | B23: Алексеевский район
A24: 2 | B24: Реконструкция ВЛ-0,4кВ от КТП А 2109/160 кВА с заменой КТП | I24: 2.81 | J24: =IF(AND(I24=0,K24=0),"","/") -> / | K24: 0.16 | L24: 0 | M24: =IF(AND(L24=0,N24=0),"","/") ->  | N24: 0 | O24: 0 | P24: =IF(AND(O24=0,Q24=0),"","/") ->  | Q24: 0 | R24: 0 | S24: =IF(AND(R24=0,T24=0),"","/") ->  | T24: 0 | U24: 0 | V24: =IF(AND(U24=0,W24=0),"","/") ->  | W24: 0 | X24: =SUM(I24+L24+O24+R24+U24) -> 2.81 | Y24: / | Z24: =SUM(K24+N24+Q24+T24+W24) -> 0.16 | AA24: =BO24 -> 8.722033898 | AB24: =IF(ISNA(INDEX('План ввода основ. ср-в'!F:F,MATCH(B24,'План ввода основ. ср-в'!B:B,0))),0,INDEX('План ввода основ. ср-в'!F:F,MATCH(B24,'План ввода основ. ср-в'!B:B,0))) -> 0 | AC24: =IF(AND(AB24=0,AD24=0),"","/") ->  | AD24: =IF(ISNA(INDEX('План ввода основ. ср-в'!E:E,MATCH(B24,'План ввода основ. ср-в'!B:B,0))),0,INDEX('План ввода основ. ср-в'!E:E,MATCH(B24,'План ввода основ. ср-в'!B:B,0))) -> 0 | AE24: =IF(ISNA(INDEX('План ввода основ. ср-в'!H:H,MATCH(B24,'План ввода основ. ср-в'!B:B,0))),0,INDEX('План ввода основ. ср-в'!H:H,MATCH(B24,'План ввода основ. ср-в'!B:B,0))) -> 0 | AG24: =IF(ISNA(INDEX('План ввода основ. ср-в'!G:G,MATCH(B24,'План ввода основ. ср-в'!B:B,0))),0,INDEX('План ввода основ. ср-в'!G:G,MATCH(B24,'План ввода основ. ср-в'!B:B,0))) -> 0 | AH24: =IF(ISNA(INDEX('План ввода основ. ср-в'!J:J,MATCH(B24,'План ввода основ. ср-в'!B:B,0))),0,INDEX('План ввода основ. ср-в'!J:J,MATCH(B24,'План ввода основ. ср-в'!B:B,0))) -> 0 | AJ24: =IF(ISNA(INDEX('План ввода основ. ср-в'!I:I,MATCH(B24,'План ввода основ. ср-в'!B:B,0))),0,INDEX('План ввода основ. ср-в'!I:I,MATCH(B24,'План ввода основ. ср-в'!B:B,0))) -> 0 | AK24: =IF(ISNA(INDEX('План ввода основ. ср-в'!L:L,MATCH(B24,'План ввода основ. ср-в'!B:B,0))),0,INDEX('План ввода основ. ср-в'!L:L,MATCH(B24,'План ввода основ. ср-в'!B:B,0))) -> 2.81 | AL24: =IF(AND(AK24=0,AM24=0),"","/") -> / | AM24: =IF(ISNA(INDEX('План ввода основ. ср-в'!K:K,MATCH(B24,'План ввода основ. ср-в'!B:B,0))),0,INDEX('План ввода основ. ср-в'!K:K,MATCH(B24,'План ввода основ. ср-в'!B:B,0))) -> 0.16 | AN24: =AB24+AE24+AH24+AK24 -> 2.81 | AO24: / | AP24: =AD24+AG24+AJ24+AM24 -> 0.16 | AQ24: =IF(ISNA(INDEX('План ввода основ. ср-в'!N:N,MATCH(B24,'План ввода основ. ср-в'!B:B,0))),0,INDEX('План ввода основ. ср-в'!N:N,MATCH(B24,'План ввода основ. ср-в'!B:B,0))) -> 0 | AS24: =IF(ISNA(INDEX('План ввода основ. ср-в'!M:M,MATCH(B24,'План ввода основ. ср-в'!B:B,0))),0,INDEX('План ввода основ. ср-в'!M:M,MATCH(B24,'План ввода основ. ср-в'!B:B,0))) -> 0 | AT24: =IF(ISNA(INDEX('План ввода основ. ср-в'!P:P,MATCH(B24,'План ввода основ. ср-в'!B:B,0))),0,INDEX('План ввода основ. ср-в'!P:P,MATCH(B24,'План ввода основ. ср-в'!B:B,0))) -> 0 | AV24: =IF(ISNA(INDEX('План ввода основ. ср-в'!O:O,MATCH(B24,'План ввода основ. ср-в'!B:B,0))),0,INDEX('План ввода основ. ср-в'!O:O,MATCH(B24,'План ввода основ. ср-в'!B:B,0))) -> 0 | AW24: =IF(ISNA(INDEX('План ввода основ. ср-в'!R:R,MATCH(B24,'План ввода основ. ср-в'!B:B,0))),0,INDEX('План ввода основ. ср-в'!R:R,MATCH(B24,'План ввода основ. ср-в'!B:B,0))) -> 0 | AY24: =IF(ISNA(INDEX('План ввода основ. ср-в'!Q:Q,MATCH(B24,'План ввода основ. ср-в'!B:B,0))),0,INDEX('План ввода основ. ср-в'!Q:Q,MATCH(B24,'План ввода основ. ср-в'!B:B,0))) -> 0 | AZ24: =IF(ISNA(INDEX('План ввода основ. ср-в'!T:T,MATCH(B24,'План ввода основ. ср-в'!B:B,0))),0,INDEX('План ввода основ. ср-в'!T:T,MATCH(B24,'План ввода основ. ср-в'!B:B,0))) -> 0 | BB24: =IF(ISNA(INDEX('План ввода основ. ср-в'!S:S,MATCH(B24,'План ввода основ. ср-в'!B:B,0))),0,INDEX('План ввода основ. ср-в'!S:S,MATCH(B24,'План ввода основ. ср-в'!B:B,0))) -> 0 | BC24: =AN24+AQ24+AT24+AW24+AZ24 -> 2.81 | BE24: =AP24+AS24+AV24+AY24+BB24 -> 0.16 | BF24: =IF(ISNA(INDEX('План ввода основ. ср-в'!V:V,MATCH(B24,'План ввода основ. ср-в'!B:B,0))),0,INDEX('План ввода основ. ср-в'!V:V,MATCH(B24,'План ввода основ. ср-в'!B:B,0))) -> 0 | BG24: =IF(ISNA(INDEX('План ввода основ. ср-в'!W:W,MATCH(B24,'План ввода основ. ср-в'!B:B,0))),0,INDEX('План ввода основ. ср-в'!W:W,MATCH(B24,'План ввода основ. ср-в'!B:B,0))) -> 1.308305085 | BH24: =IF(ISNA(INDEX('План ввода основ. ср-в'!X:X,MATCH(B24,'План ввода основ. ср-в'!B:B,0))),0,INDEX('План ввода основ. ср-в'!X:X,MATCH(B24,'План ввода основ. ср-в'!B:B,0))) -> 3.052711864 | BI24: =IF(ISNA(INDEX('План ввода основ. ср-в'!Y:Y,MATCH(B24,'План ввода основ. ср-в'!B:B,0))),0,INDEX('План ввода основ. ср-в'!Y:Y,MATCH(B24,'План ввода основ. ср-в'!B:B,0))) -> 4.361016949 | BJ24: =SUM(BF24:BI24) -> 8.722033898 | BK24: =IF(ISNA(INDEX('План ввода основ. ср-в'!Z:Z,MATCH(B24,'План ввода основ. ср-в'!B:B,0))),0,INDEX('План ввода основ. ср-в'!Z:Z,MATCH(B24,'План ввода основ. ср-в'!B:B,0))) -> 0 | BL24: =IF(ISNA(INDEX('План ввода основ. ср-в'!AA:AA,MATCH(B24,'План ввода основ. ср-в'!B:B,0))),0,INDEX('План ввода основ. ср-в'!AA:AA,MATCH(B24,'План ввода основ. ср-в'!B:B,0))) -> 0 | BM24: =IF(ISNA(INDEX('План ввода основ. ср-в'!AB:AB,MATCH(B24,'План ввода основ. ср-в'!B:B,0))),0,INDEX('План ввода основ. ср-в'!AB:AB,MATCH(B24,'План ввода основ. ср-в'!B:B,0))) -> 0 | BN24: =IF(ISNA(INDEX('План ввода основ. ср-в'!AC:AC,MATCH(B24,'План ввода основ. ср-в'!B:B,0))),0,INDEX('План ввода основ. ср-в'!AC:AC,MATCH(B24,'План ввода основ. ср-в'!B:B,0))) -> 0 | BO24: =SUM(BJ24:BN24) -> 8.722033898
A25: 3 | B25: Реконструкция ВЛ-0,4кВ от КТП А 216/250 кВА с заменой КТП | I25: 4.52 | J25: / | K25: 0.25 | L25: 0 | N25: 0 | O25: 0 | P25: =IF(AND(O25=0,Q25=0),"","/") ->  | Q25: 0 | R25: 0 | T25: 0 | U25: 0 | W25: 0 | X25: 4.52 | Y25: / | Z25: =SUM(K25+N25+Q25+T25+W25) -> 0.25 | AA25: 13.35932203 | AB25: =IF(ISNA(INDEX('План ввода основ. ср-в'!F:F,MATCH(B25,'План ввода основ. ср-в'!B:B,0))),0,INDEX('План ввода основ. ср-в'!F:F,MATCH(B25,'План ввода основ. ср-в'!B:B,0))) -> 0 | AD25: =IF(ISNA(INDEX('План ввода основ. ср-в'!E:E,MATCH(B25,'План ввода основ. ср-в'!B:B,0))),0,INDEX('План ввода основ. ср-в'!E:E,MATCH(B25,'План ввода основ. ср-в'!B:B,0))) -> 0 | AE25: =IF(ISNA(INDEX('План ввода основ. ср-в'!H:H,MATCH(B25,'План ввода основ. ср-в'!B:B,0))),0,INDEX('План ввода основ. ср-в'!H:H,MATCH(B25,'План ввода основ. ср-в'!B:B,0))) -> 0 | AF25: =IF(AND(AE25=0,AG25=0),"","/") ->  | AG25: =IF(ISNA(INDEX('План ввода основ. ср-в'!G:G,MATCH(B25,'План ввода основ. ср-в'!B:B,0))),0,INDEX('План ввода основ. ср-в'!G:G,MATCH(B25,'План ввода основ. ср-в'!B:B,0))) -> 0 | AH25: =IF(ISNA(INDEX('План ввода основ. ср-в'!J:J,MATCH(B25,'План ввода основ. ср-в'!B:B,0))),0,INDEX('План ввода основ. ср-в'!J:J,MATCH(B25,'План ввода основ. ср-в'!B:B,0))) -> 0 | AI25: =IF(AND(AH25=0,AJ25=0),"","/") ->  | AJ25: =IF(ISNA(INDEX('План ввода основ. ср-в'!I:I,MATCH(B25,'План ввода основ. ср-в'!B:B,0))),0,INDEX('План ввода основ. ср-в'!I:I,MATCH(B25,'План ввода основ. ср-в'!B:B,0))) -> 0 | AK25: =IF(ISNA(INDEX('План ввода основ. ср-в'!L:L,MATCH(B25,'План ввода основ. ср-в'!B:B,0))),0,INDEX('План ввода основ. ср-в'!L:L,MATCH(B25,'План ввода основ. ср-в'!B:B,0))) -> 4.52 | AL25: / | AM25: =IF(ISNA(INDEX('План ввода основ. ср-в'!K:K,MATCH(B25,'План ввода основ. ср-в'!B:B,0))),0,INDEX('План ввода основ. ср-в'!K:K,MATCH(B25,'План ввода основ. ср-в'!B:B,0))) -> 0.25 | AN25: 4.52 | AO25: / | AP25: 0.25 | AQ25: =IF(ISNA(INDEX('План ввода основ. ср-в'!N:N,MATCH(B25,'План ввода основ. ср-в'!B:B,0))),0,INDEX('План ввода основ. ср-в'!N:N,MATCH(B25,'План ввода основ. ср-в'!B:B,0))) -> 0 | AR25: =IF(AND(AQ25=0,AS25=0),"","/") ->  | AS25: =IF(ISNA(INDEX('План ввода основ. ср-в'!M:M,MATCH(B25,'План ввода основ. ср-в'!B:B,0))),0,INDEX('План ввода основ. ср-в'!M:M,MATCH(B25,'План ввода основ. ср-в'!B:B,0))) -> 0 | AT25: =IF(ISNA(INDEX('План ввода основ. ср-в'!P:P,MATCH(B25,'План ввода основ. ср-в'!B:B,0))),0,INDEX('План ввода основ. ср-в'!P:P,MATCH(B25,'План ввода основ. ср-в'!B:B,0))) -> 0 | AU25: =IF(AND(AT25=0,AV25=0),"","/") ->  | AV25: =IF(ISNA(INDEX('План ввода основ. ср-в'!O:O,MATCH(B25,'План ввода основ. ср-в'!B:B,0))),0,INDEX('План ввода основ. ср-в'!O:O,MATCH(B25,'План ввода основ. ср-в'!B:B,0))) -> 0 | AW25: =IF(ISNA(INDEX('План ввода основ. ср-в'!R:R,MATCH(B25,'План ввода основ. ср-в'!B:B,0))),0,INDEX('План ввода основ. ср-в'!R:R,MATCH(B25,'План ввода основ. ср-в'!B:B,0))) -> 0 | AX25: =IF(AND(AW25=0,AY25=0),"","/") ->  | AY25: =IF(ISNA(INDEX('План ввода основ. ср-в'!Q:Q,MATCH(B25,'План ввода основ. ср-в'!B:B,0))),0,INDEX('План ввода основ. ср-в'!Q:Q,MATCH(B25,'План ввода основ. ср-в'!B:B,0))) -> 0 | AZ25: =IF(ISNA(INDEX('План ввода основ. ср-в'!T:T,MATCH(B25,'План ввода основ. ср-в'!B:B,0))),0,INDEX('План ввода основ. ср-в'!T:T,MATCH(B25,'План ввода основ. ср-в'!B:B,0))) -> 0 | BA25: =IF(AND(AZ25=0,BB25=0),"","/") ->  | BB25: =IF(ISNA(INDEX('План ввода основ. ср-в'!S:S,MATCH(B25,'План ввода основ. ср-в'!B:B,0))),0,INDEX('План ввода основ. ср-в'!S:S,MATCH(B25,'План ввода основ. ср-в'!B:B,0))) -> 0 | BC25: 4.52 | BD25: / | BE25: 0.25 | BF25: =IF(ISNA(INDEX('План ввода основ. ср-в'!V:V,MATCH(B25,'План ввода основ. ср-в'!B:B,0))),0,INDEX('План ввода основ. ср-в'!V:V,MATCH(B25,'План ввода основ. ср-в'!B:B,0))) -> 0 | BG25: =IF(ISNA(INDEX('План ввода основ. ср-в'!W:W,MATCH(B25,'План ввода основ. ср-в'!B:B,0))),0,INDEX('План ввода основ. ср-в'!W:W,MATCH(B25,'План ввода основ. ср-в'!B:B,0))) -> 2.003898305 | BH25: =IF(ISNA(INDEX('План ввода основ. ср-в'!X:X,MATCH(B25,'План ввода основ. ср-в'!B:B,0))),0,INDEX('План ввода основ. ср-в'!X:X,MATCH(B25,'План ввода основ. ср-в'!B:B,0))) -> 4.675762712 | BI25: =IF(ISNA(INDEX('План ввода основ. ср-в'!Y:Y,MATCH(B25,'План ввода основ. ср-в'!B:B,0))),0,INDEX('План ввода основ. ср-в'!Y:Y,MATCH(B25,'План ввода основ. ср-в'!B:B,0))) -> 6.679661017 | BJ25: 13.35932203 | BK25: =IF(ISNA(INDEX('План ввода основ. ср-в'!Z:Z,MATCH(B25,'План ввода основ. ср-в'!B:B,0))),0,INDEX('План ввода основ. ср-в'!Z:Z,MATCH(B25,'План ввода основ. ср-в'!B:B,0))) -> 0 | BL25: =IF(ISNA(INDEX('План ввода основ. ср-в'!AA:AA,MATCH(B25,'План ввода основ. ср-в'!B:B,0))),0,INDEX('План ввода основ. ср-в'!AA:AA,MATCH(B25,'План ввода основ. ср-в'!B:B,0))) -> 0 | BM25: =IF(ISNA(INDEX('План ввода основ. ср-в'!AB:AB,MATCH(B25,'План ввода основ. ср-в'!B:B,0))),0,INDEX('План ввода основ. ср-в'!AB:AB,MATCH(B25,'План ввода основ. ср-в'!B:B,0))) -> 0 | BN25: =IF(ISNA(INDEX('План ввода основ. ср-в'!AC:AC,MATCH(B25,'План ввода основ. ср-в'!B:B,0))),0,INDEX('План ввода основ. ср-в'!AC:AC,MATCH(B25,'План ввода основ. ср-в'!B:B,0))) -> 0 | BO25: 13.35932203
A26: 4 | B26: Реконструкция ВЛ-0,4кВ от КТП А 207/250 кВА с заменой КТП | I26: 0 | K26: 0 | L26: 1.92 | M26: / | N26: 0.25 | O26: 0 | P26: =IF(AND(O26=0,Q26=0),"","/") ->  | Q26: 0 | R26: 0 | T26: 0 | U26: 0 | W26: 0 | X26: 1.92 | Y26: / | Z26: 0.25 | AA26: 5.572881356 | AB26: =IF(ISNA(INDEX('План ввода основ. ср-в'!F:F,MATCH(B26,'План ввода основ. ср-в'!B:B,0))),0,INDEX('План ввода основ. ср-в'!F:F,MATCH(B26,'План ввода основ. ср-в'!B:B,0))) -> 0 | AD26: =IF(ISNA(INDEX('План ввода основ. ср-в'!E:E,MATCH(B26,'План ввода основ. ср-в'!B:B,0))),0,INDEX('План ввода основ. ср-в'!E:E,MATCH(B26,'План ввода основ. ср-в'!B:B,0))) -> 0 | AE26: =IF(ISNA(INDEX('План ввода основ. ср-в'!H:H,MATCH(B26,'План ввода основ. ср-в'!B:B,0))),0,INDEX('План ввода основ. ср-в'!H:H,MATCH(B26,'План ввода основ. ср-в'!B:B,0))) -> 0 | AG26: =IF(ISNA(INDEX('План ввода основ. ср-в'!G:G,MATCH(B26,'План ввода основ. ср-в'!B:B,0))),0,INDEX('План ввода основ. ср-в'!G:G,MATCH(B26,'План ввода основ. ср-в'!B:B,0))) -> 0 | AH26: =IF(ISNA(INDEX('План ввода основ. ср-в'!J:J,MATCH(B26,'План ввода основ. ср-в'!B:B,0))),0,INDEX('План ввода основ. ср-в'!J:J,MATCH(B26,'План ввода основ. ср-в'!B:B,0))) -> 0 | AJ26: =IF(ISNA(INDEX('План ввода основ. ср-в'!I:I,MATCH(B26,'План ввода основ. ср-в'!B:B,0))),0,INDEX('План ввода основ. ср-в'!I:I,MATCH(B26,'План ввода основ. ср-в'!B:B,0))) -> 0 | AK26: =IF(ISNA(INDEX('План ввода основ. ср-в'!L:L,MATCH(B26,'План ввода основ. ср-в'!B:B,0))),0,INDEX('План ввода основ. ср-в'!L:L,MATCH(B26,'План ввода основ. ср-в'!B:B,0))) -> 0 | AM26: =IF(ISNA(INDEX('План ввода основ. ср-в'!K:K,MATCH(B26,'План ввода основ. ср-в'!B:B,0))),0,INDEX('План ввода основ. ср-в'!K:K,MATCH(B26,'План ввода основ. ср-в'!B:B,0))) -> 0 | AN26: 0 | AO26: / | AP26: 0 | AQ26: =IF(ISNA(INDEX('План ввода основ. ср-в'!N:N,MATCH(B26,'План ввода основ. ср-в'!B:B,0))),0,INDEX('План ввода основ. ср-в'!N:N,MATCH(B26,'План ввода основ. ср-в'!B:B,0))) -> 1.92 | AR26: / | AS26: =IF(ISNA(INDEX('План ввода основ. ср-в'!M:M,MATCH(B26,'План ввода основ. ср-в'!B:B,0))),0,INDEX('План ввода основ. ср-в'!M:M,MATCH(B26,'План ввода основ. ср-в'!B:B,0))) -> 0.25 | AT26: =IF(ISNA(INDEX('План ввода основ. ср-в'!P:P,MATCH(B26,'План ввода основ. ср-в'!B:B,0))),0,INDEX('План ввода основ. ср-в'!P:P,MATCH(B26,'План ввода основ. ср-в'!B:B,0))) -> 0 | AV26: =IF(ISNA(INDEX('План ввода основ. ср-в'!O:O,MATCH(B26,'План ввода основ. ср-в'!B:B,0))),0,INDEX('План ввода основ. ср-в'!O:O,MATCH(B26,'План ввода основ. ср-в'!B:B,0))) -> 0 | AW26: =IF(ISNA(INDEX('План ввода основ. ср-в'!R:R,MATCH(B26,'План ввода основ. ср-в'!B:B,0))),0,INDEX('План ввода основ. ср-в'!R:R,MATCH(B26,'План ввода основ. ср-в'!B:B,0))) -> 0 | AY26: =IF(ISNA(INDEX('План ввода основ. ср-в'!Q:Q,MATCH(B26,'План ввода основ. ср-в'!B:B,0))),0,INDEX('План ввода основ. ср-в'!Q:Q,MATCH(B26,'План ввода основ. ср-в'!B:B,0))) -> 0 | AZ26: =IF(ISNA(INDEX('План ввода основ. ср-в'!T:T,MATCH(B26,'План ввода основ. ср-в'!B:B,0))),0,INDEX('План ввода основ. ср-в'!T:T,MATCH(B26,'План ввода основ. ср-в'!B:B,0))) -> 0 | BB26: =IF(ISNA(INDEX('План ввода основ. ср-в'!S:S,MATCH(B26,'План ввода основ. ср-в'!B:B,0))),0,INDEX('План ввода основ. ср-в'!S:S,MATCH(B26,'План ввода основ. ср-в'!B:B,0))) -> 0 | BC26: 1.92 | BD26: / | BE26: 0.25 | BF26: =IF(ISNA(INDEX('План ввода основ. ср-в'!V:V,MATCH(B26,'План ввода основ. ср-в'!B:B,0))),0,INDEX('План ввода основ. ср-в'!V:V,MATCH(B26,'План ввода основ. ср-в'!B:B,0))) -> 0 | BG26: =IF(ISNA(INDEX('План ввода основ. ср-в'!W:W,MATCH(B26,'План ввода основ. ср-в'!B:B,0))),0,INDEX('План ввода основ. ср-в'!W:W,MATCH(B26,'План ввода основ. ср-в'!B:B,0))) -> 0 | BH26: =IF(ISNA(INDEX('План ввода основ. ср-в'!X:X,MATCH(B26,'План ввода основ. ср-в'!B:B,0))),0,INDEX('План ввода основ. ср-в'!X:X,MATCH(B26,'План ввода основ. ср-в'!B:B,0))) -> 0 | BI26: =IF(ISNA(INDEX('План ввода основ. ср-в'!Y:Y,MATCH(B26,'План ввода основ. ср-в'!B:B,0))),0,INDEX('План ввода основ. ср-в'!Y:Y,MATCH(B26,'План ввода основ. ср-в'!B:B,0))) -> 0 | BJ26: 0 | BK26: =IF(ISNA(INDEX('План ввода основ. ср-в'!Z:Z,MATCH(B26,'План ввода основ. ср-в'!B:B,0))),0,INDEX('План ввода основ. ср-в'!Z:Z,MATCH(B26,'План ввода основ. ср-в'!B:B,0))) -> 5.572881356 | BL26: =IF(ISNA(INDEX('План ввода основ. ср-в'!AA:AA,MATCH(B26,'План ввода основ. ср-в'!B:B,0))),0,INDEX('План ввода основ. ср-в'!AA:AA,MATCH(B26,'План ввода основ. ср-в'!B:B,0))) -> 0 | BM26: =IF(ISNA(INDEX('План ввода основ. ср-в'!AB:AB,MATCH(B26,'План ввода основ. ср-в'!B:B,0))),0,INDEX('План ввода основ. ср-в'!AB:AB,MATCH(B26,'План ввода основ. ср-в'!B:B,0))) -> 0 | BN26: =IF(ISNA(INDEX('План ввода основ. ср-в'!AC:AC,MATCH(B26,'План ввода основ. ср-в'!B:B,0))),0,INDEX('План ввода основ. ср-в'!AC:AC,MATCH(B26,'План ввода основ. ср-в'!B:B,0))) -> 0 | BO26: 5.572881356
A27: 5 | B27: Реконструкция ВЛ-0,4кВ от КТП А 203/250 кВА с заменой КТП | I27: 0 | K27: 0 | L27: 4.67 | M27: / | N27: 0.25 | O27: 0 | Q27: 0 | R27: 0 | T27: 0 | U27: 0 | W27: 0 | X27: 4.67 | Y27: / | Z27: 0.25 | AA27: 12.09830508 | AB27: =IF(ISNA(INDEX('План ввода основ. ср-в'!F:F,MATCH(B27,'План ввода основ. ср-в'!B:B,0))),0,INDEX('План ввода основ. ср-в'!F:F,MATCH(B27,'План ввода основ. ср-в'!B:B,0))) -> 0 | AD27: =IF(ISNA(INDEX('План ввода основ. ср-в'!E:E,MATCH(B27,'План ввода основ. ср-в'!B:B,0))),0,INDEX('План ввода основ. ср-в'!E:E,MATCH(B27,'План ввода основ. ср-в'!B:B,0))) -> 0 | AE27: =IF(ISNA(INDEX('План ввода основ. ср-в'!H:H,MATCH(B27,'План ввода основ. ср-в'!B:B,0))),0,INDEX('План ввода основ. ср-в'!H:H,MATCH(B27,'План ввода основ. ср-в'!B:B,0))) -> 0 | AG27: =IF(ISNA(INDEX('План ввода основ. ср-в'!G:G,MATCH(B27,'План ввода основ. ср-в'!B:B,0))),0,INDEX('План ввода основ. ср-в'!G:G,MATCH(B27,'План ввода основ. ср-в'!B:B,0))) -> 0 | AH27: =IF(ISNA(INDEX('План ввода основ. ср-в'!J:J,MATCH(B27,'План ввода основ. ср-в'!B:B,0))),0,INDEX('План ввода основ. ср-в'!J:J,MATCH(B27,'План ввода основ. ср-в'!B:B,0))) -> 0 | AJ27: =IF(ISNA(INDEX('План ввода основ. ср-в'!I:I,MATCH(B27,'План ввода основ. ср-в'!B:B,0))),0,INDEX('План ввода основ. ср-в'!I:I,MATCH(B27,'План ввода основ. ср-в'!B:B,0))) -> 0 | AK27: =IF(ISNA(INDEX('План ввода основ. ср-в'!L:L,MATCH(B27,'План ввода основ. ср-в'!B:B,0))),0,INDEX('План ввода основ. ср-в'!L:L,MATCH(B27,'План ввода основ. ср-в'!B:B,0))) -> 0 | AM27: =IF(ISNA(INDEX('План ввода основ. ср-в'!K:K,MATCH(B27,'План ввода основ. ср-в'!B:B,0))),0,INDEX('План ввода основ. ср-в'!K:K,MATCH(B27,'План ввода основ. ср-в'!B:B,0))) -> 0 | AN27: 0 | AO27: / | AP27: 0 | AQ27: =IF(ISNA(INDEX('План ввода основ. ср-в'!N:N,MATCH(B27,'План ввода основ. ср-в'!B:B,0))),0,INDEX('План ввода основ. ср-в'!N:N,MATCH(B27,'План ввода основ. ср-в'!B:B,0))) -> 4.67 | AR27: / | AS27: =IF(ISNA(INDEX('План ввода основ. ср-в'!M:M,MATCH(B27,'План ввода основ. ср-в'!B:B,0))),0,INDEX('План ввода основ. ср-в'!M:M,MATCH(B27,'План ввода основ. ср-в'!B:B,0))) -> 0.25 | AT27: =IF(ISNA(INDEX('План ввода основ. ср-в'!P:P,MATCH(B27,'План ввода основ. ср-в'!B:B,0))),0,INDEX('План ввода основ. ср-в'!P:P,MATCH(B27,'План ввода основ. ср-в'!B:B,0))) -> 0 | AV27: =IF(ISNA(INDEX('План ввода основ. ср-в'!O:O,MATCH(B27,'План ввода основ. ср-в'!B:B,0))),0,INDEX('План ввода основ. ср-в'!O:O,MATCH(B27,'План ввода основ. ср-в'!B:B,0))) -> 0 | AW27: =IF(ISNA(INDEX('План ввода основ. ср-в'!R:R,MATCH(B27,'План ввода основ. ср-в'!B:B,0))),0,INDEX('План ввода основ. ср-в'!R:R,MATCH(B27,'План ввода основ. ср-в'!B:B,0))) -> 0 | AY27: =IF(ISNA(INDEX('План ввода основ. ср-в'!Q:Q,MATCH(B27,'План ввода основ. ср-в'!B:B,0))),0,INDEX('План ввода основ. ср-в'!Q:Q,MATCH(B27,'План ввода основ. ср-в'!B:B,0))) -> 0 | AZ27: =IF(ISNA(INDEX('План ввода основ. ср-в'!T:T,MATCH(B27,'План ввода основ. ср-в'!B:B,0))),0,INDEX('План ввода основ. ср-в'!T:T,MATCH(B27,'План ввода основ. ср-в'!B:B,0))) -> 0 | BB27: =IF(ISNA(INDEX('План ввода основ. ср-в'!S:S,MATCH(B27,'План ввода основ. ср-в'!B:B,0))),0,INDEX('План ввода основ. ср-в'!S:S,MATCH(B27,'План ввода основ. ср-в'!B:B,0))) -> 0 | BC27: 4.67 | BD27: / | BE27: 0.25 | BF27: =IF(ISNA(INDEX('План ввода основ. ср-в'!V:V,MATCH(B27,'План ввода основ. ср-в'!B:B,0))),0,INDEX('План ввода основ. ср-в'!V:V,MATCH(B27,'План ввода основ. ср-в'!B:B,0))) -> 0 | BG27: =IF(ISNA(INDEX('План ввода основ. ср-в'!W:W,MATCH(B27,'План ввода основ. ср-в'!B:B,0))),0,INDEX('План ввода основ. ср-в'!W:W,MATCH(B27,'План ввода основ. ср-в'!B:B,0))) -> 0 | BH27: =IF(ISNA(INDEX('План ввода основ. ср-в'!X:X,MATCH(B27,'План ввода основ. ср-в'!B:B,0))),0,INDEX('План ввода основ. ср-в'!X:X,MATCH(B27,'План ввода основ. ср-в'!B:B,0))) -> 0 | BI27: =IF(ISNA(INDEX('План ввода основ. ср-в'!Y:Y,MATCH(B27,'План ввода основ. ср-в'!B:B,0))),0,INDEX('План ввода основ. ср-в'!Y:Y,MATCH(B27,'План ввода основ. ср-в'!B:B,0))) -> 0 | BJ27: 0 | BK27: =IF(ISNA(INDEX('План ввода основ. ср-в'!Z:Z,MATCH(B27,'План ввода основ. ср-в'!B:B,0))),0,INDEX('План ввода основ. ср-в'!Z:Z,MATCH(B27,'План ввода основ. ср-в'!B:B,0))) -> 12.09830508 | BL27: =IF(ISNA(INDEX('План ввода основ. ср-в'!AA:AA,MATCH(B27,'План ввода основ. ср-в'!B:B,0))),0,INDEX('План ввода основ. ср-в'!AA:AA,MATCH(B27,'План ввода основ. ср-в'!B:B,0))) -> 0 | BM27: =IF(ISNA(INDEX('План ввода основ. ср-в'!AB:AB,MATCH(B27,'План ввода основ. ср-в'!B:B,0))),0,INDEX('План ввода основ. ср-в'!AB:AB,MATCH(B27,'План ввода основ. ср-в'!B:B,0))) -> 0 | BN27: =IF(ISNA(INDEX('План ввода основ. ср-в'!AC:AC,MATCH(B27,'План ввода основ. ср-в'!B:B,0))),0,INDEX('План ввода основ. ср-в'!AC:AC,MATCH(B27,'План ввода основ. ср-в'!B:B,0))) -> 0 | BO27: 12.09830508
A28: 6 | B28: Реконструкция ВЛ-0,4кВ от КТП А 2101/160 кВА с заменой КТП | I28: 0 | K28: 0 | L28: 0 | N28: 0 | O28: 2.92 | P28: / | Q28: 0.16 | R28: 0 | T28: 0 | U28: 0 | W28: 0 | X28: 2.92 | Y28: / | Z28: 0.16 | AA28: 7.945762712 | AB28: =IF(ISNA(INDEX('План ввода основ. ср-в'!F:F,MATCH(B28,'План ввода основ. ср-в'!B:B,0))),0,INDEX('План ввода основ. ср-в'!F:F,MATCH(B28,'План ввода основ. ср-в'!B:B,0))) -> 0 | AD28: =IF(ISNA(INDEX('План ввода основ. ср-в'!E:E,MATCH(B28,'План ввода основ. ср-в'!B:B,0))),0,INDEX('План ввода основ. ср-в'!E:E,MATCH(B28,'План ввода основ. ср-в'!B:B,0))) -> 0 | AE28: =IF(ISNA(INDEX('План ввода основ. ср-в'!H:H,MATCH(B28,'План ввода основ. ср-в'!B:B,0))),0,INDEX('План ввода основ. ср-в'!H:H,MATCH(B28,'План ввода основ. ср-в'!B:B,0))) -> 0 | AG28: =IF(ISNA(INDEX('План ввода основ. ср-в'!G:G,MATCH(B28,'План ввода основ. ср-в'!B:B,0))),0,INDEX('План ввода основ. ср-в'!G:G,MATCH(B28,'План ввода основ. ср-в'!B:B,0))) -> 0 | AH28: =IF(ISNA(INDEX('План ввода основ. ср-в'!J:J,MATCH(B28,'План ввода основ. ср-в'!B:B,0))),0,INDEX('План ввода основ. ср-в'!J:J,MATCH(B28,'План ввода основ. ср-в'!B:B,0))) -> 0 | AJ28: =IF(ISNA(INDEX('План ввода основ. ср-в'!I:I,MATCH(B28,'План ввода основ. ср-в'!B:B,0))),0,INDEX('План ввода основ. ср-в'!I:I,MATCH(B28,'План ввода основ. ср-в'!B:B,0))) -> 0 | AK28: =IF(ISNA(INDEX('План ввода основ. ср-в'!L:L,MATCH(B28,'План ввода основ. ср-в'!B:B,0))),0,INDEX('План ввода основ. ср-в'!L:L,MATCH(B28,'План ввода основ. ср-в'!B:B,0))) -> 0 | AM28: =IF(ISNA(INDEX('План ввода основ. ср-в'!K:K,MATCH(B28,'План ввода основ. ср-в'!B:B,0))),0,INDEX('План ввода основ. ср-в'!K:K,MATCH(B28,'План ввода основ. ср-в'!B:B,0))) -> 0 | AN28: 0 | AO28: / | AP28: 0 | AQ28: =IF(ISNA(INDEX('План ввода основ. ср-в'!N:N,MATCH(B28,'План ввода основ. ср-в'!B:B,0))),0,INDEX('План ввода основ. ср-в'!N:N,MATCH(B28,'План ввода основ. ср-в'!B:B,0))) -> 0 | AS28: =IF(ISNA(INDEX('План ввода основ. ср-в'!M:M,MATCH(B28,'План ввода основ. ср-в'!B:B,0))),0,INDEX('План ввода основ. ср-в'!M:M,MATCH(B28,'План ввода основ. ср-в'!B:B,0))) -> 0 | AT28: =IF(ISNA(INDEX('План ввода основ. ср-в'!P:P,MATCH(B28,'План ввода основ. ср-в'!B:B,0))),0,INDEX('План ввода основ. ср-в'!P:P,MATCH(B28,'План ввода основ. ср-в'!B:B,0))) -> 2.92 | AU28: / | AV28: =IF(ISNA(INDEX('План ввода основ. ср-в'!O:O,MATCH(B28,'План ввода основ. ср-в'!B:B,0))),0,INDEX('План ввода основ. ср-в'!O:O,MATCH(B28,'План ввода основ. ср-в'!B:B,0))) -> 0.16 | AW28: =IF(ISNA(INDEX('План ввода основ. ср-в'!R:R,MATCH(B28,'План ввода основ. ср-в'!B:B,0))),0,INDEX('План ввода основ. ср-в'!R:R,MATCH(B28,'План ввода основ. ср-в'!B:B,0))) -> 0 | AY28: =IF(ISNA(INDEX('План ввода основ. ср-в'!Q:Q,MATCH(B28,'План ввода основ. ср-в'!B:B,0))),0,INDEX('План ввода основ. ср-в'!Q:Q,MATCH(B28,'План ввода основ. ср-в'!B:B,0))) -> 0 | AZ28: =IF(ISNA(INDEX('План ввода основ. ср-в'!T:T,MATCH(B28,'План ввода основ. ср-в'!B:B,0))),0,INDEX('План ввода основ. ср-в'!T:T,MATCH(B28,'План ввода основ. ср-в'!B:B,0))) -> 0 | BB28: =IF(ISNA(INDEX('План ввода основ. ср-в'!S:S,MATCH(B28,'План ввода основ. ср-в'!B:B,0))),0,INDEX('План ввода основ. ср-в'!S:S,MATCH(B28,'План ввода основ. ср-в'!B:B,0))) -> 0 | BC28: 2.92 | BD28: / | BE28: 0.16 | BF28: =IF(ISNA(INDEX('План ввода основ. ср-в'!V:V,MATCH(B28,'План ввода основ. ср-в'!B:B,0))),0,INDEX('План ввода основ. ср-в'!V:V,MATCH(B28,'План ввода основ. ср-в'!B:B,0))) -> 0 | BG28: =IF(ISNA(INDEX('План ввода основ. ср-в'!W:W,MATCH(B28,'План ввода основ. ср-в'!B:B,0))),0,INDEX('План ввода основ. ср-в'!W:W,MATCH(B28,'План ввода основ. ср-в'!B:B,0))) -> 0 | BH28: =IF(ISNA(INDEX('План ввода основ. ср-в'!X:X,MATCH(B28,'План ввода основ. ср-в'!B:B,0))),0,INDEX('План ввода основ. ср-в'!X:X,MATCH(B28,'План ввода основ. ср-в'!B:B,0))) -> 0 | BI28: =IF(ISNA(INDEX('План ввода основ. ср-в'!Y:Y,MATCH(B28,'План ввода основ. ср-в'!B:B,0))),0,INDEX('План ввода основ. ср-в'!Y:Y,MATCH(B28,'План ввода основ. ср-в'!B:B,0))) -> 0 | BJ28: 0 | BK28: =IF(ISNA(INDEX('План ввода основ. ср-в'!Z:Z,MATCH(B28,'План ввода основ. ср-в'!B:B,0))),0,INDEX('План ввода основ. ср-в'!Z:Z,MATCH(B28,'План ввода основ. ср-в'!B:B,0))) -> 0 | BL28: =IF(ISNA(INDEX('План ввода основ. ср-в'!AA:AA,MATCH(B28,'План ввода основ. ср-в'!B:B,0))),0,INDEX('План ввода основ. ср-в'!AA:AA,MATCH(B28,'План ввода основ. ср-в'!B:B,0))) -> 7.945762712 | BM28: =IF(ISNA(INDEX('План ввода основ. ср-в'!AB:AB,MATCH(B28,'План ввода основ. ср-в'!B:B,0))),0,INDEX('План ввода основ. ср-в'!AB:AB,MATCH(B28,'План ввода основ. ср-в'!B:B,0))) -> 0 | BN28: =IF(ISNA(INDEX('План ввода основ. ср-в'!AC:AC,MATCH(B28,'План ввода основ. ср-в'!B:B,0))),0,INDEX('План ввода основ. ср-в'!AC:AC,MATCH(B28,'План ввода основ. ср-в'!B:B,0))) -> 0 | BO28: 7.945762712
A29: 7 | B29: Реконструкция ВЛ-0,4кВ от КТП А 217/400 кВА с заменой КТП | I29: 0 | K29: 0 | L29: 0 | N29: 0 | O29: 3.08 | P29: / | Q29: 0.4 | R29: 0 | T29: 0 | U29: 0 | W29: 0 | X29: 3.08 | Y29: / | Z29: 0.4 | AA29: 8.325423729 | AB29: =IF(ISNA(INDEX('План ввода основ. ср-в'!F:F,MATCH(B29,'План ввода основ. ср-в'!B:B,0))),0,INDEX('План ввода основ. ср-в'!F:F,MATCH(B29,'План ввода основ. ср-в'!B:B,0))) -> 0 | AD29: =IF(ISNA(INDEX('План ввода основ. ср-в'!E:E,MATCH(B29,'План ввода основ. ср-в'!B:B,0))),0,INDEX('План ввода основ. ср-в'!E:E,MATCH(B29,'План ввода основ. ср-в'!B:B,0))) -> 0 | AE29: =IF(ISNA(INDEX('План ввода основ. ср-в'!H:H,MATCH(B29,'План ввода основ. ср-в'!B:B,0))),0,INDEX('План ввода основ. ср-в'!H:H,MATCH(B29,'План ввода основ. ср-в'!B:B,0))) -> 0 | AG29: =IF(ISNA(INDEX('План ввода основ. ср-в'!G:G,MATCH(B29,'План ввода основ. ср-в'!B:B,0))),0,INDEX('План ввода основ. ср-в'!G:G,MATCH(B29,'План ввода основ. ср-в'!B:B,0))) -> 0 | AH29: =IF(ISNA(INDEX('План ввода основ. ср-в'!J:J,MATCH(B29,'План ввода основ. ср-в'!B:B,0))),0,INDEX('План ввода основ. ср-в'!J:J,MATCH(B29,'План ввода основ. ср-в'!B:B,0))) -> 0 | AJ29: =IF(ISNA(INDEX('План ввода основ. ср-в'!I:I,MATCH(B29,'План ввода основ. ср-в'!B:B,0))),0,INDEX('План ввода основ. ср-в'!I:I,MATCH(B29,'План ввода основ. ср-в'!B:B,0))) -> 0 | AK29: =IF(ISNA(INDEX('План ввода основ. ср-в'!L:L,MATCH(B29,'План ввода основ. ср-в'!B:B,0))),0,INDEX('План ввода основ. ср-в'!L:L,MATCH(B29,'План ввода основ. ср-в'!B:B,0))) -> 0 | AM29: =IF(ISNA(INDEX('План ввода основ. ср-в'!K:K,MATCH(B29,'План ввода основ. ср-в'!B:B,0))),0,INDEX('План ввода основ. ср-в'!K:K,MATCH(B29,'План ввода основ. ср-в'!B:B,0))) -> 0 | AN29: 0 | AO29: / | AP29: 0 | AQ29: =IF(ISNA(INDEX('План ввода основ. ср-в'!N:N,MATCH(B29,'План ввода основ. ср-в'!B:B,0))),0,INDEX('План ввода основ. ср-в'!N:N,MATCH(B29,'План ввода основ. ср-в'!B:B,0))) -> 0 | AS29: =IF(ISNA(INDEX('План ввода основ. ср-в'!M:M,MATCH(B29,'План ввода основ. ср-в'!B:B,0))),0,INDEX('План ввода основ. ср-в'!M:M,MATCH(B29,'План ввода основ. ср-в'!B:B,0))) -> 0 | AT29: =IF(ISNA(INDEX('План ввода основ. ср-в'!P:P,MATCH(B29,'План ввода основ. ср-в'!B:B,0))),0,INDEX('План ввода основ. ср-в'!P:P,MATCH(B29,'План ввода основ. ср-в'!B:B,0))) -> 3.08 | AU29: / | AV29: =IF(ISNA(INDEX('План ввода основ. ср-в'!O:O,MATCH(B29,'План ввода основ. ср-в'!B:B,0))),0,INDEX('План ввода основ. ср-в'!O:O,MATCH(B29,'План ввода основ. ср-в'!B:B,0))) -> 0.4 | AW29: =IF(ISNA(INDEX('План ввода основ. ср-в'!R:R,MATCH(B29,'План ввода основ. ср-в'!B:B,0))),0,INDEX('План ввода основ. ср-в'!R:R,MATCH(B29,'План ввода основ. ср-в'!B:B,0))) -> 0 | AY29: =IF(ISNA(INDEX('План ввода основ. ср-в'!Q:Q,MATCH(B29,'План ввода основ. ср-в'!B:B,0))),0,INDEX('План ввода основ. ср-в'!Q:Q,MATCH(B29,'План ввода основ. ср-в'!B:B,0))) -> 0 | AZ29: =IF(ISNA(INDEX('План ввода основ. ср-в'!T:T,MATCH(B29,'План ввода основ. ср-в'!B:B,0))),0,INDEX('План ввода основ. ср-в'!T:T,MATCH(B29,'План ввода основ. ср-в'!B:B,0))) -> 0 | BB29: =IF(ISNA(INDEX('План ввода основ. ср-в'!S:S,MATCH(B29,'План ввода основ. ср-в'!B:B,0))),0,INDEX('План ввода основ. ср-в'!S:S,MATCH(B29,'План ввода основ. ср-в'!B:B,0))) -> 0 | BC29: 3.08 | BD29: / | BE29: 0.4 | BF29: =IF(ISNA(INDEX('План ввода основ. ср-в'!V:V,MATCH(B29,'План ввода основ. ср-в'!B:B,0))),0,INDEX('План ввода основ. ср-в'!V:V,MATCH(B29,'План ввода основ. ср-в'!B:B,0))) -> 0 | BG29: =IF(ISNA(INDEX('План ввода основ. ср-в'!W:W,MATCH(B29,'План ввода основ. ср-в'!B:B,0))),0,INDEX('План ввода основ. ср-в'!W:W,MATCH(B29,'План ввода основ. ср-в'!B:B,0))) -> 0 | BH29: =IF(ISNA(INDEX('План ввода основ. ср-в'!X:X,MATCH(B29,'План ввода основ. ср-в'!B:B,0))),0,INDEX('План ввода основ. ср-в'!X:X,MATCH(B29,'План ввода основ. ср-в'!B:B,0))) -> 0 | BI29: =IF(ISNA(INDEX('План ввода основ. ср-в'!Y:Y,MATCH(B29,'План ввода основ. ср-в'!B:B,0))),0,INDEX('План ввода основ. ср-в'!Y:Y,MATCH(B29,'План ввода основ. ср-в'!B:B,0))) -> 0 | BJ29: 0 | BK29: =IF(ISNA(INDEX('План ввода основ. ср-в'!Z:Z,MATCH(B29,'План ввода основ. ср-в'!B:B,0))),0,INDEX('План ввода основ. ср-в'!Z:Z,MATCH(B29,'План ввода основ. ср-в'!B:B,0))) -> 0 | BL29: =IF(ISNA(INDEX('План ввода основ. ср-в'!AA:AA,MATCH(B29,'План ввода основ. ср-в'!B:B,0))),0,INDEX('План ввода основ. ср-в'!AA:AA,MATCH(B29,'План ввода основ. ср-в'!B:B,0))) -> 8.325423729 | BM29: =IF(ISNA(INDEX('План ввода основ. ср-в'!AB:AB,MATCH(B29,'План ввода основ. ср-в'!B:B,0))),0,INDEX('План ввода основ. ср-в'!AB:AB,MATCH(B29,'План ввода основ. ср-в'!B:B,0))) -> 0 | BN29: =IF(ISNA(INDEX('План ввода основ. ср-в'!AC:AC,MATCH(B29,'План ввода основ. ср-в'!B:B,0))),0,INDEX('План ввода основ. ср-в'!AC:AC,MATCH(B29,'План ввода основ. ср-в'!B:B,0))) -> 0 | BO29: 8.325423729
A30: 8 | B30: Реконструкция ВЛ-0,4кВ от КТП А 2003/400 кВА с заменой КТП | I30: 0 | K30: 0 | L30: 0 | N30: 0 | O30: 0 | Q30: 0 | R30: 1.035 | S30: / | T30: 0.4 | U30: 0 | W30: 0 | X30: 1.035 | Y30: / | Z30: 0.4 | AA30: 3.472881356 | AB30: =IF(ISNA(INDEX('План ввода основ. ср-в'!F:F,MATCH(B30,'План ввода основ. ср-в'!B:B,0))),0,INDEX('План ввода основ. ср-в'!F:F,MATCH(B30,'План ввода основ. ср-в'!B:B,0))) -> 0 | AD30: =IF(ISNA(INDEX('План ввода основ. ср-в'!E:E,MATCH(B30,'План ввода основ. ср-в'!B:B,0))),0,INDEX('План ввода основ. ср-в'!E:E,MATCH(B30,'План ввода основ. ср-в'!B:B,0))) -> 0 | AE30: =IF(ISNA(INDEX('План ввода основ. ср-в'!H:H,MATCH(B30,'План ввода основ. ср-в'!B:B,0))),0,INDEX('План ввода основ. ср-в'!H:H,MATCH(B30,'План ввода основ. ср-в'!B:B,0))) -> 0 | AG30: =IF(ISNA(INDEX('План ввода основ. ср-в'!G:G,MATCH(B30,'План ввода основ. ср-в'!B:B,0))),0,INDEX('План ввода основ. ср-в'!G:G,MATCH(B30,'План ввода основ. ср-в'!B:B,0))) -> 0 | AH30: =IF(ISNA(INDEX('План ввода основ. ср-в'!J:J,MATCH(B30,'План ввода основ. ср-в'!B:B,0))),0,INDEX('План ввода основ. ср-в'!J:J,MATCH(B30,'План ввода основ. ср-в'!B:B,0))) -> 0 | AJ30: =IF(ISNA(INDEX('План ввода основ. ср-в'!I:I,MATCH(B30,'План ввода основ. ср-в'!B:B,0))),0,INDEX('План ввода основ. ср-в'!I:I,MATCH(B30,'План ввода основ. ср-в'!B:B,0))) -> 0 | AK30: =IF(ISNA(INDEX('План ввода основ. ср-в'!L:L,MATCH(B30,'План ввода основ. ср-в'!B:B,0))),0,INDEX('План ввода основ. ср-в'!L:L,MATCH(B30,'План ввода основ. ср-в'!B:B,0))) -> 0 | AM30: =IF(ISNA(INDEX('План ввода основ. ср-в'!K:K,MATCH(B30,'План ввода основ. ср-в'!B:B,0))),0,INDEX('План ввода основ. ср-в'!K:K,MATCH(B30,'План ввода основ. ср-в'!B:B,0))) -> 0 | AN30: 0 | AO30: / | AP30: 0 | AQ30: =IF(ISNA(INDEX('План ввода основ. ср-в'!N:N,MATCH(B30,'План ввода основ. ср-в'!B:B,0))),0,INDEX('План ввода основ. ср-в'!N:N,MATCH(B30,'План ввода основ. ср-в'!B:B,0))) -> 0 | AS30: =IF(ISNA(INDEX('План ввода основ. ср-в'!M:M,MATCH(B30,'План ввода основ. ср-в'!B:B,0))),0,INDEX('План ввода основ. ср-в'!M:M,MATCH(B30,'План ввода основ. ср-в'!B:B,0))) -> 0 | AT30: =IF(ISNA(INDEX('План ввода основ. ср-в'!P:P,MATCH(B30,'План ввода основ. ср-в'!B:B,0))),0,INDEX('План ввода основ. ср-в'!P:P,MATCH(B30,'План ввода основ. ср-в'!B:B,0))) -> 0 | AV30: =IF(ISNA(INDEX('План ввода основ. ср-в'!O:O,MATCH(B30,'План ввода основ. ср-в'!B:B,0))),0,INDEX('План ввода основ. ср-в'!O:O,MATCH(B30,'План ввода основ. ср-в'!B:B,0))) -> 0 | AW30: =IF(ISNA(INDEX('План ввода основ. ср-в'!R:R,MATCH(B30,'План ввода основ. ср-в'!B:B,0))),0,INDEX('План ввода основ. ср-в'!R:R,MATCH(B30,'План ввода основ. ср-в'!B:B,0))) -> 1.035 | AX30: / | AY30: =IF(ISNA(INDEX('План ввода основ. ср-в'!Q:Q,MATCH(B30,'План ввода основ. ср-в'!B:B,0))),0,INDEX('План ввода основ. ср-в'!Q:Q,MATCH(B30,'План ввода основ. ср-в'!B:B,0))) -> 0.4 | AZ30: =IF(ISNA(INDEX('План ввода основ. ср-в'!T:T,MATCH(B30,'План ввода основ. ср-в'!B:B,0))),0,INDEX('План ввода основ. ср-в'!T:T,MATCH(B30,'План ввода основ. ср-в'!B:B,0))) -> 0 | BB30: =IF(ISNA(INDEX('План ввода основ. ср-в'!S:S,MATCH(B30,'План ввода основ. ср-в'!B:B,0))),0,INDEX('План ввода основ. ср-в'!S:S,MATCH(B30,'План ввода основ. ср-в'!B:B,0))) -> 0 | BC30: 1.035 | BD30: / | BE30: 0.4 | BF30: =IF(ISNA(INDEX('План ввода основ. ср-в'!V:V,MATCH(B30,'План ввода основ. ср-в'!B:B,0))),0,INDEX('План ввода основ. ср-в'!V:V,MATCH(B30,'План ввода основ. ср-в'!B:B,0))) -> 0 | BG30: =IF(ISNA(INDEX('План ввода основ. ср-в'!W:W,MATCH(B30,'План ввода основ. ср-в'!B:B,0))),0,INDEX('План ввода основ. ср-в'!W:W,MATCH(B30,'План ввода основ. ср-в'!B:B,0))) -> 0 | BH30: =IF(ISNA(INDEX('План ввода основ. ср-в'!X:X,MATCH(B30,'План ввода основ. ср-в'!B:B,0))),0,INDEX('План ввода основ. ср-в'!X:X,MATCH(B30,'План ввода основ. ср-в'!B:B,0))) -> 0 | BI30: =IF(ISNA(INDEX('План ввода основ. ср-в'!Y:Y,MATCH(B30,'План ввода основ. ср-в'!B:B,0))),0,INDEX('План ввода основ. ср-в'!Y:Y,MATCH(B30,'План ввода основ. ср-в'!B:B,0))) -> 0 | BJ30: 0 | BK30: =IF(ISNA(INDEX('План ввода основ. ср-в'!Z:Z,MATCH(B30,'План ввода основ. ср-в'!B:B,0))),0,INDEX('План ввода основ. ср-в'!Z:Z,MATCH(B30,'План ввода основ. ср-в'!B:B,0))) -> 0 | BL30: =IF(ISNA(INDEX('План ввода основ. ср-в'!AA:AA,MATCH(B30,'План ввода основ. ср-в'!B:B,0))),0,INDEX('План ввода основ. ср-в'!AA:AA,MATCH(B30,'План ввода основ. ср-в'!B:B,0))) -> 0 | BM30: =IF(ISNA(INDEX('План ввода основ. ср-в'!AB:AB,MATCH(B30,'План ввода основ. ср-в'!B:B,0))),0,INDEX('План ввода основ. ср-в'!AB:AB,MATCH(B30,'План ввода основ. ср-в'!B:B,0))) -> 3.472881356 | BN30: =IF(ISNA(INDEX('План ввода основ. ср-в'!AC:AC,MATCH(B30,'План ввода основ. ср-в'!B:B,0))),0,INDEX('План ввода основ. ср-в'!AC:AC,MATCH(B30,'План ввода основ. ср-в'!B:B,0))) -> 0 | BO30: 3.472881356
A31: 9 | B31: Реконструкция ВЛ-0,4кВ от КТП А 2110/160 кВА с заменой КТП | I31: 0 | K31: 0 | L31: 0 | N31: 0 | O31: 0 | Q31: 0 | R31: 0 | T31: 0 | U31: 1.6 | V31: / | W31: 0.16 | X31: 1.6 | Y31: / | Z31: 0.16 | AA31: 4.813559322 | AB31: =IF(ISNA(INDEX('План ввода основ. ср-в'!F:F,MATCH(B31,'План ввода основ. ср-в'!B:B,0))),0,INDEX('План ввода основ. ср-в'!F:F,MATCH(B31,'План ввода основ. ср-в'!B:B,0))) -> 0 | AD31: =IF(ISNA(INDEX('План ввода основ. ср-в'!E:E,MATCH(B31,'План ввода основ. ср-в'!B:B,0))),0,INDEX('План ввода основ. ср-в'!E:E,MATCH(B31,'План ввода основ. ср-в'!B:B,0))) -> 0 | AE31: =IF(ISNA(INDEX('План ввода основ. ср-в'!H:H,MATCH(B31,'План ввода основ. ср-в'!B:B,0))),0,INDEX('План ввода основ. ср-в'!H:H,MATCH(B31,'План ввода основ. ср-в'!B:B,0))) -> 0 | AG31: =IF(ISNA(INDEX('План ввода основ. ср-в'!G:G,MATCH(B31,'План ввода основ. ср-в'!B:B,0))),0,INDEX('План ввода основ. ср-в'!G:G,MATCH(B31,'План ввода основ. ср-в'!B:B,0))) -> 0 | AH31: =IF(ISNA(INDEX('План ввода основ. ср-в'!J:J,MATCH(B31,'План ввода основ. ср-в'!B:B,0))),0,INDEX('План ввода основ. ср-в'!J:J,MATCH(B31,'План ввода основ. ср-в'!B:B,0))) -> 0 | AJ31: =IF(ISNA(INDEX('План ввода основ. ср-в'!I:I,MATCH(B31,'План ввода основ. ср-в'!B:B,0))),0,INDEX('План ввода основ. ср-в'!I:I,MATCH(B31,'План ввода основ. ср-в'!B:B,0))) -> 0 | AK31: =IF(ISNA(INDEX('План ввода основ. ср-в'!L:L,MATCH(B31,'План ввода основ. ср-в'!B:B,0))),0,INDEX('План ввода основ. ср-в'!L:L,MATCH(B31,'План ввода основ. ср-в'!B:B,0))) -> 0 | AM31: =IF(ISNA(INDEX('План ввода основ. ср-в'!K:K,MATCH(B31,'План ввода основ. ср-в'!B:B,0))),0,INDEX('План ввода основ. ср-в'!K:K,MATCH(B31,'План ввода основ. ср-в'!B:B,0))) -> 0 | AN31: 0 | AO31: / | AP31: 0 | AQ31: =IF(ISNA(INDEX('План ввода основ. ср-в'!N:N,MATCH(B31,'План ввода основ. ср-в'!B:B,0))),0,INDEX('План ввода основ. ср-в'!N:N,MATCH(B31,'План ввода основ. ср-в'!B:B,0))) -> 0 | AS31: =IF(ISNA(INDEX('План ввода основ. ср-в'!M:M,MATCH(B31,'План ввода основ. ср-в'!B:B,0))),0,INDEX('План ввода основ. ср-в'!M:M,MATCH(B31,'План ввода основ. ср-в'!B:B,0))) -> 0 | AT31: =IF(ISNA(INDEX('План ввода основ. ср-в'!P:P,MATCH(B31,'План ввода основ. ср-в'!B:B,0))),0,INDEX('План ввода основ. ср-в'!P:P,MATCH(B31,'План ввода основ. ср-в'!B:B,0))) -> 0 | AV31: =IF(ISNA(INDEX('План ввода основ. ср-в'!O:O,MATCH(B31,'План ввода основ. ср-в'!B:B,0))),0,INDEX('План ввода основ. ср-в'!O:O,MATCH(B31,'План ввода основ. ср-в'!B:B,0))) -> 0 | AW31: =IF(ISNA(INDEX('План ввода основ. ср-в'!R:R,MATCH(B31,'План ввода основ. ср-в'!B:B,0))),0,INDEX('План ввода основ. ср-в'!R:R,MATCH(B31,'План ввода основ. ср-в'!B:B,0))) -> 0 | AY31: =IF(ISNA(INDEX('План ввода основ. ср-в'!Q:Q,MATCH(B31,'План ввода основ. ср-в'!B:B,0))),0,INDEX('План ввода основ. ср-в'!Q:Q,MATCH(B31,'План ввода основ. ср-в'!B:B,0))) -> 0 | AZ31: =IF(ISNA(INDEX('План ввода основ. ср-в'!T:T,MATCH(B31,'План ввода основ. ср-в'!B:B,0))),0,INDEX('План ввода основ. ср-в'!T:T,MATCH(B31,'План ввода основ. ср-в'!B:B,0))) -> 1.6 | BA31: / | BB31: =IF(ISNA(INDEX('План ввода основ. ср-в'!S:S,MATCH(B31,'План ввода основ. ср-в'!B:B,0))),0,INDEX('План ввода основ. ср-в'!S:S,MATCH(B31,'План ввода основ. ср-в'!B:B,0))) -> 0.16 | BC31: 1.6 | BD31: / | BE31: 0.16 | BF31: =IF(ISNA(INDEX('План ввода основ. ср-в'!V:V,MATCH(B31,'План ввода основ. ср-в'!B:B,0))),0,INDEX('План ввода основ. ср-в'!V:V,MATCH(B31,'План ввода основ. ср-в'!B:B,0))) -> 0 | BG31: =IF(ISNA(INDEX('План ввода основ. ср-в'!W:W,MATCH(B31,'План ввода основ. ср-в'!B:B,0))),0,INDEX('План ввода основ. ср-в'!W:W,MATCH(B31,'План ввода основ. ср-в'!B:B,0))) -> 0 | BH31: =IF(ISNA(INDEX('План ввода основ. ср-в'!X:X,MATCH(B31,'План ввода основ. ср-в'!B:B,0))),0,INDEX('План ввода основ. ср-в'!X:X,MATCH(B31,'План ввода основ. ср-в'!B:B,0))) -> 0 | BI31: =IF(ISNA(INDEX('План ввода основ. ср-в'!Y:Y,MATCH(B31,'План ввода основ. ср-в'!B:B,0))),0,INDEX('План ввода основ. ср-в'!Y:Y,MATCH(B31,'План ввода основ. ср-в'!B:B,0))) -> 0 | BJ31: 0 | BK31: =IF(ISNA(INDEX('План ввода основ. ср-в'!Z:Z,MATCH(B31,'План ввода основ. ср-в'!B:B,0))),0,INDEX('План ввода основ. ср-в'!Z:Z,MATCH(B31,'План ввода основ. ср-в'!B:B,0))) -> 0 | BL31: =IF(ISNA(INDEX('План ввода основ. ср-в'!AA:AA,MATCH(B31,'План ввода основ. ср-в'!B:B,0))),0,INDEX('План ввода основ. ср-в'!AA:AA,MATCH(B31,'План ввода основ. ср-в'!B:B,0))) -> 0 | BM31: =IF(ISNA(INDEX('План ввода основ. ср-в'!AB:AB,MATCH(B31,'План ввода основ. ср-в'!B:B,0))),0,INDEX('План ввода основ. ср-в'!AB:AB,MATCH(B31,'План ввода основ. ср-в'!B:B,0))) -> 0 | BN31: =IF(ISNA(INDEX('План ввода основ. ср-в'!AC:AC,MATCH(B31,'План ввода основ. ср-в'!B:B,0))),0,INDEX('План ввода основ. ср-в'!AC:AC,MATCH(B31,'План ввода основ. ср-в'!B:B,0))) -> 4.813559322 | BO31: 4.813559322
A32: 10 | B32: Больше-Черниговский район | I32: 0 | K32: 0 | L32: 0 | N32: 0 | O32: 0 | Q32: 0 | R32: 0 | T32: 0 | U32: 0 | W32: 0 | X32: 0 | Y32: / | Z32: 0 | AA32: 0 | AB32: =IF(ISNA(INDEX('План ввода основ. ср-в'!F:F,MATCH(B32,'План ввода основ. ср-в'!B:B,0))),0,INDEX('План ввода основ. ср-в'!F:F,MATCH(B32,'План ввода основ. ср-в'!B:B,0))) -> 0 | AD32: =IF(ISNA(INDEX('План ввода основ. ср-в'!E:E,MATCH(B32,'План ввода основ. ср-в'!B:B,0))),0,INDEX('План ввода основ. ср-в'!E:E,MATCH(B32,'План ввода основ. ср-в'!B:B,0))) -> 0 | AE32: =IF(ISNA(INDEX('План ввода основ. ср-в'!H:H,MATCH(B32,'План ввода основ. ср-в'!B:B,0))),0,INDEX('План ввода основ. ср-в'!H:H,MATCH(B32,'План ввода основ. ср-в'!B:B,0))) -> 0 | AG32: =IF(ISNA(INDEX('План ввода основ. ср-в'!G:G,MATCH(B32,'План ввода основ. ср-в'!B:B,0))),0,INDEX('План ввода основ. ср-в'!G:G,MATCH(B32,'План ввода основ. ср-в'!B:B,0))) -> 0 | AH32: =IF(ISNA(INDEX('План ввода основ. ср-в'!J:J,MATCH(B32,'План ввода основ. ср-в'!B:B,0))),0,INDEX('План ввода основ. ср-в'!J:J,MATCH(B32,'План ввода основ. ср-в'!B:B,0))) -> 0 | AJ32: =IF(ISNA(INDEX('План ввода основ. ср-в'!I:I,MATCH(B32,'План ввода основ. ср-в'!B:B,0))),0,INDEX('План ввода основ. ср-в'!I:I,MATCH(B32,'План ввода основ. ср-в'!B:B,0))) -> 0 | AK32: =IF(ISNA(INDEX('План ввода основ. ср-в'!L:L,MATCH(B32,'План ввода основ. ср-в'!B:B,0))),0,INDEX('План ввода основ. ср-в'!L:L,MATCH(B32,'План ввода основ. ср-в'!B:B,0))) -> 0 | AM32: =IF(ISNA(INDEX('План ввода основ. ср-в'!K:K,MATCH(B32,'План ввода основ. ср-в'!B:B,0))),0,INDEX('План ввода основ. ср-в'!K:K,MATCH(B32,'План ввода основ. ср-в'!B:B,0))) -> 0 | AN32: 0 | AO32: / | AP32: 0 | AQ32: =IF(ISNA(INDEX('План ввода основ. ср-в'!N:N,MATCH(B32,'План ввода основ. ср-в'!B:B,0))),0,INDEX('План ввода основ. ср-в'!N:N,MATCH(B32,'План ввода основ. ср-в'!B:B,0))) -> 0 | AS32: =IF(ISNA(INDEX('План ввода основ. ср-в'!M:M,MATCH(B32,'План ввода основ. ср-в'!B:B,0))),0,INDEX('План ввода основ. ср-в'!M:M,MATCH(B32,'План ввода основ. ср-в'!B:B,0))) -> 0 | AT32: =IF(ISNA(INDEX('План ввода основ. ср-в'!P:P,MATCH(B32,'План ввода основ. ср-в'!B:B,0))),0,INDEX('План ввода основ. ср-в'!P:P,MATCH(B32,'План ввода основ. ср-в'!B:B,0))) -> 0 | AV32: =IF(ISNA(INDEX('План ввода основ. ср-в'!O:O,MATCH(B32,'План ввода основ. ср-в'!B:B,0))),0,INDEX('План ввода основ. ср-в'!O:O,MATCH(B32,'План ввода основ. ср-в'!B:B,0))) -> 0 | AW32: =IF(ISNA(INDEX('План ввода основ. ср-в'!R:R,MATCH(B32,'План ввода основ. ср-в'!B:B,0))),0,INDEX('План ввода основ. ср-в'!R:R,MATCH(B32,'План ввода основ. ср-в'!B:B,0))) -> 0 | AY32: =IF(ISNA(INDEX('План ввода основ. ср-в'!Q:Q,MATCH(B32,'План ввода основ. ср-в'!B:B,0))),0,INDEX('План ввода основ. ср-в'!Q:Q,MATCH(B32,'План ввода основ. ср-в'!B:B,0))) -> 0 | AZ32: =IF(ISNA(INDEX('План ввода основ. ср-в'!T:T,MATCH(B32,'План ввода основ. ср-в'!B:B,0))),0,INDEX('План ввода основ. ср-в'!T:T,MATCH(B32,'План ввода основ. ср-в'!B:B,0))) -> 0 | BB32: =IF(ISNA(INDEX('План ввода основ. ср-в'!S:S,MATCH(B32,'План ввода основ. ср-в'!B:B,0))),0,INDEX('План ввода основ. ср-в'!S:S,MATCH(B32,'План ввода основ. ср-в'!B:B,0))) -> 0 | BC32: 0 | BD32: / | BE32: 0 | BF32: =IF(ISNA(INDEX('План ввода основ. ср-в'!V:V,MATCH(B32,'План ввода основ. ср-в'!B:B,0))),0,INDEX('План ввода основ. ср-в'!V:V,MATCH(B32,'План ввода основ. ср-в'!B:B,0))) -> 0 | BG32: =IF(ISNA(INDEX('План ввода основ. ср-в'!W:W,MATCH(B32,'План ввода основ. ср-в'!B:B,0))),0,INDEX('План ввода основ. ср-в'!W:W,MATCH(B32,'План ввода основ. ср-в'!B:B,0))) -> 0 | BH32: =IF(ISNA(INDEX('План ввода основ. ср-в'!X:X,MATCH(B32,'План ввода основ. ср-в'!B:B,0))),0,INDEX('План ввода основ. ср-в'!X:X,MATCH(B32,'План ввода основ. ср-в'!B:B,0))) -> 0 | BI32: =IF(ISNA(INDEX('План ввода основ. ср-в'!Y:Y,MATCH(B32,'План ввода основ. ср-в'!B:B,0))),0,INDEX('План ввода основ. ср-в'!Y:Y,MATCH(B32,'План ввода основ. ср-в'!B:B,0))) -> 0 | BJ32: 0 | BK32: =IF(ISNA(INDEX('План ввода основ. ср-в'!Z:Z,MATCH(B32,'План ввода основ. ср-в'!B:B,0))),0,INDEX('План ввода основ. ср-в'!Z:Z,MATCH(B32,'План ввода основ. ср-в'!B:B,0))) -> 0 | BL32: =IF(ISNA(INDEX('План ввода основ. ср-в'!AA:AA,MATCH(B32,'План ввода основ. ср-в'!B:B,0))),0,INDEX('План ввода основ. ср-в'!AA:AA,MATCH(B32,'План ввода основ. ср-в'!B:B,0))) -> 0 | BM32: =IF(ISNA(INDEX('План ввода основ. ср-в'!AB:AB,MATCH(B32,'План ввода основ. ср-в'!B:B,0))),0,INDEX('План ввода основ. ср-в'!AB:AB,MATCH(B32,'План ввода основ. ср-в'!B:B,0))) -> 0 | BN32: =IF(ISNA(INDEX('План ввода основ. ср-в'!AC:AC,MATCH(B32,'План ввода основ. ср-в'!B:B,0))),0,INDEX('План ввода основ. ср-в'!AC:AC,MATCH(B32,'План ввода основ. ср-в'!B:B,0))) -> 0 | BO32: 0
A33: 11 | B33: Реконструкция ВЛ-0,4кВ от КТП 1205/400 кВА с заменой КТП | I33: 1.68 | J33: / | K33: 0.4 | L33: 0 | N33: 0 | O33: 0 | Q33: 0 | R33: 0 | T33: 0 | U33: 0 | W33: 0 | X33: 1.68 | Y33: / | Z33: 0.4 | AA33: 5.911864407 | AB33: =IF(ISNA(INDEX('План ввода основ. ср-в'!F:F,MATCH(B33,'План ввода основ. ср-в'!B:B,0))),0,INDEX('План ввода основ. ср-в'!F:F,MATCH(B33,'План ввода основ. ср-в'!B:B,0))) -> 0 | AD33: =IF(ISNA(INDEX('План ввода основ. ср-в'!E:E,MATCH(B33,'План ввода основ. ср-в'!B:B,0))),0,INDEX('План ввода основ. ср-в'!E:E,MATCH(B33,'План ввода основ. ср-в'!B:B,0))) -> 0 | AE33: =IF(ISNA(INDEX('План ввода основ. ср-в'!H:H,MATCH(B33,'План ввода основ. ср-в'!B:B,0))),0,INDEX('План ввода основ. ср-в'!H:H,MATCH(B33,'План ввода основ. ср-в'!B:B,0))) -> 0 | AG33: =IF(ISNA(INDEX('План ввода основ. ср-в'!G:G,MATCH(B33,'План ввода основ. ср-в'!B:B,0))),0,INDEX('План ввода основ. ср-в'!G:G,MATCH(B33,'План ввода основ. ср-в'!B:B,0))) -> 0 | AH33: =IF(ISNA(INDEX('План ввода основ. ср-в'!J:J,MATCH(B33,'План ввода основ. ср-в'!B:B,0))),0,INDEX('План ввода основ. ср-в'!J:J,MATCH(B33,'План ввода основ. ср-в'!B:B,0))) -> 0 | AJ33: =IF(ISNA(INDEX('План ввода основ. ср-в'!I:I,MATCH(B33,'План ввода основ. ср-в'!B:B,0))),0,INDEX('План ввода основ. ср-в'!I:I,MATCH(B33,'План ввода основ. ср-в'!B:B,0))) -> 0 | AK33: =IF(ISNA(INDEX('План ввода основ. ср-в'!L:L,MATCH(B33,'План ввода основ. ср-в'!B:B,0))),0,INDEX('План ввода основ. ср-в'!L:L,MATCH(B33,'План ввода основ. ср-в'!B:B,0))) -> 1.68 | AL33: / | AM33: =IF(ISNA(INDEX('План ввода основ. ср-в'!K:K,MATCH(B33,'План ввода основ. ср-в'!B:B,0))),0,INDEX('План ввода основ. ср-в'!K:K,MATCH(B33,'План ввода основ. ср-в'!B:B,0))) -> 0.4 | AN33: 1.68 | AO33: / | AP33: 0.4 | AQ33: =IF(ISNA(INDEX('План ввода основ. ср-в'!N:N,MATCH(B33,'План ввода основ. ср-в'!B:B,0))),0,INDEX('План ввода основ. ср-в'!N:N,MATCH(B33,'План ввода основ. ср-в'!B:B,0))) -> 0 | AS33: =IF(ISNA(INDEX('План ввода основ. ср-в'!M:M,MATCH(B33,'План ввода основ. ср-в'!B:B,0))),0,INDEX('План ввода основ. ср-в'!M:M,MATCH(B33,'План ввода основ. ср-в'!B:B,0))) -> 0 | AT33: =IF(ISNA(INDEX('План ввода основ. ср-в'!P:P,MATCH(B33,'План ввода основ. ср-в'!B:B,0))),0,INDEX('План ввода основ. ср-в'!P:P,MATCH(B33,'План ввода основ. ср-в'!B:B,0))) -> 0 | AV33: =IF(ISNA(INDEX('План ввода основ. ср-в'!O:O,MATCH(B33,'План ввода основ. ср-в'!B:B,0))),0,INDEX('План ввода основ. ср-в'!O:O,MATCH(B33,'План ввода основ. ср-в'!B:B,0))) -> 0 | AW33: =IF(ISNA(INDEX('План ввода основ. ср-в'!R:R,MATCH(B33,'План ввода основ. ср-в'!B:B,0))),0,INDEX('План ввода основ. ср-в'!R:R,MATCH(B33,'План ввода основ. ср-в'!B:B,0))) -> 0 | AY33: =IF(ISNA(INDEX('План ввода основ. ср-в'!Q:Q,MATCH(B33,'План ввода основ. ср-в'!B:B,0))),0,INDEX('План ввода основ. ср-в'!Q:Q,MATCH(B33,'План ввода основ. ср-в'!B:B,0))) -> 0 | AZ33: =IF(ISNA(INDEX('План ввода основ. ср-в'!T:T,MATCH(B33,'План ввода основ. ср-в'!B:B,0))),0,INDEX('План ввода основ. ср-в'!T:T,MATCH(B33,'План ввода основ. ср-в'!B:B,0))) -> 0 | BB33: =IF(ISNA(INDEX('План ввода основ. ср-в'!S:S,MATCH(B33,'План ввода основ. ср-в'!B:B,0))),0,INDEX('План ввода основ. ср-в'!S:S,MATCH(B33,'План ввода основ. ср-в'!B:B,0))) -> 0 | BC33: 1.68 | BD33: / | BE33: 0.4 | BF33: =IF(ISNA(INDEX('План ввода основ. ср-в'!V:V,MATCH(B33,'План ввода основ. ср-в'!B:B,0))),0,INDEX('План ввода основ. ср-в'!V:V,MATCH(B33,'План ввода основ. ср-в'!B:B,0))) -> 0 | BG33: =IF(ISNA(INDEX('План ввода основ. ср-в'!W:W,MATCH(B33,'План ввода основ. ср-в'!B:B,0))),0,INDEX('План ввода основ. ср-в'!W:W,MATCH(B33,'План ввода основ. ср-в'!B:B,0))) -> 0.886779661 | BH33: =IF(ISNA(INDEX('План ввода основ. ср-в'!X:X,MATCH(B33,'План ввода основ. ср-в'!B:B,0))),0,INDEX('План ввода основ. ср-в'!X:X,MATCH(B33,'План ввода основ. ср-в'!B:B,0))) -> 2.069152542 | BI33: =IF(ISNA(INDEX('План ввода основ. ср-в'!Y:Y,MATCH(B33,'План ввода основ. ср-в'!B:B,0))),0,INDEX('План ввода основ. ср-в'!Y:Y,MATCH(B33,'План ввода основ. ср-в'!B:B,0))) -> 2.955932203 | BJ33: 5.911864407 | BK33: =IF(ISNA(INDEX('План ввода основ. ср-в'!Z:Z,MATCH(B33,'План ввода основ. ср-в'!B:B,0))),0,INDEX('План ввода основ. ср-в'!Z:Z,MATCH(B33,'План ввода основ. ср-в'!B:B,0))) -> 0 | BL33: =IF(ISNA(INDEX('План ввода основ. ср-в'!AA:AA,MATCH(B33,'План ввода основ. ср-в'!B:B,0))),0,INDEX('План ввода основ. ср-в'!AA:AA,MATCH(B33,'План ввода основ. ср-в'!B:B,0))) -> 0 | BM33: =IF(ISNA(INDEX('План ввода основ. ср-в'!AB:AB,MATCH(B33,'План ввода основ. ср-в'!B:B,0))),0,INDEX('План ввода основ. ср-в'!AB:AB,MATCH(B33,'План ввода основ. ср-в'!B:B,0))) -> 0 | BN33: =IF(ISNA(INDEX('План ввода основ. ср-в'!AC:AC,MATCH(B33,'План ввода основ. ср-в'!B:B,0))),0,INDEX('План ввода основ. ср-в'!AC:AC,MATCH(B33,'План ввода основ. ср-в'!B:B,0))) -> 0 | BO33: 5.911864407
A34: 12 | B34: Реконструкция ВЛ-0,4кВ от КТП 1204/400 кВА с заменой КТП | I34: 0.7 | K34: 0.4 | L34: 0 | N34: 0 | R34: 0 | T34: 0 | U34: 0 | W34: 0 | X34: 0.7 | Z34: 0.4 | AA34: 3.254237288 | AB34: =IF(ISNA(INDEX('План ввода основ. ср-в'!F:F,MATCH(B34,'План ввода основ. ср-в'!B:B,0))),0,INDEX('План ввода основ. ср-в'!F:F,MATCH(B34,'План ввода основ. ср-в'!B:B,0))) -> 0 | AD34: =IF(ISNA(INDEX('План ввода основ. ср-в'!E:E,MATCH(B34,'План ввода основ. ср-в'!B:B,0))),0,INDEX('План ввода основ. ср-в'!E:E,MATCH(B34,'План ввода основ. ср-в'!B:B,0))) -> 0 | AE34: =IF(ISNA(INDEX('План ввода основ. ср-в'!H:H,MATCH(B34,'План ввода основ. ср-в'!B:B,0))),0,INDEX('План ввода основ. ср-в'!H:H,MATCH(B34,'План ввода основ. ср-в'!B:B,0))) -> 0 | AG34: =IF(ISNA(INDEX('План ввода основ. ср-в'!G:G,MATCH(B34,'План ввода основ. ср-в'!B:B,0))),0,INDEX('План ввода основ. ср-в'!G:G,MATCH(B34,'План ввода основ. ср-в'!B:B,0))) -> 0 | AH34: =IF(ISNA(INDEX('План ввода основ. ср-в'!J:J,MATCH(B34,'План ввода основ. ср-в'!B:B,0))),0,INDEX('План ввода основ. ср-в'!J:J,MATCH(B34,'План ввода основ. ср-в'!B:B,0))) -> 0 | AJ34: =IF(ISNA(INDEX('План ввода основ. ср-в'!I:I,MATCH(B34,'План ввода основ. ср-в'!B:B,0))),0,INDEX('План ввода основ. ср-в'!I:I,MATCH(B34,'План ввода основ. ср-в'!B:B,0))) -> 0 | AK34: =IF(ISNA(INDEX('План ввода основ. ср-в'!L:L,MATCH(B34,'План ввода основ. ср-в'!B:B,0))),0,INDEX('План ввода основ. ср-в'!L:L,MATCH(B34,'План ввода основ. ср-в'!B:B,0))) -> 0.7 | AM34: =IF(ISNA(INDEX('План ввода основ. ср-в'!K:K,MATCH(B34,'План ввода основ. ср-в'!B:B,0))),0,INDEX('План ввода основ. ср-в'!K:K,MATCH(B34,'План ввода основ. ср-в'!B:B,0))) -> 0.4 | AN34: 0.7 | AP34: 0.4 | AQ34: =IF(ISNA(INDEX('План ввода основ. ср-в'!N:N,MATCH(B34,'План ввода основ. ср-в'!B:B,0))),0,INDEX('План ввода основ. ср-в'!N:N,MATCH(B34,'План ввода основ. ср-в'!B:B,0))) -> 0 | AS34: =IF(ISNA(INDEX('План ввода основ. ср-в'!M:M,MATCH(B34,'План ввода основ. ср-в'!B:B,0))),0,INDEX('План ввода основ. ср-в'!M:M,MATCH(B34,'План ввода основ. ср-в'!B:B,0))) -> 0 | AT34: =IF(ISNA(INDEX('План ввода основ. ср-в'!P:P,MATCH(B34,'План ввода основ. ср-в'!B:B,0))),0,INDEX('План ввода основ. ср-в'!P:P,MATCH(B34,'План ввода основ. ср-в'!B:B,0))) -> 0 | AV34: =IF(ISNA(INDEX('План ввода основ. ср-в'!O:O,MATCH(B34,'План ввода основ. ср-в'!B:B,0))),0,INDEX('План ввода основ. ср-в'!O:O,MATCH(B34,'План ввода основ. ср-в'!B:B,0))) -> 0 | AW34: =IF(ISNA(INDEX('План ввода основ. ср-в'!R:R,MATCH(B34,'План ввода основ. ср-в'!B:B,0))),0,INDEX('План ввода основ. ср-в'!R:R,MATCH(B34,'План ввода основ. ср-в'!B:B,0))) -> 0 | AY34: =IF(ISNA(INDEX('План ввода основ. ср-в'!Q:Q,MATCH(B34,'План ввода основ. ср-в'!B:B,0))),0,INDEX('План ввода основ. ср-в'!Q:Q,MATCH(B34,'План ввода основ. ср-в'!B:B,0))) -> 0 | AZ34: =IF(ISNA(INDEX('План ввода основ. ср-в'!T:T,MATCH(B34,'План ввода основ. ср-в'!B:B,0))),0,INDEX('План ввода основ. ср-в'!T:T,MATCH(B34,'План ввода основ. ср-в'!B:B,0))) -> 0 | BB34: =IF(ISNA(INDEX('План ввода основ. ср-в'!S:S,MATCH(B34,'План ввода основ. ср-в'!B:B,0))),0,INDEX('План ввода основ. ср-в'!S:S,MATCH(B34,'План ввода основ. ср-в'!B:B,0))) -> 0 | BC34: 0.7 | BE34: 0.4 | BG34: =IF(ISNA(INDEX('План ввода основ. ср-в'!W:W,MATCH(B34,'План ввода основ. ср-в'!B:B,0))),0,INDEX('План ввода основ. ср-в'!W:W,MATCH(B34,'План ввода основ. ср-в'!B:B,0))) -> 0.4881355932 | BH34: =IF(ISNA(INDEX('План ввода основ. ср-в'!X:X,MATCH(B34,'План ввода основ. ср-в'!B:B,0))),0,INDEX('План ввода основ. ср-в'!X:X,MATCH(B34,'План ввода основ. ср-в'!B:B,0))) -> 1.138983051 | BI34: =IF(ISNA(INDEX('План ввода основ. ср-в'!Y:Y,MATCH(B34,'План ввода основ. ср-в'!B:B,0))),0,INDEX('План ввода основ. ср-в'!Y:Y,MATCH(B34,'План ввода основ. ср-в'!B:B,0))) -> 1.627118644 | BJ34: 3.254237288 | BK34: =IF(ISNA(INDEX('План ввода основ. ср-в'!Z:Z,MATCH(B34,'План ввода основ. ср-в'!B:B,0))),0,INDEX('План ввода основ. ср-в'!Z:Z,MATCH(B34,'План ввода основ. ср-в'!B:B,0))) -> 0 | BL34: =IF(ISNA(INDEX('План ввода основ. ср-в'!AA:AA,MATCH(B34,'План ввода основ. ср-в'!B:B,0))),0,INDEX('План ввода основ. ср-в'!AA:AA,MATCH(B34,'План ввода основ. ср-в'!B:B,0))) -> 0 | BM34: =IF(ISNA(INDEX('План ввода основ. ср-в'!AB:AB,MATCH(B34,'План ввода основ. ср-в'!B:B,0))),0,INDEX('План ввода основ. ср-в'!AB:AB,MATCH(B34,'План ввода основ. ср-в'!B:B,0))) -> 0 | BN34: =IF(ISNA(INDEX('План ввода основ. ср-в'!AC:AC,MATCH(B34,'План ввода основ. ср-в'!B:B,0))),0,INDEX('План ввода основ. ср-в'!AC:AC,MATCH(B34,'План ввода основ. ср-в'!B:B,0))) -> 0 | BO34: 3.254237288
A35: 13 | B35: Реконструкция ВЛ-0,4кВ от КТП 415/250 кВА с заменой КТП | I35: 0.8 | K35: 0.25 | L35: 0 | N35: 0 | R35: 0 | T35: 0 | U35: 0 | W35: 0 | X35: 0.8 | Z35: 0.25 | AA35: 3.271186441 | AB35: =IF(ISNA(INDEX('План ввода основ. ср-в'!F:F,MATCH(B35,'План ввода основ. ср-в'!B:B,0))),0,INDEX('План ввода основ. ср-в'!F:F,MATCH(B35,'План ввода основ. ср-в'!B:B,0))) -> 0 | AD35: =IF(ISNA(INDEX('План ввода основ. ср-в'!E:E,MATCH(B35,'План ввода основ. ср-в'!B:B,0))),0,INDEX('План ввода основ. ср-в'!E:E,MATCH(B35,'План ввода основ. ср-в'!B:B,0))) -> 0 | AE35: =IF(ISNA(INDEX('План ввода основ. ср-в'!H:H,MATCH(B35,'План ввода основ. ср-в'!B:B,0))),0,INDEX('План ввода основ. ср-в'!H:H,MATCH(B35,'План ввода основ. ср-в'!B:B,0))) -> 0 | AG35: =IF(ISNA(INDEX('План ввода основ. ср-в'!G:G,MATCH(B35,'План ввода основ. ср-в'!B:B,0))),0,INDEX('План ввода основ. ср-в'!G:G,MATCH(B35,'План ввода основ. ср-в'!B:B,0))) -> 0 | AH35: =IF(ISNA(INDEX('План ввода основ. ср-в'!J:J,MATCH(B35,'План ввода основ. ср-в'!B:B,0))),0,INDEX('План ввода основ. ср-в'!J:J,MATCH(B35,'План ввода основ. ср-в'!B:B,0))) -> 0 | AJ35: =IF(ISNA(INDEX('План ввода основ. ср-в'!I:I,MATCH(B35,'План ввода основ. ср-в'!B:B,0))),0,INDEX('План ввода основ. ср-в'!I:I,MATCH(B35,'План ввода основ. ср-в'!B:B,0))) -> 0 | AK35: =IF(ISNA(INDEX('План ввода основ. ср-в'!L:L,MATCH(B35,'План ввода основ. ср-в'!B:B,0))),0,INDEX('План ввода основ. ср-в'!L:L,MATCH(B35,'План ввода основ. ср-в'!B:B,0))) -> 0.8 | AM35: =IF(ISNA(INDEX('План ввода основ. ср-в'!K:K,MATCH(B35,'План ввода основ. ср-в'!B:B,0))),0,INDEX('План ввода основ. ср-в'!K:K,MATCH(B35,'План ввода основ. ср-в'!B:B,0))) -> 0.25 | AN35: 0.8 | AP35: 0.25 | AQ35: =IF(ISNA(INDEX('План ввода основ. ср-в'!N:N,MATCH(B35,'План ввода основ. ср-в'!B:B,0))),0,INDEX('План ввода основ. ср-в'!N:N,MATCH(B35,'План ввода основ. ср-в'!B:B,0))) -> 0 | AS35: =IF(ISNA(INDEX('План ввода основ. ср-в'!M:M,MATCH(B35,'План ввода основ. ср-в'!B:B,0))),0,INDEX('План ввода основ. ср-в'!M:M,MATCH(B35,'План ввода основ. ср-в'!B:B,0))) -> 0 | AT35: =IF(ISNA(INDEX('План ввода основ. ср-в'!P:P,MATCH(B35,'План ввода основ. ср-в'!B:B,0))),0,INDEX('План ввода основ. ср-в'!P:P,MATCH(B35,'План ввода основ. ср-в'!B:B,0))) -> 0 | AV35: =IF(ISNA(INDEX('План ввода основ. ср-в'!O:O,MATCH(B35,'План ввода основ. ср-в'!B:B,0))),0,INDEX('План ввода основ. ср-в'!O:O,MATCH(B35,'План ввода основ. ср-в'!B:B,0))) -> 0 | AW35: =IF(ISNA(INDEX('План ввода основ. ср-в'!R:R,MATCH(B35,'План ввода основ. ср-в'!B:B,0))),0,INDEX('План ввода основ. ср-в'!R:R,MATCH(B35,'План ввода основ. ср-в'!B:B,0))) -> 0 | AY35: =IF(ISNA(INDEX('План ввода основ. ср-в'!Q:Q,MATCH(B35,'План ввода основ. ср-в'!B:B,0))),0,INDEX('План ввода основ. ср-в'!Q:Q,MATCH(B35,'План ввода основ. ср-в'!B:B,0))) -> 0 | AZ35: =IF(ISNA(INDEX('План ввода основ. ср-в'!T:T,MATCH(B35,'План ввода основ. ср-в'!B:B,0))),0,INDEX('План ввода основ. ср-в'!T:T,MATCH(B35,'План ввода основ. ср-в'!B:B,0))) -> 0 | BB35: =IF(ISNA(INDEX('План ввода основ. ср-в'!S:S,MATCH(B35,'План ввода основ. ср-в'!B:B,0))),0,INDEX('План ввода основ. ср-в'!S:S,MATCH(B35,'План ввода основ. ср-в'!B:B,0))) -> 0 | BC35: 0.8 | BE35: 0.25 | BG35: =IF(ISNA(INDEX('План ввода основ. ср-в'!W:W,MATCH(B35,'План ввода основ. ср-в'!B:B,0))),0,INDEX('План ввода основ. ср-в'!W:W,MATCH(B35,'План ввода основ. ср-в'!B:B,0))) -> 0.4906779661 | BH35: =IF(ISNA(INDEX('План ввода основ. ср-в'!X:X,MATCH(B35,'План ввода основ. ср-в'!B:B,0))),0,INDEX('План ввода основ. ср-в'!X:X,MATCH(B35,'План ввода основ. ср-в'!B:B,0))) -> 1.144915254 | BI35: =IF(ISNA(INDEX('План ввода основ. ср-в'!Y:Y,MATCH(B35,'План ввода основ. ср-в'!B:B,0))),0,INDEX('План ввода основ. ср-в'!Y:Y,MATCH(B35,'План ввода основ. ср-в'!B:B,0))) -> 1.63559322 | BJ35: 3.271186441 | BK35: =IF(ISNA(INDEX('План ввода основ. ср-в'!Z:Z,MATCH(B35,'План ввода основ. ср-в'!B:B,0))),0,INDEX('План ввода основ. ср-в'!Z:Z,MATCH(B35,'План ввода основ. ср-в'!B:B,0))) -> 0 | BL35: =IF(ISNA(INDEX('План ввода основ. ср-в'!AA:AA,MATCH(B35,'План ввода основ. ср-в'!B:B,0))),0,INDEX('План ввода основ. ср-в'!AA:AA,MATCH(B35,'План ввода основ. ср-в'!B:B,0))) -> 0 | BM35: =IF(ISNA(INDEX('План ввода основ. ср-в'!AB:AB,MATCH(B35,'План ввода основ. ср-в'!B:B,0))),0,INDEX('План ввода основ. ср-в'!AB:AB,MATCH(B35,'План ввода основ. ср-в'!B:B,0))) -> 0 | BN35: =IF(ISNA(INDEX('План ввода основ. ср-в'!AC:AC,MATCH(B35,'План ввода основ. ср-в'!B:B,0))),0,INDEX('План ввода основ. ср-в'!AC:AC,MATCH(B35,'План ввода основ. ср-в'!B:B,0))) -> 0 | BO35: 3.271186441
A36: 14 | B36: Реконструкция ВЛ-0,4кВ от КТП 1206/160 кВА с заменой КТП | I36: 2.2 | J36: / | K36: 0.16 | L36: 0 | N36: 0 | O36: 0 | Q36: 0 | R36: 0 | T36: 0 | U36: 0 | W36: 0 | X36: 2.2 | Y36: / | Z36: 0.16 | AA36: 7.06779661 | AB36: =IF(ISNA(INDEX('План ввода основ. ср-в'!F:F,MATCH(B36,'План ввода основ. ср-в'!B:B,0))),0,INDEX('План ввода основ. ср-в'!F:F,MATCH(B36,'План ввода основ. ср-в'!B:B,0))) -> 0 | AD36: =IF(ISNA(INDEX('План ввода основ. ср-в'!E:E,MATCH(B36,'План ввода основ. ср-в'!B:B,0))),0,INDEX('План ввода основ. ср-в'!E:E,MATCH(B36,'План ввода основ. ср-в'!B:B,0))) -> 0 | AE36: =IF(ISNA(INDEX('План ввода основ. ср-в'!H:H,MATCH(B36,'План ввода основ. ср-в'!B:B,0))),0,INDEX('План ввода основ. ср-в'!H:H,MATCH(B36,'План ввода основ. ср-в'!B:B,0))) -> 0 | AG36: =IF(ISNA(INDEX('План ввода основ. ср-в'!G:G,MATCH(B36,'План ввода основ. ср-в'!B:B,0))),0,INDEX('План ввода основ. ср-в'!G:G,MATCH(B36,'План ввода основ. ср-в'!B:B,0))) -> 0 | AH36: =IF(ISNA(INDEX('План ввода основ. ср-в'!J:J,MATCH(B36,'План ввода основ. ср-в'!B:B,0))),0,INDEX('План ввода основ. ср-в'!J:J,MATCH(B36,'План ввода основ. ср-в'!B:B,0))) -> 0 | AJ36: =IF(ISNA(INDEX('План ввода основ. ср-в'!I:I,MATCH(B36,'План ввода основ. ср-в'!B:B,0))),0,INDEX('План ввода основ. ср-в'!I:I,MATCH(B36,'План ввода основ. ср-в'!B:B,0))) -> 0 | AK36: =IF(ISNA(INDEX('План ввода основ. ср-в'!L:L,MATCH(B36,'План ввода основ. ср-в'!B:B,0))),0,INDEX('План ввода основ. ср-в'!L:L,MATCH(B36,'План ввода основ. ср-в'!B:B,0))) -> 2.2 | AL36: / | AM36: =IF(ISNA(INDEX('План ввода основ. ср-в'!K:K,MATCH(B36,'План ввода основ. ср-в'!B:B,0))),0,INDEX('План ввода основ. ср-в'!K:K,MATCH(B36,'План ввода основ. ср-в'!B:B,0))) -> 0.16 | AN36: 2.2 | AO36: / | AP36: 0.16 | AQ36: =IF(ISNA(INDEX('План ввода основ. ср-в'!N:N,MATCH(B36,'План ввода основ. ср-в'!B:B,0))),0,INDEX('План ввода основ. ср-в'!N:N,MATCH(B36,'План ввода основ. ср-в'!B:B,0))) -> 0 | AS36: =IF(ISNA(INDEX('План ввода основ. ср-в'!M:M,MATCH(B36,'План ввода основ. ср-в'!B:B,0))),0,INDEX('План ввода основ. ср-в'!M:M,MATCH(B36,'План ввода основ. ср-в'!B:B,0))) -> 0 | AT36: =IF(ISNA(INDEX('План ввода основ. ср-в'!P:P,MATCH(B36,'План ввода основ. ср-в'!B:B,0))),0,INDEX('План ввода основ. ср-в'!P:P,MATCH(B36,'План ввода основ. ср-в'!B:B,0))) -> 0 | AV36: =IF(ISNA(INDEX('План ввода основ. ср-в'!O:O,MATCH(B36,'План ввода основ. ср-в'!B:B,0))),0,INDEX('План ввода основ. ср-в'!O:O,MATCH(B36,'План ввода основ. ср-в'!B:B,0))) -> 0 | AW36: =IF(ISNA(INDEX('План ввода основ. ср-в'!R:R,MATCH(B36,'План ввода основ. ср-в'!B:B,0))),0,INDEX('План ввода основ. ср-в'!R:R,MATCH(B36,'План ввода основ. ср-в'!B:B,0))) -> 0 | AY36: =IF(ISNA(INDEX('План ввода основ. ср-в'!Q:Q,MATCH(B36,'План ввода основ. ср-в'!B:B,0))),0,INDEX('План ввода основ. ср-в'!Q:Q,MATCH(B36,'План ввода основ. ср-в'!B:B,0))) -> 0 | AZ36: =IF(ISNA(INDEX('План ввода основ. ср-в'!T:T,MATCH(B36,'План ввода основ. ср-в'!B:B,0))),0,INDEX('План ввода основ. ср-в'!T:T,MATCH(B36,'План ввода основ. ср-в'!B:B,0))) -> 0 | BB36: =IF(ISNA(INDEX('План ввода основ. ср-в'!S:S,MATCH(B36,'План ввода основ. ср-в'!B:B,0))),0,INDEX('План ввода основ. ср-в'!S:S,MATCH(B36,'План ввода основ. ср-в'!B:B,0))) -> 0 | BC36: 2.2 | BD36: / | BE36: 0.16 | BF36: =IF(ISNA(INDEX('План ввода основ. ср-в'!V:V,MATCH(B36,'План ввода основ. ср-в'!B:B,0))),0,INDEX('План ввода основ. ср-в'!V:V,MATCH(B36,'План ввода основ. ср-в'!B:B,0))) -> 0 | BG36: =IF(ISNA(INDEX('План ввода основ. ср-в'!W:W,MATCH(B36,'План ввода основ. ср-в'!B:B,0))),0,INDEX('План ввода основ. ср-в'!W:W,MATCH(B36,'План ввода основ. ср-в'!B:B,0))) -> 1.060169492 | BH36: =IF(ISNA(INDEX('План ввода основ. ср-в'!X:X,MATCH(B36,'План ввода основ. ср-в'!B:B,0))),0,INDEX('План ввода основ. ср-в'!X:X,MATCH(B36,'План ввода основ. ср-в'!B:B,0))) -> 2.473728814 | BI36: =IF(ISNA(INDEX('План ввода основ. ср-в'!Y:Y,MATCH(B36,'План ввода основ. ср-в'!B:B,0))),0,INDEX('План ввода основ. ср-в'!Y:Y,MATCH(B36,'План ввода основ. ср-в'!B:B,0))) -> 3.533898305 | BJ36: 7.06779661 | BK36: =IF(ISNA(INDEX('План ввода основ. ср-в'!Z:Z,MATCH(B36,'План ввода основ. ср-в'!B:B,0))),0,INDEX('План ввода основ. ср-в'!Z:Z,MATCH(B36,'План ввода основ. ср-в'!B:B,0))) -> 0 | BL36: =IF(ISNA(INDEX('План ввода основ. ср-в'!AA:AA,MATCH(B36,'План ввода основ. ср-в'!B:B,0))),0,INDEX('План ввода основ. ср-в'!AA:AA,MATCH(B36,'План ввода основ. ср-в'!B:B,0))) -> 0 | BM36: =IF(ISNA(INDEX('План ввода основ. ср-в'!AB:AB,MATCH(B36,'План ввода основ. ср-в'!B:B,0))),0,INDEX('План ввода основ. ср-в'!AB:AB,MATCH(B36,'План ввода основ. ср-в'!B:B,0))) -> 0 | BN36: =IF(ISNA(INDEX('План ввода основ. ср-в'!AC:AC,MATCH(B36,'План ввода основ. ср-в'!B:B,0))),0,INDEX('План ввода основ. ср-в'!AC:AC,MATCH(B36,'План ввода основ. ср-в'!B:B,0))) -> 0 | BO36: 7.06779661
A37: 15 | B37: Реконструкция ВЛ-0,4кВ от КТП 1202/250 кВА с заменой КТП | I37: 1.05 | J37: / | K37: 0.25 | L37: 0 | N37: 0 | O37: 0 | Q37: 0 | R37: 0 | T37: 0 | U37: 0 | W37: 0 | X37: 1.05 | Y37: / | Z37: 0.25 | AA37: 3.949152542 | AB37: =IF(ISNA(INDEX('План ввода основ. ср-в'!F:F,MATCH(B37,'План ввода основ. ср-в'!B:B,0))),0,INDEX('План ввода основ. ср-в'!F:F,MATCH(B37,'План ввода основ. ср-в'!B:B,0))) -> 0 | AD37: =IF(ISNA(INDEX('План ввода основ. ср-в'!E:E,MATCH(B37,'План ввода основ. ср-в'!B:B,0))),0,INDEX('План ввода основ. ср-в'!E:E,MATCH(B37,'План ввода основ. ср-в'!B:B,0))) -> 0 | AE37: =IF(ISNA(INDEX('План ввода основ. ср-в'!H:H,MATCH(B37,'План ввода основ. ср-в'!B:B,0))),0,INDEX('План ввода основ. ср-в'!H:H,MATCH(B37,'План ввода основ. ср-в'!B:B,0))) -> 0 | AG37: =IF(ISNA(INDEX('План ввода основ. ср-в'!G:G,MATCH(B37,'План ввода основ. ср-в'!B:B,0))),0,INDEX('План ввода основ. ср-в'!G:G,MATCH(B37,'План ввода основ. ср-в'!B:B,0))) -> 0 | AH37: =IF(ISNA(INDEX('План ввода основ. ср-в'!J:J,MATCH(B37,'План ввода основ. ср-в'!B:B,0))),0,INDEX('План ввода основ. ср-в'!J:J,MATCH(B37,'План ввода основ. ср-в'!B:B,0))) -> 0 | AJ37: =IF(ISNA(INDEX('План ввода основ. ср-в'!I:I,MATCH(B37,'План ввода основ. ср-в'!B:B,0))),0,INDEX('План ввода основ. ср-в'!I:I,MATCH(B37,'План ввода основ. ср-в'!B:B,0))) -> 0 | AK37: =IF(ISNA(INDEX('План ввода основ. ср-в'!L:L,MATCH(B37,'План ввода основ. ср-в'!B:B,0))),0,INDEX('План ввода основ. ср-в'!L:L,MATCH(B37,'План ввода основ. ср-в'!B:B,0))) -> 1.05 | AL37: / | AM37: =IF(ISNA(INDEX('План ввода основ. ср-в'!K:K,MATCH(B37,'План ввода основ. ср-в'!B:B,0))),0,INDEX('План ввода основ. ср-в'!K:K,MATCH(B37,'План ввода основ. ср-в'!B:B,0))) -> 0.25 | AN37: 1.05 | AO37: / | AP37: 0.25 | AQ37: =IF(ISNA(INDEX('План ввода основ. ср-в'!N:N,MATCH(B37,'План ввода основ. ср-в'!B:B,0))),0,INDEX('План ввода основ. ср-в'!N:N,MATCH(B37,'План ввода основ. ср-в'!B:B,0))) -> 0 | AS37: =IF(ISNA(INDEX('План ввода основ. ср-в'!M:M,MATCH(B37,'План ввода основ. ср-в'!B:B,0))),0,INDEX('План ввода основ. ср-в'!M:M,MATCH(B37,'План ввода основ. ср-в'!B:B,0))) -> 0 | AT37: =IF(ISNA(INDEX('План ввода основ. ср-в'!P:P,MATCH(B37,'План ввода основ. ср-в'!B:B,0))),0,INDEX('План ввода основ. ср-в'!P:P,MATCH(B37,'План ввода основ. ср-в'!B:B,0))) -> 0 | AV37: =IF(ISNA(INDEX('План ввода основ. ср-в'!O:O,MATCH(B37,'План ввода основ. ср-в'!B:B,0))),0,INDEX('План ввода основ. ср-в'!O:O,MATCH(B37,'План ввода основ. ср-в'!B:B,0))) -> 0 | AW37: =IF(ISNA(INDEX('План ввода основ. ср-в'!R:R,MATCH(B37,'План ввода основ. ср-в'!B:B,0))),0,INDEX('План ввода основ. ср-в'!R:R,MATCH(B37,'План ввода основ. ср-в'!B:B,0))) -> 0 | AY37: =IF(ISNA(INDEX('План ввода основ. ср-в'!Q:Q,MATCH(B37,'План ввода основ. ср-в'!B:B,0))),0,INDEX('План ввода основ. ср-в'!Q:Q,MATCH(B37,'План ввода основ. ср-в'!B:B,0))) -> 0 | AZ37: =IF(ISNA(INDEX('План ввода основ. ср-в'!T:T,MATCH(B37,'План ввода основ. ср-в'!B:B,0))),0,INDEX('План ввода основ. ср-в'!T:T,MATCH(B37,'План ввода основ. ср-в'!B:B,0))) -> 0 | BB37: =IF(ISNA(INDEX('План ввода основ. ср-в'!S:S,MATCH(B37,'План ввода основ. ср-в'!B:B,0))),0,INDEX('План ввода основ. ср-в'!S:S,MATCH(B37,'План ввода основ. ср-в'!B:B,0))) -> 0 | BC37: 1.05 | BD37: / | BE37: 0.25 | BF37: =IF(ISNA(INDEX('План ввода основ. ср-в'!V:V,MATCH(B37,'План ввода основ. ср-в'!B:B,0))),0,INDEX('План ввода основ. ср-в'!V:V,MATCH(B37,'План ввода основ. ср-в'!B:B,0))) -> 0 | BG37: =IF(ISNA(INDEX('План ввода основ. ср-в'!W:W,MATCH(B37,'План ввода основ. ср-в'!B:B,0))),0,INDEX('План ввода основ. ср-в'!W:W,MATCH(B37,'План ввода основ. ср-в'!B:B,0))) -> 0.5923728814 | BH37: =IF(ISNA(INDEX('План ввода основ. ср-в'!X:X,MATCH(B37,'План ввода основ. ср-в'!B:B,0))),0,INDEX('План ввода основ. ср-в'!X:X,MATCH(B37,'План ввода основ. ср-в'!B:B,0))) -> 1.38220339 | BI37: =IF(ISNA(INDEX('План ввода основ. ср-в'!Y:Y,MATCH(B37,'План ввода основ. ср-в'!B:B,0))),0,INDEX('План ввода основ. ср-в'!Y:Y,MATCH(B37,'План ввода основ. ср-в'!B:B,0))) -> 1.974576271 | BJ37: 3.949152542 | BK37: =IF(ISNA(INDEX('План ввода основ. ср-в'!Z:Z,MATCH(B37,'План ввода основ. ср-в'!B:B,0))),0,INDEX('План ввода основ. ср-в'!Z:Z,MATCH(B37,'План ввода основ. ср-в'!B:B,0))) -> 0 | BL37: =IF(ISNA(INDEX('План ввода основ. ср-в'!AA:AA,MATCH(B37,'План ввода основ. ср-в'!B:B,0))),0,INDEX('План ввода основ. ср-в'!AA:AA,MATCH(B37,'План ввода основ. ср-в'!B:B,0))) -> 0 | BM37: =IF(ISNA(INDEX('План ввода основ. ср-в'!AB:AB,MATCH(B37,'План ввода основ. ср-в'!B:B,0))),0,INDEX('План ввода основ. ср-в'!AB:AB,MATCH(B37,'План ввода основ. ср-в'!B:B,0))) -> 0 | BN37: =IF(ISNA(INDEX('План ввода основ. ср-в'!AC:AC,MATCH(B37,'План ввода основ. ср-в'!B:B,0))),0,INDEX('План ввода основ. ср-в'!AC:AC,MATCH(B37,'План ввода основ. ср-в'!B:B,0))) -> 0 | BO37: 3.949152542
A38: 16 | B38: Реконструкция ВЛ-0,4кВ от КТП 709/250 кВА с заменой КТП | I38: 0 | K38: 0 | L38: 0.42 | M38: / | N38: 0.25 | O38: 0 | Q38: 0 | R38: 0 | T38: 0 | U38: 0 | W38: 0 | X38: 0.42 | Y38: / | Z38: 0.25 | AA38: 2.013559322 | AB38: =IF(ISNA(INDEX('План ввода основ. ср-в'!F:F,MATCH(B38,'План ввода основ. ср-в'!B:B,0))),0,INDEX('План ввода основ. ср-в'!F:F,MATCH(B38,'План ввода основ. ср-в'!B:B,0))) -> 0 | AD38: =IF(ISNA(INDEX('План ввода основ. ср-в'!E:E,MATCH(B38,'План ввода основ. ср-в'!B:B,0))),0,INDEX('План ввода основ. ср-в'!E:E,MATCH(B38,'План ввода основ. ср-в'!B:B,0))) -> 0 | AE38: =IF(ISNA(INDEX('План ввода основ. ср-в'!H:H,MATCH(B38,'План ввода основ. ср-в'!B:B,0))),0,INDEX('План ввода основ. ср-в'!H:H,MATCH(B38,'План ввода основ. ср-в'!B:B,0))) -> 0 | AG38: =IF(ISNA(INDEX('План ввода основ. ср-в'!G:G,MATCH(B38,'План ввода основ. ср-в'!B:B,0))),0,INDEX('План ввода основ. ср-в'!G:G,MATCH(B38,'План ввода основ. ср-в'!B:B,0))) -> 0 | AH38: =IF(ISNA(INDEX('План ввода основ. ср-в'!J:J,MATCH(B38,'План ввода основ. ср-в'!B:B,0))),0,INDEX('План ввода основ. ср-в'!J:J,MATCH(B38,'План ввода основ. ср-в'!B:B,0))) -> 0 | AJ38: =IF(ISNA(INDEX('План ввода основ. ср-в'!I:I,MATCH(B38,'План ввода основ. ср-в'!B:B,0))),0,INDEX('План ввода основ. ср-в'!I:I,MATCH(B38,'План ввода основ. ср-в'!B:B,0))) -> 0 | AK38: =IF(ISNA(INDEX('План ввода основ. ср-в'!L:L,MATCH(B38,'План ввода основ. ср-в'!B:B,0))),0,INDEX('План ввода основ. ср-в'!L:L,MATCH(B38,'План ввода основ. ср-в'!B:B,0))) -> 0 | AM38: =IF(ISNA(INDEX('План ввода основ. ср-в'!K:K,MATCH(B38,'План ввода основ. ср-в'!B:B,0))),0,INDEX('План ввода основ. ср-в'!K:K,MATCH(B38,'План ввода основ. ср-в'!B:B,0))) -> 0 | AN38: 0 | AO38: / | AP38: 0 | AQ38: =IF(ISNA(INDEX('План ввода основ. ср-в'!N:N,MATCH(B38,'План ввода основ. ср-в'!B:B,0))),0,INDEX('План ввода основ. ср-в'!N:N,MATCH(B38,'План ввода основ. ср-в'!B:B,0))) -> 0.42 | AR38: / | AS38: =IF(ISNA(INDEX('План ввода основ. ср-в'!M:M,MATCH(B38,'План ввода основ. ср-в'!B:B,0))),0,INDEX('План ввода основ. ср-в'!M:M,MATCH(B38,'План ввода основ. ср-в'!B:B,0))) -> 0.25 | AT38: =IF(ISNA(INDEX('План ввода основ. ср-в'!P:P,MATCH(B38,'План ввода основ. ср-в'!B:B,0))),0,INDEX('План ввода основ. ср-в'!P:P,MATCH(B38,'План ввода основ. ср-в'!B:B,0))) -> 0 | AV38: =IF(ISNA(INDEX('План ввода основ. ср-в'!O:O,MATCH(B38,'План ввода основ. ср-в'!B:B,0))),0,INDEX('План ввода основ. ср-в'!O:O,MATCH(B38,'План ввода основ. ср-в'!B:B,0))) -> 0 | AW38: =IF(ISNA(INDEX('План ввода основ. ср-в'!R:R,MATCH(B38,'План ввода основ. ср-в'!B:B,0))),0,INDEX('План ввода основ. ср-в'!R:R,MATCH(B38,'План ввода основ. ср-в'!B:B,0))) -> 0 | AY38: =IF(ISNA(INDEX('План ввода основ. ср-в'!Q:Q,MATCH(B38,'План ввода основ. ср-в'!B:B,0))),0,INDEX('План ввода основ. ср-в'!Q:Q,MATCH(B38,'План ввода основ. ср-в'!B:B,0))) -> 0 | AZ38: =IF(ISNA(INDEX('План ввода основ. ср-в'!T:T,MATCH(B38,'План ввода основ. ср-в'!B:B,0))),0,INDEX('План ввода основ. ср-в'!T:T,MATCH(B38,'План ввода основ. ср-в'!B:B,0))) -> 0 | BB38: =IF(ISNA(INDEX('План ввода основ. ср-в'!S:S,MATCH(B38,'План ввода основ. ср-в'!B:B,0))),0,INDEX('План ввода основ. ср-в'!S:S,MATCH(B38,'План ввода основ. ср-в'!B:B,0))) -> 0 | BC38: 0.42 | BD38: / | BE38: 0.25 | BF38: =IF(ISNA(INDEX('План ввода основ. ср-в'!V:V,MATCH(B38,'План ввода основ. ср-в'!B:B,0))),0,INDEX('План ввода основ. ср-в'!V:V,MATCH(B38,'План ввода основ. ср-в'!B:B,0))) -> 0 | BG38: =IF(ISNA(INDEX('План ввода основ. ср-в'!W:W,MATCH(B38,'План ввода основ. ср-в'!B:B,0))),0,INDEX('План ввода основ. ср-в'!W:W,MATCH(B38,'План ввода основ. ср-в'!B:B,0))) -> 0 | BH38: =IF(ISNA(INDEX('План ввода основ. ср-в'!X:X,MATCH(B38,'План ввода основ. ср-в'!B:B,0))),0,INDEX('План ввода основ. ср-в'!X:X,MATCH(B38,'План ввода основ. ср-в'!B:B,0))) -> 0 | BI38: =IF(ISNA(INDEX('План ввода основ. ср-в'!Y:Y,MATCH(B38,'План ввода основ. ср-в'!B:B,0))),0,INDEX('План ввода основ. ср-в'!Y:Y,MATCH(B38,'План ввода основ. ср-в'!B:B,0))) -> 0 | BJ38: 0 | BK38: =IF(ISNA(INDEX('План ввода основ. ср-в'!Z:Z,MATCH(B38,'План ввода основ. ср-в'!B:B,0))),0,INDEX('План ввода основ. ср-в'!Z:Z,MATCH(B38,'План ввода основ. ср-в'!B:B,0))) -> 2.013559322 | BL38: =IF(ISNA(INDEX('План ввода основ. ср-в'!AA:AA,MATCH(B38,'План ввода основ. ср-в'!B:B,0))),0,INDEX('План ввода основ. ср-в'!AA:AA,MATCH(B38,'План ввода основ. ср-в'!B:B,0))) -> 0 | BM38: =IF(ISNA(INDEX('План ввода основ. ср-в'!AB:AB,MATCH(B38,'План ввода основ. ср-в'!B:B,0))),0,INDEX('План ввода основ. ср-в'!AB:AB,MATCH(B38,'План ввода основ. ср-в'!B:B,0))) -> 0 | BN38: =IF(ISNA(INDEX('План ввода основ. ср-в'!AC:AC,MATCH(B38,'План ввода основ. ср-в'!B:B,0))),0,INDEX('План ввода основ. ср-в'!AC:AC,MATCH(B38,'План ввода основ. ср-в'!B:B,0))) -> 0 | BO38: 2.013559322
A39: 17 | B39: Реконструкция ВЛ-0,4кВ от КТП 501/320 кВА с заменой КТП | I39: 0 | K39: 0 | L39: 0.42 | M39: / | N39: 0.32 | O39: 0 | Q39: 0 | R39: 0 | T39: 0 | U39: 0 | W39: 0 | X39: 0.42 | Y39: / | Z39: 0.32 | AA39: 2.013559322 | AB39: =IF(ISNA(INDEX('План ввода основ. ср-в'!F:F,MATCH(B39,'План ввода основ. ср-в'!B:B,0))),0,INDEX('План ввода основ. ср-в'!F:F,MATCH(B39,'План ввода основ. ср-в'!B:B,0))) -> 0 | AD39: =IF(ISNA(INDEX('План ввода основ. ср-в'!E:E,MATCH(B39,'План ввода основ. ср-в'!B:B,0))),0,INDEX('План ввода основ. ср-в'!E:E,MATCH(B39,'План ввода основ. ср-в'!B:B,0))) -> 0 | AE39: =IF(ISNA(INDEX('План ввода основ. ср-в'!H:H,MATCH(B39,'План ввода основ. ср-в'!B:B,0))),0,INDEX('План ввода основ. ср-в'!H:H,MATCH(B39,'План ввода основ. ср-в'!B:B,0))) -> 0 | AG39: =IF(ISNA(INDEX('План ввода основ. ср-в'!G:G,MATCH(B39,'План ввода основ. ср-в'!B:B,0))),0,INDEX('План ввода основ. ср-в'!G:G,MATCH(B39,'План ввода основ. ср-в'!B:B,0))) -> 0 | AH39: =IF(ISNA(INDEX('План ввода основ. ср-в'!J:J,MATCH(B39,'План ввода основ. ср-в'!B:B,0))),0,INDEX('План ввода основ. ср-в'!J:J,MATCH(B39,'План ввода основ. ср-в'!B:B,0))) -> 0 | AJ39: =IF(ISNA(INDEX('План ввода основ. ср-в'!I:I,MATCH(B39,'План ввода основ. ср-в'!B:B,0))),0,INDEX('План ввода основ. ср-в'!I:I,MATCH(B39,'План ввода основ. ср-в'!B:B,0))) -> 0 | AK39: =IF(ISNA(INDEX('План ввода основ. ср-в'!L:L,MATCH(B39,'План ввода основ. ср-в'!B:B,0))),0,INDEX('План ввода основ. ср-в'!L:L,MATCH(B39,'План ввода основ. ср-в'!B:B,0))) -> 0 | AM39: =IF(ISNA(INDEX('План ввода основ. ср-в'!K:K,MATCH(B39,'План ввода основ. ср-в'!B:B,0))),0,INDEX('План ввода основ. ср-в'!K:K,MATCH(B39,'План ввода основ. ср-в'!B:B,0))) -> 0 | AN39: 0 | AO39: / | AP39: 0 | AQ39: =IF(ISNA(INDEX('План ввода основ. ср-в'!N:N,MATCH(B39,'План ввода основ. ср-в'!B:B,0))),0,INDEX('План ввода основ. ср-в'!N:N,MATCH(B39,'План ввода основ. ср-в'!B:B,0))) -> 0.42 | AR39: / | AS39: =IF(ISNA(INDEX('План ввода основ. ср-в'!M:M,MATCH(B39,'План ввода основ. ср-в'!B:B,0))),0,INDEX('План ввода основ. ср-в'!M:M,MATCH(B39,'План ввода основ. ср-в'!B:B,0))) -> 0.32 | AT39: =IF(ISNA(INDEX('План ввода основ. ср-в'!P:P,MATCH(B39,'План ввода основ. ср-в'!B:B,0))),0,INDEX('План ввода основ. ср-в'!P:P,MATCH(B39,'План ввода основ. ср-в'!B:B,0))) -> 0 | AV39: =IF(ISNA(INDEX('План ввода основ. ср-в'!O:O,MATCH(B39,'План ввода основ. ср-в'!B:B,0))),0,INDEX('План ввода основ. ср-в'!O:O,MATCH(B39,'План ввода основ. ср-в'!B:B,0))) -> 0 | AW39: =IF(ISNA(INDEX('План ввода основ. ср-в'!R:R,MATCH(B39,'План ввода основ. ср-в'!B:B,0))),0,INDEX('План ввода основ. ср-в'!R:R,MATCH(B39,'План ввода основ. ср-в'!B:B,0))) -> 0 | AY39: =IF(ISNA(INDEX('План ввода основ. ср-в'!Q:Q,MATCH(B39,'План ввода основ. ср-в'!B:B,0))),0,INDEX('План ввода основ. ср-в'!Q:Q,MATCH(B39,'План ввода основ. ср-в'!B:B,0))) -> 0 | AZ39: =IF(ISNA(INDEX('План ввода основ. ср-в'!T:T,MATCH(B39,'План ввода основ. ср-в'!B:B,0))),0,INDEX('План ввода основ. ср-в'!T:T,MATCH(B39,'План ввода основ. ср-в'!B:B,0))) -> 0 | BB39: =IF(ISNA(INDEX('План ввода основ. ср-в'!S:S,MATCH(B39,'План ввода основ. ср-в'!B:B,0))),0,INDEX('План ввода основ. ср-в'!S:S,MATCH(B39,'План ввода основ. ср-в'!B:B,0))) -> 0 | BC39: 0.42 | BD39: / | BE39: 0.32 | BF39: =IF(ISNA(INDEX('План ввода основ. ср-в'!V:V,MATCH(B39,'План ввода основ. ср-в'!B:B,0))),0,INDEX('План ввода основ. ср-в'!V:V,MATCH(B39,'План ввода основ. ср-в'!B:B,0))) -> 0 | BG39: =IF(ISNA(INDEX('План ввода основ. ср-в'!W:W,MATCH(B39,'План ввода основ. ср-в'!B:B,0))),0,INDEX('План ввода основ. ср-в'!W:W,MATCH(B39,'План ввода основ. ср-в'!B:B,0))) -> 0 | BH39: =IF(ISNA(INDEX('План ввода основ. ср-в'!X:X,MATCH(B39,'План ввода основ. ср-в'!B:B,0))),0,INDEX('План ввода основ. ср-в'!X:X,MATCH(B39,'План ввода основ. ср-в'!B:B,0))) -> 0 | BI39: =IF(ISNA(INDEX('План ввода основ. ср-в'!Y:Y,MATCH(B39,'План ввода основ. ср-в'!B:B,0))),0,INDEX('План ввода основ. ср-в'!Y:Y,MATCH(B39,'План ввода основ. ср-в'!B:B,0))) -> 0 | BJ39: 0 | BK39: =IF(ISNA(INDEX('План ввода основ. ср-в'!Z:Z,MATCH(B39,'План ввода основ. ср-в'!B:B,0))),0,INDEX('План ввода основ. ср-в'!Z:Z,MATCH(B39,'План ввода основ. ср-в'!B:B,0))) -> 2.013559322 | BL39: =IF(ISNA(INDEX('План ввода основ. ср-в'!AA:AA,MATCH(B39,'План ввода основ. ср-в'!B:B,0))),0,INDEX('План ввода основ. ср-в'!AA:AA,MATCH(B39,'План ввода основ. ср-в'!B:B,0))) -> 0 | BM39: =IF(ISNA(INDEX('План ввода основ. ср-в'!AB:AB,MATCH(B39,'План ввода основ. ср-в'!B:B,0))),0,INDEX('План ввода основ. ср-в'!AB:AB,MATCH(B39,'План ввода основ. ср-в'!B:B,0))) -> 0 | BN39: =IF(ISNA(INDEX('План ввода основ. ср-в'!AC:AC,MATCH(B39,'План ввода основ. ср-в'!B:B,0))),0,INDEX('План ввода основ. ср-в'!AC:AC,MATCH(B39,'План ввода основ. ср-в'!B:B,0))) -> 0 | BO39: 2.013559322
A40: 18 | B40: Реконструкция ВЛ-0,4кВ от КТП 809/100 кВА с заменой КТП | I40: 0 | K40: 0 | L40: 0 | N40: 0 | O40: 1.36 | P40: / | Q40: 0.1 | R40: 0 | T40: 0 | U40: 0 | W40: 0 | X40: 1.36 | Y40: / | Z40: 0.1 | AA40: 4.244067797 | AB40: =IF(ISNA(INDEX('План ввода основ. ср-в'!F:F,MATCH(B40,'План ввода основ. ср-в'!B:B,0))),0,INDEX('План ввода основ. ср-в'!F:F,MATCH(B40,'План ввода основ. ср-в'!B:B,0))) -> 0 | AD40: =IF(ISNA(INDEX('План ввода основ. ср-в'!E:E,MATCH(B40,'План ввода основ. ср-в'!B:B,0))),0,INDEX('План ввода основ. ср-в'!E:E,MATCH(B40,'План ввода основ. ср-в'!B:B,0))) -> 0 | AE40: =IF(ISNA(INDEX('План ввода основ. ср-в'!H:H,MATCH(B40,'План ввода основ. ср-в'!B:B,0))),0,INDEX('План ввода основ. ср-в'!H:H,MATCH(B40,'План ввода основ. ср-в'!B:B,0))) -> 0 | AG40: =IF(ISNA(INDEX('План ввода основ. ср-в'!G:G,MATCH(B40,'План ввода основ. ср-в'!B:B,0))),0,INDEX('План ввода основ. ср-в'!G:G,MATCH(B40,'План ввода основ. ср-в'!B:B,0))) -> 0 | AH40: =IF(ISNA(INDEX('План ввода основ. ср-в'!J:J,MATCH(B40,'План ввода основ. ср-в'!B:B,0))),0,INDEX('План ввода основ. ср-в'!J:J,MATCH(B40,'План ввода основ. ср-в'!B:B,0))) -> 0 | AJ40: =IF(ISNA(INDEX('План ввода основ. ср-в'!I:I,MATCH(B40,'План ввода основ. ср-в'!B:B,0))),0,INDEX('План ввода основ. ср-в'!I:I,MATCH(B40,'План ввода основ. ср-в'!B:B,0))) -> 0 | AK40: =IF(ISNA(INDEX('План ввода основ. ср-в'!L:L,MATCH(B40,'План ввода основ. ср-в'!B:B,0))),0,INDEX('План ввода основ. ср-в'!L:L,MATCH(B40,'План ввода основ. ср-в'!B:B,0))) -> 0 | AM40: =IF(ISNA(INDEX('План ввода основ. ср-в'!K:K,MATCH(B40,'План ввода основ. ср-в'!B:B,0))),0,INDEX('План ввода основ. ср-в'!K:K,MATCH(B40,'План ввода основ. ср-в'!B:B,0))) -> 0 | AN40: 0 | AO40: / | AP40: 0 | AQ40: =IF(ISNA(INDEX('План ввода основ. ср-в'!N:N,MATCH(B40,'План ввода основ. ср-в'!B:B,0))),0,INDEX('План ввода основ. ср-в'!N:N,MATCH(B40,'План ввода основ. ср-в'!B:B,0))) -> 0 | AS40: =IF(ISNA(INDEX('План ввода основ. ср-в'!M:M,MATCH(B40,'План ввода основ. ср-в'!B:B,0))),0,INDEX('План ввода основ. ср-в'!M:M,MATCH(B40,'План ввода основ. ср-в'!B:B,0))) -> 0 | AT40: =IF(ISNA(INDEX('План ввода основ. ср-в'!P:P,MATCH(B40,'План ввода основ. ср-в'!B:B,0))),0,INDEX('План ввода основ. ср-в'!P:P,MATCH(B40,'План ввода основ. ср-в'!B:B,0))) -> 1.36 | AU40: / | AV40: =IF(ISNA(INDEX('План ввода основ. ср-в'!O:O,MATCH(B40,'План ввода основ. ср-в'!B:B,0))),0,INDEX('План ввода основ. ср-в'!O:O,MATCH(B40,'План ввода основ. ср-в'!B:B,0))) -> 0.1 | AW40: =IF(ISNA(INDEX('План ввода основ. ср-в'!R:R,MATCH(B40,'План ввода основ. ср-в'!B:B,0))),0,INDEX('План ввода основ. ср-в'!R:R,MATCH(B40,'План ввода основ. ср-в'!B:B,0))) -> 0 | AY40: =IF(ISNA(INDEX('План ввода основ. ср-в'!Q:Q,MATCH(B40,'План ввода основ. ср-в'!B:B,0))),0,INDEX('План ввода основ. ср-в'!Q:Q,MATCH(B40,'План ввода основ. ср-в'!B:B,0))) -> 0 | AZ40: =IF(ISNA(INDEX('План ввода основ. ср-в'!T:T,MATCH(B40,'План ввода основ. ср-в'!B:B,0))),0,INDEX('План ввода основ. ср-в'!T:T,MATCH(B40,'План ввода основ. ср-в'!B:B,0))) -> 0 | BB40: =IF(ISNA(INDEX('План ввода основ. ср-в'!S:S,MATCH(B40,'План ввода основ. ср-в'!B:B,0))),0,INDEX('План ввода основ. ср-в'!S:S,MATCH(B40,'План ввода основ. ср-в'!B:B,0))) -> 0 | BC40: 1.36 | BD40: / | BE40: 0.1 | BF40: =IF(ISNA(INDEX('План ввода основ. ср-в'!V:V,MATCH(B40,'План ввода основ. ср-в'!B:B,0))),0,INDEX('План ввода основ. ср-в'!V:V,MATCH(B40,'План ввода основ. ср-в'!B:B,0))) -> 0 | BG40: =IF(ISNA(INDEX('План ввода основ. ср-в'!W:W,MATCH(B40,'План ввода основ. ср-в'!B:B,0))),0,INDEX('План ввода основ. ср-в'!W:W,MATCH(B40,'План ввода основ. ср-в'!B:B,0))) -> 0 | BH40: =IF(ISNA(INDEX('План ввода основ. ср-в'!X:X,MATCH(B40,'План ввода основ. ср-в'!B:B,0))),0,INDEX('План ввода основ. ср-в'!X:X,MATCH(B40,'План ввода основ. ср-в'!B:B,0))) -> 0 | BI40: =IF(ISNA(INDEX('План ввода основ. ср-в'!Y:Y,MATCH(B40,'План ввода основ. ср-в'!B:B,0))),0,INDEX('План ввода основ. ср-в'!Y:Y,MATCH(B40,'План ввода основ. ср-в'!B:B,0))) -> 0 | BJ40: 0 | BK40: =IF(ISNA(INDEX('План ввода основ. ср-в'!Z:Z,MATCH(B40,'План ввода основ. ср-в'!B:B,0))),0,INDEX('План ввода основ. ср-в'!Z:Z,MATCH(B40,'План ввода основ. ср-в'!B:B,0))) -> 0 | BL40: =IF(ISNA(INDEX('План ввода основ. ср-в'!AA:AA,MATCH(B40,'План ввода основ. ср-в'!B:B,0))),0,INDEX('План ввода основ. ср-в'!AA:AA,MATCH(B40,'План ввода основ. ср-в'!B:B,0))) -> 4.244067797 | BM40: =IF(ISNA(INDEX('План ввода основ. ср-в'!AB:AB,MATCH(B40,'План ввода основ. ср-в'!B:B,0))),0,INDEX('План ввода основ. ср-в'!AB:AB,MATCH(B40,'План ввода основ. ср-в'!B:B,0))) -> 0 | BN40: =IF(ISNA(INDEX('План ввода основ. ср-в'!AC:AC,MATCH(B40,'План ввода основ. ср-в'!B:B,0))),0,INDEX('План ввода основ. ср-в'!AC:AC,MATCH(B40,'План ввода основ. ср-в'!B:B,0))) -> 0 | BO40: 4.244067797
A41: 19 | B41: Реконструкция ВЛ-0,4кВ от КТП 201/400 кВА с заменой КТП | I41: 0 | K41: 0 | L41: 0 | N41: 0 | O41: 1.6 | P41: / | Q41: 0.4 | R41: 0 | T41: 0 | U41: 0 | W41: 0 | X41: 1.6 | Y41: / | Z41: 0.4 | AA41: 4.813559322 | AB41: =IF(ISNA(INDEX('План ввода основ. ср-в'!F:F,MATCH(B41,'План ввода основ. ср-в'!B:B,0))),0,INDEX('План ввода основ. ср-в'!F:F,MATCH(B41,'План ввода основ. ср-в'!B:B,0))) -> 0 | AD41: =IF(ISNA(INDEX('План ввода основ. ср-в'!E:E,MATCH(B41,'План ввода основ. ср-в'!B:B,0))),0,INDEX('План ввода основ. ср-в'!E:E,MATCH(B41,'План ввода основ. ср-в'!B:B,0))) -> 0 | AE41: =IF(ISNA(INDEX('План ввода основ. ср-в'!H:H,MATCH(B41,'План ввода основ. ср-в'!B:B,0))),0,INDEX('План ввода основ. ср-в'!H:H,MATCH(B41,'План ввода основ. ср-в'!B:B,0))) -> 0 | AG41: =IF(ISNA(INDEX('План ввода основ. ср-в'!G:G,MATCH(B41,'План ввода основ. ср-в'!B:B,0))),0,INDEX('План ввода основ. ср-в'!G:G,MATCH(B41,'План ввода основ. ср-в'!B:B,0))) -> 0 | AH41: =IF(ISNA(INDEX('План ввода основ. ср-в'!J:J,MATCH(B41,'План ввода основ. ср-в'!B:B,0))),0,INDEX('План ввода основ. ср-в'!J:J,MATCH(B41,'План ввода основ. ср-в'!B:B,0))) -> 0 | AJ41: =IF(ISNA(INDEX('План ввода основ. ср-в'!I:I,MATCH(B41,'План ввода основ. ср-в'!B:B,0))),0,INDEX('План ввода основ. ср-в'!I:I,MATCH(B41,'План ввода основ. ср-в'!B:B,0))) -> 0 | AK41: =IF(ISNA(INDEX('План ввода основ. ср-в'!L:L,MATCH(B41,'План ввода основ. ср-в'!B:B,0))),0,INDEX('План ввода основ. ср-в'!L:L,MATCH(B41,'План ввода основ. ср-в'!B:B,0))) -> 0 | AM41: =IF(ISNA(INDEX('План ввода основ. ср-в'!K:K,MATCH(B41,'План ввода основ. ср-в'!B:B,0))),0,INDEX('План ввода основ. ср-в'!K:K,MATCH(B41,'План ввода основ. ср-в'!B:B,0))) -> 0 | AN41: 0 | AO41: / | AP41: 0 | AQ41: =IF(ISNA(INDEX('План ввода основ. ср-в'!N:N,MATCH(B41,'План ввода основ. ср-в'!B:B,0))),0,INDEX('План ввода основ. ср-в'!N:N,MATCH(B41,'План ввода основ. ср-в'!B:B,0))) -> 0 | AS41: =IF(ISNA(INDEX('План ввода основ. ср-в'!M:M,MATCH(B41,'План ввода основ. ср-в'!B:B,0))),0,INDEX('План ввода основ. ср-в'!M:M,MATCH(B41,'План ввода основ. ср-в'!B:B,0))) -> 0 | AT41: =IF(ISNA(INDEX('План ввода основ. ср-в'!P:P,MATCH(B41,'План ввода основ. ср-в'!B:B,0))),0,INDEX('План ввода основ. ср-в'!P:P,MATCH(B41,'План ввода основ. ср-в'!B:B,0))) -> 1.6 | AU41: / | AV41: =IF(ISNA(INDEX('План ввода основ. ср-в'!O:O,MATCH(B41,'План ввода основ. ср-в'!B:B,0))),0,INDEX('План ввода основ. ср-в'!O:O,MATCH(B41,'План ввода основ. ср-в'!B:B,0))) -> 0.4 | AW41: =IF(ISNA(INDEX('План ввода основ. ср-в'!R:R,MATCH(B41,'План ввода основ. ср-в'!B:B,0))),0,INDEX('План ввода основ. ср-в'!R:R,MATCH(B41,'План ввода основ. ср-в'!B:B,0))) -> 0 | AY41: =IF(ISNA(INDEX('План ввода основ. ср-в'!Q:Q,MATCH(B41,'План ввода основ. ср-в'!B:B,0))),0,INDEX('План ввода основ. ср-в'!Q:Q,MATCH(B41,'План ввода основ. ср-в'!B:B,0))) -> 0 | AZ41: =IF(ISNA(INDEX('План ввода основ. ср-в'!T:T,MATCH(B41,'План ввода основ. ср-в'!B:B,0))),0,INDEX('План ввода основ. ср-в'!T:T,MATCH(B41,'План ввода основ. ср-в'!B:B,0))) -> 0 | BB41: =IF(ISNA(INDEX('План ввода основ. ср-в'!S:S,MATCH(B41,'План ввода основ. ср-в'!B:B,0))),0,INDEX('План ввода основ. ср-в'!S:S,MATCH(B41,'План ввода основ. ср-в'!B:B,0))) -> 0 | BC41: 1.6 | BD41: / | BE41: 0.4 | BF41: =IF(ISNA(INDEX('План ввода основ. ср-в'!V:V,MATCH(B41,'План ввода основ. ср-в'!B:B,0))),0,INDEX('План ввода основ. ср-в'!V:V,MATCH(B41,'План ввода основ. ср-в'!B:B,0))) -> 0 | BG41: =IF(ISNA(INDEX('План ввода основ. ср-в'!W:W,MATCH(B41,'План ввода основ. ср-в'!B:B,0))),0,INDEX('План ввода основ. ср-в'!W:W,MATCH(B41,'План ввода основ. ср-в'!B:B,0))) -> 0 | BH41: =IF(ISNA(INDEX('План ввода основ. ср-в'!X:X,MATCH(B41,'План ввода основ. ср-в'!B:B,0))),0,INDEX('План ввода основ. ср-в'!X:X,MATCH(B41,'План ввода основ. ср-в'!B:B,0))) -> 0 | BI41: =IF(ISNA(INDEX('План ввода основ. ср-в'!Y:Y,MATCH(B41,'План ввода основ. ср-в'!B:B,0))),0,INDEX('План ввода основ. ср-в'!Y:Y,MATCH(B41,'План ввода основ. ср-в'!B:B,0))) -> 0 | BJ41: 0 | BK41: =IF(ISNA(INDEX('План ввода основ. ср-в'!Z:Z,MATCH(B41,'План ввода основ. ср-в'!B:B,0))),0,INDEX('План ввода основ. ср-в'!Z:Z,MATCH(B41,'План ввода основ. ср-в'!B:B,0))) -> 0 | BL41: =IF(ISNA(INDEX('План ввода основ. ср-в'!AA:AA,MATCH(B41,'План ввода основ. ср-в'!B:B,0))),0,INDEX('План ввода основ. ср-в'!AA:AA,MATCH(B41,'План ввода основ. ср-в'!B:B,0))) -> 4.813559322 | BM41: =IF(ISNA(INDEX('План ввода основ. ср-в'!AB:AB,MATCH(B41,'План ввода основ. ср-в'!B:B,0))),0,INDEX('План ввода основ. ср-в'!AB:AB,MATCH(B41,'План ввода основ. ср-в'!B:B,0))) -> 0 | BN41: =IF(ISNA(INDEX('План ввода основ. ср-в'!AC:AC,MATCH(B41,'План ввода основ. ср-в'!B:B,0))),0,INDEX('План ввода основ. ср-в'!AC:AC,MATCH(B41,'План ввода основ. ср-в'!B:B,0))) -> 0 | BO41: 4.813559322
A42: 20 | B42: Реконструкция ВЛ-0,4кВ от КТП 109/400 кВА с заменой КТП | I42: 0 | K42: 0 | L42: 0 | N42: 0 | O42: 1.22 | P42: / | Q42: 0.4 | R42: 0 | T42: 0 | U42: 0 | W42: 0 | X42: 1.22 | Y42: / | Z42: 0.4 | AA42: 3.911864407 | AB42: =IF(ISNA(INDEX('План ввода основ. ср-в'!F:F,MATCH(B42,'План ввода основ. ср-в'!B:B,0))),0,INDEX('План ввода основ. ср-в'!F:F,MATCH(B42,'План ввода основ. ср-в'!B:B,0))) -> 0 | AD42: =IF(ISNA(INDEX('План ввода основ. ср-в'!E:E,MATCH(B42,'План ввода основ. ср-в'!B:B,0))),0,INDEX('План ввода основ. ср-в'!E:E,MATCH(B42,'План ввода основ. ср-в'!B:B,0))) -> 0 | AE42: =IF(ISNA(INDEX('План ввода основ. ср-в'!H:H,MATCH(B42,'План ввода основ. ср-в'!B:B,0))),0,INDEX('План ввода основ. ср-в'!H:H,MATCH(B42,'План ввода основ. ср-в'!B:B,0))) -> 0 | AG42: =IF(ISNA(INDEX('План ввода основ. ср-в'!G:G,MATCH(B42,'План ввода основ. ср-в'!B:B,0))),0,INDEX('План ввода основ. ср-в'!G:G,MATCH(B42,'План ввода основ. ср-в'!B:B,0))) -> 0 | AH42: =IF(ISNA(INDEX('План ввода основ. ср-в'!J:J,MATCH(B42,'План ввода основ. ср-в'!B:B,0))),0,INDEX('План ввода основ. ср-в'!J:J,MATCH(B42,'План ввода основ. ср-в'!B:B,0))) -> 0 | AJ42: =IF(ISNA(INDEX('План ввода основ. ср-в'!I:I,MATCH(B42,'План ввода основ. ср-в'!B:B,0))),0,INDEX('План ввода основ. ср-в'!I:I,MATCH(B42,'План ввода основ. ср-в'!B:B,0))) -> 0 | AK42: =IF(ISNA(INDEX('План ввода основ. ср-в'!L:L,MATCH(B42,'План ввода основ. ср-в'!B:B,0))),0,INDEX('План ввода основ. ср-в'!L:L,MATCH(B42,'План ввода основ. ср-в'!B:B,0))) -> 0 | AM42: =IF(ISNA(INDEX('План ввода основ. ср-в'!K:K,MATCH(B42,'План ввода основ. ср-в'!B:B,0))),0,INDEX('План ввода основ. ср-в'!K:K,MATCH(B42,'План ввода основ. ср-в'!B:B,0))) -> 0 | AN42: 0 | AO42: / | AP42: 0 | AQ42: =IF(ISNA(INDEX('План ввода основ. ср-в'!N:N,MATCH(B42,'План ввода основ. ср-в'!B:B,0))),0,INDEX('План ввода основ. ср-в'!N:N,MATCH(B42,'План ввода основ. ср-в'!B:B,0))) -> 0 | AS42: =IF(ISNA(INDEX('План ввода основ. ср-в'!M:M,MATCH(B42,'План ввода основ. ср-в'!B:B,0))),0,INDEX('План ввода основ. ср-в'!M:M,MATCH(B42,'План ввода основ. ср-в'!B:B,0))) -> 0 | AT42: =IF(ISNA(INDEX('План ввода основ. ср-в'!P:P,MATCH(B42,'План ввода основ. ср-в'!B:B,0))),0,INDEX('План ввода основ. ср-в'!P:P,MATCH(B42,'План ввода основ. ср-в'!B:B,0))) -> 1.22 | AU42: / | AV42: =IF(ISNA(INDEX('План ввода основ. ср-в'!O:O,MATCH(B42,'План ввода основ. ср-в'!B:B,0))),0,INDEX('План ввода основ. ср-в'!O:O,MATCH(B42,'План ввода основ. ср-в'!B:B,0))) -> 0.4 | AW42: =IF(ISNA(INDEX('План ввода основ. ср-в'!R:R,MATCH(B42,'План ввода основ. ср-в'!B:B,0))),0,INDEX('План ввода основ. ср-в'!R:R,MATCH(B42,'План ввода основ. ср-в'!B:B,0))) -> 0 | AY42: =IF(ISNA(INDEX('План ввода основ. ср-в'!Q:Q,MATCH(B42,'План ввода основ. ср-в'!B:B,0))),0,INDEX('План ввода основ. ср-в'!Q:Q,MATCH(B42,'План ввода основ. ср-в'!B:B,0))) -> 0 | AZ42: =IF(ISNA(INDEX('План ввода основ. ср-в'!T:T,MATCH(B42,'План ввода основ. ср-в'!B:B,0))),0,INDEX('План ввода основ. ср-в'!T:T,MATCH(B42,'План ввода основ. ср-в'!B:B,0))) -> 0 | BB42: =IF(ISNA(INDEX('План ввода основ. ср-в'!S:S,MATCH(B42,'План ввода основ. ср-в'!B:B,0))),0,INDEX('План ввода основ. ср-в'!S:S,MATCH(B42,'План ввода основ. ср-в'!B:B,0))) -> 0 | BC42: 1.22 | BD42: / | BE42: 0.4 | BF42: =IF(ISNA(INDEX('План ввода основ. ср-в'!V:V,MATCH(B42,'План ввода основ. ср-в'!B:B,0))),0,INDEX('План ввода основ. ср-в'!V:V,MATCH(B42,'План ввода основ. ср-в'!B:B,0))) -> 0 | BG42: =IF(ISNA(INDEX('План ввода основ. ср-в'!W:W,MATCH(B42,'План ввода основ. ср-в'!B:B,0))),0,INDEX('План ввода основ. ср-в'!W:W,MATCH(B42,'План ввода основ. ср-в'!B:B,0))) -> 0 | BH42: =IF(ISNA(INDEX('План ввода основ. ср-в'!X:X,MATCH(B42,'План ввода основ. ср-в'!B:B,0))),0,INDEX('План ввода основ. ср-в'!X:X,MATCH(B42,'План ввода основ. ср-в'!B:B,0))) -> 0 | BI42: =IF(ISNA(INDEX('План ввода основ. ср-в'!Y:Y,MATCH(B42,'План ввода основ. ср-в'!B:B,0))),0,INDEX('План ввода основ. ср-в'!Y:Y,MATCH(B42,'План ввода основ. ср-в'!B:B,0))) -> 0 | BJ42: 0 | BK42: =IF(ISNA(INDEX('План ввода основ. ср-в'!Z:Z,MATCH(B42,'План ввода основ. ср-в'!B:B,0))),0,INDEX('План ввода основ. ср-в'!Z:Z,MATCH(B42,'План ввода основ. ср-в'!B:B,0))) -> 0 | BL42: =IF(ISNA(INDEX('План ввода основ. ср-в'!AA:AA,MATCH(B42,'План ввода основ. ср-в'!B:B,0))),0,INDEX('План ввода основ. ср-в'!AA:AA,MATCH(B42,'План ввода основ. ср-в'!B:B,0))) -> 3.911864407 | BM42: =IF(ISNA(INDEX('План ввода основ. ср-в'!AB:AB,MATCH(B42,'План ввода основ. ср-в'!B:B,0))),0,INDEX('План ввода основ. ср-в'!AB:AB,MATCH(B42,'План ввода основ. ср-в'!B:B,0))) -> 0 | BN42: =IF(ISNA(INDEX('План ввода основ. ср-в'!AC:AC,MATCH(B42,'План ввода основ. ср-в'!B:B,0))),0,INDEX('План ввода основ. ср-в'!AC:AC,MATCH(B42,'План ввода основ. ср-в'!B:B,0))) -> 0 | BO42: 3.911864407
A43: 21 | B43: Реконструкция ВЛ-0,4кВ от КТП 905/400 кВА с заменой КТП | I43: 0 | K43: 0 | L43: 0 | N43: 0 | O43: 1.62 | P43: / | Q43: 0.4 | R43: 0 | T43: 0 | U43: 0 | W43: 0 | X43: 1.62 | Y43: / | Z43: 0.4 | AA43: 4.861016949 | AB43: =IF(ISNA(INDEX('План ввода основ. ср-в'!F:F,MATCH(B43,'План ввода основ. ср-в'!B:B,0))),0,INDEX('План ввода основ. ср-в'!F:F,MATCH(B43,'План ввода основ. ср-в'!B:B,0))) -> 0 | AD43: =IF(ISNA(INDEX('План ввода основ. ср-в'!E:E,MATCH(B43,'План ввода основ. ср-в'!B:B,0))),0,INDEX('План ввода основ. ср-в'!E:E,MATCH(B43,'План ввода основ. ср-в'!B:B,0))) -> 0 | AE43: =IF(ISNA(INDEX('План ввода основ. ср-в'!H:H,MATCH(B43,'План ввода основ. ср-в'!B:B,0))),0,INDEX('План ввода основ. ср-в'!H:H,MATCH(B43,'План ввода основ. ср-в'!B:B,0))) -> 0 | AG43: =IF(ISNA(INDEX('План ввода основ. ср-в'!G:G,MATCH(B43,'План ввода основ. ср-в'!B:B,0))),0,INDEX('План ввода основ. ср-в'!G:G,MATCH(B43,'План ввода основ. ср-в'!B:B,0))) -> 0 | AH43: =IF(ISNA(INDEX('План ввода основ. ср-в'!J:J,MATCH(B43,'План ввода основ. ср-в'!B:B,0))),0,INDEX('План ввода основ. ср-в'!J:J,MATCH(B43,'План ввода основ. ср-в'!B:B,0))) -> 0 | AJ43: =IF(ISNA(INDEX('План ввода основ. ср-в'!I:I,MATCH(B43,'План ввода основ. ср-в'!B:B,0))),0,INDEX('План ввода основ. ср-в'!I:I,MATCH(B43,'План ввода основ. ср-в'!B:B,0))) -> 0 | AK43: =IF(ISNA(INDEX('План ввода основ. ср-в'!L:L,MATCH(B43,'План ввода основ. ср-в'!B:B,0))),0,INDEX('План ввода основ. ср-в'!L:L,MATCH(B43,'План ввода основ. ср-в'!B:B,0))) -> 0 | AM43: =IF(ISNA(INDEX('План ввода основ. ср-в'!K:K,MATCH(B43,'План ввода основ. ср-в'!B:B,0))),0,INDEX('План ввода основ. ср-в'!K:K,MATCH(B43,'План ввода основ. ср-в'!B:B,0))) -> 0 | AN43: 0 | AO43: / | AP43: 0 | AQ43: =IF(ISNA(INDEX('План ввода основ. ср-в'!N:N,MATCH(B43,'План ввода основ. ср-в'!B:B,0))),0,INDEX('План ввода основ. ср-в'!N:N,MATCH(B43,'План ввода основ. ср-в'!B:B,0))) -> 0 | AS43: =IF(ISNA(INDEX('План ввода основ. ср-в'!M:M,MATCH(B43,'План ввода основ. ср-в'!B:B,0))),0,INDEX('План ввода основ. ср-в'!M:M,MATCH(B43,'План ввода основ. ср-в'!B:B,0))) -> 0 | AT43: =IF(ISNA(INDEX('План ввода основ. ср-в'!P:P,MATCH(B43,'План ввода основ. ср-в'!B:B,0))),0,INDEX('План ввода основ. ср-в'!P:P,MATCH(B43,'План ввода основ. ср-в'!B:B,0))) -> 1.62 | AU43: / | AV43: =IF(ISNA(INDEX('План ввода основ. ср-в'!O:O,MATCH(B43,'План ввода основ. ср-в'!B:B,0))),0,INDEX('План ввода основ. ср-в'!O:O,MATCH(B43,'План ввода основ. ср-в'!B:B,0))) -> 0.4 | AW43: =IF(ISNA(INDEX('План ввода основ. ср-в'!R:R,MATCH(B43,'План ввода основ. ср-в'!B:B,0))),0,INDEX('План ввода основ. ср-в'!R:R,MATCH(B43,'План ввода основ. ср-в'!B:B,0))) -> 0 | AY43: =IF(ISNA(INDEX('План ввода основ. ср-в'!Q:Q,MATCH(B43,'План ввода основ. ср-в'!B:B,0))),0,INDEX('План ввода основ. ср-в'!Q:Q,MATCH(B43,'План ввода основ. ср-в'!B:B,0))) -> 0 | AZ43: =IF(ISNA(INDEX('План ввода основ. ср-в'!T:T,MATCH(B43,'План ввода основ. ср-в'!B:B,0))),0,INDEX('План ввода основ. ср-в'!T:T,MATCH(B43,'План ввода основ. ср-в'!B:B,0))) -> 0 | BB43: =IF(ISNA(INDEX('План ввода основ. ср-в'!S:S,MATCH(B43,'План ввода основ. ср-в'!B:B,0))),0,INDEX('План ввода основ. ср-в'!S:S,MATCH(B43,'План ввода основ. ср-в'!B:B,0))) -> 0 | BC43: 1.62 | BD43: / | BE43: 0.4 | BF43: =IF(ISNA(INDEX('План ввода основ. ср-в'!V:V,MATCH(B43,'План ввода основ. ср-в'!B:B,0))),0,INDEX('План ввода основ. ср-в'!V:V,MATCH(B43,'План ввода основ. ср-в'!B:B,0))) -> 0 | BG43: =IF(ISNA(INDEX('План ввода основ. ср-в'!W:W,MATCH(B43,'План ввода основ. ср-в'!B:B,0))),0,INDEX('План ввода основ. ср-в'!W:W,MATCH(B43,'План ввода основ. ср-в'!B:B,0))) -> 0 | BH43: =IF(ISNA(INDEX('План ввода основ. ср-в'!X:X,MATCH(B43,'План ввода основ. ср-в'!B:B,0))),0,INDEX('План ввода основ. ср-в'!X:X,MATCH(B43,'План ввода основ. ср-в'!B:B,0))) -> 0 | BI43: =IF(ISNA(INDEX('План ввода основ. ср-в'!Y:Y,MATCH(B43,'План ввода основ. ср-в'!B:B,0))),0,INDEX('План ввода основ. ср-в'!Y:Y,MATCH(B43,'План ввода основ. ср-в'!B:B,0))) -> 0 | BJ43: 0 | BK43: =IF(ISNA(INDEX('План ввода основ. ср-в'!Z:Z,MATCH(B43,'План ввода основ. ср-в'!B:B,0))),0,INDEX('План ввода основ. ср-в'!Z:Z,MATCH(B43,'План ввода основ. ср-в'!B:B,0))) -> 0 | BL43: =IF(ISNA(INDEX('План ввода основ. ср-в'!AA:AA,MATCH(B43,'План ввода основ. ср-в'!B:B,0))),0,INDEX('План ввода основ. ср-в'!AA:AA,MATCH(B43,'План ввода основ. ср-в'!B:B,0))) -> 4.861016949 | BM43: =IF(ISNA(INDEX('План ввода основ. ср-в'!AB:AB,MATCH(B43,'План ввода основ. ср-в'!B:B,0))),0,INDEX('План ввода основ. ср-в'!AB:AB,MATCH(B43,'План ввода основ. ср-в'!B:B,0))) -> 0 | BN43: =IF(ISNA(INDEX('План ввода основ. ср-в'!AC:AC,MATCH(B43,'План ввода основ. ср-в'!B:B,0))),0,INDEX('План ввода основ. ср-в'!AC:AC,MATCH(B43,'План ввода основ. ср-в'!B:B,0))) -> 0 | BO43: 4.861016949
A44: 22 | B44: Реконструкция ВЛ-0,4кВ от КТП 114/400 кВА с заменой КТП | I44: 0 | K44: 0 | L44: 0 | N44: 0 | O44: 0 | Q44: 0 | R44: 0.72 | S44: / | T44: 0.4 | U44: 0 | W44: 0 | X44: 0.72 | Y44: / | Z44: 0.4 | AA44: 2.725423729 | AB44: =IF(ISNA(INDEX('План ввода основ. ср-в'!F:F,MATCH(B44,'План ввода основ. ср-в'!B:B,0))),0,INDEX('План ввода основ. ср-в'!F:F,MATCH(B44,'План ввода основ. ср-в'!B:B,0))) -> 0 | AD44: =IF(ISNA(INDEX('План ввода основ. ср-в'!E:E,MATCH(B44,'План ввода основ. ср-в'!B:B,0))),0,INDEX('План ввода основ. ср-в'!E:E,MATCH(B44,'План ввода основ. ср-в'!B:B,0))) -> 0 | AE44: =IF(ISNA(INDEX('План ввода основ. ср-в'!H:H,MATCH(B44,'План ввода основ. ср-в'!B:B,0))),0,INDEX('План ввода основ. ср-в'!H:H,MATCH(B44,'План ввода основ. ср-в'!B:B,0))) -> 0 | AG44: =IF(ISNA(INDEX('План ввода основ. ср-в'!G:G,MATCH(B44,'План ввода основ. ср-в'!B:B,0))),0,INDEX('План ввода основ. ср-в'!G:G,MATCH(B44,'План ввода основ. ср-в'!B:B,0))) -> 0 | AH44: =IF(ISNA(INDEX('План ввода основ. ср-в'!J:J,MATCH(B44,'План ввода основ. ср-в'!B:B,0))),0,INDEX('План ввода основ. ср-в'!J:J,MATCH(B44,'План ввода основ. ср-в'!B:B,0))) -> 0 | AJ44: =IF(ISNA(INDEX('План ввода основ. ср-в'!I:I,MATCH(B44,'План ввода основ. ср-в'!B:B,0))),0,INDEX('План ввода основ. ср-в'!I:I,MATCH(B44,'План ввода основ. ср-в'!B:B,0))) -> 0 | AK44: =IF(ISNA(INDEX('План ввода основ. ср-в'!L:L,MATCH(B44,'План ввода основ. ср-в'!B:B,0))),0,INDEX('План ввода основ. ср-в'!L:L,MATCH(B44,'План ввода основ. ср-в'!B:B,0))) -> 0 | AM44: =IF(ISNA(INDEX('План ввода основ. ср-в'!K:K,MATCH(B44,'План ввода основ. ср-в'!B:B,0))),0,INDEX('План ввода основ. ср-в'!K:K,MATCH(B44,'План ввода основ. ср-в'!B:B,0))) -> 0 | AN44: 0 | AO44: / | AP44: 0 | AQ44: =IF(ISNA(INDEX('План ввода основ. ср-в'!N:N,MATCH(B44,'План ввода основ. ср-в'!B:B,0))),0,INDEX('План ввода основ. ср-в'!N:N,MATCH(B44,'План ввода основ. ср-в'!B:B,0))) -> 0 | AS44: =IF(ISNA(INDEX('План ввода основ. ср-в'!M:M,MATCH(B44,'План ввода основ. ср-в'!B:B,0))),0,INDEX('План ввода основ. ср-в'!M:M,MATCH(B44,'План ввода основ. ср-в'!B:B,0))) -> 0 | AT44: =IF(ISNA(INDEX('План ввода основ. ср-в'!P:P,MATCH(B44,'План ввода основ. ср-в'!B:B,0))),0,INDEX('План ввода основ. ср-в'!P:P,MATCH(B44,'План ввода основ. ср-в'!B:B,0))) -> 0 | AV44: =IF(ISNA(INDEX('План ввода основ. ср-в'!O:O,MATCH(B44,'План ввода основ. ср-в'!B:B,0))),0,INDEX('План ввода основ. ср-в'!O:O,MATCH(B44,'План ввода основ. ср-в'!B:B,0))) -> 0 | AW44: =IF(ISNA(INDEX('План ввода основ. ср-в'!R:R,MATCH(B44,'План ввода основ. ср-в'!B:B,0))),0,INDEX('План ввода основ. ср-в'!R:R,MATCH(B44,'План ввода основ. ср-в'!B:B,0))) -> 0.72 | AX44: / | AY44: =IF(ISNA(INDEX('План ввода основ. ср-в'!Q:Q,MATCH(B44,'План ввода основ. ср-в'!B:B,0))),0,INDEX('План ввода основ. ср-в'!Q:Q,MATCH(B44,'План ввода основ. ср-в'!B:B,0))) -> 0.4 | AZ44: =IF(ISNA(INDEX('План ввода основ. ср-в'!T:T,MATCH(B44,'План ввода основ. ср-в'!B:B,0))),0,INDEX('План ввода основ. ср-в'!T:T,MATCH(B44,'План ввода основ. ср-в'!B:B,0))) -> 0 | BB44: =IF(ISNA(INDEX('План ввода основ. ср-в'!S:S,MATCH(B44,'План ввода основ. ср-в'!B:B,0))),0,INDEX('План ввода основ. ср-в'!S:S,MATCH(B44,'План ввода основ. ср-в'!B:B,0))) -> 0 | BC44: 0.72 | BD44: / | BE44: 0.4 | BF44: =IF(ISNA(INDEX('План ввода основ. ср-в'!V:V,MATCH(B44,'План ввода основ. ср-в'!B:B,0))),0,INDEX('План ввода основ. ср-в'!V:V,MATCH(B44,'План ввода основ. ср-в'!B:B,0))) -> 0 | BG44: =IF(ISNA(INDEX('План ввода основ. ср-в'!W:W,MATCH(B44,'План ввода основ. ср-в'!B:B,0))),0,INDEX('План ввода основ. ср-в'!W:W,MATCH(B44,'План ввода основ. ср-в'!B:B,0))) -> 0 | BH44: =IF(ISNA(INDEX('План ввода основ. ср-в'!X:X,MATCH(B44,'План ввода основ. ср-в'!B:B,0))),0,INDEX('План ввода основ. ср-в'!X:X,MATCH(B44,'План ввода основ. ср-в'!B:B,0))) -> 0 | BI44: =IF(ISNA(INDEX('План ввода основ. ср-в'!Y:Y,MATCH(B44,'План ввода основ. ср-в'!B:B,0))),0,INDEX('План ввода основ. ср-в'!Y:Y,MATCH(B44,'План ввода основ. ср-в'!B:B,0))) -> 0 | BJ44: 0 | BK44: =IF(ISNA(INDEX('План ввода основ. ср-в'!Z:Z,MATCH(B44,'План ввода основ. ср-в'!B:B,0))),0,INDEX('План ввода основ. ср-в'!Z:Z,MATCH(B44,'План ввода основ. ср-в'!B:B,0))) -> 0 | BL44: =IF(ISNA(INDEX('План ввода основ. ср-в'!AA:AA,MATCH(B44,'План ввода основ. ср-в'!B:B,0))),0,INDEX('План ввода основ. ср-в'!AA:AA,MATCH(B44,'План ввода основ. ср-в'!B:B,0))) -> 0 | BM44: =IF(ISNA(INDEX('План ввода основ. ср-в'!AB:AB,MATCH(B44,'План ввода основ. ср-в'!B:B,0))),0,INDEX('План ввода основ. ср-в'!AB:AB,MATCH(B44,'План ввода основ. ср-в'!B:B,0))) -> 2.725423729 | BN44: =IF(ISNA(INDEX('План ввода основ. ср-в'!AC:AC,MATCH(B44,'План ввода основ. ср-в'!B:B,0))),0,INDEX('План ввода основ. ср-в'!AC:AC,MATCH(B44,'План ввода основ. ср-в'!B:B,0))) -> 0 | BO44: 2.725423729
A45: 23 | B45: Реконструкция ВЛ-0,4кВ от КТП 407/400 кВА с заменой КТП | I45: 0 | K45: 0 | L45: 0 | N45: 0 | O45: 0 | Q45: 0 | R45: 0.52 | S45: / | T45: 0.4 | U45: 0 | W45: 0 | X45: 0.52 | Y45: / | Z45: 0.4 | AA45: 2.250847458 | AB45: =IF(ISNA(INDEX('План ввода основ. ср-в'!F:F,MATCH(B45,'План ввода основ. ср-в'!B:B,0))),0,INDEX('План ввода основ. ср-в'!F:F,MATCH(B45,'План ввода основ. ср-в'!B:B,0))) -> 0 | AD45: =IF(ISNA(INDEX('План ввода основ. ср-в'!E:E,MATCH(B45,'План ввода основ. ср-в'!B:B,0))),0,INDEX('План ввода основ. ср-в'!E:E,MATCH(B45,'План ввода основ. ср-в'!B:B,0))) -> 0 | AE45: =IF(ISNA(INDEX('План ввода основ. ср-в'!H:H,MATCH(B45,'План ввода основ. ср-в'!B:B,0))),0,INDEX('План ввода основ. ср-в'!H:H,MATCH(B45,'План ввода основ. ср-в'!B:B,0))) -> 0 | AG45: =IF(ISNA(INDEX('План ввода основ. ср-в'!G:G,MATCH(B45,'План ввода основ. ср-в'!B:B,0))),0,INDEX('План ввода основ. ср-в'!G:G,MATCH(B45,'План ввода основ. ср-в'!B:B,0))) -> 0 | AH45: =IF(ISNA(INDEX('План ввода основ. ср-в'!J:J,MATCH(B45,'План ввода основ. ср-в'!B:B,0))),0,INDEX('План ввода основ. ср-в'!J:J,MATCH(B45,'План ввода основ. ср-в'!B:B,0))) -> 0 | AJ45: =IF(ISNA(INDEX('План ввода основ. ср-в'!I:I,MATCH(B45,'План ввода основ. ср-в'!B:B,0))),0,INDEX('План ввода основ. ср-в'!I:I,MATCH(B45,'План ввода основ. ср-в'!B:B,0))) -> 0 | AK45: =IF(ISNA(INDEX('План ввода основ. ср-в'!L:L,MATCH(B45,'План ввода основ. ср-в'!B:B,0))),0,INDEX('План ввода основ. ср-в'!L:L,MATCH(B45,'План ввода основ. ср-в'!B:B,0))) -> 0 | AM45: =IF(ISNA(INDEX('План ввода основ. ср-в'!K:K,MATCH(B45,'План ввода основ. ср-в'!B:B,0))),0,INDEX('План ввода основ. ср-в'!K:K,MATCH(B45,'План ввода основ. ср-в'!B:B,0))) -> 0 | AN45: 0 | AO45: / | AP45: 0 | AQ45: =IF(ISNA(INDEX('План ввода основ. ср-в'!N:N,MATCH(B45,'План ввода основ. ср-в'!B:B,0))),0,INDEX('План ввода основ. ср-в'!N:N,MATCH(B45,'План ввода основ. ср-в'!B:B,0))) -> 0 | AS45: =IF(ISNA(INDEX('План ввода основ. ср-в'!M:M,MATCH(B45,'План ввода основ. ср-в'!B:B,0))),0,INDEX('План ввода основ. ср-в'!M:M,MATCH(B45,'План ввода основ. ср-в'!B:B,0))) -> 0 | AT45: =IF(ISNA(INDEX('План ввода основ. ср-в'!P:P,MATCH(B45,'План ввода основ. ср-в'!B:B,0))),0,INDEX('План ввода основ. ср-в'!P:P,MATCH(B45,'План ввода основ. ср-в'!B:B,0))) -> 0 | AV45: =IF(ISNA(INDEX('План ввода основ. ср-в'!O:O,MATCH(B45,'План ввода основ. ср-в'!B:B,0))),0,INDEX('План ввода основ. ср-в'!O:O,MATCH(B45,'План ввода основ. ср-в'!B:B,0))) -> 0 | AW45: =IF(ISNA(INDEX('План ввода основ. ср-в'!R:R,MATCH(B45,'План ввода основ. ср-в'!B:B,0))),0,INDEX('План ввода основ. ср-в'!R:R,MATCH(B45,'План ввода основ. ср-в'!B:B,0))) -> 0.52 | AX45: / | AY45: =IF(ISNA(INDEX('План ввода основ. ср-в'!Q:Q,MATCH(B45,'План ввода основ. ср-в'!B:B,0))),0,INDEX('План ввода основ. ср-в'!Q:Q,MATCH(B45,'План ввода основ. ср-в'!B:B,0))) -> 0.4 | AZ45: =IF(ISNA(INDEX('План ввода основ. ср-в'!T:T,MATCH(B45,'План ввода основ. ср-в'!B:B,0))),0,INDEX('План ввода основ. ср-в'!T:T,MATCH(B45,'План ввода основ. ср-в'!B:B,0))) -> 0 | BB45: =IF(ISNA(INDEX('План ввода основ. ср-в'!S:S,MATCH(B45,'План ввода основ. ср-в'!B:B,0))),0,INDEX('План ввода основ. ср-в'!S:S,MATCH(B45,'План ввода основ. ср-в'!B:B,0))) -> 0 | BC45: 0.52 | BD45: / | BE45: 0.4 | BF45: =IF(ISNA(INDEX('План ввода основ. ср-в'!V:V,MATCH(B45,'План ввода основ. ср-в'!B:B,0))),0,INDEX('План ввода основ. ср-в'!V:V,MATCH(B45,'План ввода основ. ср-в'!B:B,0))) -> 0 | BG45: =IF(ISNA(INDEX('План ввода основ. ср-в'!W:W,MATCH(B45,'План ввода основ. ср-в'!B:B,0))),0,INDEX('План ввода основ. ср-в'!W:W,MATCH(B45,'План ввода основ. ср-в'!B:B,0))) -> 0 | BH45: =IF(ISNA(INDEX('План ввода основ. ср-в'!X:X,MATCH(B45,'План ввода основ. ср-в'!B:B,0))),0,INDEX('План ввода основ. ср-в'!X:X,MATCH(B45,'План ввода основ. ср-в'!B:B,0))) -> 0 | BI45: =IF(ISNA(INDEX('План ввода основ. ср-в'!Y:Y,MATCH(B45,'План ввода основ. ср-в'!B:B,0))),0,INDEX('План ввода основ. ср-в'!Y:Y,MATCH(B45,'План ввода основ. ср-в'!B:B,0))) -> 0 | BJ45: 0 | BK45: =IF(ISNA(INDEX('План ввода основ. ср-в'!Z:Z,MATCH(B45,'План ввода основ. ср-в'!B:B,0))),0,INDEX('План ввода основ. ср-в'!Z:Z,MATCH(B45,'План ввода основ. ср-в'!B:B,0))) -> 0 | BL45: =IF(ISNA(INDEX('План ввода основ. ср-в'!AA:AA,MATCH(B45,'План ввода основ. ср-в'!B:B,0))),0,INDEX('План ввода основ. ср-в'!AA:AA,MATCH(B45,'План ввода основ. ср-в'!B:B,0))) -> 0 | BM45: =IF(ISNA(INDEX('План ввода основ. ср-в'!AB:AB,MATCH(B45,'План ввода основ. ср-в'!B:B,0))),0,INDEX('План ввода основ. ср-в'!AB:AB,MATCH(B45,'План ввода основ. ср-в'!B:B,0))) -> 2.250847458 | BN45: =IF(ISNA(INDEX('План ввода основ. ср-в'!AC:AC,MATCH(B45,'План ввода основ. ср-в'!B:B,0))),0,INDEX('План ввода основ. ср-в'!AC:AC,MATCH(B45,'План ввода основ. ср-в'!B:B,0))) -> 0 | BO45: 2.250847458
A46: 24 | B46: Реконструкция ВЛ-0,4кВ от КТП 122/400 кВА с заменой КТП | I46: 0 | K46: 0 | L46: 0 | N46: 0 | O46: 0 | Q46: 0 | R46: 0 | T46: 0 | U46: 1.9 | V46: / | W46: 0.4 | X46: 1.9 | Y46: / | Z46: 0.4 | AA46: 2.250847458 | AB46: =IF(ISNA(INDEX('План ввода основ. ср-в'!F:F,MATCH(B46,'План ввода основ. ср-в'!B:B,0))),0,INDEX('План ввода основ. ср-в'!F:F,MATCH(B46,'План ввода основ. ср-в'!B:B,0))) -> 0 | AD46: =IF(ISNA(INDEX('План ввода основ. ср-в'!E:E,MATCH(B46,'План ввода основ. ср-в'!B:B,0))),0,INDEX('План ввода основ. ср-в'!E:E,MATCH(B46,'План ввода основ. ср-в'!B:B,0))) -> 0 | AE46: =IF(ISNA(INDEX('План ввода основ. ср-в'!H:H,MATCH(B46,'План ввода основ. ср-в'!B:B,0))),0,INDEX('План ввода основ. ср-в'!H:H,MATCH(B46,'План ввода основ. ср-в'!B:B,0))) -> 0 | AG46: =IF(ISNA(INDEX('План ввода основ. ср-в'!G:G,MATCH(B46,'План ввода основ. ср-в'!B:B,0))),0,INDEX('План ввода основ. ср-в'!G:G,MATCH(B46,'План ввода основ. ср-в'!B:B,0))) -> 0 | AH46: =IF(ISNA(INDEX('План ввода основ. ср-в'!J:J,MATCH(B46,'План ввода основ. ср-в'!B:B,0))),0,INDEX('План ввода основ. ср-в'!J:J,MATCH(B46,'План ввода основ. ср-в'!B:B,0))) -> 0 | AJ46: =IF(ISNA(INDEX('План ввода основ. ср-в'!I:I,MATCH(B46,'План ввода основ. ср-в'!B:B,0))),0,INDEX('План ввода основ. ср-в'!I:I,MATCH(B46,'План ввода основ. ср-в'!B:B,0))) -> 0 | AK46: =IF(ISNA(INDEX('План ввода основ. ср-в'!L:L,MATCH(B46,'План ввода основ. ср-в'!B:B,0))),0,INDEX('План ввода основ. ср-в'!L:L,MATCH(B46,'План ввода основ. ср-в'!B:B,0))) -> 0 | AM46: =IF(ISNA(INDEX('План ввода основ. ср-в'!K:K,MATCH(B46,'План ввода основ. ср-в'!B:B,0))),0,INDEX('План ввода основ. ср-в'!K:K,MATCH(B46,'План ввода основ. ср-в'!B:B,0))) -> 0 | AN46: 0 | AO46: / | AP46: 0 | AQ46: =IF(ISNA(INDEX('План ввода основ. ср-в'!N:N,MATCH(B46,'План ввода основ. ср-в'!B:B,0))),0,INDEX('План ввода основ. ср-в'!N:N,MATCH(B46,'План ввода основ. ср-в'!B:B,0))) -> 0 | AS46: =IF(ISNA(INDEX('План ввода основ. ср-в'!M:M,MATCH(B46,'План ввода основ. ср-в'!B:B,0))),0,INDEX('План ввода основ. ср-в'!M:M,MATCH(B46,'План ввода основ. ср-в'!B:B,0))) -> 0 | AT46: =IF(ISNA(INDEX('План ввода основ. ср-в'!P:P,MATCH(B46,'План ввода основ. ср-в'!B:B,0))),0,INDEX('План ввода основ. ср-в'!P:P,MATCH(B46,'План ввода основ. ср-в'!B:B,0))) -> 0 | AV46: =IF(ISNA(INDEX('План ввода основ. ср-в'!O:O,MATCH(B46,'План ввода основ. ср-в'!B:B,0))),0,INDEX('План ввода основ. ср-в'!O:O,MATCH(B46,'План ввода основ. ср-в'!B:B,0))) -> 0 | AW46: =IF(ISNA(INDEX('План ввода основ. ср-в'!R:R,MATCH(B46,'План ввода основ. ср-в'!B:B,0))),0,INDEX('План ввода основ. ср-в'!R:R,MATCH(B46,'План ввода основ. ср-в'!B:B,0))) -> 0 | AY46: =IF(ISNA(INDEX('План ввода основ. ср-в'!Q:Q,MATCH(B46,'План ввода основ. ср-в'!B:B,0))),0,INDEX('План ввода основ. ср-в'!Q:Q,MATCH(B46,'План ввода основ. ср-в'!B:B,0))) -> 0 | AZ46: =IF(ISNA(INDEX('План ввода основ. ср-в'!T:T,MATCH(B46,'План ввода основ. ср-в'!B:B,0))),0,INDEX('План ввода основ. ср-в'!T:T,MATCH(B46,'План ввода основ. ср-в'!B:B,0))) -> 1.9 | BA46: / | BB46: =IF(ISNA(INDEX('План ввода основ. ср-в'!S:S,MATCH(B46,'План ввода основ. ср-в'!B:B,0))),0,INDEX('План ввода основ. ср-в'!S:S,MATCH(B46,'План ввода основ. ср-в'!B:B,0))) -> 0.4 | BC46: 1.9 | BD46: / | BE46: 0.4 | BF46: =IF(ISNA(INDEX('План ввода основ. ср-в'!V:V,MATCH(B46,'План ввода основ. ср-в'!B:B,0))),0,INDEX('План ввода основ. ср-в'!V:V,MATCH(B46,'План ввода основ. ср-в'!B:B,0))) -> 0 | BG46: =IF(ISNA(INDEX('План ввода основ. ср-в'!W:W,MATCH(B46,'План ввода основ. ср-в'!B:B,0))),0,INDEX('План ввода основ. ср-в'!W:W,MATCH(B46,'План ввода основ. ср-в'!B:B,0))) -> 0 | BH46: =IF(ISNA(INDEX('План ввода основ. ср-в'!X:X,MATCH(B46,'План ввода основ. ср-в'!B:B,0))),0,INDEX('План ввода основ. ср-в'!X:X,MATCH(B46,'План ввода основ. ср-в'!B:B,0))) -> 0 | BI46: =IF(ISNA(INDEX('План ввода основ. ср-в'!Y:Y,MATCH(B46,'План ввода основ. ср-в'!B:B,0))),0,INDEX('План ввода основ. ср-в'!Y:Y,MATCH(B46,'План ввода основ. ср-в'!B:B,0))) -> 0 | BJ46: 0 | BK46: =IF(ISNA(INDEX('План ввода основ. ср-в'!Z:Z,MATCH(B46,'План ввода основ. ср-в'!B:B,0))),0,INDEX('План ввода основ. ср-в'!Z:Z,MATCH(B46,'План ввода основ. ср-в'!B:B,0))) -> 0 | BL46: =IF(ISNA(INDEX('План ввода основ. ср-в'!AA:AA,MATCH(B46,'План ввода основ. ср-в'!B:B,0))),0,INDEX('План ввода основ. ср-в'!AA:AA,MATCH(B46,'План ввода основ. ср-в'!B:B,0))) -> 0 | BM46: =IF(ISNA(INDEX('План ввода основ. ср-в'!AB:AB,MATCH(B46,'План ввода основ. ср-в'!B:B,0))),0,INDEX('План ввода основ. ср-в'!AB:AB,MATCH(B46,'План ввода основ. ср-в'!B:B,0))) -> 0 | BN46: =IF(ISNA(INDEX('План ввода основ. ср-в'!AC:AC,MATCH(B46,'План ввода основ. ср-в'!B:B,0))),0,INDEX('План ввода основ. ср-в'!AC:AC,MATCH(B46,'План ввода основ. ср-в'!B:B,0))) -> 2.250847458 | BO46: 2.250847458
A47: 25 | B47: Реконструкция ВЛ-0,4кВ от КТП 906/250 кВА с заменой КТП | I47: 0 | J47: =IF(AND(I47=0,K47=0),"","/") ->  | K47: 0 | L47: 0 | M47: =IF(AND(L47=0,N47=0),"","/") ->  | N47: 0 | O47: 0 | P47: =IF(AND(O47=0,Q47=0),"","/") ->  | Q47: 0 | R47: 0 | S47: =IF(AND(R47=0,T47=0),"","/") ->  | T47: 0 | U47: 3.85 | V47: =IF(AND(U47=0,W47=0),"","/") -> / | W47: 0.25 | X47: 3.85 | Y47: / | Z47: 0.25 | AA47: 10.15254237 | AB47: =IF(ISNA(INDEX('План ввода основ. ср-в'!F:F,MATCH(B47,'План ввода основ. ср-в'!B:B,0))),0,INDEX('План ввода основ. ср-в'!F:F,MATCH(B47,'План ввода основ. ср-в'!B:B,0))) -> 0 | AC47: =IF(AND(AB47=0,AD47=0),"","/") ->  | AD47: =IF(ISNA(INDEX('План ввода основ. ср-в'!E:E,MATCH(B47,'План ввода основ. ср-в'!B:B,0))),0,INDEX('План ввода основ. ср-в'!E:E,MATCH(B47,'План ввода основ. ср-в'!B:B,0))) -> 0 | AE47: =IF(ISNA(INDEX('План ввода основ. ср-в'!H:H,MATCH(B47,'План ввода основ. ср-в'!B:B,0))),0,INDEX('План ввода основ. ср-в'!H:H,MATCH(B47,'План ввода основ. ср-в'!B:B,0))) -> 0 | AF47: =IF(AND(AE47=0,AG47=0),"","/") ->  | AG47: =IF(ISNA(INDEX('План ввода основ. ср-в'!G:G,MATCH(B47,'План ввода основ. ср-в'!B:B,0))),0,INDEX('План ввода основ. ср-в'!G:G,MATCH(B47,'План ввода основ. ср-в'!B:B,0))) -> 0 | AH47: =IF(ISNA(INDEX('План ввода основ. ср-в'!J:J,MATCH(B47,'План ввода основ. ср-в'!B:B,0))),0,INDEX('План ввода основ. ср-в'!J:J,MATCH(B47,'План ввода основ. ср-в'!B:B,0))) -> 0 | AI47: =IF(AND(AH47=0,AJ47=0),"","/") ->  | AJ47: =IF(ISNA(INDEX('План ввода основ. ср-в'!I:I,MATCH(B47,'План ввода основ. ср-в'!B:B,0))),0,INDEX('План ввода основ. ср-в'!I:I,MATCH(B47,'План ввода основ. ср-в'!B:B,0))) -> 0 | AK47: =IF(ISNA(INDEX('План ввода основ. ср-в'!L:L,MATCH(B47,'План ввода основ. ср-в'!B:B,0))),0,INDEX('План ввода основ. ср-в'!L:L,MATCH(B47,'План ввода основ. ср-в'!B:B,0))) -> 0 | AL47: =IF(AND(AK47=0,AM47=0),"","/") ->  | AM47: =IF(ISNA(INDEX('План ввода основ. ср-в'!K:K,MATCH(B47,'План ввода основ. ср-в'!B:B,0))),0,INDEX('План ввода основ. ср-в'!K:K,MATCH(B47,'План ввода основ. ср-в'!B:B,0))) -> 0 | AN47: 0 | AO47: / | AP47: 0 | AQ47: =IF(ISNA(INDEX('План ввода основ. ср-в'!N:N,MATCH(B47,'План ввода основ. ср-в'!B:B,0))),0,INDEX('План ввода основ. ср-в'!N:N,MATCH(B47,'План ввода основ. ср-в'!B:B,0))) -> 0 | AS47: =IF(ISNA(INDEX('План ввода основ. ср-в'!M:M,MATCH(B47,'План ввода основ. ср-в'!B:B,0))),0,INDEX('План ввода основ. ср-в'!M:M,MATCH(B47,'План ввода основ. ср-в'!B:B,0))) -> 0 | AT47: =IF(ISNA(INDEX('План ввода основ. ср-в'!P:P,MATCH(B47,'План ввода основ. ср-в'!B:B,0))),0,INDEX('План ввода основ. ср-в'!P:P,MATCH(B47,'План ввода основ. ср-в'!B:B,0))) -> 0 | AV47: =IF(ISNA(INDEX('План ввода основ. ср-в'!O:O,MATCH(B47,'План ввода основ. ср-в'!B:B,0))),0,INDEX('План ввода основ. ср-в'!O:O,MATCH(B47,'План ввода основ. ср-в'!B:B,0))) -> 0 | AW47: =IF(ISNA(INDEX('План ввода основ. ср-в'!R:R,MATCH(B47,'План ввода основ. ср-в'!B:B,0))),0,INDEX('План ввода основ. ср-в'!R:R,MATCH(B47,'План ввода основ. ср-в'!B:B,0))) -> 0 | AY47: =IF(ISNA(INDEX('План ввода основ. ср-в'!Q:Q,MATCH(B47,'План ввода основ. ср-в'!B:B,0))),0,INDEX('План ввода основ. ср-в'!Q:Q,MATCH(B47,'План ввода основ. ср-в'!B:B,0))) -> 0 | AZ47: =IF(ISNA(INDEX('План ввода основ. ср-в'!T:T,MATCH(B47,'План ввода основ. ср-в'!B:B,0))),0,INDEX('План ввода основ. ср-в'!T:T,MATCH(B47,'План ввода основ. ср-в'!B:B,0))) -> 3.85 | BA47: / | BB47: =IF(ISNA(INDEX('План ввода основ. ср-в'!S:S,MATCH(B47,'План ввода основ. ср-в'!B:B,0))),0,INDEX('План ввода основ. ср-в'!S:S,MATCH(B47,'План ввода основ. ср-в'!B:B,0))) -> 0.25 | BC47: 3.85 | BD47: / | BE47: 0.25 | BF47: =IF(ISNA(INDEX('План ввода основ. ср-в'!V:V,MATCH(B47,'План ввода основ. ср-в'!B:B,0))),0,INDEX('План ввода основ. ср-в'!V:V,MATCH(B47,'План ввода основ. ср-в'!B:B,0))) -> 0 | BG47: =IF(ISNA(INDEX('План ввода основ. ср-в'!W:W,MATCH(B47,'План ввода основ. ср-в'!B:B,0))),0,INDEX('План ввода основ. ср-в'!W:W,MATCH(B47,'План ввода основ. ср-в'!B:B,0))) -> 0 | BH47: =IF(ISNA(INDEX('План ввода основ. ср-в'!X:X,MATCH(B47,'План ввода основ. ср-в'!B:B,0))),0,INDEX('План ввода основ. ср-в'!X:X,MATCH(B47,'План ввода основ. ср-в'!B:B,0))) -> 0 | BI47: =IF(ISNA(INDEX('План ввода основ. ср-в'!Y:Y,MATCH(B47,'План ввода основ. ср-в'!B:B,0))),0,INDEX('План ввода основ. ср-в'!Y:Y,MATCH(B47,'План ввода основ. ср-в'!B:B,0))) -> 0 | BJ47: 0 | BK47: =IF(ISNA(INDEX('План ввода основ. ср-в'!Z:Z,MATCH(B47,'План ввода основ. ср-в'!B:B,0))),0,INDEX('План ввода основ. ср-в'!Z:Z,MATCH(B47,'План ввода основ. ср-в'!B:B,0))) -> 0 | BL47: =IF(ISNA(INDEX('План ввода основ. ср-в'!AA:AA,MATCH(B47,'План ввода основ. ср-в'!B:B,0))),0,INDEX('План ввода основ. ср-в'!AA:AA,MATCH(B47,'План ввода основ. ср-в'!B:B,0))) -> 0 | BM47: =IF(ISNA(INDEX('План ввода основ. ср-в'!AB:AB,MATCH(B47,'План ввода основ. ср-в'!B:B,0))),0,INDEX('План ввода основ. ср-в'!AB:AB,MATCH(B47,'План ввода основ. ср-в'!B:B,0))) -> 0 | BN47: =IF(ISNA(INDEX('План ввода основ. ср-в'!AC:AC,MATCH(B47,'План ввода основ. ср-в'!B:B,0))),0,INDEX('План ввода основ. ср-в'!AC:AC,MATCH(B47,'План ввода основ. ср-в'!B:B,0))) -> 10.15254237 | BO47: 10.15254237
A48: 26 | B48: Волжский район | I48: 0 | K48: 0 | L48: 0 | N48: 0 | O48: 0 | Q48: 0 | R48: 0 | T48: 0 | U48: 0 | W48: 0 | X48: 0 | Y48: / | Z48: 0 | AA48: 0 | AB48: =IF(ISNA(INDEX('План ввода основ. ср-в'!F:F,MATCH(B48,'План ввода основ. ср-в'!B:B,0))),0,INDEX('План ввода основ. ср-в'!F:F,MATCH(B48,'План ввода основ. ср-в'!B:B,0))) -> 0 | AD48: =IF(ISNA(INDEX('План ввода основ. ср-в'!E:E,MATCH(B48,'План ввода основ. ср-в'!B:B,0))),0,INDEX('План ввода основ. ср-в'!E:E,MATCH(B48,'План ввода основ. ср-в'!B:B,0))) -> 0 | AE48: =IF(ISNA(INDEX('План ввода основ. ср-в'!H:H,MATCH(B48,'План ввода основ. ср-в'!B:B,0))),0,INDEX('План ввода основ. ср-в'!H:H,MATCH(B48,'План ввода основ. ср-в'!B:B,0))) -> 0 | AG48: =IF(ISNA(INDEX('План ввода основ. ср-в'!G:G,MATCH(B48,'План ввода основ. ср-в'!B:B,0))),0,INDEX('План ввода основ. ср-в'!G:G,MATCH(B48,'План ввода основ. ср-в'!B:B,0))) -> 0 | AH48: =IF(ISNA(INDEX('План ввода основ. ср-в'!J:J,MATCH(B48,'План ввода основ. ср-в'!B:B,0))),0,INDEX('План ввода основ. ср-в'!J:J,MATCH(B48,'План ввода основ. ср-в'!B:B,0))) -> 0 | AJ48: =IF(ISNA(INDEX('План ввода основ. ср-в'!I:I,MATCH(B48,'План ввода основ. ср-в'!B:B,0))),0,INDEX('План ввода основ. ср-в'!I:I,MATCH(B48,'План ввода основ. ср-в'!B:B,0))) -> 0 | AK48: =IF(ISNA(INDEX('План ввода основ. ср-в'!L:L,MATCH(B48,'План ввода основ. ср-в'!B:B,0))),0,INDEX('План ввода основ. ср-в'!L:L,MATCH(B48,'План ввода основ. ср-в'!B:B,0))) -> 0 | AM48: =IF(ISNA(INDEX('План ввода основ. ср-в'!K:K,MATCH(B48,'План ввода основ. ср-в'!B:B,0))),0,INDEX('План ввода основ. ср-в'!K:K,MATCH(B48,'План ввода основ. ср-в'!B:B,0))) -> 0 | AN48: 0 | AO48: / | AP48: 0 | AQ48: =IF(ISNA(INDEX('План ввода основ. ср-в'!N:N,MATCH(B48,'План ввода основ. ср-в'!B:B,0))),0,INDEX('План ввода основ. ср-в'!N:N,MATCH(B48,'План ввода основ. ср-в'!B:B,0))) -> 0 | AR48: =IF(AND(AQ48=0,AS48=0),"","/") ->  | AS48: =IF(ISNA(INDEX('План ввода основ. ср-в'!M:M,MATCH(B48,'План ввода основ. ср-в'!B:B,0))),0,INDEX('План ввода основ. ср-в'!M:M,MATCH(B48,'План ввода основ. ср-в'!B:B,0))) -> 0 | AT48: =IF(ISNA(INDEX('План ввода основ. ср-в'!P:P,MATCH(B48,'План ввода основ. ср-в'!B:B,0))),0,INDEX('План ввода основ. ср-в'!P:P,MATCH(B48,'План ввода основ. ср-в'!B:B,0))) -> 0 | AU48: =IF(AND(AT48=0,AV48=0),"","/") ->  | AV48: =IF(ISNA(INDEX('План ввода основ. ср-в'!O:O,MATCH(B48,'План ввода основ. ср-в'!B:B,0))),0,INDEX('План ввода основ. ср-в'!O:O,MATCH(B48,'План ввода основ. ср-в'!B:B,0))) -> 0 | AW48: =IF(ISNA(INDEX('План ввода основ. ср-в'!R:R,MATCH(B48,'План ввода основ. ср-в'!B:B,0))),0,INDEX('План ввода основ. ср-в'!R:R,MATCH(B48,'План ввода основ. ср-в'!B:B,0))) -> 0 | AX48: =IF(AND(AW48=0,AY48=0),"","/") ->  | AY48: =IF(ISNA(INDEX('План ввода основ. ср-в'!Q:Q,MATCH(B48,'План ввода основ. ср-в'!B:B,0))),0,INDEX('План ввода основ. ср-в'!Q:Q,MATCH(B48,'План ввода основ. ср-в'!B:B,0))) -> 0 | AZ48: =IF(ISNA(INDEX('План ввода основ. ср-в'!T:T,MATCH(B48,'План ввода основ. ср-в'!B:B,0))),0,INDEX('План ввода основ. ср-в'!T:T,MATCH(B48,'План ввода основ. ср-в'!B:B,0))) -> 0 | BA48: =IF(AND(AZ48=0,BB48=0),"","/") ->  | BB48: =IF(ISNA(INDEX('План ввода основ. ср-в'!S:S,MATCH(B48,'План ввода основ. ср-в'!B:B,0))),0,INDEX('План ввода основ. ср-в'!S:S,MATCH(B48,'План ввода основ. ср-в'!B:B,0))) -> 0 | BC48: 0 | BD48: / | BE48: 0 | BF48: =IF(ISNA(INDEX('План ввода основ. ср-в'!V:V,MATCH(B48,'План ввода основ. ср-в'!B:B,0))),0,INDEX('План ввода основ. ср-в'!V:V,MATCH(B48,'План ввода основ. ср-в'!B:B,0))) -> 0 | BG48: =IF(ISNA(INDEX('План ввода основ. ср-в'!W:W,MATCH(B48,'План ввода основ. ср-в'!B:B,0))),0,INDEX('План ввода основ. ср-в'!W:W,MATCH(B48,'План ввода основ. ср-в'!B:B,0))) -> 0 | BH48: =IF(ISNA(INDEX('План ввода основ. ср-в'!X:X,MATCH(B48,'План ввода основ. ср-в'!B:B,0))),0,INDEX('План ввода основ. ср-в'!X:X,MATCH(B48,'План ввода основ. ср-в'!B:B,0))) -> 0 | BI48: =IF(ISNA(INDEX('План ввода основ. ср-в'!Y:Y,MATCH(B48,'План ввода основ. ср-в'!B:B,0))),0,INDEX('План ввода основ. ср-в'!Y:Y,MATCH(B48,'План ввода основ. ср-в'!B:B,0))) -> 0 | BJ48: 0 | BK48: =IF(ISNA(INDEX('План ввода основ. ср-в'!Z:Z,MATCH(B48,'План ввода основ. ср-в'!B:B,0))),0,INDEX('План ввода основ. ср-в'!Z:Z,MATCH(B48,'План ввода основ. ср-в'!B:B,0))) -> 0 | BL48: =IF(ISNA(INDEX('План ввода основ. ср-в'!AA:AA,MATCH(B48,'План ввода основ. ср-в'!B:B,0))),0,INDEX('План ввода основ. ср-в'!AA:AA,MATCH(B48,'План ввода основ. ср-в'!B:B,0))) -> 0 | BM48: =IF(ISNA(INDEX('План ввода основ. ср-в'!AB:AB,MATCH(B48,'План ввода основ. ср-в'!B:B,0))),0,INDEX('План ввода основ. ср-в'!AB:AB,MATCH(B48,'План ввода основ. ср-в'!B:B,0))) -> 0 | BN48: =IF(ISNA(INDEX('План ввода основ. ср-в'!AC:AC,MATCH(B48,'План ввода основ. ср-в'!B:B,0))),0,INDEX('План ввода основ. ср-в'!AC:AC,MATCH(B48,'План ввода основ. ср-в'!B:B,0))) -> 0 | BO48: 0
A49: 27 | B49: Повышение надежности энергоснабжения п.г.т. Петра-Дубрава | I49: 0 | K49: 0 | L49: 0 | N49: 0 | O49: 0 | Q49: 0 | R49: 0 | T49: 0 | U49: 0 | W49: 0 | X49: 0 | Y49: / | Z49: 0 | AA49: 1082.661017 | AB49: =IF(ISNA(INDEX('План ввода основ. ср-в'!F:F,MATCH(B49,'План ввода основ. ср-в'!B:B,0))),0,INDEX('План ввода основ. ср-в'!F:F,MATCH(B49,'План ввода основ. ср-в'!B:B,0))) -> 0 | AD49: =IF(ISNA(INDEX('План ввода основ. ср-в'!E:E,MATCH(B49,'План ввода основ. ср-в'!B:B,0))),0,INDEX('План ввода основ. ср-в'!E:E,MATCH(B49,'План ввода основ. ср-в'!B:B,0))) -> 0 | AE49: =IF(ISNA(INDEX('План ввода основ. ср-в'!H:H,MATCH(B49,'План ввода основ. ср-в'!B:B,0))),0,INDEX('План ввода основ. ср-в'!H:H,MATCH(B49,'План ввода основ. ср-в'!B:B,0))) -> 0 | AG49: =IF(ISNA(INDEX('План ввода основ. ср-в'!G:G,MATCH(B49,'План ввода основ. ср-в'!B:B,0))),0,INDEX('План ввода основ. ср-в'!G:G,MATCH(B49,'План ввода основ. ср-в'!B:B,0))) -> 0 | AH49: =IF(ISNA(INDEX('План ввода основ. ср-в'!J:J,MATCH(B49,'План ввода основ. ср-в'!B:B,0))),0,INDEX('План ввода основ. ср-в'!J:J,MATCH(B49,'План ввода основ. ср-в'!B:B,0))) -> 0 | AJ49: =IF(ISNA(INDEX('План ввода основ. ср-в'!I:I,MATCH(B49,'План ввода основ. ср-в'!B:B,0))),0,INDEX('План ввода основ. ср-в'!I:I,MATCH(B49,'План ввода основ. ср-в'!B:B,0))) -> 0 | AK49: =IF(ISNA(INDEX('План ввода основ. ср-в'!L:L,MATCH(B49,'План ввода основ. ср-в'!B:B,0))),0,INDEX('План ввода основ. ср-в'!L:L,MATCH(B49,'План ввода основ. ср-в'!B:B,0))) -> 0 | AM49: =IF(ISNA(INDEX('План ввода основ. ср-в'!K:K,MATCH(B49,'План ввода основ. ср-в'!B:B,0))),0,INDEX('План ввода основ. ср-в'!K:K,MATCH(B49,'План ввода основ. ср-в'!B:B,0))) -> 0 | AN49: 0 | AO49: / | AP49: 0 | AQ49: =IF(ISNA(INDEX('План ввода основ. ср-в'!N:N,MATCH(B49,'План ввода основ. ср-в'!B:B,0))),0,INDEX('План ввода основ. ср-в'!N:N,MATCH(B49,'План ввода основ. ср-в'!B:B,0))) -> 24 | AR49: / | AS49: =IF(ISNA(INDEX('План ввода основ. ср-в'!M:M,MATCH(B49,'План ввода основ. ср-в'!B:B,0))),0,INDEX('План ввода основ. ср-в'!M:M,MATCH(B49,'План ввода основ. ср-в'!B:B,0))) -> 12.8 | AT49: =IF(ISNA(INDEX('План ввода основ. ср-в'!P:P,MATCH(B49,'План ввода основ. ср-в'!B:B,0))),0,INDEX('План ввода основ. ср-в'!P:P,MATCH(B49,'План ввода основ. ср-в'!B:B,0))) -> 26.3 | AU49: / | AV49: =IF(ISNA(INDEX('План ввода основ. ср-в'!O:O,MATCH(B49,'План ввода основ. ср-в'!B:B,0))),0,INDEX('План ввода основ. ср-в'!O:O,MATCH(B49,'План ввода основ. ср-в'!B:B,0))) -> 12.8 | AW49: =IF(ISNA(INDEX('План ввода основ. ср-в'!R:R,MATCH(B49,'План ввода основ. ср-в'!B:B,0))),0,INDEX('План ввода основ. ср-в'!R:R,MATCH(B49,'План ввода основ. ср-в'!B:B,0))) -> 28 | AX49: / | AY49: =IF(ISNA(INDEX('План ввода основ. ср-в'!Q:Q,MATCH(B49,'План ввода основ. ср-в'!B:B,0))),0,INDEX('План ввода основ. ср-в'!Q:Q,MATCH(B49,'План ввода основ. ср-в'!B:B,0))) -> 12.8 | AZ49: =IF(ISNA(INDEX('План ввода основ. ср-в'!T:T,MATCH(B49,'План ввода основ. ср-в'!B:B,0))),0,INDEX('План ввода основ. ср-в'!T:T,MATCH(B49,'План ввода основ. ср-в'!B:B,0))) -> 30 | BA49: / | BB49: =IF(ISNA(INDEX('План ввода основ. ср-в'!S:S,MATCH(B49,'План ввода основ. ср-в'!B:B,0))),0,INDEX('План ввода основ. ср-в'!S:S,MATCH(B49,'План ввода основ. ср-в'!B:B,0))) -> 12.8 | BC49: 108.3 | BD49: / | BE49: 51.2 | BF49: =IF(ISNA(INDEX('План ввода основ. ср-в'!V:V,MATCH(B49,'План ввода основ. ср-в'!B:B,0))),0,INDEX('План ввода основ. ср-в'!V:V,MATCH(B49,'План ввода основ. ср-в'!B:B,0))) -> 0 | BG49: =IF(ISNA(INDEX('План ввода основ. ср-в'!W:W,MATCH(B49,'План ввода основ. ср-в'!B:B,0))),0,INDEX('План ввода основ. ср-в'!W:W,MATCH(B49,'План ввода основ. ср-в'!B:B,0))) -> 0 | BH49: =IF(ISNA(INDEX('План ввода основ. ср-в'!X:X,MATCH(B49,'План ввода основ. ср-в'!B:B,0))),0,INDEX('План ввода основ. ср-в'!X:X,MATCH(B49,'План ввода основ. ср-в'!B:B,0))) -> 0 | BI49: =IF(ISNA(INDEX('План ввода основ. ср-в'!Y:Y,MATCH(B49,'План ввода основ. ср-в'!B:B,0))),0,INDEX('План ввода основ. ср-в'!Y:Y,MATCH(B49,'План ввода основ. ср-в'!B:B,0))) -> 0 | BJ49: 0 | BK49: =IF(ISNA(INDEX('План ввода основ. ср-в'!Z:Z,MATCH(B49,'План ввода основ. ср-в'!B:B,0))),0,INDEX('План ввода основ. ср-в'!Z:Z,MATCH(B49,'План ввода основ. ср-в'!B:B,0))) -> 240 | BL49: =IF(ISNA(INDEX('План ввода основ. ср-в'!AA:AA,MATCH(B49,'План ввода основ. ср-в'!B:B,0))),0,INDEX('План ввода основ. ср-в'!AA:AA,MATCH(B49,'План ввода основ. ср-в'!B:B,0))) -> 263 | BM49: =IF(ISNA(INDEX('План ввода основ. ср-в'!AB:AB,MATCH(B49,'План ввода основ. ср-в'!B:B,0))),0,INDEX('План ввода основ. ср-в'!AB:AB,MATCH(B49,'План ввода основ. ср-в'!B:B,0))) -> 279.6610169 | BN49: =IF(ISNA(INDEX('План ввода основ. ср-в'!AC:AC,MATCH(B49,'План ввода основ. ср-в'!B:B,0))),0,INDEX('План ввода основ. ср-в'!AC:AC,MATCH(B49,'План ввода основ. ср-в'!B:B,0))) -> 300 | BO49: 1082.661017
A50: 28 | B50: Реконструкция, инфраструктуры объектов электрохозяйства в г.о. Самара в целях обеспечения надежности ЭС объектов Южный город, Заречье в Волжском районе | I50: 0 | K50: 0 | L50: 0 | N50: 0 | O50: 0 | Q50: 0 | R50: 0 | T50: 0 | U50: 0 | W50: 0 | X50: 0 | Y50: / | Z50: 0 | AA50: 1188.016949 | AB50: =IF(ISNA(INDEX('План ввода основ. ср-в'!F:F,MATCH(B50,'План ввода основ. ср-в'!B:B,0))),0,INDEX('План ввода основ. ср-в'!F:F,MATCH(B50,'План ввода основ. ср-в'!B:B,0))) -> 0 | AD50: =IF(ISNA(INDEX('План ввода основ. ср-в'!E:E,MATCH(B50,'План ввода основ. ср-в'!B:B,0))),0,INDEX('План ввода основ. ср-в'!E:E,MATCH(B50,'План ввода основ. ср-в'!B:B,0))) -> 0 | AE50: =IF(ISNA(INDEX('План ввода основ. ср-в'!H:H,MATCH(B50,'План ввода основ. ср-в'!B:B,0))),0,INDEX('План ввода основ. ср-в'!H:H,MATCH(B50,'План ввода основ. ср-в'!B:B,0))) -> 0 | AG50: =IF(ISNA(INDEX('План ввода основ. ср-в'!G:G,MATCH(B50,'План ввода основ. ср-в'!B:B,0))),0,INDEX('План ввода основ. ср-в'!G:G,MATCH(B50,'План ввода основ. ср-в'!B:B,0))) -> 0 | AH50: =IF(ISNA(INDEX('План ввода основ. ср-в'!J:J,MATCH(B50,'План ввода основ. ср-в'!B:B,0))),0,INDEX('План ввода основ. ср-в'!J:J,MATCH(B50,'План ввода основ. ср-в'!B:B,0))) -> 0 | AJ50: =IF(ISNA(INDEX('План ввода основ. ср-в'!I:I,MATCH(B50,'План ввода основ. ср-в'!B:B,0))),0,INDEX('План ввода основ. ср-в'!I:I,MATCH(B50,'План ввода основ. ср-в'!B:B,0))) -> 0 | AK50: =IF(ISNA(INDEX('План ввода основ. ср-в'!L:L,MATCH(B50,'План ввода основ. ср-в'!B:B,0))),0,INDEX('План ввода основ. ср-в'!L:L,MATCH(B50,'План ввода основ. ср-в'!B:B,0))) -> 0 | AM50: =IF(ISNA(INDEX('План ввода основ. ср-в'!K:K,MATCH(B50,'План ввода основ. ср-в'!B:B,0))),0,INDEX('План ввода основ. ср-в'!K:K,MATCH(B50,'План ввода основ. ср-в'!B:B,0))) -> 0 | AN50: 0 | AO50: / | AP50: 0 | AQ50: =IF(ISNA(INDEX('План ввода основ. ср-в'!N:N,MATCH(B50,'План ввода основ. ср-в'!B:B,0))),0,INDEX('План ввода основ. ср-в'!N:N,MATCH(B50,'План ввода основ. ср-в'!B:B,0))) -> 12 | AR50: / | AS50: =IF(ISNA(INDEX('План ввода основ. ср-в'!M:M,MATCH(B50,'План ввода основ. ср-в'!B:B,0))),0,INDEX('План ввода основ. ср-в'!M:M,MATCH(B50,'План ввода основ. ср-в'!B:B,0))) -> 0 | AT50: =IF(ISNA(INDEX('План ввода основ. ср-в'!P:P,MATCH(B50,'План ввода основ. ср-в'!B:B,0))),0,INDEX('План ввода основ. ср-в'!P:P,MATCH(B50,'План ввода основ. ср-в'!B:B,0))) -> 12 | AU50: / | AV50: =IF(ISNA(INDEX('План ввода основ. ср-в'!O:O,MATCH(B50,'План ввода основ. ср-в'!B:B,0))),0,INDEX('План ввода основ. ср-в'!O:O,MATCH(B50,'План ввода основ. ср-в'!B:B,0))) -> 63 | AW50: =IF(ISNA(INDEX('План ввода основ. ср-в'!R:R,MATCH(B50,'План ввода основ. ср-в'!B:B,0))),0,INDEX('План ввода основ. ср-в'!R:R,MATCH(B50,'План ввода основ. ср-в'!B:B,0))) -> 12 | AX50: / | AY50: =IF(ISNA(INDEX('План ввода основ. ср-в'!Q:Q,MATCH(B50,'План ввода основ. ср-в'!B:B,0))),0,INDEX('План ввода основ. ср-в'!Q:Q,MATCH(B50,'План ввода основ. ср-в'!B:B,0))) -> 70.2 | AZ50: =IF(ISNA(INDEX('План ввода основ. ср-в'!T:T,MATCH(B50,'План ввода основ. ср-в'!B:B,0))),0,INDEX('План ввода основ. ср-в'!T:T,MATCH(B50,'План ввода основ. ср-в'!B:B,0))) -> 30 | BA50: / | BB50: =IF(ISNA(INDEX('План ввода основ. ср-в'!S:S,MATCH(B50,'План ввода основ. ср-в'!B:B,0))),0,INDEX('План ввода основ. ср-в'!S:S,MATCH(B50,'План ввода основ. ср-в'!B:B,0))) -> 70.2 | BC50: 66 | BD50: / | BE50: 203.4 | BF50: =IF(ISNA(INDEX('План ввода основ. ср-в'!V:V,MATCH(B50,'План ввода основ. ср-в'!B:B,0))),0,INDEX('План ввода основ. ср-в'!V:V,MATCH(B50,'План ввода основ. ср-в'!B:B,0))) -> 0 | BG50: =IF(ISNA(INDEX('План ввода основ. ср-в'!W:W,MATCH(B50,'План ввода основ. ср-в'!B:B,0))),0,INDEX('План ввода основ. ср-в'!W:W,MATCH(B50,'План ввода основ. ср-в'!B:B,0))) -> 0 | BH50: =IF(ISNA(INDEX('План ввода основ. ср-в'!X:X,MATCH(B50,'План ввода основ. ср-в'!B:B,0))),0,INDEX('План ввода основ. ср-в'!X:X,MATCH(B50,'План ввода основ. ср-в'!B:B,0))) -> 0 | BI50: =IF(ISNA(INDEX('План ввода основ. ср-в'!Y:Y,MATCH(B50,'План ввода основ. ср-в'!B:B,0))),0,INDEX('План ввода основ. ср-в'!Y:Y,MATCH(B50,'План ввода основ. ср-в'!B:B,0))) -> 0 | BJ50: 0 | BK50: =IF(ISNA(INDEX('План ввода основ. ср-в'!Z:Z,MATCH(B50,'План ввода основ. ср-в'!B:B,0))),0,INDEX('План ввода основ. ср-в'!Z:Z,MATCH(B50,'План ввода основ. ср-в'!B:B,0))) -> 172 | BL50: =IF(ISNA(INDEX('План ввода основ. ср-в'!AA:AA,MATCH(B50,'План ввода основ. ср-в'!B:B,0))),0,INDEX('План ввода основ. ср-в'!AA:AA,MATCH(B50,'План ввода основ. ср-в'!B:B,0))) -> 290 | BM50: =IF(ISNA(INDEX('План ввода основ. ср-в'!AB:AB,MATCH(B50,'План ввода основ. ср-в'!B:B,0))),0,INDEX('План ввода основ. ср-в'!AB:AB,MATCH(B50,'План ввода основ. ср-в'!B:B,0))) -> 346.0169492 | BN50: =IF(ISNA(INDEX('План ввода основ. ср-в'!AC:AC,MATCH(B50,'План ввода основ. ср-в'!B:B,0))),0,INDEX('План ввода основ. ср-в'!AC:AC,MATCH(B50,'План ввода основ. ср-в'!B:B,0))) -> 380 | BO50: 1188.016949
A51: 29 | B51: Повышение надежности энергоснабжения электросетевого района с. Лопатино | I51: 13.4 | J51: / | K51: 0 | L51: 0 | N51: 0 | O51: 0 | Q51: 0 | R51: 0 | T51: 0 | U51: 0 | W51: 0 | X51: 13.4 | Y51: / | Z51: 0 | AA51: 41.22881356 | AB51: =IF(ISNA(INDEX('План ввода основ. ср-в'!F:F,MATCH(B51,'План ввода основ. ср-в'!B:B,0))),0,INDEX('План ввода основ. ср-в'!F:F,MATCH(B51,'План ввода основ. ср-в'!B:B,0))) -> 0 | AD51: =IF(ISNA(INDEX('План ввода основ. ср-в'!E:E,MATCH(B51,'План ввода основ. ср-в'!B:B,0))),0,INDEX('План ввода основ. ср-в'!E:E,MATCH(B51,'План ввода основ. ср-в'!B:B,0))) -> 0 | AE51: =IF(ISNA(INDEX('План ввода основ. ср-в'!H:H,MATCH(B51,'План ввода основ. ср-в'!B:B,0))),0,INDEX('План ввода основ. ср-в'!H:H,MATCH(B51,'План ввода основ. ср-в'!B:B,0))) -> 0 | AG51: =IF(ISNA(INDEX('План ввода основ. ср-в'!G:G,MATCH(B51,'План ввода основ. ср-в'!B:B,0))),0,INDEX('План ввода основ. ср-в'!G:G,MATCH(B51,'План ввода основ. ср-в'!B:B,0))) -> 0 | AH51: =IF(ISNA(INDEX('План ввода основ. ср-в'!J:J,MATCH(B51,'План ввода основ. ср-в'!B:B,0))),0,INDEX('План ввода основ. ср-в'!J:J,MATCH(B51,'План ввода основ. ср-в'!B:B,0))) -> 0 | AJ51: =IF(ISNA(INDEX('План ввода основ. ср-в'!I:I,MATCH(B51,'План ввода основ. ср-в'!B:B,0))),0,INDEX('План ввода основ. ср-в'!I:I,MATCH(B51,'План ввода основ. ср-в'!B:B,0))) -> 0 | AK51: =IF(ISNA(INDEX('План ввода основ. ср-в'!L:L,MATCH(B51,'План ввода основ. ср-в'!B:B,0))),0,INDEX('План ввода основ. ср-в'!L:L,MATCH(B51,'План ввода основ. ср-в'!B:B,0))) -> 13.4 | AL51: / | AM51: =IF(ISNA(INDEX('План ввода основ. ср-в'!K:K,MATCH(B51,'План ввода основ. ср-в'!B:B,0))),0,INDEX('План ввода основ. ср-в'!K:K,MATCH(B51,'План ввода основ. ср-в'!B:B,0))) -> 0 | AN51: 13.4 | AO51: / | AP51: 0 | AQ51: =IF(ISNA(INDEX('План ввода основ. ср-в'!N:N,MATCH(B51,'План ввода основ. ср-в'!B:B,0))),0,INDEX('План ввода основ. ср-в'!N:N,MATCH(B51,'План ввода основ. ср-в'!B:B,0))) -> 0 | AS51: =IF(ISNA(INDEX('План ввода основ. ср-в'!M:M,MATCH(B51,'План ввода основ. ср-в'!B:B,0))),0,INDEX('План ввода основ. ср-в'!M:M,MATCH(B51,'План ввода основ. ср-в'!B:B,0))) -> 0 | AT51: =IF(ISNA(INDEX('План ввода основ. ср-в'!P:P,MATCH(B51,'План ввода основ. ср-в'!B:B,0))),0,INDEX('План ввода основ. ср-в'!P:P,MATCH(B51,'План ввода основ. ср-в'!B:B,0))) -> 0 | AV51: =IF(ISNA(INDEX('План ввода основ. ср-в'!O:O,MATCH(B51,'План ввода основ. ср-в'!B:B,0))),0,INDEX('План ввода основ. ср-в'!O:O,MATCH(B51,'План ввода основ. ср-в'!B:B,0))) -> 0 | AW51: =IF(ISNA(INDEX('План ввода основ. ср-в'!R:R,MATCH(B51,'План ввода основ. ср-в'!B:B,0))),0,INDEX('План ввода основ. ср-в'!R:R,MATCH(B51,'План ввода основ. ср-в'!B:B,0))) -> 0 | AY51: =IF(ISNA(INDEX('План ввода основ. ср-в'!Q:Q,MATCH(B51,'План ввода основ. ср-в'!B:B,0))),0,INDEX('План ввода основ. ср-в'!Q:Q,MATCH(B51,'План ввода основ. ср-в'!B:B,0))) -> 0 | AZ51: =IF(ISNA(INDEX('План ввода основ. ср-в'!T:T,MATCH(B51,'План ввода основ. ср-в'!B:B,0))),0,INDEX('План ввода основ. ср-в'!T:T,MATCH(B51,'План ввода основ. ср-в'!B:B,0))) -> 0 | BB51: =IF(ISNA(INDEX('План ввода основ. ср-в'!S:S,MATCH(B51,'План ввода основ. ср-в'!B:B,0))),0,INDEX('План ввода основ. ср-в'!S:S,MATCH(B51,'План ввода основ. ср-в'!B:B,0))) -> 0 | BC51: 13.4 | BD51: / | BE51: 0 | BF51: =IF(ISNA(INDEX('План ввода основ. ср-в'!V:V,MATCH(B51,'План ввода основ. ср-в'!B:B,0))),0,INDEX('План ввода основ. ср-в'!V:V,MATCH(B51,'План ввода основ. ср-в'!B:B,0))) -> 0 | BG51: =IF(ISNA(INDEX('План ввода основ. ср-в'!W:W,MATCH(B51,'План ввода основ. ср-в'!B:B,0))),0,INDEX('План ввода основ. ср-в'!W:W,MATCH(B51,'План ввода основ. ср-в'!B:B,0))) -> 6.184322034 | BH51: =IF(ISNA(INDEX('План ввода основ. ср-в'!X:X,MATCH(B51,'План ввода основ. ср-в'!B:B,0))),0,INDEX('План ввода основ. ср-в'!X:X,MATCH(B51,'План ввода основ. ср-в'!B:B,0))) -> 14.43008475 | BI51: =IF(ISNA(INDEX('План ввода основ. ср-в'!Y:Y,MATCH(B51,'План ввода основ. ср-в'!B:B,0))),0,INDEX('План ввода основ. ср-в'!Y:Y,MATCH(B51,'План ввода основ. ср-в'!B:B,0))) -> 20.61440678 | BJ51: 41.22881356 | BK51: =IF(ISNA(INDEX('План ввода основ. ср-в'!Z:Z,MATCH(B51,'План ввода основ. ср-в'!B:B,0))),0,INDEX('План ввода основ. ср-в'!Z:Z,MATCH(B51,'План ввода основ. ср-в'!B:B,0))) -> 0 | BL51: =IF(ISNA(INDEX('План ввода основ. ср-в'!AA:AA,MATCH(B51,'План ввода основ. ср-в'!B:B,0))),0,INDEX('План ввода основ. ср-в'!AA:AA,MATCH(B51,'План ввода основ. ср-в'!B:B,0))) -> 0 | BM51: =IF(ISNA(INDEX('План ввода основ. ср-в'!AB:AB,MATCH(B51,'План ввода основ. ср-в'!B:B,0))),0,INDEX('План ввода основ. ср-в'!AB:AB,MATCH(B51,'План ввода основ. ср-в'!B:B,0))) -> 0 | BN51: =IF(ISNA(INDEX('План ввода основ. ср-в'!AC:AC,MATCH(B51,'План ввода основ. ср-в'!B:B,0))),0,INDEX('План ввода основ. ср-в'!AC:AC,MATCH(B51,'План ввода основ. ср-в'!B:B,0))) -> 0 | BO51: 41.22881356
A52: 30 | B52: Реконструкция ЗТП КУР 2010/2х100 кВА с заменой трансформаторов на 400 кВА | I52: 0 | J52: / | K52: 0.2 | L52: 0 | N52: 0 | O52: 0 | Q52: 0 | R52: 0 | T52: 0 | U52: 0 | W52: 0 | X52: 0 | Y52: / | Z52: 0.2 | AA52: 4.661016949 | AB52: =IF(ISNA(INDEX('План ввода основ. ср-в'!F:F,MATCH(B52,'План ввода основ. ср-в'!B:B,0))),0,INDEX('План ввода основ. ср-в'!F:F,MATCH(B52,'План ввода основ. ср-в'!B:B,0))) -> 0 | AD52: =IF(ISNA(INDEX('План ввода основ. ср-в'!E:E,MATCH(B52,'План ввода основ. ср-в'!B:B,0))),0,INDEX('План ввода основ. ср-в'!E:E,MATCH(B52,'План ввода основ. ср-в'!B:B,0))) -> 0 | AE52: =IF(ISNA(INDEX('План ввода основ. ср-в'!H:H,MATCH(B52,'План ввода основ. ср-в'!B:B,0))),0,INDEX('План ввода основ. ср-в'!H:H,MATCH(B52,'План ввода основ. ср-в'!B:B,0))) -> 0 | AG52: =IF(ISNA(INDEX('План ввода основ. ср-в'!G:G,MATCH(B52,'План ввода основ. ср-в'!B:B,0))),0,INDEX('План ввода основ. ср-в'!G:G,MATCH(B52,'План ввода основ. ср-в'!B:B,0))) -> 0 | AH52: =IF(ISNA(INDEX('План ввода основ. ср-в'!J:J,MATCH(B52,'План ввода основ. ср-в'!B:B,0))),0,INDEX('План ввода основ. ср-в'!J:J,MATCH(B52,'План ввода основ. ср-в'!B:B,0))) -> 0 | AJ52: =IF(ISNA(INDEX('План ввода основ. ср-в'!I:I,MATCH(B52,'План ввода основ. ср-в'!B:B,0))),0,INDEX('План ввода основ. ср-в'!I:I,MATCH(B52,'План ввода основ. ср-в'!B:B,0))) -> 0 | AK52: =IF(ISNA(INDEX('План ввода основ. ср-в'!L:L,MATCH(B52,'План ввода основ. ср-в'!B:B,0))),0,INDEX('План ввода основ. ср-в'!L:L,MATCH(B52,'План ввода основ. ср-в'!B:B,0))) -> 0 | AL52: / | AM52: =IF(ISNA(INDEX('План ввода основ. ср-в'!K:K,MATCH(B52,'План ввода основ. ср-в'!B:B,0))),0,INDEX('План ввода основ. ср-в'!K:K,MATCH(B52,'План ввода основ. ср-в'!B:B,0))) -> 0.8 | AN52: 0 | AO52: / | AP52: 0.8 | AQ52: =IF(ISNA(INDEX('План ввода основ. ср-в'!N:N,MATCH(B52,'План ввода основ. ср-в'!B:B,0))),0,INDEX('План ввода основ. ср-в'!N:N,MATCH(B52,'План ввода основ. ср-в'!B:B,0))) -> 0 | AS52: =IF(ISNA(INDEX('План ввода основ. ср-в'!M:M,MATCH(B52,'План ввода основ. ср-в'!B:B,0))),0,INDEX('План ввода основ. ср-в'!M:M,MATCH(B52,'План ввода основ. ср-в'!B:B,0))) -> 0 | AT52: =IF(ISNA(INDEX('План ввода основ. ср-в'!P:P,MATCH(B52,'План ввода основ. ср-в'!B:B,0))),0,INDEX('План ввода основ. ср-в'!P:P,MATCH(B52,'План ввода основ. ср-в'!B:B,0))) -> 0 | AV52: =IF(ISNA(INDEX('План ввода основ. ср-в'!O:O,MATCH(B52,'План ввода основ. ср-в'!B:B,0))),0,INDEX('План ввода основ. ср-в'!O:O,MATCH(B52,'План ввода основ. ср-в'!B:B,0))) -> 0 | AW52: =IF(ISNA(INDEX('План ввода основ. ср-в'!R:R,MATCH(B52,'План ввода основ. ср-в'!B:B,0))),0,INDEX('План ввода основ. ср-в'!R:R,MATCH(B52,'План ввода основ. ср-в'!B:B,0))) -> 0 | AY52: =IF(ISNA(INDEX('План ввода основ. ср-в'!Q:Q,MATCH(B52,'План ввода основ. ср-в'!B:B,0))),0,INDEX('План ввода основ. ср-в'!Q:Q,MATCH(B52,'План ввода основ. ср-в'!B:B,0))) -> 0 | AZ52: =IF(ISNA(INDEX('План ввода основ. ср-в'!T:T,MATCH(B52,'План ввода основ. ср-в'!B:B,0))),0,INDEX('План ввода основ. ср-в'!T:T,MATCH(B52,'План ввода основ. ср-в'!B:B,0))) -> 0 | BB52: =IF(ISNA(INDEX('План ввода основ. ср-в'!S:S,MATCH(B52,'План ввода основ. ср-в'!B:B,0))),0,INDEX('План ввода основ. ср-в'!S:S,MATCH(B52,'План ввода основ. ср-в'!B:B,0))) -> 0 | BC52: 0 | BD52: / | BE52: 0.8 | BF52: =IF(ISNA(INDEX('План ввода основ. ср-в'!V:V,MATCH(B52,'План ввода основ. ср-в'!B:B,0))),0,INDEX('План ввода основ. ср-в'!V:V,MATCH(B52,'План ввода основ. ср-в'!B:B,0))) -> 0 | BG52: =IF(ISNA(INDEX('План ввода основ. ср-в'!W:W,MATCH(B52,'План ввода основ. ср-в'!B:B,0))),0,INDEX('План ввода основ. ср-в'!W:W,MATCH(B52,'План ввода основ. ср-в'!B:B,0))) -> 0.6991525424 | BH52: =IF(ISNA(INDEX('План ввода основ. ср-в'!X:X,MATCH(B52,'План ввода основ. ср-в'!B:B,0))),0,INDEX('План ввода основ. ср-в'!X:X,MATCH(B52,'План ввода основ. ср-в'!B:B,0))) -> 1.631355932 | BI52: =IF(ISNA(INDEX('План ввода основ. ср-в'!Y:Y,MATCH(B52,'План ввода основ. ср-в'!B:B,0))),0,INDEX('План ввода основ. ср-в'!Y:Y,MATCH(B52,'План ввода основ. ср-в'!B:B,0))) -> 2.330508475 | BJ52: 4.661016949 | BK52: =IF(ISNA(INDEX('План ввода основ. ср-в'!Z:Z,MATCH(B52,'План ввода основ. ср-в'!B:B,0))),0,INDEX('План ввода основ. ср-в'!Z:Z,MATCH(B52,'План ввода основ. ср-в'!B:B,0))) -> 0 | BL52: =IF(ISNA(INDEX('План ввода основ. ср-в'!AA:AA,MATCH(B52,'План ввода основ. ср-в'!B:B,0))),0,INDEX('План ввода основ. ср-в'!AA:AA,MATCH(B52,'План ввода основ. ср-в'!B:B,0))) -> 0 | BM52: =IF(ISNA(INDEX('План ввода основ. ср-в'!AB:AB,MATCH(B52,'План ввода основ. ср-в'!B:B,0))),0,INDEX('План ввода основ. ср-в'!AB:AB,MATCH(B52,'План ввода основ. ср-в'!B:B,0))) -> 0 | BN52: =IF(ISNA(INDEX('План ввода основ. ср-в'!AC:AC,MATCH(B52,'План ввода основ. ср-в'!B:B,0))),0,INDEX('План ввода основ. ср-в'!AC:AC,MATCH(B52,'План ввода основ. ср-в'!B:B,0))) -> 0 | BO52: 4.661016949
A53: 31 | B53: Реконструкция ВЛ-0,4кВ от ЗТП Кур 906/400 кВА с заменой в ЗТП РУ-0,4 кВ | I53: 1.1 | K53: 0 | L53: 0 | N53: 0 | R53: 0 | T53: 0 | U53: 0 | W53: 0 | X53: 1.1 | Z53: 0 | AA53: 3.618644068 | AB53: =IF(ISNA(INDEX('План ввода основ. ср-в'!F:F,MATCH(B53,'План ввода основ. ср-в'!B:B,0))),0,INDEX('План ввода основ. ср-в'!F:F,MATCH(B53,'План ввода основ. ср-в'!B:B,0))) -> 0 | AD53: =IF(ISNA(INDEX('План ввода основ. ср-в'!E:E,MATCH(B53,'План ввода основ. ср-в'!B:B,0))),0,INDEX('План ввода основ. ср-в'!E:E,MATCH(B53,'План ввода основ. ср-в'!B:B,0))) -> 0 | AE53: =IF(ISNA(INDEX('План ввода основ. ср-в'!H:H,MATCH(B53,'План ввода основ. ср-в'!B:B,0))),0,INDEX('План ввода основ. ср-в'!H:H,MATCH(B53,'План ввода основ. ср-в'!B:B,0))) -> 0 | AG53: =IF(ISNA(INDEX('План ввода основ. ср-в'!G:G,MATCH(B53,'План ввода основ. ср-в'!B:B,0))),0,INDEX('План ввода основ. ср-в'!G:G,MATCH(B53,'План ввода основ. ср-в'!B:B,0))) -> 0 | AH53: =IF(ISNA(INDEX('План ввода основ. ср-в'!J:J,MATCH(B53,'План ввода основ. ср-в'!B:B,0))),0,INDEX('План ввода основ. ср-в'!J:J,MATCH(B53,'План ввода основ. ср-в'!B:B,0))) -> 0 | AJ53: =IF(ISNA(INDEX('План ввода основ. ср-в'!I:I,MATCH(B53,'План ввода основ. ср-в'!B:B,0))),0,INDEX('План ввода основ. ср-в'!I:I,MATCH(B53,'План ввода основ. ср-в'!B:B,0))) -> 0 | AK53: =IF(ISNA(INDEX('План ввода основ. ср-в'!L:L,MATCH(B53,'План ввода основ. ср-в'!B:B,0))),0,INDEX('План ввода основ. ср-в'!L:L,MATCH(B53,'План ввода основ. ср-в'!B:B,0))) -> 1.1 | AM53: =IF(ISNA(INDEX('План ввода основ. ср-в'!K:K,MATCH(B53,'План ввода основ. ср-в'!B:B,0))),0,INDEX('План ввода основ. ср-в'!K:K,MATCH(B53,'План ввода основ. ср-в'!B:B,0))) -> 0 | AN53: 1.1 | AP53: 0 | AQ53: =IF(ISNA(INDEX('План ввода основ. ср-в'!N:N,MATCH(B53,'План ввода основ. ср-в'!B:B,0))),0,INDEX('План ввода основ. ср-в'!N:N,MATCH(B53,'План ввода основ. ср-в'!B:B,0))) -> 0 | AS53: =IF(ISNA(INDEX('План ввода основ. ср-в'!M:M,MATCH(B53,'План ввода основ. ср-в'!B:B,0))),0,INDEX('План ввода основ. ср-в'!M:M,MATCH(B53,'План ввода основ. ср-в'!B:B,0))) -> 0 | AT53: =IF(ISNA(INDEX('План ввода основ. ср-в'!P:P,MATCH(B53,'План ввода основ. ср-в'!B:B,0))),0,INDEX('План ввода основ. ср-в'!P:P,MATCH(B53,'План ввода основ. ср-в'!B:B,0))) -> 0 | AV53: =IF(ISNA(INDEX('План ввода основ. ср-в'!O:O,MATCH(B53,'План ввода основ. ср-в'!B:B,0))),0,INDEX('План ввода основ. ср-в'!O:O,MATCH(B53,'План ввода основ. ср-в'!B:B,0))) -> 0 | AW53: =IF(ISNA(INDEX('План ввода основ. ср-в'!R:R,MATCH(B53,'План ввода основ. ср-в'!B:B,0))),0,INDEX('План ввода основ. ср-в'!R:R,MATCH(B53,'План ввода основ. ср-в'!B:B,0))) -> 0 | AY53: =IF(ISNA(INDEX('План ввода основ. ср-в'!Q:Q,MATCH(B53,'План ввода основ. ср-в'!B:B,0))),0,INDEX('План ввода основ. ср-в'!Q:Q,MATCH(B53,'План ввода основ. ср-в'!B:B,0))) -> 0 | AZ53: =IF(ISNA(INDEX('План ввода основ. ср-в'!T:T,MATCH(B53,'План ввода основ. ср-в'!B:B,0))),0,INDEX('План ввода основ. ср-в'!T:T,MATCH(B53,'План ввода основ. ср-в'!B:B,0))) -> 0 | BB53: =IF(ISNA(INDEX('План ввода основ. ср-в'!S:S,MATCH(B53,'План ввода основ. ср-в'!B:B,0))),0,INDEX('План ввода основ. ср-в'!S:S,MATCH(B53,'План ввода основ. ср-в'!B:B,0))) -> 0 | BC53: 1.1 | BE53: 0 | BG53: =IF(ISNA(INDEX('План ввода основ. ср-в'!W:W,MATCH(B53,'План ввода основ. ср-в'!B:B,0))),0,INDEX('План ввода основ. ср-в'!W:W,MATCH(B53,'План ввода основ. ср-в'!B:B,0))) -> 0.5427966102 | BH53: =IF(ISNA(INDEX('План ввода основ. ср-в'!X:X,MATCH(B53,'План ввода основ. ср-в'!B:B,0))),0,INDEX('План ввода основ. ср-в'!X:X,MATCH(B53,'План ввода основ. ср-в'!B:B,0))) -> 1.266525424 | BI53: =IF(ISNA(INDEX('План ввода основ. ср-в'!Y:Y,MATCH(B53,'План ввода основ. ср-в'!B:B,0))),0,INDEX('План ввода основ. ср-в'!Y:Y,MATCH(B53,'План ввода основ. ср-в'!B:B,0))) -> 1.809322034 | BJ53: 3.618644068 | BK53: =IF(ISNA(INDEX('План ввода основ. ср-в'!Z:Z,MATCH(B53,'План ввода основ. ср-в'!B:B,0))),0,INDEX('План ввода основ. ср-в'!Z:Z,MATCH(B53,'План ввода основ. ср-в'!B:B,0))) -> 0 | BL53: =IF(ISNA(INDEX('План ввода основ. ср-в'!AA:AA,MATCH(B53,'План ввода основ. ср-в'!B:B,0))),0,INDEX('План ввода основ. ср-в'!AA:AA,MATCH(B53,'План ввода основ. ср-в'!B:B,0))) -> 0 | BM53: =IF(ISNA(INDEX('План ввода основ. ср-в'!AB:AB,MATCH(B53,'План ввода основ. ср-в'!B:B,0))),0,INDEX('План ввода основ. ср-в'!AB:AB,MATCH(B53,'План ввода основ. ср-в'!B:B,0))) -> 0 | BN53: =IF(ISNA(INDEX('План ввода основ. ср-в'!AC:AC,MATCH(B53,'План ввода основ. ср-в'!B:B,0))),0,INDEX('План ввода основ. ср-в'!AC:AC,MATCH(B53,'План ввода основ. ср-в'!B:B,0))) -> 0 | BO53: 3.618644068
A54: 32 | B54: Реконструкция ВЛ-0,4кВ от ЗТП Кур 901/250 кВА с заменой в ЗТП РУ-0,4 кВ | I54: 1 | K54: 0 | L54: 0 | N54: 0 | R54: 0 | T54: 0 | U54: 0 | W54: 0 | X54: 1 | Z54: 0 | AA54: 3.347457627 | AB54: =IF(ISNA(INDEX('План ввода основ. ср-в'!F:F,MATCH(B54,'План ввода основ. ср-в'!B:B,0))),0,INDEX('План ввода основ. ср-в'!F:F,MATCH(B54,'План ввода основ. ср-в'!B:B,0))) -> 0 | AD54: =IF(ISNA(INDEX('План ввода основ. ср-в'!E:E,MATCH(B54,'План ввода основ. ср-в'!B:B,0))),0,INDEX('План ввода основ. ср-в'!E:E,MATCH(B54,'План ввода основ. ср-в'!B:B,0))) -> 0 | AE54: =IF(ISNA(INDEX('План ввода основ. ср-в'!H:H,MATCH(B54,'План ввода основ. ср-в'!B:B,0))),0,INDEX('План ввода основ. ср-в'!H:H,MATCH(B54,'План ввода основ. ср-в'!B:B,0))) -> 0 | AG54: =IF(ISNA(INDEX('План ввода основ. ср-в'!G:G,MATCH(B54,'План ввода основ. ср-в'!B:B,0))),0,INDEX('План ввода основ. ср-в'!G:G,MATCH(B54,'План ввода основ. ср-в'!B:B,0))) -> 0 | AH54: =IF(ISNA(INDEX('План ввода основ. ср-в'!J:J,MATCH(B54,'План ввода основ. ср-в'!B:B,0))),0,INDEX('План ввода основ. ср-в'!J:J,MATCH(B54,'План ввода основ. ср-в'!B:B,0))) -> 0 | AJ54: =IF(ISNA(INDEX('План ввода основ. ср-в'!I:I,MATCH(B54,'План ввода основ. ср-в'!B:B,0))),0,INDEX('План ввода основ. ср-в'!I:I,MATCH(B54,'План ввода основ. ср-в'!B:B,0))) -> 0 | AK54: =IF(ISNA(INDEX('План ввода основ. ср-в'!L:L,MATCH(B54,'План ввода основ. ср-в'!B:B,0))),0,INDEX('План ввода основ. ср-в'!L:L,MATCH(B54,'План ввода основ. ср-в'!B:B,0))) -> 1 | AM54: =IF(ISNA(INDEX('План ввода основ. ср-в'!K:K,MATCH(B54,'План ввода основ. ср-в'!B:B,0))),0,INDEX('План ввода основ. ср-в'!K:K,MATCH(B54,'План ввода основ. ср-в'!B:B,0))) -> 0 | AN54: 1 | AP54: 0 | AQ54: =IF(ISNA(INDEX('План ввода основ. ср-в'!N:N,MATCH(B54,'План ввода основ. ср-в'!B:B,0))),0,INDEX('План ввода основ. ср-в'!N:N,MATCH(B54,'План ввода основ. ср-в'!B:B,0))) -> 0 | AS54: =IF(ISNA(INDEX('План ввода основ. ср-в'!M:M,MATCH(B54,'План ввода основ. ср-в'!B:B,0))),0,INDEX('План ввода основ. ср-в'!M:M,MATCH(B54,'План ввода основ. ср-в'!B:B,0))) -> 0 | AT54: =IF(ISNA(INDEX('План ввода основ. ср-в'!P:P,MATCH(B54,'План ввода основ. ср-в'!B:B,0))),0,INDEX('План ввода основ. ср-в'!P:P,MATCH(B54,'План ввода основ. ср-в'!B:B,0))) -> 0 | AV54: =IF(ISNA(INDEX('План ввода основ. ср-в'!O:O,MATCH(B54,'План ввода основ. ср-в'!B:B,0))),0,INDEX('План ввода основ. ср-в'!O:O,MATCH(B54,'План ввода основ. ср-в'!B:B,0))) -> 0 | AW54: =IF(ISNA(INDEX('План ввода основ. ср-в'!R:R,MATCH(B54,'План ввода основ. ср-в'!B:B,0))),0,INDEX('План ввода основ. ср-в'!R:R,MATCH(B54,'План ввода основ. ср-в'!B:B,0))) -> 0 | AY54: =IF(ISNA(INDEX('План ввода основ. ср-в'!Q:Q,MATCH(B54,'План ввода основ. ср-в'!B:B,0))),0,INDEX('План ввода основ. ср-в'!Q:Q,MATCH(B54,'План ввода основ. ср-в'!B:B,0))) -> 0 | AZ54: =IF(ISNA(INDEX('План ввода основ. ср-в'!T:T,MATCH(B54,'План ввода основ. ср-в'!B:B,0))),0,INDEX('План ввода основ. ср-в'!T:T,MATCH(B54,'План ввода основ. ср-в'!B:B,0))) -> 0 | BB54: =IF(ISNA(INDEX('План ввода основ. ср-в'!S:S,MATCH(B54,'План ввода основ. ср-в'!B:B,0))),0,INDEX('План ввода основ. ср-в'!S:S,MATCH(B54,'План ввода основ. ср-в'!B:B,0))) -> 0 | BC54: 1 | BE54: 0 | BG54: =IF(ISNA(INDEX('План ввода основ. ср-в'!W:W,MATCH(B54,'План ввода основ. ср-в'!B:B,0))),0,INDEX('План ввода основ. ср-в'!W:W,MATCH(B54,'План ввода основ. ср-в'!B:B,0))) -> 0.5021186441 | BH54: =IF(ISNA(INDEX('План ввода основ. ср-в'!X:X,MATCH(B54,'План ввода основ. ср-в'!B:B,0))),0,INDEX('План ввода основ. ср-в'!X:X,MATCH(B54,'План ввода основ. ср-в'!B:B,0))) -> 1.171610169 | BI54: =IF(ISNA(INDEX('План ввода основ. ср-в'!Y:Y,MATCH(B54,'План ввода основ. ср-в'!B:B,0))),0,INDEX('План ввода основ. ср-в'!Y:Y,MATCH(B54,'План ввода основ. ср-в'!B:B,0))) -> 1.673728814 | BJ54: 3.347457627 | BK54: =IF(ISNA(INDEX('План ввода основ. ср-в'!Z:Z,MATCH(B54,'План ввода основ. ср-в'!B:B,0))),0,INDEX('План ввода основ. ср-в'!Z:Z,MATCH(B54,'План ввода основ. ср-в'!B:B,0))) -> 0 | BL54: =IF(ISNA(INDEX('План ввода основ. ср-в'!AA:AA,MATCH(B54,'План ввода основ. ср-в'!B:B,0))),0,INDEX('План ввода основ. ср-в'!AA:AA,MATCH(B54,'План ввода основ. ср-в'!B:B,0))) -> 0 | BM54: =IF(ISNA(INDEX('План ввода основ. ср-в'!AB:AB,MATCH(B54,'План ввода основ. ср-в'!B:B,0))),0,INDEX('План ввода основ. ср-в'!AB:AB,MATCH(B54,'План ввода основ. ср-в'!B:B,0))) -> 0 | BN54: =IF(ISNA(INDEX('План ввода основ. ср-в'!AC:AC,MATCH(B54,'План ввода основ. ср-в'!B:B,0))),0,INDEX('План ввода основ. ср-в'!AC:AC,MATCH(B54,'План ввода основ. ср-в'!B:B,0))) -> 0 | BO54: 3.347457627
A55: 33 | B55: Реконструкция ВЛ-0,4 кВ от КТП Р 402/400 кВА с заменой КТП | I55: 1 | J55: / | K55: 0.4 | L55: 0 | N55: 0 | O55: 0 | Q55: 0 | R55: 0 | T55: 0 | U55: 0 | W55: 0 | X55: 1 | Y55: / | Z55: 0.4 | AA55: 4.06779661 | AB55: =IF(ISNA(INDEX('План ввода основ. ср-в'!F:F,MATCH(B55,'План ввода основ. ср-в'!B:B,0))),0,INDEX('План ввода основ. ср-в'!F:F,MATCH(B55,'План ввода основ. ср-в'!B:B,0))) -> 0 | AD55: =IF(ISNA(INDEX('План ввода основ. ср-в'!E:E,MATCH(B55,'План ввода основ. ср-в'!B:B,0))),0,INDEX('План ввода основ. ср-в'!E:E,MATCH(B55,'План ввода основ. ср-в'!B:B,0))) -> 0 | AE55: =IF(ISNA(INDEX('План ввода основ. ср-в'!H:H,MATCH(B55,'План ввода основ. ср-в'!B:B,0))),0,INDEX('План ввода основ. ср-в'!H:H,MATCH(B55,'План ввода основ. ср-в'!B:B,0))) -> 0 | AG55: =IF(ISNA(INDEX('План ввода основ. ср-в'!G:G,MATCH(B55,'План ввода основ. ср-в'!B:B,0))),0,INDEX('План ввода основ. ср-в'!G:G,MATCH(B55,'План ввода основ. ср-в'!B:B,0))) -> 0 | AH55: =IF(ISNA(INDEX('План ввода основ. ср-в'!J:J,MATCH(B55,'План ввода основ. ср-в'!B:B,0))),0,INDEX('План ввода основ. ср-в'!J:J,MATCH(B55,'План ввода основ. ср-в'!B:B,0))) -> 0 | AJ55: =IF(ISNA(INDEX('План ввода основ. ср-в'!I:I,MATCH(B55,'План ввода основ. ср-в'!B:B,0))),0,INDEX('План ввода основ. ср-в'!I:I,MATCH(B55,'План ввода основ. ср-в'!B:B,0))) -> 0 | AK55: =IF(ISNA(INDEX('План ввода основ. ср-в'!L:L,MATCH(B55,'План ввода основ. ср-в'!B:B,0))),0,INDEX('План ввода основ. ср-в'!L:L,MATCH(B55,'План ввода основ. ср-в'!B:B,0))) -> 1 | AL55: / | AM55: =IF(ISNA(INDEX('План ввода основ. ср-в'!K:K,MATCH(B55,'План ввода основ. ср-в'!B:B,0))),0,INDEX('План ввода основ. ср-в'!K:K,MATCH(B55,'План ввода основ. ср-в'!B:B,0))) -> 0.4 | AN55: 1 | AO55: / | AP55: 0.4 | AQ55: =IF(ISNA(INDEX('План ввода основ. ср-в'!N:N,MATCH(B55,'План ввода основ. ср-в'!B:B,0))),0,INDEX('План ввода основ. ср-в'!N:N,MATCH(B55,'План ввода основ. ср-в'!B:B,0))) -> 0 | AS55: =IF(ISNA(INDEX('План ввода основ. ср-в'!M:M,MATCH(B55,'План ввода основ. ср-в'!B:B,0))),0,INDEX('План ввода основ. ср-в'!M:M,MATCH(B55,'План ввода основ. ср-в'!B:B,0))) -> 0 | AT55: =IF(ISNA(INDEX('План ввода основ. ср-в'!P:P,MATCH(B55,'План ввода основ. ср-в'!B:B,0))),0,INDEX('План ввода основ. ср-в'!P:P,MATCH(B55,'План ввода основ. ср-в'!B:B,0))) -> 0 | AV55: =IF(ISNA(INDEX('План ввода основ. ср-в'!O:O,MATCH(B55,'План ввода основ. ср-в'!B:B,0))),0,INDEX('План ввода основ. ср-в'!O:O,MATCH(B55,'План ввода основ. ср-в'!B:B,0))) -> 0 | AW55: =IF(ISNA(INDEX('План ввода основ. ср-в'!R:R,MATCH(B55,'План ввода основ. ср-в'!B:B,0))),0,INDEX('План ввода основ. ср-в'!R:R,MATCH(B55,'План ввода основ. ср-в'!B:B,0))) -> 0 | AY55: =IF(ISNA(INDEX('План ввода основ. ср-в'!Q:Q,MATCH(B55,'План ввода основ. ср-в'!B:B,0))),0,INDEX('План ввода основ. ср-в'!Q:Q,MATCH(B55,'План ввода основ. ср-в'!B:B,0))) -> 0 | AZ55: =IF(ISNA(INDEX('План ввода основ. ср-в'!T:T,MATCH(B55,'План ввода основ. ср-в'!B:B,0))),0,INDEX('План ввода основ. ср-в'!T:T,MATCH(B55,'План ввода основ. ср-в'!B:B,0))) -> 0 | BB55: =IF(ISNA(INDEX('План ввода основ. ср-в'!S:S,MATCH(B55,'План ввода основ. ср-в'!B:B,0))),0,INDEX('План ввода основ. ср-в'!S:S,MATCH(B55,'План ввода основ. ср-в'!B:B,0))) -> 0 | BC55: 1 | BD55: / | BE55: 0.4 | BF55: =IF(ISNA(INDEX('План ввода основ. ср-в'!V:V,MATCH(B55,'План ввода основ. ср-в'!B:B,0))),0,INDEX('План ввода основ. ср-в'!V:V,MATCH(B55,'План ввода основ. ср-в'!B:B,0))) -> 0 | BG55: =IF(ISNA(INDEX('План ввода основ. ср-в'!W:W,MATCH(B55,'План ввода основ. ср-в'!B:B,0))),0,INDEX('План ввода основ. ср-в'!W:W,MATCH(B55,'План ввода основ. ср-в'!B:B,0))) -> 0.6101694915 | BH55: =IF(ISNA(INDEX('План ввода основ. ср-в'!X:X,MATCH(B55,'План ввода основ. ср-в'!B:B,0))),0,INDEX('План ввода основ. ср-в'!X:X,MATCH(B55,'План ввода основ. ср-в'!B:B,0))) -> 1.423728814 | BI55: =IF(ISNA(INDEX('План ввода основ. ср-в'!Y:Y,MATCH(B55,'План ввода основ. ср-в'!B:B,0))),0,INDEX('План ввода основ. ср-в'!Y:Y,MATCH(B55,'План ввода основ. ср-в'!B:B,0))) -> 2.033898305 | BJ55: 4.06779661 | BK55: =IF(ISNA(INDEX('План ввода основ. ср-в'!Z:Z,MATCH(B55,'План ввода основ. ср-в'!B:B,0))),0,INDEX('План ввода основ. ср-в'!Z:Z,MATCH(B55,'План ввода основ. ср-в'!B:B,0))) -> 0 | BL55: =IF(ISNA(INDEX('План ввода основ. ср-в'!AA:AA,MATCH(B55,'План ввода основ. ср-в'!B:B,0))),0,INDEX('План ввода основ. ср-в'!AA:AA,MATCH(B55,'План ввода основ. ср-в'!B:B,0))) -> 0 | BM55: =IF(ISNA(INDEX('План ввода основ. ср-в'!AB:AB,MATCH(B55,'План ввода основ. ср-в'!B:B,0))),0,INDEX('План ввода основ. ср-в'!AB:AB,MATCH(B55,'План ввода основ. ср-в'!B:B,0))) -> 0 | BN55: =IF(ISNA(INDEX('План ввода основ. ср-в'!AC:AC,MATCH(B55,'План ввода основ. ср-в'!B:B,0))),0,INDEX('План ввода основ. ср-в'!AC:AC,MATCH(B55,'План ввода основ. ср-в'!B:B,0))) -> 0 | BO55: 4.06779661
A56: 34 | B56: Реконструкция ВЛ-0,4 кВ от КТП Р 605/250 кВА с заменой КТП | I56: 2.65 | J56: / | K56: 0.25 | L56: 0 | N56: 0 | O56: 0 | Q56: 0 | R56: 0 | T56: 0 | U56: 0 | W56: 0 | X56: 2.65 | Y56: / | Z56: 0.25 | AA56: 8.288135593 | AB56: =IF(ISNA(INDEX('План ввода основ. ср-в'!F:F,MATCH(B56,'План ввода основ. ср-в'!B:B,0))),0,INDEX('План ввода основ. ср-в'!F:F,MATCH(B56,'План ввода основ. ср-в'!B:B,0))) -> 0 | AD56: =IF(ISNA(INDEX('План ввода основ. ср-в'!E:E,MATCH(B56,'План ввода основ. ср-в'!B:B,0))),0,INDEX('План ввода основ. ср-в'!E:E,MATCH(B56,'План ввода основ. ср-в'!B:B,0))) -> 0 | AE56: =IF(ISNA(INDEX('План ввода основ. ср-в'!H:H,MATCH(B56,'План ввода основ. ср-в'!B:B,0))),0,INDEX('План ввода основ. ср-в'!H:H,MATCH(B56,'План ввода основ. ср-в'!B:B,0))) -> 0 | AG56: =IF(ISNA(INDEX('План ввода основ. ср-в'!G:G,MATCH(B56,'План ввода основ. ср-в'!B:B,0))),0,INDEX('План ввода основ. ср-в'!G:G,MATCH(B56,'План ввода основ. ср-в'!B:B,0))) -> 0 | AH56: =IF(ISNA(INDEX('План ввода основ. ср-в'!J:J,MATCH(B56,'План ввода основ. ср-в'!B:B,0))),0,INDEX('План ввода основ. ср-в'!J:J,MATCH(B56,'План ввода основ. ср-в'!B:B,0))) -> 0 | AJ56: =IF(ISNA(INDEX('План ввода основ. ср-в'!I:I,MATCH(B56,'План ввода основ. ср-в'!B:B,0))),0,INDEX('План ввода основ. ср-в'!I:I,MATCH(B56,'План ввода основ. ср-в'!B:B,0))) -> 0 | AK56: =IF(ISNA(INDEX('План ввода основ. ср-в'!L:L,MATCH(B56,'План ввода основ. ср-в'!B:B,0))),0,INDEX('План ввода основ. ср-в'!L:L,MATCH(B56,'План ввода основ. ср-в'!B:B,0))) -> 2.65 | AL56: / | AM56: =IF(ISNA(INDEX('План ввода основ. ср-в'!K:K,MATCH(B56,'План ввода основ. ср-в'!B:B,0))),0,INDEX('План ввода основ. ср-в'!K:K,MATCH(B56,'План ввода основ. ср-в'!B:B,0))) -> 0.25 | AN56: 2.65 | AO56: / | AP56: 0.25 | AQ56: =IF(ISNA(INDEX('План ввода основ. ср-в'!N:N,MATCH(B56,'План ввода основ. ср-в'!B:B,0))),0,INDEX('План ввода основ. ср-в'!N:N,MATCH(B56,'План ввода основ. ср-в'!B:B,0))) -> 0 | AS56: =IF(ISNA(INDEX('План ввода основ. ср-в'!M:M,MATCH(B56,'План ввода основ. ср-в'!B:B,0))),0,INDEX('План ввода основ. ср-в'!M:M,MATCH(B56,'План ввода основ. ср-в'!B:B,0))) -> 0 | AT56: =IF(ISNA(INDEX('План ввода основ. ср-в'!P:P,MATCH(B56,'План ввода основ. ср-в'!B:B,0))),0,INDEX('План ввода основ. ср-в'!P:P,MATCH(B56,'План ввода основ. ср-в'!B:B,0))) -> 0 | AV56: =IF(ISNA(INDEX('План ввода основ. ср-в'!O:O,MATCH(B56,'План ввода основ. ср-в'!B:B,0))),0,INDEX('План ввода основ. ср-в'!O:O,MATCH(B56,'План ввода основ. ср-в'!B:B,0))) -> 0 | AW56: =IF(ISNA(INDEX('План ввода основ. ср-в'!R:R,MATCH(B56,'План ввода основ. ср-в'!B:B,0))),0,INDEX('План ввода основ. ср-в'!R:R,MATCH(B56,'План ввода основ. ср-в'!B:B,0))) -> 0 | AY56: =IF(ISNA(INDEX('План ввода основ. ср-в'!Q:Q,MATCH(B56,'План ввода основ. ср-в'!B:B,0))),0,INDEX('План ввода основ. ср-в'!Q:Q,MATCH(B56,'План ввода основ. ср-в'!B:B,0))) -> 0 | AZ56: =IF(ISNA(INDEX('План ввода основ. ср-в'!T:T,MATCH(B56,'План ввода основ. ср-в'!B:B,0))),0,INDEX('План ввода основ. ср-в'!T:T,MATCH(B56,'План ввода основ. ср-в'!B:B,0))) -> 0 | BB56: =IF(ISNA(INDEX('План ввода основ. ср-в'!S:S,MATCH(B56,'План ввода основ. ср-в'!B:B,0))),0,INDEX('План ввода основ. ср-в'!S:S,MATCH(B56,'План ввода основ. ср-в'!B:B,0))) -> 0 | BC56: 2.65 | BD56: / | BE56: 0.25 | BF56: =IF(ISNA(INDEX('План ввода основ. ср-в'!V:V,MATCH(B56,'План ввода основ. ср-в'!B:B,0))),0,INDEX('План ввода основ. ср-в'!V:V,MATCH(B56,'План ввода основ. ср-в'!B:B,0))) -> 0 | BG56: =IF(ISNA(INDEX('План ввода основ. ср-в'!W:W,MATCH(B56,'План ввода основ. ср-в'!B:B,0))),0,INDEX('План ввода основ. ср-в'!W:W,MATCH(B56,'План ввода основ. ср-в'!B:B,0))) -> 1.243220339 | BH56: =IF(ISNA(INDEX('План ввода основ. ср-в'!X:X,MATCH(B56,'План ввода основ. ср-в'!B:B,0))),0,INDEX('План ввода основ. ср-в'!X:X,MATCH(B56,'План ввода основ. ср-в'!B:B,0))) -> 2.900847458 | BI56: =IF(ISNA(INDEX('План ввода основ. ср-в'!Y:Y,MATCH(B56,'План ввода основ. ср-в'!B:B,0))),0,INDEX('План ввода основ. ср-в'!Y:Y,MATCH(B56,'План ввода основ. ср-в'!B:B,0))) -> 4.144067797 | BJ56: 8.288135593 | BK56: =IF(ISNA(INDEX('План ввода основ. ср-в'!Z:Z,MATCH(B56,'План ввода основ. ср-в'!B:B,0))),0,INDEX('План ввода основ. ср-в'!Z:Z,MATCH(B56,'План ввода основ. ср-в'!B:B,0))) -> 0 | BL56: =IF(ISNA(INDEX('План ввода основ. ср-в'!AA:AA,MATCH(B56,'План ввода основ. ср-в'!B:B,0))),0,INDEX('План ввода основ. ср-в'!AA:AA,MATCH(B56,'План ввода основ. ср-в'!B:B,0))) -> 0 | BM56: =IF(ISNA(INDEX('План ввода основ. ср-в'!AB:AB,MATCH(B56,'План ввода основ. ср-в'!B:B,0))),0,INDEX('План ввода основ. ср-в'!AB:AB,MATCH(B56,'План ввода основ. ср-в'!B:B,0))) -> 0 | BN56: =IF(ISNA(INDEX('План ввода основ. ср-в'!AC:AC,MATCH(B56,'План ввода основ. ср-в'!B:B,0))),0,INDEX('План ввода основ. ср-в'!AC:AC,MATCH(B56,'План ввода основ. ср-в'!B:B,0))) -> 0 | BO56: 8.288135593
A57: 35 | B57: Реконструкция ВЛ-0,4кВ от ЗТП Кур 906/400 кВА с заменой ЗТП на КТП | I57: 0 | K57: 0 | L57: 0.85 | M57: / | N57: 0.4 | O57: 0 | Q57: 0 | R57: 0 | T57: 0 | U57: 0 | W57: 0 | X57: 0.85 | Y57: / | Z57: 0.4 | AA57: 3.033898305 | AB57: =IF(ISNA(INDEX('План ввода основ. ср-в'!F:F,MATCH(B57,'План ввода основ. ср-в'!B:B,0))),0,INDEX('План ввода основ. ср-в'!F:F,MATCH(B57,'План ввода основ. ср-в'!B:B,0))) -> 0 | AD57: =IF(ISNA(INDEX('План ввода основ. ср-в'!E:E,MATCH(B57,'План ввода основ. ср-в'!B:B,0))),0,INDEX('План ввода основ. ср-в'!E:E,MATCH(B57,'План ввода основ. ср-в'!B:B,0))) -> 0 | AE57: =IF(ISNA(INDEX('План ввода основ. ср-в'!H:H,MATCH(B57,'План ввода основ. ср-в'!B:B,0))),0,INDEX('План ввода основ. ср-в'!H:H,MATCH(B57,'План ввода основ. ср-в'!B:B,0))) -> 0 | AG57: =IF(ISNA(INDEX('План ввода основ. ср-в'!G:G,MATCH(B57,'План ввода основ. ср-в'!B:B,0))),0,INDEX('План ввода основ. ср-в'!G:G,MATCH(B57,'План ввода основ. ср-в'!B:B,0))) -> 0 | AH57: =IF(ISNA(INDEX('План ввода основ. ср-в'!J:J,MATCH(B57,'План ввода основ. ср-в'!B:B,0))),0,INDEX('План ввода основ. ср-в'!J:J,MATCH(B57,'План ввода основ. ср-в'!B:B,0))) -> 0 | AJ57: =IF(ISNA(INDEX('План ввода основ. ср-в'!I:I,MATCH(B57,'План ввода основ. ср-в'!B:B,0))),0,INDEX('План ввода основ. ср-в'!I:I,MATCH(B57,'План ввода основ. ср-в'!B:B,0))) -> 0 | AK57: =IF(ISNA(INDEX('План ввода основ. ср-в'!L:L,MATCH(B57,'План ввода основ. ср-в'!B:B,0))),0,INDEX('План ввода основ. ср-в'!L:L,MATCH(B57,'План ввода основ. ср-в'!B:B,0))) -> 0 | AM57: =IF(ISNA(INDEX('План ввода основ. ср-в'!K:K,MATCH(B57,'План ввода основ. ср-в'!B:B,0))),0,INDEX('План ввода основ. ср-в'!K:K,MATCH(B57,'План ввода основ. ср-в'!B:B,0))) -> 0 | AN57: 0 | AO57: / | AP57: 0 | AQ57: =IF(ISNA(INDEX('План ввода основ. ср-в'!N:N,MATCH(B57,'План ввода основ. ср-в'!B:B,0))),0,INDEX('План ввода основ. ср-в'!N:N,MATCH(B57,'План ввода основ. ср-в'!B:B,0))) -> 0.85 | AR57: / | AS57: =IF(ISNA(INDEX('План ввода основ. ср-в'!M:M,MATCH(B57,'План ввода основ. ср-в'!B:B,0))),0,INDEX('План ввода основ. ср-в'!M:M,MATCH(B57,'План ввода основ. ср-в'!B:B,0))) -> 0.4 | AT57: =IF(ISNA(INDEX('План ввода основ. ср-в'!P:P,MATCH(B57,'План ввода основ. ср-в'!B:B,0))),0,INDEX('План ввода основ. ср-в'!P:P,MATCH(B57,'План ввода основ. ср-в'!B:B,0))) -> 0 | AV57: =IF(ISNA(INDEX('План ввода основ. ср-в'!O:O,MATCH(B57,'План ввода основ. ср-в'!B:B,0))),0,INDEX('План ввода основ. ср-в'!O:O,MATCH(B57,'План ввода основ. ср-в'!B:B,0))) -> 0 | AW57: =IF(ISNA(INDEX('План ввода основ. ср-в'!R:R,MATCH(B57,'План ввода основ. ср-в'!B:B,0))),0,INDEX('План ввода основ. ср-в'!R:R,MATCH(B57,'План ввода основ. ср-в'!B:B,0))) -> 0 | AY57: =IF(ISNA(INDEX('План ввода основ. ср-в'!Q:Q,MATCH(B57,'План ввода основ. ср-в'!B:B,0))),0,INDEX('План ввода основ. ср-в'!Q:Q,MATCH(B57,'План ввода основ. ср-в'!B:B,0))) -> 0 | AZ57: =IF(ISNA(INDEX('План ввода основ. ср-в'!T:T,MATCH(B57,'План ввода основ. ср-в'!B:B,0))),0,INDEX('План ввода основ. ср-в'!T:T,MATCH(B57,'План ввода основ. ср-в'!B:B,0))) -> 0 | BB57: =IF(ISNA(INDEX('План ввода основ. ср-в'!S:S,MATCH(B57,'План ввода основ. ср-в'!B:B,0))),0,INDEX('План ввода основ. ср-в'!S:S,MATCH(B57,'План ввода основ. ср-в'!B:B,0))) -> 0 | BC57: 0.85 | BD57: / | BE57: 0.4 | BF57: =IF(ISNA(INDEX('План ввода основ. ср-в'!V:V,MATCH(B57,'План ввода основ. ср-в'!B:B,0))),0,INDEX('План ввода основ. ср-в'!V:V,MATCH(B57,'План ввода основ. ср-в'!B:B,0))) -> 0 | BG57: =IF(ISNA(INDEX('План ввода основ. ср-в'!W:W,MATCH(B57,'План ввода основ. ср-в'!B:B,0))),0,INDEX('План ввода основ. ср-в'!W:W,MATCH(B57,'План ввода основ. ср-в'!B:B,0))) -> 0 | BH57: =IF(ISNA(INDEX('План ввода основ. ср-в'!X:X,MATCH(B57,'План ввода основ. ср-в'!B:B,0))),0,INDEX('План ввода основ. ср-в'!X:X,MATCH(B57,'План ввода основ. ср-в'!B:B,0))) -> 0 | BI57: =IF(ISNA(INDEX('План ввода основ. ср-в'!Y:Y,MATCH(B57,'План ввода основ. ср-в'!B:B,0))),0,INDEX('План ввода основ. ср-в'!Y:Y,MATCH(B57,'План ввода основ. ср-в'!B:B,0))) -> 0 | BJ57: 0 | BK57: =IF(ISNA(INDEX('План ввода основ. ср-в'!Z:Z,MATCH(B57,'План ввода основ. ср-в'!B:B,0))),0,INDEX('План ввода основ. ср-в'!Z:Z,MATCH(B57,'План ввода основ. ср-в'!B:B,0))) -> 3.033898305 | BL57: =IF(ISNA(INDEX('План ввода основ. ср-в'!AA:AA,MATCH(B57,'План ввода основ. ср-в'!B:B,0))),0,INDEX('План ввода основ. ср-в'!AA:AA,MATCH(B57,'План ввода основ. ср-в'!B:B,0))) -> 0 | BM57: =IF(ISNA(INDEX('План ввода основ. ср-в'!AB:AB,MATCH(B57,'План ввода основ. ср-в'!B:B,0))),0,INDEX('План ввода основ. ср-в'!AB:AB,MATCH(B57,'План ввода основ. ср-в'!B:B,0))) -> 0 | BN57: =IF(ISNA(INDEX('План ввода основ. ср-в'!AC:AC,MATCH(B57,'План ввода основ. ср-в'!B:B,0))),0,INDEX('План ввода основ. ср-в'!AC:AC,MATCH(B57,'План ввода основ. ср-в'!B:B,0))) -> 0 | BO57: 3.033898305
A58: 36 | B58: Реконструкция ВЛ-0,4кВ от ЗТП Кур 901/250 кВА с заменой ЗТП на КТП | I58: 0 | K58: 0 | L58: 1.4 | M58: / | N58: 0.25 | O58: 0 | Q58: 0 | R58: 0 | T58: 0 | U58: 0 | W58: 0 | X58: 1.4 | Y58: / | Z58: 0.25 | AA58: 4.338983051 | AB58: =IF(ISNA(INDEX('План ввода основ. ср-в'!F:F,MATCH(B58,'План ввода основ. ср-в'!B:B,0))),0,INDEX('План ввода основ. ср-в'!F:F,MATCH(B58,'План ввода основ. ср-в'!B:B,0))) -> 0 | AD58: =IF(ISNA(INDEX('План ввода основ. ср-в'!E:E,MATCH(B58,'План ввода основ. ср-в'!B:B,0))),0,INDEX('План ввода основ. ср-в'!E:E,MATCH(B58,'План ввода основ. ср-в'!B:B,0))) -> 0 | AE58: =IF(ISNA(INDEX('План ввода основ. ср-в'!H:H,MATCH(B58,'План ввода основ. ср-в'!B:B,0))),0,INDEX('План ввода основ. ср-в'!H:H,MATCH(B58,'План ввода основ. ср-в'!B:B,0))) -> 0 | AG58: =IF(ISNA(INDEX('План ввода основ. ср-в'!G:G,MATCH(B58,'План ввода основ. ср-в'!B:B,0))),0,INDEX('План ввода основ. ср-в'!G:G,MATCH(B58,'План ввода основ. ср-в'!B:B,0))) -> 0 | AH58: =IF(ISNA(INDEX('План ввода основ. ср-в'!J:J,MATCH(B58,'План ввода основ. ср-в'!B:B,0))),0,INDEX('План ввода основ. ср-в'!J:J,MATCH(B58,'План ввода основ. ср-в'!B:B,0))) -> 0 | AJ58: =IF(ISNA(INDEX('План ввода основ. ср-в'!I:I,MATCH(B58,'План ввода основ. ср-в'!B:B,0))),0,INDEX('План ввода основ. ср-в'!I:I,MATCH(B58,'План ввода основ. ср-в'!B:B,0))) -> 0 | AK58: =IF(ISNA(INDEX('План ввода основ. ср-в'!L:L,MATCH(B58,'План ввода основ. ср-в'!B:B,0))),0,INDEX('План ввода основ. ср-в'!L:L,MATCH(B58,'План ввода основ. ср-в'!B:B,0))) -> 0 | AM58: =IF(ISNA(INDEX('План ввода основ. ср-в'!K:K,MATCH(B58,'План ввода основ. ср-в'!B:B,0))),0,INDEX('План ввода основ. ср-в'!K:K,MATCH(B58,'План ввода основ. ср-в'!B:B,0))) -> 0 | AN58: 0 | AO58: / | AP58: 0 | AQ58: =IF(ISNA(INDEX('План ввода основ. ср-в'!N:N,MATCH(B58,'План ввода основ. ср-в'!B:B,0))),0,INDEX('План ввода основ. ср-в'!N:N,MATCH(B58,'План ввода основ. ср-в'!B:B,0))) -> 1.4 | AR58: / | AS58: =IF(ISNA(INDEX('План ввода основ. ср-в'!M:M,MATCH(B58,'План ввода основ. ср-в'!B:B,0))),0,INDEX('План ввода основ. ср-в'!M:M,MATCH(B58,'План ввода основ. ср-в'!B:B,0))) -> 0.25 | AT58: =IF(ISNA(INDEX('План ввода основ. ср-в'!P:P,MATCH(B58,'План ввода основ. ср-в'!B:B,0))),0,INDEX('План ввода основ. ср-в'!P:P,MATCH(B58,'План ввода основ. ср-в'!B:B,0))) -> 0 | AV58: =IF(ISNA(INDEX('План ввода основ. ср-в'!O:O,MATCH(B58,'План ввода основ. ср-в'!B:B,0))),0,INDEX('План ввода основ. ср-в'!O:O,MATCH(B58,'План ввода основ. ср-в'!B:B,0))) -> 0 | AW58: =IF(ISNA(INDEX('План ввода основ. ср-в'!R:R,MATCH(B58,'План ввода основ. ср-в'!B:B,0))),0,INDEX('План ввода основ. ср-в'!R:R,MATCH(B58,'План ввода основ. ср-в'!B:B,0))) -> 0 | AY58: =IF(ISNA(INDEX('План ввода основ. ср-в'!Q:Q,MATCH(B58,'План ввода основ. ср-в'!B:B,0))),0,INDEX('План ввода основ. ср-в'!Q:Q,MATCH(B58,'План ввода основ. ср-в'!B:B,0))) -> 0 | AZ58: =IF(ISNA(INDEX('План ввода основ. ср-в'!T:T,MATCH(B58,'План ввода основ. ср-в'!B:B,0))),0,INDEX('План ввода основ. ср-в'!T:T,MATCH(B58,'План ввода основ. ср-в'!B:B,0))) -> 0 | BB58: =IF(ISNA(INDEX('План ввода основ. ср-в'!S:S,MATCH(B58,'План ввода основ. ср-в'!B:B,0))),0,INDEX('План ввода основ. ср-в'!S:S,MATCH(B58,'План ввода основ. ср-в'!B:B,0))) -> 0 | BC58: 1.4 | BD58: / | BE58: 0.25 | BF58: =IF(ISNA(INDEX('План ввода основ. ср-в'!V:V,MATCH(B58,'План ввода основ. ср-в'!B:B,0))),0,INDEX('План ввода основ. ср-в'!V:V,MATCH(B58,'План ввода основ. ср-в'!B:B,0))) -> 0 | BG58: =IF(ISNA(INDEX('План ввода основ. ср-в'!W:W,MATCH(B58,'План ввода основ. ср-в'!B:B,0))),0,INDEX('План ввода основ. ср-в'!W:W,MATCH(B58,'План ввода основ. ср-в'!B:B,0))) -> 0 | BH58: =IF(ISNA(INDEX('План ввода основ. ср-в'!X:X,MATCH(B58,'План ввода основ. ср-в'!B:B,0))),0,INDEX('План ввода основ. ср-в'!X:X,MATCH(B58,'План ввода основ. ср-в'!B:B,0))) -> 0 | BI58: =IF(ISNA(INDEX('План ввода основ. ср-в'!Y:Y,MATCH(B58,'План ввода основ. ср-в'!B:B,0))),0,INDEX('План ввода основ. ср-в'!Y:Y,MATCH(B58,'План ввода основ. ср-в'!B:B,0))) -> 0 | BJ58: 0 | BK58: =IF(ISNA(INDEX('План ввода основ. ср-в'!Z:Z,MATCH(B58,'План ввода основ. ср-в'!B:B,0))),0,INDEX('План ввода основ. ср-в'!Z:Z,MATCH(B58,'План ввода основ. ср-в'!B:B,0))) -> 4.338983051 | BL58: =IF(ISNA(INDEX('План ввода основ. ср-в'!AA:AA,MATCH(B58,'План ввода основ. ср-в'!B:B,0))),0,INDEX('План ввода основ. ср-в'!AA:AA,MATCH(B58,'План ввода основ. ср-в'!B:B,0))) -> 0 | BM58: =IF(ISNA(INDEX('План ввода основ. ср-в'!AB:AB,MATCH(B58,'План ввода основ. ср-в'!B:B,0))),0,INDEX('План ввода основ. ср-в'!AB:AB,MATCH(B58,'План ввода основ. ср-в'!B:B,0))) -> 0 | BN58: =IF(ISNA(INDEX('План ввода основ. ср-в'!AC:AC,MATCH(B58,'План ввода основ. ср-в'!B:B,0))),0,INDEX('План ввода основ. ср-в'!AC:AC,MATCH(B58,'План ввода основ. ср-в'!B:B,0))) -> 0 | BO58: 4.338983051
